Workbook

Sheet Inicio
A3: Código | B3: Nombre | C3: Descripcion
A4: 01-A | B4: Registro productos Nuevos | C4: Cuando se registran productos nuevos
A5: 01-B | B5: Registro Cuenta contable | C5: Caundo tenemos gastos se determina cual será su origen
A6: 01-C | B6: Cotizar | C6: Formato para incluir precios cada 6 meses
A7: 01-D | B7: Machote hoja de pedidos | C7: Es el formato de las hojas de pedidos internos
A8: 01-E | B8: Inventario | C8: La hoja para hacer pedos de bodega
A9: 01-F | B9: Enviar cotizar | C9: Formato para pedir que nos cotizen por proveedor
A10: 01-G | B10: Registro | C10: Formato para acta recibido de materia prima
A11: 02-A | B11: Facturar | C11: Ingreso de facturas de compras
A12: 02-B | B12: Despegue de compras | C12: Formato de facturacion para subir al sistema
A13: 02-C | B13: Faltantes de pedido | C13: Reporte faltantes de prodcutos por proveedor
A14: 02-D | B14: Devuluciones | C14: Cuando facturan productos que tenemos que devolver
A15: 03-A | B15: Ingreso pedidos Internos | C15: Formato para ingresar los pedidos internos
A16: 03-B | B16: Despegue pedido Inter | C16: Formato para ingresar productos para subir al sistema
A17: 03-C | B17: Ingreso pedidos Direct | C17: Formato para ingresar los pedidos Directos
A18: 03-D | B18: Despegue pedido Direct | C18: Formato para enviar los pedos a los proveedores
A19: 04-A | B19: Ingreso de recetas | C19: Formato para ingresar recetas
A20: 04-B | B20: Imprimir receta | C20: Metodo para imprimir las recetas reportadas en 04-A
A21: 04-C | B21: Ingreso de subreceta | C21: Formato para ingresar subrecetas
A22: 04-D | B22: Imprimir subreceta | C22: Metodo para imprimir las subrecetas reportadas en 04-C
A23: 04-E | B23: Regsitro buffe | C23: Formato para ingresar las recetas del buffet en alimentos por pax
A24: 04-F | B24: Ajsute de cat de buffe | C24: Formato para ajsutar más menos según los resultados del buffe
A25: 04-G | B25: Despegue rec buffe | C25: Formato para subir al sistema los prodcutos del buffet en alimentos
A26: 04-H | B26: Reportes de buffet | C26: Reporte del costo de un buffet o receta
A27: 04-I | B27: Regsitro de bebidas | C27: Formato para ingresar las recetas del buffet en bebidas
A28: 04-J | B28: Despegue recetas bebidas | C28: Formato para subir productos al sistema de las recetas de la bebidas
A29: 04-K | B29: Precio maestro | C29: Agregar productos para las recetas, los precios se actualizan solos
A30: 05-A | B30: Recetas preparaciones | C30: Se hacen las recetas de preparacione para luego ser usados como ingredientes
A31: 05-B | B31: Preparaciones como ingrediente | C31: Regsitro de las preparaciones como ingredietes
A32: 05-C | B32: Recetaspara carta | C32: Formato para costear recetas
A33: Datos
A34: Datos 1 | B34: Datos | C34: Se toma como escrituras unicas para evitar errores
A35: Cálculo | B35: Métodos de Cálculo | C35: Se calcula maximos, mininos y multiplos tomando datos de la hoja 01-4, para resultados en 03-C

Sheet Rótulos
A1: Cod | B1: Prodcuto | C1: Sk | I1: Proveedor | J1: Ubicación | K1: Sub Ubicación | L1: Tipo
A2: ='01-A Reg Prod Nuev'!A4 -> 02110005 | B2: =CONCATENATE('01-A Reg Prod Nuev'!B4," ",'01-A Reg Prod Nuev'!D4," ",H2," ",'01-A Reg Prod Nuev'!K4) -> Absolut 1/4 botella 200 ml | C2: ='01-A Reg Prod Nuev'!T4 -> 18 | H2: =IF('01-A Reg Prod Nuev'!J4=0,'01-A Reg Prod Nuev'!H4,'01-A Reg Prod Nuev'!J4) -> 200 | I2: ='01-A Reg Prod Nuev'!AO4 -> L San Ramon | J2: ='01-A Reg Prod Nuev'!P4 -> BC 1 | K2: ='01-A Reg Prod Nuev'!Q4 -> C | L2: ='01-A Reg Prod Nuev'!AM4 -> Bod Req
A3: ='01-A Reg Prod Nuev'!A5 -> 02110003 | B3: =CONCATENATE('01-A Reg Prod Nuev'!B5," ",'01-A Reg Prod Nuev'!D5," ",H3," ",'01-A Reg Prod Nuev'!K5) -> Absolut botella 750 ml | C3: ='01-A Reg Prod Nuev'!T5 -> 4 | H3: =IF('01-A Reg Prod Nuev'!J5=0,'01-A Reg Prod Nuev'!H5,'01-A Reg Prod Nuev'!J5) -> 750 | I3: ='01-A Reg Prod Nuev'!AO5 -> L San Ramon | J3: ='01-A Reg Prod Nuev'!P5 -> BC 1 | K3: ='01-A Reg Prod Nuev'!Q5 -> C | L3: ='01-A Reg Prod Nuev'!AM5 -> Bod Tras
A4: ='01-A Reg Prod Nuev'!A6 -> 1 | B4: =CONCATENATE('01-A Reg Prod Nuev'!B6," ",'01-A Reg Prod Nuev'!D6," ",H4," ",'01-A Reg Prod Nuev'!K6) -> Aceite / antorchas 3.78 l | C4: ='01-A Reg Prod Nuev'!T6 -> 0 | H4: =IF('01-A Reg Prod Nuev'!J6=0,'01-A Reg Prod Nuev'!H6,'01-A Reg Prod Nuev'!J6) -> 3.78 | I4: ='01-A Reg Prod Nuev'!AO6 -> Belca | J4: ='01-A Reg Prod Nuev'!P6 -> BC 4 | K4: ='01-A Reg Prod Nuev'!Q6 -> A | L4: ='01-A Reg Prod Nuev'!AM6 -> Bod Req
A5: ='01-A Reg Prod Nuev'!A7 -> 0105005 | B5: =CONCATENATE('01-A Reg Prod Nuev'!B7," ",'01-A Reg Prod Nuev'!D7," ",H5," ",'01-A Reg Prod Nuev'!K7) -> Aceite ajonjoli 12.5 oz | C5: ='01-A Reg Prod Nuev'!T7 -> 4 | H5: =IF('01-A Reg Prod Nuev'!J7=0,'01-A Reg Prod Nuev'!H7,'01-A Reg Prod Nuev'!J7) -> 12.5 | I5: ='01-A Reg Prod Nuev'!AO7 -> Isleña | J5: ='01-A Reg Prod Nuev'!P7 -> BC 1 | K5: ='01-A Reg Prod Nuev'!Q7 -> A | L5: ='01-A Reg Prod Nuev'!AM7 -> Bod Tras
A6: ='01-A Reg Prod Nuev'!A8 -> 0101055 | B6: =CONCATENATE('01-A Reg Prod Nuev'!B8," ",'01-A Reg Prod Nuev'!D8," ",H6," ",'01-A Reg Prod Nuev'!K8) -> Aceite atun splash trocitos 1 kg | C6: ='01-A Reg Prod Nuev'!T8 -> 9 | H6: =IF('01-A Reg Prod Nuev'!J8=0,'01-A Reg Prod Nuev'!H8,'01-A Reg Prod Nuev'!J8) -> 1 | I6: ='01-A Reg Prod Nuev'!AO8 -> Isleña | J6: ='01-A Reg Prod Nuev'!P8 -> BC 1 | K6: ='01-A Reg Prod Nuev'!Q8 -> A | L6: ='01-A Reg Prod Nuev'!AM8 -> Bod Tras
A7: ='01-A Reg Prod Nuev'!A9 -> 0105031 | B7: =CONCATENATE('01-A Reg Prod Nuev'!B9," ",'01-A Reg Prod Nuev'!D9," ",H7," ",'01-A Reg Prod Nuev'!K9) -> Aceite spray 17 oz | C7: ='01-A Reg Prod Nuev'!T9 -> 4 | H7: =IF('01-A Reg Prod Nuev'!J9=0,'01-A Reg Prod Nuev'!H9,'01-A Reg Prod Nuev'!J9) -> 17 | I7: ='01-A Reg Prod Nuev'!AO9 -> Mayca | J7: ='01-A Reg Prod Nuev'!P9 -> BC 1 | K7: ='01-A Reg Prod Nuev'!Q9 -> B | L7: ='01-A Reg Prod Nuev'!AM9 -> Bod Tras
A8: ='01-A Reg Prod Nuev'!A10 -> 0105001 | B8: =CONCATENATE('01-A Reg Prod Nuev'!B10," ",'01-A Reg Prod Nuev'!D10," ",H8," ",'01-A Reg Prod Nuev'!K10) -> Aceite frituras 17 l | C8: ='01-A Reg Prod Nuev'!T10 -> 8 | H8: =IF('01-A Reg Prod Nuev'!J10=0,'01-A Reg Prod Nuev'!H10,'01-A Reg Prod Nuev'!J10) -> 17 | I8: ='01-A Reg Prod Nuev'!AO10 -> Belca | J8: ='01-A Reg Prod Nuev'!P10 -> BC 2 | K8: ='01-A Reg Prod Nuev'!Q10 -> B | L8: ='01-A Reg Prod Nuev'!AM10 -> Bod Tras
A9: ='01-A Reg Prod Nuev'!A11 -> 0113011 | B9: =CONCATENATE('01-A Reg Prod Nuev'!B11," ",'01-A Reg Prod Nuev'!D11," ",H9," ",'01-A Reg Prod Nuev'!K11) -> Aceite girasol lt 1 l | C9: ='01-A Reg Prod Nuev'!T11 -> 8 | H9: =IF('01-A Reg Prod Nuev'!J11=0,'01-A Reg Prod Nuev'!H11,'01-A Reg Prod Nuev'!J11) -> 1 | I9: ='01-A Reg Prod Nuev'!AO11 -> Ciamesa | J9: ='01-A Reg Prod Nuev'!P11 -> BC 1 | K9: ='01-A Reg Prod Nuev'!Q11 -> D | L9: ='01-A Reg Prod Nuev'!AM11 -> Bod Tras
A10: ='01-A Reg Prod Nuev'!A12 -> 0113012 | B10: =CONCATENATE('01-A Reg Prod Nuev'!B12," ",'01-A Reg Prod Nuev'!D12," ",H10," ",'01-A Reg Prod Nuev'!K12) -> Aceite girasol 2lt 2 l | C10: ='01-A Reg Prod Nuev'!T12 -> 2 | H10: =IF('01-A Reg Prod Nuev'!J12=0,'01-A Reg Prod Nuev'!H12,'01-A Reg Prod Nuev'!J12) -> 2 | I10: ='01-A Reg Prod Nuev'!AO12 -> Ciamesa | J10: ='01-A Reg Prod Nuev'!P12 -> BC 1 | K10: ='01-A Reg Prod Nuev'!Q12 -> D | L10: ='01-A Reg Prod Nuev'!AM12 -> Bod Tras
A11: ='01-A Reg Prod Nuev'!A13 -> 0105002 | B11: =CONCATENATE('01-A Reg Prod Nuev'!B13," ",'01-A Reg Prod Nuev'!D13," ",H11," ",'01-A Reg Prod Nuev'!K13) -> Aceite oliva sansa 5 l | C11: ='01-A Reg Prod Nuev'!T13 -> 6 | H11: =IF('01-A Reg Prod Nuev'!J13=0,'01-A Reg Prod Nuev'!H13,'01-A Reg Prod Nuev'!J13) -> 5 | I11: ='01-A Reg Prod Nuev'!AO13 -> Isleña | J11: ='01-A Reg Prod Nuev'!P13 -> BC 1 | K11: ='01-A Reg Prod Nuev'!Q13 -> B | L11: ='01-A Reg Prod Nuev'!AM13 -> Bod Tras
A12: ='01-A Reg Prod Nuev'!A14 -> 0405025 | B12: =CONCATENATE('01-A Reg Prod Nuev'!B14," ",'01-A Reg Prod Nuev'!D14," ",H12," ",'01-A Reg Prod Nuev'!K14) -> Aceite olivo extravirgen 5 l | C12: ='01-A Reg Prod Nuev'!T14 -> 6 | H12: =IF('01-A Reg Prod Nuev'!J14=0,'01-A Reg Prod Nuev'!H14,'01-A Reg Prod Nuev'!J14) -> 5 | I12: ='01-A Reg Prod Nuev'!AO14 -> Isleña | J12: ='01-A Reg Prod Nuev'!P14 -> BC 1 | K12: ='01-A Reg Prod Nuev'!Q14 -> B | L12: ='01-A Reg Prod Nuev'!AM14 -> Bod Tras
A13: ='01-A Reg Prod Nuev'!A15 -> 0105004 | B13: =CONCATENATE('01-A Reg Prod Nuev'!B15," ",'01-A Reg Prod Nuev'!D15," ",H13," ",'01-A Reg Prod Nuev'!K15) -> Aciete RBD 17 l | C13: ='01-A Reg Prod Nuev'!T15 -> 8 | H13: =IF('01-A Reg Prod Nuev'!J15=0,'01-A Reg Prod Nuev'!H15,'01-A Reg Prod Nuev'!J15) -> 17 | I13: ='01-A Reg Prod Nuev'!AO15 -> Belca | J13: ='01-A Reg Prod Nuev'!P15 -> BC 2 | K13: ='01-A Reg Prod Nuev'!Q15 -> B | L13: ='01-A Reg Prod Nuev'!AM15 -> Bod Tras
A14: ='01-A Reg Prod Nuev'!A16 -> 0101002 | B14: =CONCATENATE('01-A Reg Prod Nuev'!B16," ",'01-A Reg Prod Nuev'!D16," ",H14," ",'01-A Reg Prod Nuev'!K16) -> Aceitunas negras rebanadas 2.85 kg | C14: ='01-A Reg Prod Nuev'!T16 -> 2 | H14: =IF('01-A Reg Prod Nuev'!J16=0,'01-A Reg Prod Nuev'!H16,'01-A Reg Prod Nuev'!J16) -> 2.85 | I14: ='01-A Reg Prod Nuev'!AO16 -> Oceanic | J14: ='01-A Reg Prod Nuev'!P16 -> BC 1 | K14: ='01-A Reg Prod Nuev'!Q16 -> A | L14: ='01-A Reg Prod Nuev'!AM16 -> Bod Tras
A15: ='01-A Reg Prod Nuev'!A17 -> 0101001 | B15: =CONCATENATE('01-A Reg Prod Nuev'!B17," ",'01-A Reg Prod Nuev'!D17," ",H15," ",'01-A Reg Prod Nuev'!K17) -> Aceitunas verdes rebanadas 3.78 kg | C15: ='01-A Reg Prod Nuev'!T17 -> 2 | H15: =IF('01-A Reg Prod Nuev'!J17=0,'01-A Reg Prod Nuev'!H17,'01-A Reg Prod Nuev'!J17) -> 3.78 | I15: ='01-A Reg Prod Nuev'!AO17 -> Alpiste | J15: ='01-A Reg Prod Nuev'!P17 -> BC 1 | K15: ='01-A Reg Prod Nuev'!Q17 -> A | L15: ='01-A Reg Prod Nuev'!AM17 -> Bod Tras
A16: ='01-A Reg Prod Nuev'!A18 -> 0101003 | B16: =CONCATENATE('01-A Reg Prod Nuev'!B18," ",'01-A Reg Prod Nuev'!D18," ",H16," ",'01-A Reg Prod Nuev'!K18) -> Aceitunas verdes rellenas 290 g | C16: ='01-A Reg Prod Nuev'!T18 -> 8 | H16: =IF('01-A Reg Prod Nuev'!J18=0,'01-A Reg Prod Nuev'!H18,'01-A Reg Prod Nuev'!J18) -> 290 | I16: ='01-A Reg Prod Nuev'!AO18 -> Isleña | J16: ='01-A Reg Prod Nuev'!P18 -> BC 1 | K16: ='01-A Reg Prod Nuev'!Q18 -> A | L16: ='01-A Reg Prod Nuev'!AM18 -> Bod Tras
A17: ='01-A Reg Prod Nuev'!A19 -> 0101004 | B17: =CONCATENATE('01-A Reg Prod Nuev'!B19," ",'01-A Reg Prod Nuev'!D19," ",H17," ",'01-A Reg Prod Nuev'!K19) -> Achiote 850 g | C17: ='01-A Reg Prod Nuev'!T19 -> 2 | H17: =IF('01-A Reg Prod Nuev'!J19=0,'01-A Reg Prod Nuev'!H19,'01-A Reg Prod Nuev'!J19) -> 850 | I17: ='01-A Reg Prod Nuev'!AO19 -> Belca | J17: ='01-A Reg Prod Nuev'!P19 -> BC 1 | K17: ='01-A Reg Prod Nuev'!Q19 -> A | L17: ='01-A Reg Prod Nuev'!AM19 -> Bod Tras
A18: ='01-A Reg Prod Nuev'!A20 -> 0113013 | B18: =CONCATENATE('01-A Reg Prod Nuev'!B20," ",'01-A Reg Prod Nuev'!D20," ",H18," ",'01-A Reg Prod Nuev'!K20) -> Achiote 90 g | C18: ='01-A Reg Prod Nuev'!T20 -> 2 | H18: =IF('01-A Reg Prod Nuev'!J20=0,'01-A Reg Prod Nuev'!H20,'01-A Reg Prod Nuev'!J20) -> 90 | I18: ='01-A Reg Prod Nuev'!AO20 -> Ciamesa | J18: ='01-A Reg Prod Nuev'!P20 -> BC 1 | K18: ='01-A Reg Prod Nuev'!Q20 -> D | L18: ='01-A Reg Prod Nuev'!AM20 -> Bod Req
A19: ='01-A Reg Prod Nuev'!A21 -> 0101005 | B19: =CONCATENATE('01-A Reg Prod Nuev'!B21," ",'01-A Reg Prod Nuev'!D21," ",H19," ",'01-A Reg Prod Nuev'!K21) -> Aderezo italiano 3.78 kg | C19: ='01-A Reg Prod Nuev'!T21 -> 3 | H19: =IF('01-A Reg Prod Nuev'!J21=0,'01-A Reg Prod Nuev'!H21,'01-A Reg Prod Nuev'!J21) -> 3.78 | I19: ='01-A Reg Prod Nuev'!AO21 -> Belca | J19: ='01-A Reg Prod Nuev'!P21 -> BC 1 | K19: ='01-A Reg Prod Nuev'!Q21 -> B | L19: ='01-A Reg Prod Nuev'!AM21 -> Bod Tras
A20: ='01-A Reg Prod Nuev'!A22 -> 0101008 | B20: =CONCATENATE('01-A Reg Prod Nuev'!B22," ",'01-A Reg Prod Nuev'!D22," ",H20," ",'01-A Reg Prod Nuev'!K22) -> Aderezo mil islas 3.78 kg | C20: ='01-A Reg Prod Nuev'!T22 -> 3 | H20: =IF('01-A Reg Prod Nuev'!J22=0,'01-A Reg Prod Nuev'!H22,'01-A Reg Prod Nuev'!J22) -> 3.78 | I20: ='01-A Reg Prod Nuev'!AO22 -> Mayca | J20: ='01-A Reg Prod Nuev'!P22 -> BC 1 | K20: ='01-A Reg Prod Nuev'!Q22 -> B | L20: ='01-A Reg Prod Nuev'!AM22 -> Bod Tras
A21: ='01-A Reg Prod Nuev'!A23 -> 0101009 | B21: =CONCATENATE('01-A Reg Prod Nuev'!B23," ",'01-A Reg Prod Nuev'!D23," ",H21," ",'01-A Reg Prod Nuev'!K23) -> Aderezo ranchero 3.78 kg | C21: ='01-A Reg Prod Nuev'!T23 -> 3 | H21: =IF('01-A Reg Prod Nuev'!J23=0,'01-A Reg Prod Nuev'!H23,'01-A Reg Prod Nuev'!J23) -> 3.78 | I21: ='01-A Reg Prod Nuev'!AO23 -> Mayca | J21: ='01-A Reg Prod Nuev'!P23 -> BC 1 | K21: ='01-A Reg Prod Nuev'!Q23 -> B | L21: ='01-A Reg Prod Nuev'!AM23 -> Bod Tras
A22: ='01-A Reg Prod Nuev'!A24 -> 02010004 | B22: =CONCATENATE('01-A Reg Prod Nuev'!B24," ",'01-A Reg Prod Nuev'!D24," ",H22," ",'01-A Reg Prod Nuev'!K24) -> Agua San Pellegrino Vidrio 750 ml | C22: ='01-A Reg Prod Nuev'!T24 -> 4 | H22: =IF('01-A Reg Prod Nuev'!J24=0,'01-A Reg Prod Nuev'!H24,'01-A Reg Prod Nuev'!J24) -> 750 | I22: ='01-A Reg Prod Nuev'!AO24 -> Alpiste | J22: ='01-A Reg Prod Nuev'!P24 -> BC 2 | K22: ='01-A Reg Prod Nuev'!Q24 -> A | L22: ='01-A Reg Prod Nuev'!AM24 -> Bod Tras
A23: ='01-A Reg Prod Nuev'!A25 -> 02010005 | B23: =CONCATENATE('01-A Reg Prod Nuev'!B25," ",'01-A Reg Prod Nuev'!D25," ",H23," ",'01-A Reg Prod Nuev'!K25) -> Agua 1lt Plástico 1 l | C23: ='01-A Reg Prod Nuev'!T25 -> 0 | H23: =IF('01-A Reg Prod Nuev'!J25=0,'01-A Reg Prod Nuev'!H25,'01-A Reg Prod Nuev'!J25) -> 1 | I23: ='01-A Reg Prod Nuev'!AO25 -> 0 | J23: ='01-A Reg Prod Nuev'!P25 -> BC 2 | K23: ='01-A Reg Prod Nuev'!Q25 -> A | L23: ='01-A Reg Prod Nuev'!AM25 -> Obsoleto
A24: ='01-A Reg Prod Nuev'!A26 -> 02010001 | B24: =CONCATENATE('01-A Reg Prod Nuev'!B26," ",'01-A Reg Prod Nuev'!D26," ",H24," ",'01-A Reg Prod Nuev'!K26) -> Agua 2lt Plástico 6 l | C24: ='01-A Reg Prod Nuev'!T26 -> 30 | H24: =IF('01-A Reg Prod Nuev'!J26=0,'01-A Reg Prod Nuev'!H26,'01-A Reg Prod Nuev'!J26) -> 6 | I24: ='01-A Reg Prod Nuev'!AO26 -> Coca | J24: ='01-A Reg Prod Nuev'!P26 -> BC 2 | K24: ='01-A Reg Prod Nuev'!Q26 -> A | L24: ='01-A Reg Prod Nuev'!AM26 -> Bod Tras
A25: ='01-A Reg Prod Nuev'!A27 -> 02010002 | B25: =CONCATENATE('01-A Reg Prod Nuev'!B27," ",'01-A Reg Prod Nuev'!D27," ",H25," ",'01-A Reg Prod Nuev'!K27) -> Agua 600ml Plástico 600 ml | C25: ='01-A Reg Prod Nuev'!T27 -> 8 | H25: =IF('01-A Reg Prod Nuev'!J27=0,'01-A Reg Prod Nuev'!H27,'01-A Reg Prod Nuev'!J27) -> 600 | I25: ='01-A Reg Prod Nuev'!AO27 -> Coca | J25: ='01-A Reg Prod Nuev'!P27 -> BC 2 | K25: ='01-A Reg Prod Nuev'!Q27 -> A | L25: ='01-A Reg Prod Nuev'!AM27 -> Bod Tras
A26: ='01-A Reg Prod Nuev'!A28 -> 02010008 | B26: =CONCATENATE('01-A Reg Prod Nuev'!B28," ",'01-A Reg Prod Nuev'!D28," ",H26," ",'01-A Reg Prod Nuev'!K28) -> Agua aranciata Lata 354 ml | C26: ='01-A Reg Prod Nuev'!T28 -> 2 | H26: =IF('01-A Reg Prod Nuev'!J28=0,'01-A Reg Prod Nuev'!H28,'01-A Reg Prod Nuev'!J28) -> 354 | I26: ='01-A Reg Prod Nuev'!AO28 -> Alpiste | J26: ='01-A Reg Prod Nuev'!P28 -> BC 2 | K26: ='01-A Reg Prod Nuev'!Q28 -> B | L26: ='01-A Reg Prod Nuev'!AM28 -> Bod Tras
A27: ='01-A Reg Prod Nuev'!A29 -> 04030066 | B27: =CONCATENATE('01-A Reg Prod Nuev'!B29," ",'01-A Reg Prod Nuev'!D29," ",H27," ",'01-A Reg Prod Nuev'!K29) -> Fibra purble morad 2020 1 u | C27: ='01-A Reg Prod Nuev'!T29 -> 2 | H27: =IF('01-A Reg Prod Nuev'!J29=0,'01-A Reg Prod Nuev'!H29,'01-A Reg Prod Nuev'!J29) -> 1 | I27: ='01-A Reg Prod Nuev'!AO29 -> Belca | J27: ='01-A Reg Prod Nuev'!P29 -> BC 2 | K27: ='01-A Reg Prod Nuev'!Q29 -> C | L27: ='01-A Reg Prod Nuev'!AM29 -> Bod Req
A28: ='01-A Reg Prod Nuev'!A30 -> 0101010 | B28: =CONCATENATE('01-A Reg Prod Nuev'!B30," ",'01-A Reg Prod Nuev'!D30," ",H28," ",'01-A Reg Prod Nuev'!K30) -> Alcaparras 32 oz | C28: ='01-A Reg Prod Nuev'!T30 -> 2 | H28: =IF('01-A Reg Prod Nuev'!J30=0,'01-A Reg Prod Nuev'!H30,'01-A Reg Prod Nuev'!J30) -> 32 | I28: ='01-A Reg Prod Nuev'!AO30 -> Belca | J28: ='01-A Reg Prod Nuev'!P30 -> BC 1 | K28: ='01-A Reg Prod Nuev'!Q30 -> A | L28: ='01-A Reg Prod Nuev'!AM30 -> Bod Tras
A29: ='01-A Reg Prod Nuev'!A31 -> 04020002 | B29: =CONCATENATE('01-A Reg Prod Nuev'!B31," ",'01-A Reg Prod Nuev'!D31," ",H29," ",'01-A Reg Prod Nuev'!K31) -> Alcohol 3.78 l | C29: ='01-A Reg Prod Nuev'!T31 -> 15 | H29: =IF('01-A Reg Prod Nuev'!J31=0,'01-A Reg Prod Nuev'!H31,'01-A Reg Prod Nuev'!J31) -> 3.78 | I29: ='01-A Reg Prod Nuev'!AO31 -> Ciamesa | J29: ='01-A Reg Prod Nuev'!P31 -> BC 3 | K29: ='01-A Reg Prod Nuev'!Q31 -> B | L29: ='01-A Reg Prod Nuev'!AM31 -> Bod Req
A30: ='01-A Reg Prod Nuev'!A32 -> 01090021 | B30: =CONCATENATE('01-A Reg Prod Nuev'!B32," ",'01-A Reg Prod Nuev'!D32," ",H30," ",'01-A Reg Prod Nuev'!K32) -> Alga fueru wakame shirakiku 454 g | C30: ='01-A Reg Prod Nuev'!T32 -> 1 | H30: =IF('01-A Reg Prod Nuev'!J32=0,'01-A Reg Prod Nuev'!H32,'01-A Reg Prod Nuev'!J32) -> 454 | I30: ='01-A Reg Prod Nuev'!AO32 -> Oceanic | J30: ='01-A Reg Prod Nuev'!P32 -> BC 1 | K30: ='01-A Reg Prod Nuev'!Q32 -> B | L30: ='01-A Reg Prod Nuev'!AM32 -> Bod Tras
A31: ='01-A Reg Prod Nuev'!A33 -> 0109024 | B31: =CONCATENATE('01-A Reg Prod Nuev'!B33," ",'01-A Reg Prod Nuev'!D33," ",H31," ",'01-A Reg Prod Nuev'!K33) -> Alga kombu dashi shirakiku 2 oz | C31: ='01-A Reg Prod Nuev'!T33 -> 0 | H31: =IF('01-A Reg Prod Nuev'!J33=0,'01-A Reg Prod Nuev'!H33,'01-A Reg Prod Nuev'!J33) -> 2 | I31: ='01-A Reg Prod Nuev'!AO33 -> 0 | J31: ='01-A Reg Prod Nuev'!P33 -> BC 1 | K31: ='01-A Reg Prod Nuev'!Q33 -> D | L31: ='01-A Reg Prod Nuev'!AM33 -> Obsoleto
A32: ='01-A Reg Prod Nuev'!A34 -> 0102007 | B32: =CONCATENATE('01-A Reg Prod Nuev'!B34," ",'01-A Reg Prod Nuev'!D34," ",H32," ",'01-A Reg Prod Nuev'!K34) -> Almendras peladas tajadeadas 1 kg | C32: ='01-A Reg Prod Nuev'!T34 -> 2 | H32: =IF('01-A Reg Prod Nuev'!J34=0,'01-A Reg Prod Nuev'!H34,'01-A Reg Prod Nuev'!J34) -> 1 | I32: ='01-A Reg Prod Nuev'!AO34 -> Isleña | J32: ='01-A Reg Prod Nuev'!P34 -> BC 1 | K32: ='01-A Reg Prod Nuev'!Q34 -> E | L32: ='01-A Reg Prod Nuev'!AM34 -> Bod Tras
A33: ='01-A Reg Prod Nuev'!A35 -> 02140039 | B33: =CONCATENATE('01-A Reg Prod Nuev'!B35," ",'01-A Reg Prod Nuev'!D35," ",H33," ",'01-A Reg Prod Nuev'!K35) -> Altos Las Hormigas clásico, Argentina Malbec 750 ml | C33: ='01-A Reg Prod Nuev'!T35 -> 9 | H33: =IF('01-A Reg Prod Nuev'!J35=0,'01-A Reg Prod Nuev'!H35,'01-A Reg Prod Nuev'!J35) -> 750 | I33: ='01-A Reg Prod Nuev'!AO35 -> V/Alpiste | J33: ='01-A Reg Prod Nuev'!P35 -> BC 1 | K33: ='01-A Reg Prod Nuev'!Q35 -> C | L33: ='01-A Reg Prod Nuev'!AM35 -> Bod Tras
A34: ='01-A Reg Prod Nuev'!A36 -> 02100014 | B34: =CONCATENATE('01-A Reg Prod Nuev'!B36," ",'01-A Reg Prod Nuev'!D36," ",H34," ",'01-A Reg Prod Nuev'!K36) -> Amareto bols bot 720 ml | C34: ='01-A Reg Prod Nuev'!T36 -> 2 | H34: =IF('01-A Reg Prod Nuev'!J36=0,'01-A Reg Prod Nuev'!H36,'01-A Reg Prod Nuev'!J36) -> 720 | I34: ='01-A Reg Prod Nuev'!AO36 -> L San Ramon | J34: ='01-A Reg Prod Nuev'!P36 -> BC 1 | K34: ='01-A Reg Prod Nuev'!Q36 -> C | L34: ='01-A Reg Prod Nuev'!AM36 -> Req-Tras
A35: ='01-A Reg Prod Nuev'!A37 -> 02100002 | B35: =CONCATENATE('01-A Reg Prod Nuev'!B37," ",'01-A Reg Prod Nuev'!D37," ",H35," ",'01-A Reg Prod Nuev'!K37) -> Amaretto disaronno litro 750 ml | C35: ='01-A Reg Prod Nuev'!T37 -> 4 | H35: =IF('01-A Reg Prod Nuev'!J37=0,'01-A Reg Prod Nuev'!H37,'01-A Reg Prod Nuev'!J37) -> 750 | I35: ='01-A Reg Prod Nuev'!AO37 -> L San Ramon | J35: ='01-A Reg Prod Nuev'!P37 -> BC 1 | K35: ='01-A Reg Prod Nuev'!Q37 -> C | L35: ='01-A Reg Prod Nuev'!AM37 -> Bod Tras
A36: ='01-A Reg Prod Nuev'!A38 -> 72038 | B36: =CONCATENATE('01-A Reg Prod Nuev'!B38," ",'01-A Reg Prod Nuev'!D38," ",H36," ",'01-A Reg Prod Nuev'!K38) -> Jabon de baño protex avena 110 g | C36: ='01-A Reg Prod Nuev'!T38 -> 30 | H36: =IF('01-A Reg Prod Nuev'!J38=0,'01-A Reg Prod Nuev'!H38,'01-A Reg Prod Nuev'!J38) -> 110 | I36: ='01-A Reg Prod Nuev'!AO38 -> Ciamesa | J36: ='01-A Reg Prod Nuev'!P38 -> BC 3 | K36: ='01-A Reg Prod Nuev'!Q38 -> A | L36: ='01-A Reg Prod Nuev'!AM38 -> Bod Req
A37: ='01-A Reg Prod Nuev'!A39 -> 02140049 | B37: =CONCATENATE('01-A Reg Prod Nuev'!B39," ",'01-A Reg Prod Nuev'!D39," ",H37," ",'01-A Reg Prod Nuev'!K39) -> Antinori Pèppoli, D.O.C.G. Chianti Classico, Italia Sangiovese 750 ml | C37: ='01-A Reg Prod Nuev'!T39 -> 6 | H37: =IF('01-A Reg Prod Nuev'!J39=0,'01-A Reg Prod Nuev'!H39,'01-A Reg Prod Nuev'!J39) -> 750 | I37: ='01-A Reg Prod Nuev'!AO39 -> V/E Florida | J37: ='01-A Reg Prod Nuev'!P39 -> 0 | K37: ='01-A Reg Prod Nuev'!Q39 -> 0 | L37: ='01-A Reg Prod Nuev'!AM39 -> C Directo
A38: ='01-A Reg Prod Nuev'!A40 -> 0102010 | B38: =CONCATENATE('01-A Reg Prod Nuev'!B40," ",'01-A Reg Prod Nuev'!D40," ",H38," ",'01-A Reg Prod Nuev'!K40) -> Arroz japones nishiki premium sushi 1 kg | C38: ='01-A Reg Prod Nuev'!T40 -> 8 | H38: =IF('01-A Reg Prod Nuev'!J40=0,'01-A Reg Prod Nuev'!H40,'01-A Reg Prod Nuev'!J40) -> 1 | I38: ='01-A Reg Prod Nuev'!AO40 -> ancyfer | J38: ='01-A Reg Prod Nuev'!P40 -> BC 1 | K38: ='01-A Reg Prod Nuev'!Q40 -> D | L38: ='01-A Reg Prod Nuev'!AM40 -> Bod Tras
A39: ='01-A Reg Prod Nuev'!A41 -> 0102012 | B39: =CONCATENATE('01-A Reg Prod Nuev'!B41," ",'01-A Reg Prod Nuev'!D41," ",H39," ",'01-A Reg Prod Nuev'!K41) -> Arroz rissoto 1 kg | C39: ='01-A Reg Prod Nuev'!T41 -> 4 | H39: =IF('01-A Reg Prod Nuev'!J41=0,'01-A Reg Prod Nuev'!H41,'01-A Reg Prod Nuev'!J41) -> 1 | I39: ='01-A Reg Prod Nuev'!AO41 -> Alpiste | J39: ='01-A Reg Prod Nuev'!P41 -> BC 1 | K39: ='01-A Reg Prod Nuev'!Q41 -> D | L39: ='01-A Reg Prod Nuev'!AM41 -> Bod Tras
A40: ='01-A Reg Prod Nuev'!A42 -> 0102001 | B40: =CONCATENATE('01-A Reg Prod Nuev'!B42," ",'01-A Reg Prod Nuev'!D42," ",H40," ",'01-A Reg Prod Nuev'!K42) -> Arroz sabanero 98% 1.8 kg | C40: ='01-A Reg Prod Nuev'!T42 -> 20 | H40: =IF('01-A Reg Prod Nuev'!J42=0,'01-A Reg Prod Nuev'!H42,'01-A Reg Prod Nuev'!J42) -> 1.8 | I40: ='01-A Reg Prod Nuev'!AO42 -> Belca | J40: ='01-A Reg Prod Nuev'!P42 -> BC 2 | K40: ='01-A Reg Prod Nuev'!Q42 -> A | L40: ='01-A Reg Prod Nuev'!AM42 -> Bod Tras
A41: ='01-A Reg Prod Nuev'!A43 -> 04020087 | B41: =CONCATENATE('01-A Reg Prod Nuev'!B43," ",'01-A Reg Prod Nuev'!D43," ",H41," ",'01-A Reg Prod Nuev'!K43) -> Asep 60 desinf frutas y veget 1 gal | C41: ='01-A Reg Prod Nuev'!T43 -> 2 | H41: =IF('01-A Reg Prod Nuev'!J43=0,'01-A Reg Prod Nuev'!H43,'01-A Reg Prod Nuev'!J43) -> 1 | I41: ='01-A Reg Prod Nuev'!AO43 -> Proquimia | J41: ='01-A Reg Prod Nuev'!P43 -> BC 3 | K41: ='01-A Reg Prod Nuev'!Q43 -> B | L41: ='01-A Reg Prod Nuev'!AM43 -> Bod Req
A42: ='01-A Reg Prod Nuev'!A44 -> 04020086 | B42: =CONCATENATE('01-A Reg Prod Nuev'!B44," ",'01-A Reg Prod Nuev'!D44," ",H42," ",'01-A Reg Prod Nuev'!K44) -> Asep 870 desinf superficies 1 gal | C42: ='01-A Reg Prod Nuev'!T44 -> 2 | H42: =IF('01-A Reg Prod Nuev'!J44=0,'01-A Reg Prod Nuev'!H44,'01-A Reg Prod Nuev'!J44) -> 1 | I42: ='01-A Reg Prod Nuev'!AO44 -> Proquimia | J42: ='01-A Reg Prod Nuev'!P44 -> BC 3 | K42: ='01-A Reg Prod Nuev'!Q44 -> B | L42: ='01-A Reg Prod Nuev'!AM44 -> Bod Req
A43: ='01-A Reg Prod Nuev'!A45 -> 04030071 | B43: =CONCATENATE('01-A Reg Prod Nuev'!B45," ",'01-A Reg Prod Nuev'!D45," ",H43," ",'01-A Reg Prod Nuev'!K45) -> Atomizador 1 u | C43: ='01-A Reg Prod Nuev'!T45 -> 20 | H43: =IF('01-A Reg Prod Nuev'!J45=0,'01-A Reg Prod Nuev'!H45,'01-A Reg Prod Nuev'!J45) -> 1 | I43: ='01-A Reg Prod Nuev'!AO45 -> Proquimia | J43: ='01-A Reg Prod Nuev'!P45 -> BC 3 | K43: ='01-A Reg Prod Nuev'!Q45 -> B | L43: ='01-A Reg Prod Nuev'!AM45 -> Bod Req
A44: ='01-A Reg Prod Nuev'!A46 -> 0101011 | B44: =CONCATENATE('01-A Reg Prod Nuev'!B46," ",'01-A Reg Prod Nuev'!D46," ",H44," ",'01-A Reg Prod Nuev'!K46) -> Atun trositos en aceite 105 105 g | C44: ='01-A Reg Prod Nuev'!T46 -> 12 | H44: =IF('01-A Reg Prod Nuev'!J46=0,'01-A Reg Prod Nuev'!H46,'01-A Reg Prod Nuev'!J46) -> 105 | I44: ='01-A Reg Prod Nuev'!AO46 -> Ciamesa | J44: ='01-A Reg Prod Nuev'!P46 -> BC 1 | K44: ='01-A Reg Prod Nuev'!Q46 -> A | L44: ='01-A Reg Prod Nuev'!AM46 -> Bod Tras
A45: ='01-A Reg Prod Nuev'!A47 -> 0113014 | B45: =CONCATENATE('01-A Reg Prod Nuev'!B47," ",'01-A Reg Prod Nuev'!D47," ",H45," ",'01-A Reg Prod Nuev'!K47) -> Atun trositos en aceite 160 160 g | C45: ='01-A Reg Prod Nuev'!T47 -> 36 | H45: =IF('01-A Reg Prod Nuev'!J47=0,'01-A Reg Prod Nuev'!H47,'01-A Reg Prod Nuev'!J47) -> 160 | I45: ='01-A Reg Prod Nuev'!AO47 -> Ciamesa | J45: ='01-A Reg Prod Nuev'!P47 -> BC 1 | K45: ='01-A Reg Prod Nuev'!Q47 -> A | L45: ='01-A Reg Prod Nuev'!AM47 -> Bod Req
A46: ='01-A Reg Prod Nuev'!A48 -> 0109027 | B46: =CONCATENATE('01-A Reg Prod Nuev'!B48," ",'01-A Reg Prod Nuev'!D48," ",H46," ",'01-A Reg Prod Nuev'!K48) -> Atun Maguro 1 kg | C46: ='01-A Reg Prod Nuev'!T48 -> 0 | H46: =IF('01-A Reg Prod Nuev'!J48=0,'01-A Reg Prod Nuev'!H48,'01-A Reg Prod Nuev'!J48) -> 1 | I46: ='01-A Reg Prod Nuev'!AO48 -> Oceanic | J46: ='01-A Reg Prod Nuev'!P48 -> 0 | K46: ='01-A Reg Prod Nuev'!Q48 -> 0 | L46: ='01-A Reg Prod Nuev'!AM48 -> C Directo
A47: ='01-A Reg Prod Nuev'!A49 -> 04020003 | B47: =CONCATENATE('01-A Reg Prod Nuev'!B49," ",'01-A Reg Prod Nuev'!D49," ",H47," ",'01-A Reg Prod Nuev'!K49) -> AURA persist 1 l | C47: ='01-A Reg Prod Nuev'!T49 -> 0 | H47: =IF('01-A Reg Prod Nuev'!J49=0,'01-A Reg Prod Nuev'!H49,'01-A Reg Prod Nuev'!J49) -> 1 | I47: ='01-A Reg Prod Nuev'!AO49 -> 0 | J47: ='01-A Reg Prod Nuev'!P49 -> BC 3 | K47: ='01-A Reg Prod Nuev'!Q49 -> B | L47: ='01-A Reg Prod Nuev'!AM49 -> Obsoleto
A48: ='01-A Reg Prod Nuev'!A50 -> 0102008 | B48: =CONCATENATE('01-A Reg Prod Nuev'!B50," ",'01-A Reg Prod Nuev'!D50," ",H48," ",'01-A Reg Prod Nuev'!K50) -> Avena 380 g | C48: ='01-A Reg Prod Nuev'!T50 -> 12 | H48: =IF('01-A Reg Prod Nuev'!J50=0,'01-A Reg Prod Nuev'!H50,'01-A Reg Prod Nuev'!J50) -> 380 | I48: ='01-A Reg Prod Nuev'!AO50 -> Mayca | J48: ='01-A Reg Prod Nuev'!P50 -> BC 1 | K48: ='01-A Reg Prod Nuev'!Q50 -> B | L48: ='01-A Reg Prod Nuev'!AM50 -> Bod Tras
A49: ='01-A Reg Prod Nuev'!A51 -> 0102003 | B49: =CONCATENATE('01-A Reg Prod Nuev'!B51," ",'01-A Reg Prod Nuev'!D51," ",H49," ",'01-A Reg Prod Nuev'!K51) -> Azucar blanca 2 kg | C49: ='01-A Reg Prod Nuev'!T51 -> 14 | H49: =IF('01-A Reg Prod Nuev'!J51=0,'01-A Reg Prod Nuev'!H51,'01-A Reg Prod Nuev'!J51) -> 2 | I49: ='01-A Reg Prod Nuev'!AO51 -> Ciamesa | J49: ='01-A Reg Prod Nuev'!P51 -> BC 2 | K49: ='01-A Reg Prod Nuev'!Q51 -> A | L49: ='01-A Reg Prod Nuev'!AM51 -> Req-Tras
A50: ='01-A Reg Prod Nuev'!A52 -> 0102011 | B50: =CONCATENATE('01-A Reg Prod Nuev'!B52," ",'01-A Reg Prod Nuev'!D52," ",H50," ",'01-A Reg Prod Nuev'!K52) -> Azucar cruda zukra 2 kg | C50: ='01-A Reg Prod Nuev'!T52 -> 1 | H50: =IF('01-A Reg Prod Nuev'!J52=0,'01-A Reg Prod Nuev'!H52,'01-A Reg Prod Nuev'!J52) -> 2 | I50: ='01-A Reg Prod Nuev'!AO52 -> Belca | J50: ='01-A Reg Prod Nuev'!P52 -> BC 1 | K50: ='01-A Reg Prod Nuev'!Q52 -> E | L50: ='01-A Reg Prod Nuev'!AM52 -> Bod Req
A51: ='01-A Reg Prod Nuev'!A53 -> 0102009 | B51: =CONCATENATE('01-A Reg Prod Nuev'!B53," ",'01-A Reg Prod Nuev'!D53," ",H51," ",'01-A Reg Prod Nuev'!K53) -> Azucar individual 5 grs 5 u | C51: ='01-A Reg Prod Nuev'!T53 -> 2 | H51: =IF('01-A Reg Prod Nuev'!J53=0,'01-A Reg Prod Nuev'!H53,'01-A Reg Prod Nuev'!J53) -> 5 | I51: ='01-A Reg Prod Nuev'!AO53 -> Belca | J51: ='01-A Reg Prod Nuev'!P53 -> BC 1 | K51: ='01-A Reg Prod Nuev'!Q53 -> B | L51: ='01-A Reg Prod Nuev'!AM53 -> Bod Req
A52: ='01-A Reg Prod Nuev'!A54 -> 0104014 | B52: =CONCATENATE('01-A Reg Prod Nuev'!B54," ",'01-A Reg Prod Nuev'!D54," ",H52," ",'01-A Reg Prod Nuev'!K54) -> Azucar molida doña maria 500 g | C52: ='01-A Reg Prod Nuev'!T54 -> 6 | H52: =IF('01-A Reg Prod Nuev'!J54=0,'01-A Reg Prod Nuev'!H54,'01-A Reg Prod Nuev'!J54) -> 500 | I52: ='01-A Reg Prod Nuev'!AO54 -> Ciamesa | J52: ='01-A Reg Prod Nuev'!P54 -> BC 1 | K52: ='01-A Reg Prod Nuev'!Q54 -> E | L52: ='01-A Reg Prod Nuev'!AM54 -> Bod Tras
A53: ='01-A Reg Prod Nuev'!A55 -> 0104005 | B53: =CONCATENATE('01-A Reg Prod Nuev'!B55," ",'01-A Reg Prod Nuev'!D55," ",H53," ",'01-A Reg Prod Nuev'!K55) -> Azucar moreno 1 kg | C53: ='01-A Reg Prod Nuev'!T55 -> 6 | H53: =IF('01-A Reg Prod Nuev'!J55=0,'01-A Reg Prod Nuev'!H55,'01-A Reg Prod Nuev'!J55) -> 1 | I53: ='01-A Reg Prod Nuev'!AO55 -> Ciamesa | J53: ='01-A Reg Prod Nuev'!P55 -> BC 1 | K53: ='01-A Reg Prod Nuev'!Q55 -> E | L53: ='01-A Reg Prod Nuev'!AM55 -> Bod Tras
A54: ='01-A Reg Prod Nuev'!A56 -> 0104020 | B54: =CONCATENATE('01-A Reg Prod Nuev'!B56," ",'01-A Reg Prod Nuev'!D56," ",H54," ",'01-A Reg Prod Nuev'!K56) -> Azucar refinada blanca 1 kg | C54: ='01-A Reg Prod Nuev'!T56 -> 2 | H54: =IF('01-A Reg Prod Nuev'!J56=0,'01-A Reg Prod Nuev'!H56,'01-A Reg Prod Nuev'!J56) -> 1 | I54: ='01-A Reg Prod Nuev'!AO56 -> Ciamesa | J54: ='01-A Reg Prod Nuev'!P56 -> BC 1 | K54: ='01-A Reg Prod Nuev'!Q56 -> E | L54: ='01-A Reg Prod Nuev'!AM56 -> Bod Tras
A55: ='01-A Reg Prod Nuev'!A57 -> 0113091 | B55: =CONCATENATE('01-A Reg Prod Nuev'!B57," ",'01-A Reg Prod Nuev'!D57," ",H55," ",'01-A Reg Prod Nuev'!K57) -> Azul ropa 10 g | C55: ='01-A Reg Prod Nuev'!T57 -> 4 | H55: =IF('01-A Reg Prod Nuev'!J57=0,'01-A Reg Prod Nuev'!H57,'01-A Reg Prod Nuev'!J57) -> 10 | I55: ='01-A Reg Prod Nuev'!AO57 -> Ciamesa | J55: ='01-A Reg Prod Nuev'!P57 -> BC 3 | K55: ='01-A Reg Prod Nuev'!Q57 -> A | L55: ='01-A Reg Prod Nuev'!AM57 -> Bod Req
A56: ='01-A Reg Prod Nuev'!A58 -> 02050002 | B56: =CONCATENATE('01-A Reg Prod Nuev'!B58," ",'01-A Reg Prod Nuev'!D58," ",H56," ",'01-A Reg Prod Nuev'!K58) -> Bacardi pla bot 750 ml | C56: ='01-A Reg Prod Nuev'!T58 -> 3 | H56: =IF('01-A Reg Prod Nuev'!J58=0,'01-A Reg Prod Nuev'!H58,'01-A Reg Prod Nuev'!J58) -> 750 | I56: ='01-A Reg Prod Nuev'!AO58 -> L San Ramon | J56: ='01-A Reg Prod Nuev'!P58 -> BC 1 | K56: ='01-A Reg Prod Nuev'!Q58 -> C | L56: ='01-A Reg Prod Nuev'!AM58 -> Bod Tras
A57: ='01-A Reg Prod Nuev'!A59 -> 04030092 | B57: =CONCATENATE('01-A Reg Prod Nuev'!B59," ",'01-A Reg Prod Nuev'!D59," ",H57," ",'01-A Reg Prod Nuev'!K59) -> Bandeja y tapa / Sushi 50 u | C57: ='01-A Reg Prod Nuev'!T59 -> 2 | H57: =IF('01-A Reg Prod Nuev'!J59=0,'01-A Reg Prod Nuev'!H59,'01-A Reg Prod Nuev'!J59) -> 50 | I57: ='01-A Reg Prod Nuev'!AO59 -> Isleña | J57: ='01-A Reg Prod Nuev'!P59 -> BC 2 | K57: ='01-A Reg Prod Nuev'!Q59 -> B | L57: ='01-A Reg Prod Nuev'!AM59 -> Bod Req
A58: ='01-A Reg Prod Nuev'!A60 -> 0104073 | B58: =CONCATENATE('01-A Reg Prod Nuev'!B60," ",'01-A Reg Prod Nuev'!D60," ",H58," ",'01-A Reg Prod Nuev'!K60) -> Barquillos Vetiado 85 g | C58: ='01-A Reg Prod Nuev'!T60 -> 2 | H58: =IF('01-A Reg Prod Nuev'!J60=0,'01-A Reg Prod Nuev'!H60,'01-A Reg Prod Nuev'!J60) -> 85 | I58: ='01-A Reg Prod Nuev'!AO60 -> Belca | J58: ='01-A Reg Prod Nuev'!P60 -> BC 1 | K58: ='01-A Reg Prod Nuev'!Q60 -> D | L58: ='01-A Reg Prod Nuev'!AM60 -> Bod Tras
A59: ='01-A Reg Prod Nuev'!A61 -> 02140061 | B59: =CONCATENATE('01-A Reg Prod Nuev'!B61," ",'01-A Reg Prod Nuev'!D61," ",H59," ",'01-A Reg Prod Nuev'!K61) -> B & G, St Emilion, Francia Merlot 750 ml | C59: ='01-A Reg Prod Nuev'!T61 -> 6 | H59: =IF('01-A Reg Prod Nuev'!J61=0,'01-A Reg Prod Nuev'!H61,'01-A Reg Prod Nuev'!J61) -> 750 | I59: ='01-A Reg Prod Nuev'!AO61 -> V/E Florida | J59: ='01-A Reg Prod Nuev'!P61 -> BC 1 | K59: ='01-A Reg Prod Nuev'!Q61 -> C | L59: ='01-A Reg Prod Nuev'!AM61 -> Bod Tras
A60: ='01-A Reg Prod Nuev'!A62 -> 02140052 | B60: =CONCATENATE('01-A Reg Prod Nuev'!B62," ",'01-A Reg Prod Nuev'!D62," ",H60," ",'01-A Reg Prod Nuev'!K62) -> Batasiolo D´Alba, Italia Dolcetto 750 ml | C60: ='01-A Reg Prod Nuev'!T62 -> 6 | H60: =IF('01-A Reg Prod Nuev'!J62=0,'01-A Reg Prod Nuev'!H62,'01-A Reg Prod Nuev'!J62) -> 750 | I60: ='01-A Reg Prod Nuev'!AO62 -> V/E Florida | J60: ='01-A Reg Prod Nuev'!P62 -> BC 1 | K60: ='01-A Reg Prod Nuev'!Q62 -> C | L60: ='01-A Reg Prod Nuev'!AM62 -> C Directo
A61: ='01-A Reg Prod Nuev'!A63 -> 04030002 | B61: =CONCATENATE('01-A Reg Prod Nuev'!B63," ",'01-A Reg Prod Nuev'!D63," ",H61," ",'01-A Reg Prod Nuev'!K63) -> Bateria aa 24 u | C61: ='01-A Reg Prod Nuev'!T63 -> 4 | H61: =IF('01-A Reg Prod Nuev'!J63=0,'01-A Reg Prod Nuev'!H63,'01-A Reg Prod Nuev'!J63) -> 24 | I61: ='01-A Reg Prod Nuev'!AO63 -> Golveca | J61: ='01-A Reg Prod Nuev'!P63 -> BC 2 | K61: ='01-A Reg Prod Nuev'!Q63 -> B | L61: ='01-A Reg Prod Nuev'!AM63 -> Bod Req
A62: ='01-A Reg Prod Nuev'!A64 -> 04030003 | B62: =CONCATENATE('01-A Reg Prod Nuev'!B64," ",'01-A Reg Prod Nuev'!D64," ",H62," ",'01-A Reg Prod Nuev'!K64) -> Bateria aaa 24 u | C62: ='01-A Reg Prod Nuev'!T64 -> 4 | H62: =IF('01-A Reg Prod Nuev'!J64=0,'01-A Reg Prod Nuev'!H64,'01-A Reg Prod Nuev'!J64) -> 24 | I62: ='01-A Reg Prod Nuev'!AO64 -> Golveca | J62: ='01-A Reg Prod Nuev'!P64 -> BC 2 | K62: ='01-A Reg Prod Nuev'!Q64 -> B | L62: ='01-A Reg Prod Nuev'!AM64 -> Bod Req
A63: ='01-A Reg Prod Nuev'!A65 -> 04030004 | B63: =CONCATENATE('01-A Reg Prod Nuev'!B65," ",'01-A Reg Prod Nuev'!D65," ",H63," ",'01-A Reg Prod Nuev'!K65) -> Baterias d2 12 u | C63: ='01-A Reg Prod Nuev'!T65 -> 4 | H63: =IF('01-A Reg Prod Nuev'!J65=0,'01-A Reg Prod Nuev'!H65,'01-A Reg Prod Nuev'!J65) -> 12 | I63: ='01-A Reg Prod Nuev'!AO65 -> Golveca | J63: ='01-A Reg Prod Nuev'!P65 -> BC 2 | K63: ='01-A Reg Prod Nuev'!Q65 -> B | L63: ='01-A Reg Prod Nuev'!AM65 -> Bod Req
A64: ='01-A Reg Prod Nuev'!A66 -> 02160001 | B64: =CONCATENATE('01-A Reg Prod Nuev'!B66," ",'01-A Reg Prod Nuev'!D66," ",H64," ",'01-A Reg Prod Nuev'!K66) -> Beringer, Estados Unidos White Zinfandel 750 ml | C64: ='01-A Reg Prod Nuev'!T66 -> 18 | H64: =IF('01-A Reg Prod Nuev'!J66=0,'01-A Reg Prod Nuev'!H66,'01-A Reg Prod Nuev'!J66) -> 750 | I64: ='01-A Reg Prod Nuev'!AO66 -> V/E Florida | J64: ='01-A Reg Prod Nuev'!P66 -> BC 1 | K64: ='01-A Reg Prod Nuev'!Q66 -> C | L64: ='01-A Reg Prod Nuev'!AM66 -> Bod Tras
A65: ='01-A Reg Prod Nuev'!A67 -> 04020004 | B65: =CONCATENATE('01-A Reg Prod Nuev'!B67," ",'01-A Reg Prod Nuev'!D67," ",H65," ",'01-A Reg Prod Nuev'!K67) -> Beta 101 20 l | C65: ='01-A Reg Prod Nuev'!T67 -> 4 | H65: =IF('01-A Reg Prod Nuev'!J67=0,'01-A Reg Prod Nuev'!H67,'01-A Reg Prod Nuev'!J67) -> 20 | I65: ='01-A Reg Prod Nuev'!AO67 -> Proquimia | J65: ='01-A Reg Prod Nuev'!P67 -> BC 3 | K65: ='01-A Reg Prod Nuev'!Q67 -> B | L65: ='01-A Reg Prod Nuev'!AM67 -> Bod Req
A66: ='01-A Reg Prod Nuev'!A68 -> 04020005 | B66: =CONCATENATE('01-A Reg Prod Nuev'!B68," ",'01-A Reg Prod Nuev'!D68," ",H66," ",'01-A Reg Prod Nuev'!K68) -> Beta 102 20 l | C66: ='01-A Reg Prod Nuev'!T68 -> 4 | H66: =IF('01-A Reg Prod Nuev'!J68=0,'01-A Reg Prod Nuev'!H68,'01-A Reg Prod Nuev'!J68) -> 20 | I66: ='01-A Reg Prod Nuev'!AO68 -> Proquimia | J66: ='01-A Reg Prod Nuev'!P68 -> BC 3 | K66: ='01-A Reg Prod Nuev'!Q68 -> B | L66: ='01-A Reg Prod Nuev'!AM68 -> Bod Req
A67: ='01-A Reg Prod Nuev'!A69 -> 04020006 | B67: =CONCATENATE('01-A Reg Prod Nuev'!B69," ",'01-A Reg Prod Nuev'!D69," ",H67," ",'01-A Reg Prod Nuev'!K69) -> Beta 199 20 l | C67: ='01-A Reg Prod Nuev'!T69 -> 0 | H67: =IF('01-A Reg Prod Nuev'!J69=0,'01-A Reg Prod Nuev'!H69,'01-A Reg Prod Nuev'!J69) -> 20 | I67: ='01-A Reg Prod Nuev'!AO69 -> 0 | J67: ='01-A Reg Prod Nuev'!P69 -> BC 3 | K67: ='01-A Reg Prod Nuev'!Q69 -> B | L67: ='01-A Reg Prod Nuev'!AM69 -> Obsoleto
A68: ='01-A Reg Prod Nuev'!A70 -> 0101039 | B68: =CONCATENATE('01-A Reg Prod Nuev'!B70," ",'01-A Reg Prod Nuev'!D70," ",H68," ",'01-A Reg Prod Nuev'!K70) -> Semilla mixta 1 kg | C68: ='01-A Reg Prod Nuev'!T70 -> 4 | H68: =IF('01-A Reg Prod Nuev'!J70=0,'01-A Reg Prod Nuev'!H70,'01-A Reg Prod Nuev'!J70) -> 1 | I68: ='01-A Reg Prod Nuev'!AO70 -> Belca | J68: ='01-A Reg Prod Nuev'!P70 -> BC 1 | K68: ='01-A Reg Prod Nuev'!Q70 -> E | L68: ='01-A Reg Prod Nuev'!AM70 -> Bod Req
A69: ='01-A Reg Prod Nuev'!A71 -> 04020011 | B69: =CONCATENATE('01-A Reg Prod Nuev'!B71," ",'01-A Reg Prod Nuev'!D71," ",H69," ",'01-A Reg Prod Nuev'!K71) -> Beta herta 1 kg | C69: ='01-A Reg Prod Nuev'!T71 -> 2 | H69: =IF('01-A Reg Prod Nuev'!J71=0,'01-A Reg Prod Nuev'!H71,'01-A Reg Prod Nuev'!J71) -> 1 | I69: ='01-A Reg Prod Nuev'!AO71 -> Proquimia | J69: ='01-A Reg Prod Nuev'!P71 -> BC 3 | K69: ='01-A Reg Prod Nuev'!Q71 -> B | L69: ='01-A Reg Prod Nuev'!AM71 -> Bod Req
A70: ='01-A Reg Prod Nuev'!A72 -> 0113088 | B70: =CONCATENATE('01-A Reg Prod Nuev'!B72," ",'01-A Reg Prod Nuev'!D72," ",H70," ",'01-A Reg Prod Nuev'!K72) -> Betun negro 60 g | C70: ='01-A Reg Prod Nuev'!T72 -> 2 | H70: =IF('01-A Reg Prod Nuev'!J72=0,'01-A Reg Prod Nuev'!H72,'01-A Reg Prod Nuev'!J72) -> 60 | I70: ='01-A Reg Prod Nuev'!AO72 -> Ciamesa | J70: ='01-A Reg Prod Nuev'!P72 -> BC 3 | K70: ='01-A Reg Prod Nuev'!Q72 -> A | L70: ='01-A Reg Prod Nuev'!AM72 -> Bod Req
A71: ='01-A Reg Prod Nuev'!A73 -> 0104031 | B71: =CONCATENATE('01-A Reg Prod Nuev'!B73," ",'01-A Reg Prod Nuev'!D73," ",H71," ",'01-A Reg Prod Nuev'!K73) -> Bicarbonato 2.5 kg | C71: ='01-A Reg Prod Nuev'!T73 -> 1 | H71: =IF('01-A Reg Prod Nuev'!J73=0,'01-A Reg Prod Nuev'!H73,'01-A Reg Prod Nuev'!J73) -> 2.5 | I71: ='01-A Reg Prod Nuev'!AO73 -> Mayca | J71: ='01-A Reg Prod Nuev'!P73 -> BC 4 | K71: ='01-A Reg Prod Nuev'!Q73 -> B | L71: ='01-A Reg Prod Nuev'!AM73 -> Bod Tras
A72: ='01-A Reg Prod Nuev'!A74 -> 04020012 | B72: =CONCATENATE('01-A Reg Prod Nuev'!B74," ",'01-A Reg Prod Nuev'!D74," ",H72," ",'01-A Reg Prod Nuev'!K74) -> Blondas 6" 1000 U | C72: ='01-A Reg Prod Nuev'!T74 -> 3 | H72: =IF('01-A Reg Prod Nuev'!J74=0,'01-A Reg Prod Nuev'!H74,'01-A Reg Prod Nuev'!J74) -> 1000 | I72: ='01-A Reg Prod Nuev'!AO74 -> Mayca | J72: ='01-A Reg Prod Nuev'!P74 -> BC 2 | K72: ='01-A Reg Prod Nuev'!Q74 -> B | L72: ='01-A Reg Prod Nuev'!AM74 -> Bod Req
A73: ='01-A Reg Prod Nuev'!A75 -> 04030005 | B73: =CONCATENATE('01-A Reg Prod Nuev'!B75," ",'01-A Reg Prod Nuev'!D75," ",H73," ",'01-A Reg Prod Nuev'!K75) -> Bolsa de carton #2 1000 U | C73: ='01-A Reg Prod Nuev'!T75 -> 1 | H73: =IF('01-A Reg Prod Nuev'!J75=0,'01-A Reg Prod Nuev'!H75,'01-A Reg Prod Nuev'!J75) -> 1000 | I73: ='01-A Reg Prod Nuev'!AO75 -> Belca | J73: ='01-A Reg Prod Nuev'!P75 -> BC 2 | K73: ='01-A Reg Prod Nuev'!Q75 -> C | L73: ='01-A Reg Prod Nuev'!AM75 -> Bod Req
A74: ='01-A Reg Prod Nuev'!A76 -> 04030008 | B74: =CONCATENATE('01-A Reg Prod Nuev'!B76," ",'01-A Reg Prod Nuev'!D76," ",H74," ",'01-A Reg Prod Nuev'!K76) -> Bolsa de carton #4 1000 U | C74: ='01-A Reg Prod Nuev'!T76 -> 1 | H74: =IF('01-A Reg Prod Nuev'!J76=0,'01-A Reg Prod Nuev'!H76,'01-A Reg Prod Nuev'!J76) -> 1000 | I74: ='01-A Reg Prod Nuev'!AO76 -> Belca | J74: ='01-A Reg Prod Nuev'!P76 -> BC 2 | K74: ='01-A Reg Prod Nuev'!Q76 -> C | L74: ='01-A Reg Prod Nuev'!AM76 -> Bod Req
A75: ='01-A Reg Prod Nuev'!A77 -> 04030007 | B75: =CONCATENATE('01-A Reg Prod Nuev'!B77," ",'01-A Reg Prod Nuev'!D77," ",H75," ",'01-A Reg Prod Nuev'!K77) -> Bolsa de carton #12 1000 U | C75: ='01-A Reg Prod Nuev'!T77 -> 1 | H75: =IF('01-A Reg Prod Nuev'!J77=0,'01-A Reg Prod Nuev'!H77,'01-A Reg Prod Nuev'!J77) -> 1000 | I75: ='01-A Reg Prod Nuev'!AO77 -> Belca | J75: ='01-A Reg Prod Nuev'!P77 -> BC 2 | K75: ='01-A Reg Prod Nuev'!Q77 -> C | L75: ='01-A Reg Prod Nuev'!AM77 -> Bod Req
A76: ='01-A Reg Prod Nuev'!A78 -> 04030059 | B76: =CONCATENATE('01-A Reg Prod Nuev'!B78," ",'01-A Reg Prod Nuev'!D78," ",H76," ",'01-A Reg Prod Nuev'!K78) -> Bolsa de carton #25 500 U | C76: ='01-A Reg Prod Nuev'!T78 -> 1 | H76: =IF('01-A Reg Prod Nuev'!J78=0,'01-A Reg Prod Nuev'!H78,'01-A Reg Prod Nuev'!J78) -> 500 | I76: ='01-A Reg Prod Nuev'!AO78 -> Belca | J76: ='01-A Reg Prod Nuev'!P78 -> BC 2 | K76: ='01-A Reg Prod Nuev'!Q78 -> C | L76: ='01-A Reg Prod Nuev'!AM78 -> Bod Req
A77: ='01-A Reg Prod Nuev'!A79 -> 04030006 | B77: =CONCATENATE('01-A Reg Prod Nuev'!B79," ",'01-A Reg Prod Nuev'!D79," ",H77," ",'01-A Reg Prod Nuev'!K79) -> Bolsa de carton #8 1000 U | C77: ='01-A Reg Prod Nuev'!T79 -> 1 | H77: =IF('01-A Reg Prod Nuev'!J79=0,'01-A Reg Prod Nuev'!H79,'01-A Reg Prod Nuev'!J79) -> 1000 | I77: ='01-A Reg Prod Nuev'!AO79 -> Belca | J77: ='01-A Reg Prod Nuev'!P79 -> BC 2 | K77: ='01-A Reg Prod Nuev'!Q79 -> C | L77: ='01-A Reg Prod Nuev'!AM79 -> Bod Req
A78: ='01-A Reg Prod Nuev'!A80 -> 04030015 | B78: =CONCATENATE('01-A Reg Prod Nuev'!B80," ",'01-A Reg Prod Nuev'!D80," ",H78," ",'01-A Reg Prod Nuev'!K80) -> Bolsa plastica biod 10*16" 1 kg | C78: ='01-A Reg Prod Nuev'!T80 -> 12 | H78: =IF('01-A Reg Prod Nuev'!J80=0,'01-A Reg Prod Nuev'!H80,'01-A Reg Prod Nuev'!J80) -> 1 | I78: ='01-A Reg Prod Nuev'!AO80 -> C Plástico | J78: ='01-A Reg Prod Nuev'!P80 -> BC 2 | K78: ='01-A Reg Prod Nuev'!Q80 -> B | L78: ='01-A Reg Prod Nuev'!AM80 -> Bod Req
A79: ='01-A Reg Prod Nuev'!A81 -> 04030012 | B79: =CONCATENATE('01-A Reg Prod Nuev'!B81," ",'01-A Reg Prod Nuev'!D81," ",H79," ",'01-A Reg Prod Nuev'!K81) -> Bolsa plastica biod peq 17*19" 9 u | C79: ='01-A Reg Prod Nuev'!T81 -> 24 | H79: =IF('01-A Reg Prod Nuev'!J81=0,'01-A Reg Prod Nuev'!H81,'01-A Reg Prod Nuev'!J81) -> 9 | I79: ='01-A Reg Prod Nuev'!AO81 -> Ciamesa | J79: ='01-A Reg Prod Nuev'!P81 -> BC 2 | K79: ='01-A Reg Prod Nuev'!Q81 -> C | L79: ='01-A Reg Prod Nuev'!AM81 -> Bod Req
A80: ='01-A Reg Prod Nuev'!A82 -> 04030010 | B80: =CONCATENATE('01-A Reg Prod Nuev'!B82," ",'01-A Reg Prod Nuev'!D82," ",H80," ",'01-A Reg Prod Nuev'!K82) -> Bolsa plastica biod 17*25" (200UDS) 200 u | C80: ='01-A Reg Prod Nuev'!T82 -> 20 | H80: =IF('01-A Reg Prod Nuev'!J82=0,'01-A Reg Prod Nuev'!H82,'01-A Reg Prod Nuev'!J82) -> 200 | I80: ='01-A Reg Prod Nuev'!AO82 -> Belca | J80: ='01-A Reg Prod Nuev'!P82 -> BC 2 | K80: ='01-A Reg Prod Nuev'!Q82 -> B | L80: ='01-A Reg Prod Nuev'!AM82 -> Bod Req
A81: ='01-A Reg Prod Nuev'!A83 -> 04030070 | B81: =CONCATENATE('01-A Reg Prod Nuev'!B83," ",'01-A Reg Prod Nuev'!D83," ",H81," ",'01-A Reg Prod Nuev'!K83) -> Bolsa plastica biod 4*9" 1 kg | C81: ='01-A Reg Prod Nuev'!T83 -> 2 | H81: =IF('01-A Reg Prod Nuev'!J83=0,'01-A Reg Prod Nuev'!H83,'01-A Reg Prod Nuev'!J83) -> 1 | I81: ='01-A Reg Prod Nuev'!AO83 -> C Plástico | J81: ='01-A Reg Prod Nuev'!P83 -> BC 2 | K81: ='01-A Reg Prod Nuev'!Q83 -> B | L81: ='01-A Reg Prod Nuev'!AM83 -> Bod Req
A82: ='01-A Reg Prod Nuev'!A84 -> 04030013 | B82: =CONCATENATE('01-A Reg Prod Nuev'!B84," ",'01-A Reg Prod Nuev'!D84," ",H82," ",'01-A Reg Prod Nuev'!K84) -> Bolsa plastica biod 7*11" 1 kg | C82: ='01-A Reg Prod Nuev'!T84 -> 12 | H82: =IF('01-A Reg Prod Nuev'!J84=0,'01-A Reg Prod Nuev'!H84,'01-A Reg Prod Nuev'!J84) -> 1 | I82: ='01-A Reg Prod Nuev'!AO84 -> C Plástico | J82: ='01-A Reg Prod Nuev'!P84 -> BC 2 | K82: ='01-A Reg Prod Nuev'!Q84 -> B | L82: ='01-A Reg Prod Nuev'!AM84 -> Bod Req
A83: ='01-A Reg Prod Nuev'!A85 -> 0113050 | B83: =CONCATENATE('01-A Reg Prod Nuev'!B85," ",'01-A Reg Prod Nuev'!D85," ",H83," ",'01-A Reg Prod Nuev'!K85) -> Bolsa plastica biod 9*14" 1 kg | C83: ='01-A Reg Prod Nuev'!T85 -> 12 | H83: =IF('01-A Reg Prod Nuev'!J85=0,'01-A Reg Prod Nuev'!H85,'01-A Reg Prod Nuev'!J85) -> 1 | I83: ='01-A Reg Prod Nuev'!AO85 -> C Plástico | J83: ='01-A Reg Prod Nuev'!P85 -> BC 2 | K83: ='01-A Reg Prod Nuev'!Q85 -> B | L83: ='01-A Reg Prod Nuev'!AM85 -> Bod Req
A84: ='01-A Reg Prod Nuev'!A86 -> 04030016 | B84: =CONCATENATE('01-A Reg Prod Nuev'!B86," ",'01-A Reg Prod Nuev'!D86," ",H84," ",'01-A Reg Prod Nuev'!K86) -> Bolsa plastica biod grand 24*27" 9 u | C84: ='01-A Reg Prod Nuev'!T86 -> 48 | H84: =IF('01-A Reg Prod Nuev'!J86=0,'01-A Reg Prod Nuev'!H86,'01-A Reg Prod Nuev'!J86) -> 9 | I84: ='01-A Reg Prod Nuev'!AO86 -> Ciamesa | J84: ='01-A Reg Prod Nuev'!P86 -> BC 2 | K84: ='01-A Reg Prod Nuev'!Q86 -> C | L84: ='01-A Reg Prod Nuev'!AM86 -> Bod Req
A85: ='01-A Reg Prod Nuev'!A87 -> 04030011 | B85: =CONCATENATE('01-A Reg Prod Nuev'!B87," ",'01-A Reg Prod Nuev'!D87," ",H85," ",'01-A Reg Prod Nuev'!K87) -> Bolsa plas biod Jardin 33*33" (40UDS) 10 u | C85: ='01-A Reg Prod Nuev'!T87 -> 40 | H85: =IF('01-A Reg Prod Nuev'!J87=0,'01-A Reg Prod Nuev'!H87,'01-A Reg Prod Nuev'!J87) -> 10 | I85: ='01-A Reg Prod Nuev'!AO87 -> Belca | J85: ='01-A Reg Prod Nuev'!P87 -> BC 2 | K85: ='01-A Reg Prod Nuev'!Q87 -> B | L85: ='01-A Reg Prod Nuev'!AM87 -> Bod Req
A86: ='01-A Reg Prod Nuev'!A88 -> 04030009 | B86: =CONCATENATE('01-A Reg Prod Nuev'!B88," ",'01-A Reg Prod Nuev'!D88," ",H86," ",'01-A Reg Prod Nuev'!K88) -> Bolsa plastica biod med 20*22" 9 u | C86: ='01-A Reg Prod Nuev'!T88 -> 24 | H86: =IF('01-A Reg Prod Nuev'!J88=0,'01-A Reg Prod Nuev'!H88,'01-A Reg Prod Nuev'!J88) -> 9 | I86: ='01-A Reg Prod Nuev'!AO88 -> Ciamesa | J86: ='01-A Reg Prod Nuev'!P88 -> BC 2 | K86: ='01-A Reg Prod Nuev'!Q88 -> C | L86: ='01-A Reg Prod Nuev'!AM88 -> Bod Req
A87: ='01-A Reg Prod Nuev'!A89 -> 0109023 | B87: =CONCATENATE('01-A Reg Prod Nuev'!B89," ",'01-A Reg Prod Nuev'!D89," ",H87," ",'01-A Reg Prod Nuev'!K89) -> Bonito hojue tokuyo hanakatsuo kaneso 500 g | C87: ='01-A Reg Prod Nuev'!T89 -> 1 | H87: =IF('01-A Reg Prod Nuev'!J89=0,'01-A Reg Prod Nuev'!H89,'01-A Reg Prod Nuev'!J89) -> 500 | I87: ='01-A Reg Prod Nuev'!AO89 -> Isleña | J87: ='01-A Reg Prod Nuev'!P89 -> BC 1 | K87: ='01-A Reg Prod Nuev'!Q89 -> B | L87: ='01-A Reg Prod Nuev'!AM89 -> Bod Tras
A88: ='01-A Reg Prod Nuev'!A90 -> 02160002 | B88: =CONCATENATE('01-A Reg Prod Nuev'!B90," ",'01-A Reg Prod Nuev'!D90," ",H88," ",'01-A Reg Prod Nuev'!K90) -> Bottega Fragolino, Rosso, Italia Rosado 750 ml | C88: ='01-A Reg Prod Nuev'!T90 -> 6 | H88: =IF('01-A Reg Prod Nuev'!J90=0,'01-A Reg Prod Nuev'!H90,'01-A Reg Prod Nuev'!J90) -> 750 | I88: ='01-A Reg Prod Nuev'!AO90 -> V/Alpiste | J88: ='01-A Reg Prod Nuev'!P90 -> BC 1 | K88: ='01-A Reg Prod Nuev'!Q90 -> C | L88: ='01-A Reg Prod Nuev'!AM90 -> Bod Tras
A89: ='01-A Reg Prod Nuev'!A91 -> 02080002 | B89: =CONCATENATE('01-A Reg Prod Nuev'!B91," ",'01-A Reg Prod Nuev'!D91," ",H89," ",'01-A Reg Prod Nuev'!K91) -> Brandy napoleon texier bot 750 ml | C89: ='01-A Reg Prod Nuev'!T91 -> 6 | H89: =IF('01-A Reg Prod Nuev'!J91=0,'01-A Reg Prod Nuev'!H91,'01-A Reg Prod Nuev'!J91) -> 750 | I89: ='01-A Reg Prod Nuev'!AO91 -> L San Ramon | J89: ='01-A Reg Prod Nuev'!P91 -> BC 1 | K89: ='01-A Reg Prod Nuev'!Q91 -> C | L89: ='01-A Reg Prod Nuev'!AM91 -> Bod Tras
A90: ='01-A Reg Prod Nuev'!A92 -> 0104017 | B90: =CONCATENATE('01-A Reg Prod Nuev'!B92," ",'01-A Reg Prod Nuev'!D92," ",H90," ",'01-A Reg Prod Nuev'!K92) -> Cacao amargo 1 kg | C90: ='01-A Reg Prod Nuev'!T92 -> 1 | H90: =IF('01-A Reg Prod Nuev'!J92=0,'01-A Reg Prod Nuev'!H92,'01-A Reg Prod Nuev'!J92) -> 1 | I90: ='01-A Reg Prod Nuev'!AO92 -> Mayca | J90: ='01-A Reg Prod Nuev'!P92 -> BC 1 | K90: ='01-A Reg Prod Nuev'!Q92 -> E | L90: ='01-A Reg Prod Nuev'!AM92 -> Bod Tras
A91: ='01-A Reg Prod Nuev'!A93 -> 02180002 | B91: =CONCATENATE('01-A Reg Prod Nuev'!B93," ",'01-A Reg Prod Nuev'!D93," ",H91," ",'01-A Reg Prod Nuev'!K93) -> Café 500 grs 500 g | C91: ='01-A Reg Prod Nuev'!T93 -> 48 | H91: =IF('01-A Reg Prod Nuev'!J93=0,'01-A Reg Prod Nuev'!H93,'01-A Reg Prod Nuev'!J93) -> 500 | I91: ='01-A Reg Prod Nuev'!AO93 -> Panal | J91: ='01-A Reg Prod Nuev'!P93 -> BC 1 | K91: ='01-A Reg Prod Nuev'!Q93 -> E | L91: ='01-A Reg Prod Nuev'!AM93 -> Bod Req
A92: ='01-A Reg Prod Nuev'!A94 -> 02180008 | B92: =CONCATENATE('01-A Reg Prod Nuev'!B94," ",'01-A Reg Prod Nuev'!D94," ",H92," ",'01-A Reg Prod Nuev'!K94) -> Café britt descafeinado 500 g | C92: ='01-A Reg Prod Nuev'!T94 -> 6 | H92: =IF('01-A Reg Prod Nuev'!J94=0,'01-A Reg Prod Nuev'!H94,'01-A Reg Prod Nuev'!J94) -> 500 | I92: ='01-A Reg Prod Nuev'!AO94 -> Britt | J92: ='01-A Reg Prod Nuev'!P94 -> BC 1 | K92: ='01-A Reg Prod Nuev'!Q94 -> E | L92: ='01-A Reg Prod Nuev'!AM94 -> Bod Tras
A93: ='01-A Reg Prod Nuev'!A95 -> 0113018 | B93: =CONCATENATE('01-A Reg Prod Nuev'!B95," ",'01-A Reg Prod Nuev'!D95," ",H93," ",'01-A Reg Prod Nuev'!K95) -> Cafe britt descafeinado pods 10g 10 g | C93: ='01-A Reg Prod Nuev'!T95 -> 2 | H93: =IF('01-A Reg Prod Nuev'!J95=0,'01-A Reg Prod Nuev'!H95,'01-A Reg Prod Nuev'!J95) -> 10 | I93: ='01-A Reg Prod Nuev'!AO95 -> Britt | J93: ='01-A Reg Prod Nuev'!P95 -> BC 1 | K93: ='01-A Reg Prod Nuev'!Q95 -> E | L93: ='01-A Reg Prod Nuev'!AM95 -> Bod Tras
A94: ='01-A Reg Prod Nuev'!A96 -> 0 | B94: =CONCATENATE('01-A Reg Prod Nuev'!B96," ",'01-A Reg Prod Nuev'!D96," ",H94," ",'01-A Reg Prod Nuev'!K96) -> Café britt tueste oscuro pods 10 g | C94: ='01-A Reg Prod Nuev'!T96 -> 0 | H94: =IF('01-A Reg Prod Nuev'!J96=0,'01-A Reg Prod Nuev'!H96,'01-A Reg Prod Nuev'!J96) -> 10 | I94: ='01-A Reg Prod Nuev'!AO96 -> 0 | J94: ='01-A Reg Prod Nuev'!P96 -> BC 1 | K94: ='01-A Reg Prod Nuev'!Q96 -> A | L94: ='01-A Reg Prod Nuev'!AM96 -> Obsoleto
A95: ='01-A Reg Prod Nuev'!A97 -> 02180022 | B95: =CONCATENATE('01-A Reg Prod Nuev'!B97," ",'01-A Reg Prod Nuev'!D97," ",H95," ",'01-A Reg Prod Nuev'!K97) -> Café espresso grano 908 g | C95: ='01-A Reg Prod Nuev'!T97 -> 6 | H95: =IF('01-A Reg Prod Nuev'!J97=0,'01-A Reg Prod Nuev'!H97,'01-A Reg Prod Nuev'!J97) -> 908 | I95: ='01-A Reg Prod Nuev'!AO97 -> Britt | J95: ='01-A Reg Prod Nuev'!P97 -> BC 1 | K95: ='01-A Reg Prod Nuev'!Q97 -> E | L95: ='01-A Reg Prod Nuev'!AM97 -> Bod Tras
A96: ='01-A Reg Prod Nuev'!A98 -> 02180005 | B96: =CONCATENATE('01-A Reg Prod Nuev'!B98," ",'01-A Reg Prod Nuev'!D98," ",H96," ",'01-A Reg Prod Nuev'!K98) -> Café Grano consumo 340 g | C96: ='01-A Reg Prod Nuev'!T98 -> 0 | H96: =IF('01-A Reg Prod Nuev'!J98=0,'01-A Reg Prod Nuev'!H98,'01-A Reg Prod Nuev'!J98) -> 340 | I96: ='01-A Reg Prod Nuev'!AO98 -> 0 | J96: ='01-A Reg Prod Nuev'!P98 -> BC 1 | K96: ='01-A Reg Prod Nuev'!Q98 -> E | L96: ='01-A Reg Prod Nuev'!AM98 -> Obsoleto
A97: ='01-A Reg Prod Nuev'!A99 -> 0113017 | B97: =CONCATENATE('01-A Reg Prod Nuev'!B99," ",'01-A Reg Prod Nuev'!D99," ",H97," ",'01-A Reg Prod Nuev'!K99) -> Café molido 1820 1000 g | C97: ='01-A Reg Prod Nuev'!T99 -> 48 | H97: =IF('01-A Reg Prod Nuev'!J99=0,'01-A Reg Prod Nuev'!H99,'01-A Reg Prod Nuev'!J99) -> 1000 | I97: ='01-A Reg Prod Nuev'!AO99 -> Panal | J97: ='01-A Reg Prod Nuev'!P99 -> BC 1 | K97: ='01-A Reg Prod Nuev'!Q99 -> E | L97: ='01-A Reg Prod Nuev'!AM99 -> Bod Tras
A98: ='01-A Reg Prod Nuev'!A100 -> 02180009 | B98: =CONCATENATE('01-A Reg Prod Nuev'!B100," ",'01-A Reg Prod Nuev'!D100," ",H98," ",'01-A Reg Prod Nuev'!K100) -> Café room service 10 g | C98: ='01-A Reg Prod Nuev'!T100 -> 20 | H98: =IF('01-A Reg Prod Nuev'!J100=0,'01-A Reg Prod Nuev'!H100,'01-A Reg Prod Nuev'!J100) -> 10 | I98: ='01-A Reg Prod Nuev'!AO100 -> Britt | J98: ='01-A Reg Prod Nuev'!P100 -> BC 1 | K98: ='01-A Reg Prod Nuev'!Q100 -> A | L98: ='01-A Reg Prod Nuev'!AM100 -> Bod Req
A99: ='01-A Reg Prod Nuev'!A101 -> 0 | B99: =CONCATENATE('01-A Reg Prod Nuev'!B101," ",'01-A Reg Prod Nuev'!D101," ",H99," ",'01-A Reg Prod Nuev'!K101) -> Café tueste claro molido institucional 500 g | C99: ='01-A Reg Prod Nuev'!T101 -> 0 | H99: =IF('01-A Reg Prod Nuev'!J101=0,'01-A Reg Prod Nuev'!H101,'01-A Reg Prod Nuev'!J101) -> 500 | I99: ='01-A Reg Prod Nuev'!AO101 -> 0 | J99: ='01-A Reg Prod Nuev'!P101 -> BC 1 | K99: ='01-A Reg Prod Nuev'!Q101 -> E | L99: ='01-A Reg Prod Nuev'!AM101 -> Obsoleto
A100: ='01-A Reg Prod Nuev'!A102 -> 0 | B100: =CONCATENATE('01-A Reg Prod Nuev'!B102," ",'01-A Reg Prod Nuev'!D102," ",H100," ",'01-A Reg Prod Nuev'!K102) -> Café tueste oscuro molido institucional 500 g | C100: ='01-A Reg Prod Nuev'!T102 -> 0 | H100: =IF('01-A Reg Prod Nuev'!J102=0,'01-A Reg Prod Nuev'!H102,'01-A Reg Prod Nuev'!J102) -> 500 | I100: ='01-A Reg Prod Nuev'!AO102 -> 0 | J100: ='01-A Reg Prod Nuev'!P102 -> BC 1 | K100: ='01-A Reg Prod Nuev'!Q102 -> E | L100: ='01-A Reg Prod Nuev'!AM102 -> Obsoleto
A101: ='01-A Reg Prod Nuev'!A103 -> 04030095 | B101: =CONCATENATE('01-A Reg Prod Nuev'!B103," ",'01-A Reg Prod Nuev'!D103," ",H101," ",'01-A Reg Prod Nuev'!K103) -> Caja p/ Pizza 14" 50 u | C101: ='01-A Reg Prod Nuev'!T103 -> 1 | H101: =IF('01-A Reg Prod Nuev'!J103=0,'01-A Reg Prod Nuev'!H103,'01-A Reg Prod Nuev'!J103) -> 50 | I101: ='01-A Reg Prod Nuev'!AO103 -> Belca | J101: ='01-A Reg Prod Nuev'!P103 -> BC 2 | K101: ='01-A Reg Prod Nuev'!Q103 -> B | L101: ='01-A Reg Prod Nuev'!AM103 -> Bod Req
A102: ='01-A Reg Prod Nuev'!A104 -> 0405006 | B102: =CONCATENATE('01-A Reg Prod Nuev'!B104," ",'01-A Reg Prod Nuev'!D104," ",H102," ",'01-A Reg Prod Nuev'!K104) -> Caja queque 14" 25 u | C102: ='01-A Reg Prod Nuev'!T104 -> 0 | H102: =IF('01-A Reg Prod Nuev'!J104=0,'01-A Reg Prod Nuev'!H104,'01-A Reg Prod Nuev'!J104) -> 25 | I102: ='01-A Reg Prod Nuev'!AO104 -> 0 | J102: ='01-A Reg Prod Nuev'!P104 -> BC 2 | K102: ='01-A Reg Prod Nuev'!Q104 -> B | L102: ='01-A Reg Prod Nuev'!AM104 -> Obsoleto
A103: ='01-A Reg Prod Nuev'!A105 -> 04030017 | B103: =CONCATENATE('01-A Reg Prod Nuev'!B105," ",'01-A Reg Prod Nuev'!D105," ",H103," ",'01-A Reg Prod Nuev'!K105) -> Calentadores 72 u | C103: ='01-A Reg Prod Nuev'!T105 -> 2 | H103: =IF('01-A Reg Prod Nuev'!J105=0,'01-A Reg Prod Nuev'!H105,'01-A Reg Prod Nuev'!J105) -> 72 | I103: ='01-A Reg Prod Nuev'!AO105 -> Ciamesa | J103: ='01-A Reg Prod Nuev'!P105 -> BC 2 | K103: ='01-A Reg Prod Nuev'!Q105 -> B | L103: ='01-A Reg Prod Nuev'!AM105 -> Bod Req
A104: ='01-A Reg Prod Nuev'!A106 -> 02030017 | B104: =CONCATENATE('01-A Reg Prod Nuev'!B106," ",'01-A Reg Prod Nuev'!D106," ",H104," ",'01-A Reg Prod Nuev'!K106) -> Canada dry cub soda Plástico 600 ml | C104: ='01-A Reg Prod Nuev'!T106 -> 2 | H104: =IF('01-A Reg Prod Nuev'!J106=0,'01-A Reg Prod Nuev'!H106,'01-A Reg Prod Nuev'!J106) -> 600 | I104: ='01-A Reg Prod Nuev'!AO106 -> Coca | J104: ='01-A Reg Prod Nuev'!P106 -> BC 2 | K104: ='01-A Reg Prod Nuev'!Q106 -> B | L104: ='01-A Reg Prod Nuev'!AM106 -> Bod Tras
A105: ='01-A Reg Prod Nuev'!A107 -> 02030016 | B105: =CONCATENATE('01-A Reg Prod Nuev'!B107," ",'01-A Reg Prod Nuev'!D107," ",H105," ",'01-A Reg Prod Nuev'!K107) -> Canada dry cub soda Vidrio 355 ml | C105: ='01-A Reg Prod Nuev'!T107 -> 2 | H105: =IF('01-A Reg Prod Nuev'!J107=0,'01-A Reg Prod Nuev'!H107,'01-A Reg Prod Nuev'!J107) -> 355 | I105: ='01-A Reg Prod Nuev'!AO107 -> Coca | J105: ='01-A Reg Prod Nuev'!P107 -> BC 2 | K105: ='01-A Reg Prod Nuev'!Q107 -> A | L105: ='01-A Reg Prod Nuev'!AM107 -> Bod Tras
A106: ='01-A Reg Prod Nuev'!A108 -> 02030014 | B106: =CONCATENATE('01-A Reg Prod Nuev'!B108," ",'01-A Reg Prod Nuev'!D108," ",H106," ",'01-A Reg Prod Nuev'!K108) -> Canada dry gin Vidrio 355 ml | C106: ='01-A Reg Prod Nuev'!T108 -> 2 | H106: =IF('01-A Reg Prod Nuev'!J108=0,'01-A Reg Prod Nuev'!H108,'01-A Reg Prod Nuev'!J108) -> 355 | I106: ='01-A Reg Prod Nuev'!AO108 -> Coca | J106: ='01-A Reg Prod Nuev'!P108 -> BC 2 | K106: ='01-A Reg Prod Nuev'!Q108 -> A | L106: ='01-A Reg Prod Nuev'!AM108 -> Bod Tras
A107: ='01-A Reg Prod Nuev'!A109 -> 02120007 | B107: =CONCATENATE('01-A Reg Prod Nuev'!B109," ",'01-A Reg Prod Nuev'!D109," ",H107," ",'01-A Reg Prod Nuev'!K109) -> Canadian club botella 750 ml | C107: ='01-A Reg Prod Nuev'!T109 -> 1 | H107: =IF('01-A Reg Prod Nuev'!J109=0,'01-A Reg Prod Nuev'!H109,'01-A Reg Prod Nuev'!J109) -> 750 | I107: ='01-A Reg Prod Nuev'!AO109 -> L San Ramon | J107: ='01-A Reg Prod Nuev'!P109 -> BC 1 | K107: ='01-A Reg Prod Nuev'!Q109 -> C | L107: ='01-A Reg Prod Nuev'!AM109 -> Bod Tras
A108: ='01-A Reg Prod Nuev'!A110 -> 02020024 | B108: =CONCATENATE('01-A Reg Prod Nuev'!B110," ",'01-A Reg Prod Nuev'!D110," ",H108," ",'01-A Reg Prod Nuev'!K110) -> Canda dry gin lat Lata 354 ml | C108: ='01-A Reg Prod Nuev'!T110 -> 2 | H108: =IF('01-A Reg Prod Nuev'!J110=0,'01-A Reg Prod Nuev'!H110,'01-A Reg Prod Nuev'!J110) -> 354 | I108: ='01-A Reg Prod Nuev'!AO110 -> Coca | J108: ='01-A Reg Prod Nuev'!P110 -> BC 2 | K108: ='01-A Reg Prod Nuev'!Q110 -> B | L108: ='01-A Reg Prod Nuev'!AM110 -> Bod Tras
A109: ='01-A Reg Prod Nuev'!A111 -> 02020029 | B109: =CONCATENATE('01-A Reg Prod Nuev'!B111," ",'01-A Reg Prod Nuev'!D111," ",H109," ",'01-A Reg Prod Nuev'!K111) -> Canda dry gin Plástico 600 ml | C109: ='01-A Reg Prod Nuev'!T111 -> 0 | H109: =IF('01-A Reg Prod Nuev'!J111=0,'01-A Reg Prod Nuev'!H111,'01-A Reg Prod Nuev'!J111) -> 600 | I109: ='01-A Reg Prod Nuev'!AO111 -> Coca | J109: ='01-A Reg Prod Nuev'!P111 -> BC 2 | K109: ='01-A Reg Prod Nuev'!Q111 -> B | L109: ='01-A Reg Prod Nuev'!AM111 -> Bod Tras
A110: ='01-A Reg Prod Nuev'!A112 -> 04030018 | B110: =CONCATENATE('01-A Reg Prod Nuev'!B112," ",'01-A Reg Prod Nuev'!D112," ",H110," ",'01-A Reg Prod Nuev'!K112) -> Candelas Cumpleaños 10 u | C110: ='01-A Reg Prod Nuev'!T112 -> 4 | H110: =IF('01-A Reg Prod Nuev'!J112=0,'01-A Reg Prod Nuev'!H112,'01-A Reg Prod Nuev'!J112) -> 10 | I110: ='01-A Reg Prod Nuev'!AO112 -> C Plástico | J110: ='01-A Reg Prod Nuev'!P112 -> BC 2 | K110: ='01-A Reg Prod Nuev'!Q112 -> B | L110: ='01-A Reg Prod Nuev'!AM112 -> Bod Req
A111: ='01-A Reg Prod Nuev'!A113 -> 04030019 | B111: =CONCATENATE('01-A Reg Prod Nuev'!B113," ",'01-A Reg Prod Nuev'!D113," ",H111," ",'01-A Reg Prod Nuev'!K113) -> Candelas quemadores 500 u | C111: ='01-A Reg Prod Nuev'!T113 -> 3 | H111: =IF('01-A Reg Prod Nuev'!J113=0,'01-A Reg Prod Nuev'!H113,'01-A Reg Prod Nuev'!J113) -> 500 | I111: ='01-A Reg Prod Nuev'!AO113 -> Mayca | J111: ='01-A Reg Prod Nuev'!P113 -> BC 2 | K111: ='01-A Reg Prod Nuev'!Q113 -> B | L111: ='01-A Reg Prod Nuev'!AM113 -> Bod Req
A112: ='01-A Reg Prod Nuev'!A114 -> 0104013 | B112: =CONCATENATE('01-A Reg Prod Nuev'!B114," ",'01-A Reg Prod Nuev'!D114," ",H112," ",'01-A Reg Prod Nuev'!K114) -> Canela polvo 1000 g | C112: ='01-A Reg Prod Nuev'!T114 -> 1 | H112: =IF('01-A Reg Prod Nuev'!J114=0,'01-A Reg Prod Nuev'!H114,'01-A Reg Prod Nuev'!J114) -> 1000 | I112: ='01-A Reg Prod Nuev'!AO114 -> Belca | J112: ='01-A Reg Prod Nuev'!P114 -> BC 1 | K112: ='01-A Reg Prod Nuev'!Q114 -> A | L112: ='01-A Reg Prod Nuev'!AM114 -> Bod Tras
A113: ='01-A Reg Prod Nuev'!A115 -> 0 | B113: =CONCATENATE('01-A Reg Prod Nuev'!B115," ",'01-A Reg Prod Nuev'!D115," ",H113," ",'01-A Reg Prod Nuev'!K115) -> Salsa anguila 1 l | C113: ='01-A Reg Prod Nuev'!T115 -> 0 | H113: =IF('01-A Reg Prod Nuev'!J115=0,'01-A Reg Prod Nuev'!H115,'01-A Reg Prod Nuev'!J115) -> 1 | I113: ='01-A Reg Prod Nuev'!AO115 -> 0 | J113: ='01-A Reg Prod Nuev'!P115 -> 0 | K113: ='01-A Reg Prod Nuev'!Q115 -> 0 | L113: ='01-A Reg Prod Nuev'!AM115 -> Preparac
A114: ='01-A Reg Prod Nuev'!A116 -> 0103018 | B114: =CONCATENATE('01-A Reg Prod Nuev'!B116," ",'01-A Reg Prod Nuev'!D116," ",H114," ",'01-A Reg Prod Nuev'!K116) -> Canelon grd 1 kg | C114: ='01-A Reg Prod Nuev'!T116 -> 3 | H114: =IF('01-A Reg Prod Nuev'!J116=0,'01-A Reg Prod Nuev'!H116,'01-A Reg Prod Nuev'!J116) -> 1 | I114: ='01-A Reg Prod Nuev'!AO116 -> Belca | J114: ='01-A Reg Prod Nuev'!P116 -> BC 1 | K114: ='01-A Reg Prod Nuev'!Q116 -> B | L114: ='01-A Reg Prod Nuev'!AM116 -> Bod Tras
A115: ='01-A Reg Prod Nuev'!A117 -> 0113020 | B115: =CONCATENATE('01-A Reg Prod Nuev'!B117," ",'01-A Reg Prod Nuev'!D117," ",H115," ",'01-A Reg Prod Nuev'!K117) -> Canelon peq 250 g | C115: ='01-A Reg Prod Nuev'!T117 -> 12 | H115: =IF('01-A Reg Prod Nuev'!J117=0,'01-A Reg Prod Nuev'!H117,'01-A Reg Prod Nuev'!J117) -> 250 | I115: ='01-A Reg Prod Nuev'!AO117 -> Ciamesa | J115: ='01-A Reg Prod Nuev'!P117 -> BC 1 | K115: ='01-A Reg Prod Nuev'!Q117 -> D | L115: ='01-A Reg Prod Nuev'!AM117 -> Bod Req
A116: ='01-A Reg Prod Nuev'!A118 -> 0104043 | B116: =CONCATENATE('01-A Reg Prod Nuev'!B118," ",'01-A Reg Prod Nuev'!D118," ",H116," ",'01-A Reg Prod Nuev'!K118) -> Capsulas(canastica) PAN 4.5" 500 u | C116: ='01-A Reg Prod Nuev'!T118 -> 3 | H116: =IF('01-A Reg Prod Nuev'!J118=0,'01-A Reg Prod Nuev'!H118,'01-A Reg Prod Nuev'!J118) -> 500 | I116: ='01-A Reg Prod Nuev'!AO118 -> Belca | J116: ='01-A Reg Prod Nuev'!P118 -> BC 2 | K116: ='01-A Reg Prod Nuev'!Q118 -> B | L116: ='01-A Reg Prod Nuev'!AM118 -> Bod Req
A117: ='01-A Reg Prod Nuev'!A119 -> 0103003 | B117: =CONCATENATE('01-A Reg Prod Nuev'!B119," ",'01-A Reg Prod Nuev'!D119," ",H117," ",'01-A Reg Prod Nuev'!K119) -> Caracolitos grd 500 g | C117: ='01-A Reg Prod Nuev'!T119 -> 6 | H117: =IF('01-A Reg Prod Nuev'!J119=0,'01-A Reg Prod Nuev'!H119,'01-A Reg Prod Nuev'!J119) -> 500 | I117: ='01-A Reg Prod Nuev'!AO119 -> Isleña | J117: ='01-A Reg Prod Nuev'!P119 -> BC 1 | K117: ='01-A Reg Prod Nuev'!Q119 -> B | L117: ='01-A Reg Prod Nuev'!AM119 -> Bod Tras
A118: ='01-A Reg Prod Nuev'!A120 -> 0113021 | B118: =CONCATENATE('01-A Reg Prod Nuev'!B120," ",'01-A Reg Prod Nuev'!D120," ",H118," ",'01-A Reg Prod Nuev'!K120) -> Caracolitos peq 250 g | C118: ='01-A Reg Prod Nuev'!T120 -> 12 | H118: =IF('01-A Reg Prod Nuev'!J120=0,'01-A Reg Prod Nuev'!H120,'01-A Reg Prod Nuev'!J120) -> 250 | I118: ='01-A Reg Prod Nuev'!AO120 -> Ciamesa | J118: ='01-A Reg Prod Nuev'!P120 -> BC 1 | K118: ='01-A Reg Prod Nuev'!Q120 -> D | L118: ='01-A Reg Prod Nuev'!AM120 -> Bod Tras
A119: ='01-A Reg Prod Nuev'!A121 -> 02140002 | B119: =CONCATENATE('01-A Reg Prod Nuev'!B121," ",'01-A Reg Prod Nuev'!D121," ",H119," ",'01-A Reg Prod Nuev'!K121) -> Casillero del Diablo, Reserva, Chile Cabernet Sauvignon 750 ml | C119: ='01-A Reg Prod Nuev'!T121 -> 18 | H119: =IF('01-A Reg Prod Nuev'!J121=0,'01-A Reg Prod Nuev'!H121,'01-A Reg Prod Nuev'!J121) -> 750 | I119: ='01-A Reg Prod Nuev'!AO121 -> V/E Florida | J119: ='01-A Reg Prod Nuev'!P121 -> BC 1 | K119: ='01-A Reg Prod Nuev'!Q121 -> C | L119: ='01-A Reg Prod Nuev'!AM121 -> Bod Tras
A120: ='01-A Reg Prod Nuev'!A122 -> 02140016 | B120: =CONCATENATE('01-A Reg Prod Nuev'!B122," ",'01-A Reg Prod Nuev'!D122," ",H120," ",'01-A Reg Prod Nuev'!K122) -> Casillero del Diablo, Reserva, Chile Carmenere 750 ml | C120: ='01-A Reg Prod Nuev'!T122 -> 8 | H120: =IF('01-A Reg Prod Nuev'!J122=0,'01-A Reg Prod Nuev'!H122,'01-A Reg Prod Nuev'!J122) -> 750 | I120: ='01-A Reg Prod Nuev'!AO122 -> V/E Florida | J120: ='01-A Reg Prod Nuev'!P122 -> BC 1 | K120: ='01-A Reg Prod Nuev'!Q122 -> C | L120: ='01-A Reg Prod Nuev'!AM122 -> Bod Tras
A121: ='01-A Reg Prod Nuev'!A123 -> 02150007 | B121: =CONCATENATE('01-A Reg Prod Nuev'!B123," ",'01-A Reg Prod Nuev'!D123," ",H121," ",'01-A Reg Prod Nuev'!K123) -> Casillero del Diablo, Reserva, Chile Chardonnay 750 ml | C121: ='01-A Reg Prod Nuev'!T123 -> 12 | H121: =IF('01-A Reg Prod Nuev'!J123=0,'01-A Reg Prod Nuev'!H123,'01-A Reg Prod Nuev'!J123) -> 750 | I121: ='01-A Reg Prod Nuev'!AO123 -> V/E Florida | J121: ='01-A Reg Prod Nuev'!P123 -> BC 1 | K121: ='01-A Reg Prod Nuev'!Q123 -> C | L121: ='01-A Reg Prod Nuev'!AM123 -> Bod Tras
A122: ='01-A Reg Prod Nuev'!A124 -> 02140003 | B122: =CONCATENATE('01-A Reg Prod Nuev'!B124," ",'01-A Reg Prod Nuev'!D124," ",H122," ",'01-A Reg Prod Nuev'!K124) -> Casillero del Diablo, Reserva, Chile Merlot 750 ml | C122: ='01-A Reg Prod Nuev'!T124 -> 12 | H122: =IF('01-A Reg Prod Nuev'!J124=0,'01-A Reg Prod Nuev'!H124,'01-A Reg Prod Nuev'!J124) -> 750 | I122: ='01-A Reg Prod Nuev'!AO124 -> V/E Florida | J122: ='01-A Reg Prod Nuev'!P124 -> BC 1 | K122: ='01-A Reg Prod Nuev'!Q124 -> C | L122: ='01-A Reg Prod Nuev'!AM124 -> Bod Tras
A123: ='01-A Reg Prod Nuev'!A125 -> 02140014 | B123: =CONCATENATE('01-A Reg Prod Nuev'!B125," ",'01-A Reg Prod Nuev'!D125," ",H123," ",'01-A Reg Prod Nuev'!K125) -> Casillero del Diablo, Reserva, Chile Pinot Noir 750 ml | C123: ='01-A Reg Prod Nuev'!T125 -> 12 | H123: =IF('01-A Reg Prod Nuev'!J125=0,'01-A Reg Prod Nuev'!H125,'01-A Reg Prod Nuev'!J125) -> 750 | I123: ='01-A Reg Prod Nuev'!AO125 -> V/E Florida | J123: ='01-A Reg Prod Nuev'!P125 -> BC 1 | K123: ='01-A Reg Prod Nuev'!Q125 -> C | L123: ='01-A Reg Prod Nuev'!AM125 -> Bod Tras
A124: ='01-A Reg Prod Nuev'!A126 -> 02150002 | B124: =CONCATENATE('01-A Reg Prod Nuev'!B126," ",'01-A Reg Prod Nuev'!D126," ",H124," ",'01-A Reg Prod Nuev'!K126) -> Casillero del Diablo, Reserva, Chile Sauvignon blanc 750 ml | C124: ='01-A Reg Prod Nuev'!T126 -> 18 | H124: =IF('01-A Reg Prod Nuev'!J126=0,'01-A Reg Prod Nuev'!H126,'01-A Reg Prod Nuev'!J126) -> 750 | I124: ='01-A Reg Prod Nuev'!AO126 -> V/E Florida | J124: ='01-A Reg Prod Nuev'!P126 -> BC 1 | K124: ='01-A Reg Prod Nuev'!Q126 -> C | L124: ='01-A Reg Prod Nuev'!AM126 -> Bod Tras
A125: ='01-A Reg Prod Nuev'!A127 -> 02140011 | B125: =CONCATENATE('01-A Reg Prod Nuev'!B127," ",'01-A Reg Prod Nuev'!D127," ",H125," ",'01-A Reg Prod Nuev'!K127) -> Casillero del Diablo, Reserva, Chile Syrah 750 ml | C125: ='01-A Reg Prod Nuev'!T127 -> 8 | H125: =IF('01-A Reg Prod Nuev'!J127=0,'01-A Reg Prod Nuev'!H127,'01-A Reg Prod Nuev'!J127) -> 750 | I125: ='01-A Reg Prod Nuev'!AO127 -> V/E Florida | J125: ='01-A Reg Prod Nuev'!P127 -> BC 1 | K125: ='01-A Reg Prod Nuev'!Q127 -> C | L125: ='01-A Reg Prod Nuev'!AM127 -> Bod Tras
A126: ='01-A Reg Prod Nuev'!A128 -> 02150028 | B126: =CONCATENATE('01-A Reg Prod Nuev'!B128," ",'01-A Reg Prod Nuev'!D128," ",H126," ",'01-A Reg Prod Nuev'!K128) -> Casillero del Diablo, Reserva,Chile Pinot Grigio 750 ml | C126: ='01-A Reg Prod Nuev'!T128 -> 24 | H126: =IF('01-A Reg Prod Nuev'!J128=0,'01-A Reg Prod Nuev'!H128,'01-A Reg Prod Nuev'!J128) -> 750 | I126: ='01-A Reg Prod Nuev'!AO128 -> V/E Florida | J126: ='01-A Reg Prod Nuev'!P128 -> BC 1 | K126: ='01-A Reg Prod Nuev'!Q128 -> C | L126: ='01-A Reg Prod Nuev'!AM128 -> Bod Tras
A127: ='01-A Reg Prod Nuev'!A129 -> 02140057 | B127: =CONCATENATE('01-A Reg Prod Nuev'!B129," ",'01-A Reg Prod Nuev'!D129," ",H127," ",'01-A Reg Prod Nuev'!K129) -> Cavit, Italia Pinot Noir 750 ml | C127: ='01-A Reg Prod Nuev'!T129 -> 6 | H127: =IF('01-A Reg Prod Nuev'!J129=0,'01-A Reg Prod Nuev'!H129,'01-A Reg Prod Nuev'!J129) -> 750 | I127: ='01-A Reg Prod Nuev'!AO129 -> V/Isleña | J127: ='01-A Reg Prod Nuev'!P129 -> BC 1 | K127: ='01-A Reg Prod Nuev'!Q129 -> C | L127: ='01-A Reg Prod Nuev'!AM129 -> C Directo
A128: ='01-A Reg Prod Nuev'!A130 -> 02150034 | B128: =CONCATENATE('01-A Reg Prod Nuev'!B130," ",'01-A Reg Prod Nuev'!D130," ",H128," ",'01-A Reg Prod Nuev'!K130) -> Cavit, Italia Riesling 750 ml | C128: ='01-A Reg Prod Nuev'!T130 -> 0 | H128: =IF('01-A Reg Prod Nuev'!J130=0,'01-A Reg Prod Nuev'!H130,'01-A Reg Prod Nuev'!J130) -> 750 | I128: ='01-A Reg Prod Nuev'!AO130 -> 0 | J128: ='01-A Reg Prod Nuev'!P130 -> BC 1 | K128: ='01-A Reg Prod Nuev'!Q130 -> C | L128: ='01-A Reg Prod Nuev'!AM130 -> Obsoleto
A129: ='01-A Reg Prod Nuev'!A131 -> 02140048 | B129: =CONCATENATE('01-A Reg Prod Nuev'!B131," ",'01-A Reg Prod Nuev'!D131," ",H129," ",'01-A Reg Prod Nuev'!K131) -> Cecchi, D.O.C.G. Chanti Classico, Italia Sangiovese 750 ml | C129: ='01-A Reg Prod Nuev'!T131 -> 6 | H129: =IF('01-A Reg Prod Nuev'!J131=0,'01-A Reg Prod Nuev'!H131,'01-A Reg Prod Nuev'!J131) -> 750 | I129: ='01-A Reg Prod Nuev'!AO131 -> V/E Florida | J129: ='01-A Reg Prod Nuev'!P131 -> 0 | K129: ='01-A Reg Prod Nuev'!Q131 -> 0 | L129: ='01-A Reg Prod Nuev'!AM131 -> C Directo
A130: ='01-A Reg Prod Nuev'!A132 -> 02050007 | B130: =CONCATENATE('01-A Reg Prod Nuev'!B132," ",'01-A Reg Prod Nuev'!D132," ",H130," ",'01-A Reg Prod Nuev'!K132) -> Centenario 20 años reser. Bot 750 ml | C130: ='01-A Reg Prod Nuev'!T132 -> 2 | H130: =IF('01-A Reg Prod Nuev'!J132=0,'01-A Reg Prod Nuev'!H132,'01-A Reg Prod Nuev'!J132) -> 750 | I130: ='01-A Reg Prod Nuev'!AO132 -> L San Ramon | J130: ='01-A Reg Prod Nuev'!P132 -> BC 1 | K130: ='01-A Reg Prod Nuev'!Q132 -> C | L130: ='01-A Reg Prod Nuev'!AM132 -> Bod Tras
A131: ='01-A Reg Prod Nuev'!A133 -> 02050003 | B131: =CONCATENATE('01-A Reg Prod Nuev'!B133," ",'01-A Reg Prod Nuev'!D133," ",H131," ",'01-A Reg Prod Nuev'!K133) -> Centenario añejo litron 1135 ml | C131: ='01-A Reg Prod Nuev'!T133 -> 4 | H131: =IF('01-A Reg Prod Nuev'!J133=0,'01-A Reg Prod Nuev'!H133,'01-A Reg Prod Nuev'!J133) -> 1135 | I131: ='01-A Reg Prod Nuev'!AO133 -> L San Ramon | J131: ='01-A Reg Prod Nuev'!P133 -> BC 1 | K131: ='01-A Reg Prod Nuev'!Q133 -> C | L131: ='01-A Reg Prod Nuev'!AM133 -> Bod Tras
A132: ='01-A Reg Prod Nuev'!A134 -> 72020 | B132: =CONCATENATE('01-A Reg Prod Nuev'!B134," ",'01-A Reg Prod Nuev'!D134," ",H132," ",'01-A Reg Prod Nuev'!K134) -> Cepillo dental 1 u | C132: ='01-A Reg Prod Nuev'!T134 -> 12 | H132: =IF('01-A Reg Prod Nuev'!J134=0,'01-A Reg Prod Nuev'!H134,'01-A Reg Prod Nuev'!J134) -> 1 | I132: ='01-A Reg Prod Nuev'!AO134 -> Ciamesa | J132: ='01-A Reg Prod Nuev'!P134 -> BC 3 | K132: ='01-A Reg Prod Nuev'!Q134 -> B | L132: ='01-A Reg Prod Nuev'!AM134 -> Bod Req
A133: ='01-A Reg Prod Nuev'!A135 -> 04030081 | B133: =CONCATENATE('01-A Reg Prod Nuev'!B135," ",'01-A Reg Prod Nuev'!D135," ",H133," ",'01-A Reg Prod Nuev'!K135) -> Cepillo Lechero 1 u | C133: ='01-A Reg Prod Nuev'!T135 -> 4 | H133: =IF('01-A Reg Prod Nuev'!J135=0,'01-A Reg Prod Nuev'!H135,'01-A Reg Prod Nuev'!J135) -> 1 | I133: ='01-A Reg Prod Nuev'!AO135 -> Ciamesa | J133: ='01-A Reg Prod Nuev'!P135 -> BC 3 | K133: ='01-A Reg Prod Nuev'!Q135 -> A | L133: ='01-A Reg Prod Nuev'!AM135 -> Bod Req
A134: ='01-A Reg Prod Nuev'!A136 -> 04030021 | B134: =CONCATENATE('01-A Reg Prod Nuev'!B136," ",'01-A Reg Prod Nuev'!D136," ",H134," ",'01-A Reg Prod Nuev'!K136) -> Cepillo Raiz 1 u | C134: ='01-A Reg Prod Nuev'!T136 -> 2 | H134: =IF('01-A Reg Prod Nuev'!J136=0,'01-A Reg Prod Nuev'!H136,'01-A Reg Prod Nuev'!J136) -> 1 | I134: ='01-A Reg Prod Nuev'!AO136 -> Ciamesa | J134: ='01-A Reg Prod Nuev'!P136 -> BC 3 | K134: ='01-A Reg Prod Nuev'!Q136 -> A | L134: ='01-A Reg Prod Nuev'!AM136 -> Bod Req
A135: ='01-A Reg Prod Nuev'!A137 -> 04030020 | B135: =CONCATENATE('01-A Reg Prod Nuev'!B137," ",'01-A Reg Prod Nuev'!D137," ",H135," ",'01-A Reg Prod Nuev'!K137) -> Cepillo tipo Planchita 1 u | C135: ='01-A Reg Prod Nuev'!T137 -> 6 | H135: =IF('01-A Reg Prod Nuev'!J137=0,'01-A Reg Prod Nuev'!H137,'01-A Reg Prod Nuev'!J137) -> 1 | I135: ='01-A Reg Prod Nuev'!AO137 -> Ciamesa | J135: ='01-A Reg Prod Nuev'!P137 -> BC 3 | K135: ='01-A Reg Prod Nuev'!Q137 -> A | L135: ='01-A Reg Prod Nuev'!AM137 -> Bod Req
A136: ='01-A Reg Prod Nuev'!A138 -> 04020013 | B136: =CONCATENATE('01-A Reg Prod Nuev'!B138," ",'01-A Reg Prod Nuev'!D138," ",H136," ",'01-A Reg Prod Nuev'!K138) -> Cera Gala 3.78 l | C136: ='01-A Reg Prod Nuev'!T138 -> 1 | H136: =IF('01-A Reg Prod Nuev'!J138=0,'01-A Reg Prod Nuev'!H138,'01-A Reg Prod Nuev'!J138) -> 3.78 | I136: ='01-A Reg Prod Nuev'!AO138 -> Proquimia | J136: ='01-A Reg Prod Nuev'!P138 -> BC 3 | K136: ='01-A Reg Prod Nuev'!Q138 -> B | L136: ='01-A Reg Prod Nuev'!AM138 -> Bod Req
A137: ='01-A Reg Prod Nuev'!A139 -> 0102004 | B137: =CONCATENATE('01-A Reg Prod Nuev'!B139," ",'01-A Reg Prod Nuev'!D139," ",H137," ",'01-A Reg Prod Nuev'!K139) -> Ceral frutas 1 kg | C137: ='01-A Reg Prod Nuev'!T139 -> 9 | H137: =IF('01-A Reg Prod Nuev'!J139=0,'01-A Reg Prod Nuev'!H139,'01-A Reg Prod Nuev'!J139) -> 1 | I137: ='01-A Reg Prod Nuev'!AO139 -> Mayca | J137: ='01-A Reg Prod Nuev'!P139 -> BC 1 | K137: ='01-A Reg Prod Nuev'!Q139 -> B | L137: ='01-A Reg Prod Nuev'!AM139 -> Bod Tras
A138: ='01-A Reg Prod Nuev'!A140 -> 0102005 | B138: =CONCATENATE('01-A Reg Prod Nuev'!B140," ",'01-A Reg Prod Nuev'!D140," ",H138," ",'01-A Reg Prod Nuev'!K140) -> Cereal hojuelas 1 kg | C138: ='01-A Reg Prod Nuev'!T140 -> 9 | H138: =IF('01-A Reg Prod Nuev'!J140=0,'01-A Reg Prod Nuev'!H140,'01-A Reg Prod Nuev'!J140) -> 1 | I138: ='01-A Reg Prod Nuev'!AO140 -> Mayca | J138: ='01-A Reg Prod Nuev'!P140 -> BC 1 | K138: ='01-A Reg Prod Nuev'!Q140 -> B | L138: ='01-A Reg Prod Nuev'!AM140 -> Bod Tras
A139: ='01-A Reg Prod Nuev'!A141 -> 0101013 | B139: =CONCATENATE('01-A Reg Prod Nuev'!B141," ",'01-A Reg Prod Nuev'!D141," ",H139," ",'01-A Reg Prod Nuev'!K141) -> Cereza con tallo 3.78 kg | C139: ='01-A Reg Prod Nuev'!T141 -> 0 | H139: =IF('01-A Reg Prod Nuev'!J141=0,'01-A Reg Prod Nuev'!H141,'01-A Reg Prod Nuev'!J141) -> 3.78 | I139: ='01-A Reg Prod Nuev'!AO141 -> 0 | J139: ='01-A Reg Prod Nuev'!P141 -> BC 1 | K139: ='01-A Reg Prod Nuev'!Q141 -> A | L139: ='01-A Reg Prod Nuev'!AM141 -> Obsoleto
A140: ='01-A Reg Prod Nuev'!A142 -> 04020089 | B140: =CONCATENATE('01-A Reg Prod Nuev'!B142," ",'01-A Reg Prod Nuev'!D142," ",H140," ",'01-A Reg Prod Nuev'!K142) -> Cerofilm sanitizante maq lav 20 l | C140: ='01-A Reg Prod Nuev'!T142 -> 2 | H140: =IF('01-A Reg Prod Nuev'!J142=0,'01-A Reg Prod Nuev'!H142,'01-A Reg Prod Nuev'!J142) -> 20 | I140: ='01-A Reg Prod Nuev'!AO142 -> Proquimia | J140: ='01-A Reg Prod Nuev'!P142 -> BC 3 | K140: ='01-A Reg Prod Nuev'!Q142 -> B | L140: ='01-A Reg Prod Nuev'!AM142 -> Bod Req
A141: ='01-A Reg Prod Nuev'!A143 -> 02030009 | B141: =CONCATENATE('01-A Reg Prod Nuev'!B143," ",'01-A Reg Prod Nuev'!D143," ",H141," ",'01-A Reg Prod Nuev'!K143) -> Cerveza bavaria gold Vidrio 355 ml | C141: ='01-A Reg Prod Nuev'!T143 -> 2 | H141: =IF('01-A Reg Prod Nuev'!J143=0,'01-A Reg Prod Nuev'!H143,'01-A Reg Prod Nuev'!J143) -> 355 | I141: ='01-A Reg Prod Nuev'!AO143 -> C/E Florida | J141: ='01-A Reg Prod Nuev'!P143 -> BC 2 | K141: ='01-A Reg Prod Nuev'!Q143 -> A | L141: ='01-A Reg Prod Nuev'!AM143 -> Bod Tras
A142: ='01-A Reg Prod Nuev'!A144 -> 02030008 | B142: =CONCATENATE('01-A Reg Prod Nuev'!B144," ",'01-A Reg Prod Nuev'!D144," ",H142," ",'01-A Reg Prod Nuev'!K144) -> Cerveza bavaria light Vidrio 355 ml | C142: ='01-A Reg Prod Nuev'!T144 -> 2 | H142: =IF('01-A Reg Prod Nuev'!J144=0,'01-A Reg Prod Nuev'!H144,'01-A Reg Prod Nuev'!J144) -> 355 | I142: ='01-A Reg Prod Nuev'!AO144 -> C/E Florida | J142: ='01-A Reg Prod Nuev'!P144 -> BC 2 | K142: ='01-A Reg Prod Nuev'!Q144 -> A | L142: ='01-A Reg Prod Nuev'!AM144 -> Bod Tras
A143: ='01-A Reg Prod Nuev'!A145 -> 02030007 | B143: =CONCATENATE('01-A Reg Prod Nuev'!B145," ",'01-A Reg Prod Nuev'!D145," ",H143," ",'01-A Reg Prod Nuev'!K145) -> Cerveza bavaria neg Vidrio 355 ml | C143: ='01-A Reg Prod Nuev'!T145 -> 3 | H143: =IF('01-A Reg Prod Nuev'!J145=0,'01-A Reg Prod Nuev'!H145,'01-A Reg Prod Nuev'!J145) -> 355 | I143: ='01-A Reg Prod Nuev'!AO145 -> C/E Florida | J143: ='01-A Reg Prod Nuev'!P145 -> BC 2 | K143: ='01-A Reg Prod Nuev'!Q145 -> A | L143: ='01-A Reg Prod Nuev'!AM145 -> Bod Tras
A144: ='01-A Reg Prod Nuev'!A146 -> 02030018 | B144: =CONCATENATE('01-A Reg Prod Nuev'!B146," ",'01-A Reg Prod Nuev'!D146," ",H144," ",'01-A Reg Prod Nuev'!K146) -> Cerveza heineken Lata 355 ml | C144: ='01-A Reg Prod Nuev'!T146 -> 2 | H144: =IF('01-A Reg Prod Nuev'!J146=0,'01-A Reg Prod Nuev'!H146,'01-A Reg Prod Nuev'!J146) -> 355 | I144: ='01-A Reg Prod Nuev'!AO146 -> C/E Florida | J144: ='01-A Reg Prod Nuev'!P146 -> BC 2 | K144: ='01-A Reg Prod Nuev'!Q146 -> B | L144: ='01-A Reg Prod Nuev'!AM146 -> Bod Tras
A145: ='01-A Reg Prod Nuev'!A147 -> 02030006 | B145: =CONCATENATE('01-A Reg Prod Nuev'!B147," ",'01-A Reg Prod Nuev'!D147," ",H145," ",'01-A Reg Prod Nuev'!K147) -> Cerveza imperial lat Lata 350 ml | C145: ='01-A Reg Prod Nuev'!T147 -> 30 | H145: =IF('01-A Reg Prod Nuev'!J147=0,'01-A Reg Prod Nuev'!H147,'01-A Reg Prod Nuev'!J147) -> 350 | I145: ='01-A Reg Prod Nuev'!AO147 -> L San Ramon | J145: ='01-A Reg Prod Nuev'!P147 -> BC 2 | K145: ='01-A Reg Prod Nuev'!Q147 -> A | L145: ='01-A Reg Prod Nuev'!AM147 -> Bod Tras
A146: ='01-A Reg Prod Nuev'!A148 -> 02030005 | B146: =CONCATENATE('01-A Reg Prod Nuev'!B148," ",'01-A Reg Prod Nuev'!D148," ",H146," ",'01-A Reg Prod Nuev'!K148) -> Cerveza imperial light lat Lata 350 ml | C146: ='01-A Reg Prod Nuev'!T148 -> 2 | H146: =IF('01-A Reg Prod Nuev'!J148=0,'01-A Reg Prod Nuev'!H148,'01-A Reg Prod Nuev'!J148) -> 350 | I146: ='01-A Reg Prod Nuev'!AO148 -> C/E Florida | J146: ='01-A Reg Prod Nuev'!P148 -> BC 2 | K146: ='01-A Reg Prod Nuev'!Q148 -> B | L146: ='01-A Reg Prod Nuev'!AM148 -> Bod Tras
A147: ='01-A Reg Prod Nuev'!A149 -> 02030020 | B147: =CONCATENATE('01-A Reg Prod Nuev'!B149," ",'01-A Reg Prod Nuev'!D149," ",H147," ",'01-A Reg Prod Nuev'!K149) -> Cerveza pilsen lat Lata 350 ml | C147: ='01-A Reg Prod Nuev'!T149 -> 4 | H147: =IF('01-A Reg Prod Nuev'!J149=0,'01-A Reg Prod Nuev'!H149,'01-A Reg Prod Nuev'!J149) -> 350 | I147: ='01-A Reg Prod Nuev'!AO149 -> C/E Florida | J147: ='01-A Reg Prod Nuev'!P149 -> BC 2 | K147: ='01-A Reg Prod Nuev'!Q149 -> B | L147: ='01-A Reg Prod Nuev'!AM149 -> Bod Tras
A148: ='01-A Reg Prod Nuev'!A150 -> 02030003 | B148: =CONCATENATE('01-A Reg Prod Nuev'!B150," ",'01-A Reg Prod Nuev'!D150," ",H148," ",'01-A Reg Prod Nuev'!K150) -> Cerveza corona Vidrio 355 ml | C148: ='01-A Reg Prod Nuev'!T150 -> 3 | H148: =IF('01-A Reg Prod Nuev'!J150=0,'01-A Reg Prod Nuev'!H150,'01-A Reg Prod Nuev'!J150) -> 355 | I148: ='01-A Reg Prod Nuev'!AO150 -> L San Ramon | J148: ='01-A Reg Prod Nuev'!P150 -> BC 2 | K148: ='01-A Reg Prod Nuev'!Q150 -> A | L148: ='01-A Reg Prod Nuev'!AM150 -> Bod Tras
A149: ='01-A Reg Prod Nuev'!A151 -> 02030001 | B149: =CONCATENATE('01-A Reg Prod Nuev'!B151," ",'01-A Reg Prod Nuev'!D151," ",H149," ",'01-A Reg Prod Nuev'!K151) -> Cerveza imperial vid Vidrio 350 ml | C149: ='01-A Reg Prod Nuev'!T151 -> 8 | H149: =IF('01-A Reg Prod Nuev'!J151=0,'01-A Reg Prod Nuev'!H151,'01-A Reg Prod Nuev'!J151) -> 350 | I149: ='01-A Reg Prod Nuev'!AO151 -> C/E Florida | J149: ='01-A Reg Prod Nuev'!P151 -> BC 2 | K149: ='01-A Reg Prod Nuev'!Q151 -> A | L149: ='01-A Reg Prod Nuev'!AM151 -> Bod Tras
A150: ='01-A Reg Prod Nuev'!A152 -> 02030004 | B150: =CONCATENATE('01-A Reg Prod Nuev'!B152," ",'01-A Reg Prod Nuev'!D152," ",H150," ",'01-A Reg Prod Nuev'!K152) -> Cerveza imperial light vid Vidrio 350 ml | C150: ='01-A Reg Prod Nuev'!T152 -> 2 | H150: =IF('01-A Reg Prod Nuev'!J152=0,'01-A Reg Prod Nuev'!H152,'01-A Reg Prod Nuev'!J152) -> 350 | I150: ='01-A Reg Prod Nuev'!AO152 -> C/E Florida | J150: ='01-A Reg Prod Nuev'!P152 -> BC 2 | K150: ='01-A Reg Prod Nuev'!Q152 -> A | L150: ='01-A Reg Prod Nuev'!AM152 -> Bod Tras
A151: ='01-A Reg Prod Nuev'!A153 -> 0203022 | B151: =CONCATENATE('01-A Reg Prod Nuev'!B153," ",'01-A Reg Prod Nuev'!D153," ",H151," ",'01-A Reg Prod Nuev'!K153) -> Cerveza vid Japonesa Vidrio 354 ml | C151: ='01-A Reg Prod Nuev'!T153 -> 1 | H151: =IF('01-A Reg Prod Nuev'!J153=0,'01-A Reg Prod Nuev'!H153,'01-A Reg Prod Nuev'!J153) -> 354 | I151: ='01-A Reg Prod Nuev'!AO153 -> Oceanic | J151: ='01-A Reg Prod Nuev'!P153 -> BC 2 | K151: ='01-A Reg Prod Nuev'!Q153 -> B | L151: ='01-A Reg Prod Nuev'!AM153 -> Bod Tras
A152: ='01-A Reg Prod Nuev'!A154 -> 02030002 | B152: =CONCATENATE('01-A Reg Prod Nuev'!B154," ",'01-A Reg Prod Nuev'!D154," ",H152," ",'01-A Reg Prod Nuev'!K154) -> Cerveza pilsen Vidrio 350 ml | C152: ='01-A Reg Prod Nuev'!T154 -> 2 | H152: =IF('01-A Reg Prod Nuev'!J154=0,'01-A Reg Prod Nuev'!H154,'01-A Reg Prod Nuev'!J154) -> 350 | I152: ='01-A Reg Prod Nuev'!AO154 -> C/E Florida | J152: ='01-A Reg Prod Nuev'!P154 -> BC 2 | K152: ='01-A Reg Prod Nuev'!Q154 -> A | L152: ='01-A Reg Prod Nuev'!AM154 -> Bod Tras
A153: ='01-A Reg Prod Nuev'!A155 -> 0105016 | B153: =CONCATENATE('01-A Reg Prod Nuev'!B155," ",'01-A Reg Prod Nuev'!D155," ",H153," ",'01-A Reg Prod Nuev'!K155) -> Chile escama 500 g | C153: ='01-A Reg Prod Nuev'!T155 -> 2 | H153: =IF('01-A Reg Prod Nuev'!J155=0,'01-A Reg Prod Nuev'!H155,'01-A Reg Prod Nuev'!J155) -> 500 | I153: ='01-A Reg Prod Nuev'!AO155 -> Belca | J153: ='01-A Reg Prod Nuev'!P155 -> BC 1 | K153: ='01-A Reg Prod Nuev'!Q155 -> A | L153: ='01-A Reg Prod Nuev'!AM155 -> Bod Tras
A154: ='01-A Reg Prod Nuev'!A156 -> 02120004 | B154: =CONCATENATE('01-A Reg Prod Nuev'!B156," ",'01-A Reg Prod Nuev'!D156," ",H154," ",'01-A Reg Prod Nuev'!K156) -> Chivas regal 12 años litro 1000 ml | C154: ='01-A Reg Prod Nuev'!T156 -> 1 | H154: =IF('01-A Reg Prod Nuev'!J156=0,'01-A Reg Prod Nuev'!H156,'01-A Reg Prod Nuev'!J156) -> 1000 | I154: ='01-A Reg Prod Nuev'!AO156 -> L San Ramon | J154: ='01-A Reg Prod Nuev'!P156 -> BC 1 | K154: ='01-A Reg Prod Nuev'!Q156 -> C | L154: ='01-A Reg Prod Nuev'!AM156 -> Bod Tras
A155: ='01-A Reg Prod Nuev'!A157 -> 04020014 | B155: =CONCATENATE('01-A Reg Prod Nuev'!B157," ",'01-A Reg Prod Nuev'!D157," ",H155," ",'01-A Reg Prod Nuev'!K157) -> Clean plac 10 l | C155: ='01-A Reg Prod Nuev'!T157 -> 3 | H155: =IF('01-A Reg Prod Nuev'!J157=0,'01-A Reg Prod Nuev'!H157,'01-A Reg Prod Nuev'!J157) -> 10 | I155: ='01-A Reg Prod Nuev'!AO157 -> Proquimia | J155: ='01-A Reg Prod Nuev'!P157 -> BC 3 | K155: ='01-A Reg Prod Nuev'!Q157 -> B | L155: ='01-A Reg Prod Nuev'!AM157 -> Bod Req
A156: ='01-A Reg Prod Nuev'!A158 -> 0113074 | B156: =CONCATENATE('01-A Reg Prod Nuev'!B158," ",'01-A Reg Prod Nuev'!D158," ",H156," ",'01-A Reg Prod Nuev'!K158) -> Cloro Los Conejos 400 ml | C156: ='01-A Reg Prod Nuev'!T158 -> 0 | H156: =IF('01-A Reg Prod Nuev'!J158=0,'01-A Reg Prod Nuev'!H158,'01-A Reg Prod Nuev'!J158) -> 400 | I156: ='01-A Reg Prod Nuev'!AO158 -> 0 | J156: ='01-A Reg Prod Nuev'!P158 -> BC 3 | K156: ='01-A Reg Prod Nuev'!Q158 -> B | L156: ='01-A Reg Prod Nuev'!AM158 -> Obsoleto
A157: ='01-A Reg Prod Nuev'!A159 -> 04020015 | B157: =CONCATENATE('01-A Reg Prod Nuev'!B159," ",'01-A Reg Prod Nuev'!D159," ",H157," ",'01-A Reg Prod Nuev'!K159) -> Cloro 3,5% Los Conejos 3.78 l | C157: ='01-A Reg Prod Nuev'!T159 -> 8 | H157: =IF('01-A Reg Prod Nuev'!J159=0,'01-A Reg Prod Nuev'!H159,'01-A Reg Prod Nuev'!J159) -> 3.78 | I157: ='01-A Reg Prod Nuev'!AO159 -> Ciamesa | J157: ='01-A Reg Prod Nuev'!P159 -> BC 3 | K157: ='01-A Reg Prod Nuev'!Q159 -> B | L157: ='01-A Reg Prod Nuev'!AM159 -> Bod Req
A158: ='01-A Reg Prod Nuev'!A160 -> 0113052 | B158: =CONCATENATE('01-A Reg Prod Nuev'!B160," ",'01-A Reg Prod Nuev'!D160," ",H158," ",'01-A Reg Prod Nuev'!K160) -> Cloro ropa color 400 ml | C158: ='01-A Reg Prod Nuev'!T160 -> 0 | H158: =IF('01-A Reg Prod Nuev'!J160=0,'01-A Reg Prod Nuev'!H160,'01-A Reg Prod Nuev'!J160) -> 400 | I158: ='01-A Reg Prod Nuev'!AO160 -> 0 | J158: ='01-A Reg Prod Nuev'!P160 -> BC 3 | K158: ='01-A Reg Prod Nuev'!Q160 -> B | L158: ='01-A Reg Prod Nuev'!AM160 -> Obsoleto
A159: ='01-A Reg Prod Nuev'!A161 -> 0104059 | B159: =CONCATENATE('01-A Reg Prod Nuev'!B161," ",'01-A Reg Prod Nuev'!D161," ",H159," ",'01-A Reg Prod Nuev'!K161) -> Cobertura cholate #110 500 g | C159: ='01-A Reg Prod Nuev'!T161 -> 2 | H159: =IF('01-A Reg Prod Nuev'!J161=0,'01-A Reg Prod Nuev'!H161,'01-A Reg Prod Nuev'!J161) -> 500 | I159: ='01-A Reg Prod Nuev'!AO161 -> Belca | J159: ='01-A Reg Prod Nuev'!P161 -> BC 1 | K159: ='01-A Reg Prod Nuev'!Q161 -> E | L159: ='01-A Reg Prod Nuev'!AM161 -> Bod Tras
A160: ='01-A Reg Prod Nuev'!A162 -> 0104050 | B160: =CONCATENATE('01-A Reg Prod Nuev'!B162," ",'01-A Reg Prod Nuev'!D162," ",H160," ",'01-A Reg Prod Nuev'!K162) -> Cobertura cholate #117 5 kg | C160: ='01-A Reg Prod Nuev'!T162 -> 2 | H160: =IF('01-A Reg Prod Nuev'!J162=0,'01-A Reg Prod Nuev'!H162,'01-A Reg Prod Nuev'!J162) -> 5 | I160: ='01-A Reg Prod Nuev'!AO162 -> Mayca | J160: ='01-A Reg Prod Nuev'!P162 -> BC 1 | K160: ='01-A Reg Prod Nuev'!Q162 -> E | L160: ='01-A Reg Prod Nuev'!AM162 -> Bod Tras
A161: ='01-A Reg Prod Nuev'!A163 -> 0104040 | B161: =CONCATENATE('01-A Reg Prod Nuev'!B163," ",'01-A Reg Prod Nuev'!D163," ",H161," ",'01-A Reg Prod Nuev'!K163) -> Cobertura cholate #121 5 kg | C161: ='01-A Reg Prod Nuev'!T163 -> 2 | H161: =IF('01-A Reg Prod Nuev'!J163=0,'01-A Reg Prod Nuev'!H163,'01-A Reg Prod Nuev'!J163) -> 5 | I161: ='01-A Reg Prod Nuev'!AO163 -> Mayca | J161: ='01-A Reg Prod Nuev'!P163 -> BC 1 | K161: ='01-A Reg Prod Nuev'!Q163 -> E | L161: ='01-A Reg Prod Nuev'!AM163 -> Bod Tras
A162: ='01-A Reg Prod Nuev'!A164 -> 02020025 | B162: =CONCATENATE('01-A Reg Prod Nuev'!B164," ",'01-A Reg Prod Nuev'!D164," ",H162," ",'01-A Reg Prod Nuev'!K164) -> Coca cola Lat Lata 354 ml | C162: ='01-A Reg Prod Nuev'!T164 -> 4 | H162: =IF('01-A Reg Prod Nuev'!J164=0,'01-A Reg Prod Nuev'!H164,'01-A Reg Prod Nuev'!J164) -> 354 | I162: ='01-A Reg Prod Nuev'!AO164 -> Coca | J162: ='01-A Reg Prod Nuev'!P164 -> BC 2 | K162: ='01-A Reg Prod Nuev'!Q164 -> B | L162: ='01-A Reg Prod Nuev'!AM164 -> Bod Tras
A163: ='01-A Reg Prod Nuev'!A165 -> 02020030 | B163: =CONCATENATE('01-A Reg Prod Nuev'!B165," ",'01-A Reg Prod Nuev'!D165," ",H163," ",'01-A Reg Prod Nuev'!K165) -> Coca cola Pls Plástico 600 ml | C163: ='01-A Reg Prod Nuev'!T165 -> 4 | H163: =IF('01-A Reg Prod Nuev'!J165=0,'01-A Reg Prod Nuev'!H165,'01-A Reg Prod Nuev'!J165) -> 600 | I163: ='01-A Reg Prod Nuev'!AO165 -> Coca | J163: ='01-A Reg Prod Nuev'!P165 -> BC 2 | K163: ='01-A Reg Prod Nuev'!Q165 -> B | L163: ='01-A Reg Prod Nuev'!AM165 -> Bod Tras
A164: ='01-A Reg Prod Nuev'!A166 -> 02030010 | B164: =CONCATENATE('01-A Reg Prod Nuev'!B166," ",'01-A Reg Prod Nuev'!D166," ",H164," ",'01-A Reg Prod Nuev'!K166) -> Coca cola Vid Vidrio 354 ml | C164: ='01-A Reg Prod Nuev'!T166 -> 3 | H164: =IF('01-A Reg Prod Nuev'!J166=0,'01-A Reg Prod Nuev'!H166,'01-A Reg Prod Nuev'!J166) -> 354 | I164: ='01-A Reg Prod Nuev'!AO166 -> Coca | J164: ='01-A Reg Prod Nuev'!P166 -> BC 2 | K164: ='01-A Reg Prod Nuev'!Q166 -> A | L164: ='01-A Reg Prod Nuev'!AM166 -> Bod Tras
A165: ='01-A Reg Prod Nuev'!A167 -> 02020040 | B165: =CONCATENATE('01-A Reg Prod Nuev'!B167," ",'01-A Reg Prod Nuev'!D167," ",H165," ",'01-A Reg Prod Nuev'!K167) -> Coca cola 3 litros des 3000 ml | C165: ='01-A Reg Prod Nuev'!T167 -> 0 | H165: =IF('01-A Reg Prod Nuev'!J167=0,'01-A Reg Prod Nuev'!H167,'01-A Reg Prod Nuev'!J167) -> 3000 | I165: ='01-A Reg Prod Nuev'!AO167 -> L San Ramon | J165: ='01-A Reg Prod Nuev'!P167 -> BC 2 | K165: ='01-A Reg Prod Nuev'!Q167 -> B | L165: ='01-A Reg Prod Nuev'!AM167 -> Bod Req
A166: ='01-A Reg Prod Nuev'!A168 -> 02020026 | B166: =CONCATENATE('01-A Reg Prod Nuev'!B168," ",'01-A Reg Prod Nuev'!D168," ",H166," ",'01-A Reg Prod Nuev'!K168) -> Coca cola Lat Light Lata 354 ml | C166: ='01-A Reg Prod Nuev'!T168 -> 4 | H166: =IF('01-A Reg Prod Nuev'!J168=0,'01-A Reg Prod Nuev'!H168,'01-A Reg Prod Nuev'!J168) -> 354 | I166: ='01-A Reg Prod Nuev'!AO168 -> Coca | J166: ='01-A Reg Prod Nuev'!P168 -> BC 2 | K166: ='01-A Reg Prod Nuev'!Q168 -> B | L166: ='01-A Reg Prod Nuev'!AM168 -> Bod Tras
A167: ='01-A Reg Prod Nuev'!A169 -> 02020031 | B167: =CONCATENATE('01-A Reg Prod Nuev'!B169," ",'01-A Reg Prod Nuev'!D169," ",H167," ",'01-A Reg Prod Nuev'!K169) -> Coca cola Pls Lght Plástico light 600 ml | C167: ='01-A Reg Prod Nuev'!T169 -> 0 | H167: =IF('01-A Reg Prod Nuev'!J169=0,'01-A Reg Prod Nuev'!H169,'01-A Reg Prod Nuev'!J169) -> 600 | I167: ='01-A Reg Prod Nuev'!AO169 -> Coca | J167: ='01-A Reg Prod Nuev'!P169 -> BC 2 | K167: ='01-A Reg Prod Nuev'!Q169 -> B | L167: ='01-A Reg Prod Nuev'!AM169 -> Bod Tras
A168: ='01-A Reg Prod Nuev'!A170 -> 02020032 | B168: =CONCATENATE('01-A Reg Prod Nuev'!B170," ",'01-A Reg Prod Nuev'!D170," ",H168," ",'01-A Reg Prod Nuev'!K170) -> Coca cola mini lata 237 ml | C168: ='01-A Reg Prod Nuev'!T170 -> 45 | H168: =IF('01-A Reg Prod Nuev'!J170=0,'01-A Reg Prod Nuev'!H170,'01-A Reg Prod Nuev'!J170) -> 237 | I168: ='01-A Reg Prod Nuev'!AO170 -> L San Ramon | J168: ='01-A Reg Prod Nuev'!P170 -> BC 2 | K168: ='01-A Reg Prod Nuev'!Q170 -> A | L168: ='01-A Reg Prod Nuev'!AM170 -> Req-Tras
A169: ='01-A Reg Prod Nuev'!A171 -> 9 | B169: =CONCATENATE('01-A Reg Prod Nuev'!B171," ",'01-A Reg Prod Nuev'!D171," ",H169," ",'01-A Reg Prod Nuev'!K171) -> Salsa napolitana 1 kg | C169: ='01-A Reg Prod Nuev'!T171 -> 0 | H169: =IF('01-A Reg Prod Nuev'!J171=0,'01-A Reg Prod Nuev'!H171,'01-A Reg Prod Nuev'!J171) -> 1 | I169: ='01-A Reg Prod Nuev'!AO171 -> HAS | J169: ='01-A Reg Prod Nuev'!P171 -> 0 | K169: ='01-A Reg Prod Nuev'!Q171 -> 0 | L169: ='01-A Reg Prod Nuev'!AM171 -> Preparac
A170: ='01-A Reg Prod Nuev'!A172 -> 0104011 | B170: =CONCATENATE('01-A Reg Prod Nuev'!B172," ",'01-A Reg Prod Nuev'!D172," ",H170," ",'01-A Reg Prod Nuev'!K172) -> Coco rayado 2 kg | C170: ='01-A Reg Prod Nuev'!T172 -> 2 | H170: =IF('01-A Reg Prod Nuev'!J172=0,'01-A Reg Prod Nuev'!H172,'01-A Reg Prod Nuev'!J172) -> 2 | I170: ='01-A Reg Prod Nuev'!AO172 -> Belca | J170: ='01-A Reg Prod Nuev'!P172 -> BC 1 | K170: ='01-A Reg Prod Nuev'!Q172 -> E | L170: ='01-A Reg Prod Nuev'!AM172 -> Bod Tras
A171: ='01-A Reg Prod Nuev'!A173 -> 0113068 | B171: =CONCATENATE('01-A Reg Prod Nuev'!B173," ",'01-A Reg Prod Nuev'!D173," ",H171," ",'01-A Reg Prod Nuev'!K173) -> Cocoa dulce 200 u | C171: ='01-A Reg Prod Nuev'!T173 -> 12 | H171: =IF('01-A Reg Prod Nuev'!J173=0,'01-A Reg Prod Nuev'!H173,'01-A Reg Prod Nuev'!J173) -> 200 | I171: ='01-A Reg Prod Nuev'!AO173 -> Ciamesa | J171: ='01-A Reg Prod Nuev'!P173 -> BC 1 | K171: ='01-A Reg Prod Nuev'!Q173 -> D | L171: ='01-A Reg Prod Nuev'!AM173 -> Bod Req
A172: ='01-A Reg Prod Nuev'!A174 -> 02180001 | B172: =CONCATENATE('01-A Reg Prod Nuev'!B174," ",'01-A Reg Prod Nuev'!D174," ",H172," ",'01-A Reg Prod Nuev'!K174) -> Cocoa dulce 1 kg | C172: ='01-A Reg Prod Nuev'!T174 -> 12 | H172: =IF('01-A Reg Prod Nuev'!J174=0,'01-A Reg Prod Nuev'!H174,'01-A Reg Prod Nuev'!J174) -> 1 | I172: ='01-A Reg Prod Nuev'!AO174 -> Coop Naranj | J172: ='01-A Reg Prod Nuev'!P174 -> BC 1 | K172: ='01-A Reg Prod Nuev'!Q174 -> A | L172: ='01-A Reg Prod Nuev'!AM174 -> Bod Tras
A173: ='01-A Reg Prod Nuev'!A175 -> 02180012 | B173: =CONCATENATE('01-A Reg Prod Nuev'!B175," ",'01-A Reg Prod Nuev'!D175," ",H173," ",'01-A Reg Prod Nuev'!K175) -> Cocoa institucional amaretto 400 g | C173: ='01-A Reg Prod Nuev'!T175 -> 0 | H173: =IF('01-A Reg Prod Nuev'!J175=0,'01-A Reg Prod Nuev'!H175,'01-A Reg Prod Nuev'!J175) -> 400 | I173: ='01-A Reg Prod Nuev'!AO175 -> 0 | J173: ='01-A Reg Prod Nuev'!P175 -> BC 1 | K173: ='01-A Reg Prod Nuev'!Q175 -> E | L173: ='01-A Reg Prod Nuev'!AM175 -> Obsoleto
A174: ='01-A Reg Prod Nuev'!A176 -> 02180013 | B174: =CONCATENATE('01-A Reg Prod Nuev'!B176," ",'01-A Reg Prod Nuev'!D176," ",H174," ",'01-A Reg Prod Nuev'!K176) -> Cocoa institucional canela 400 g | C174: ='01-A Reg Prod Nuev'!T176 -> 0 | H174: =IF('01-A Reg Prod Nuev'!J176=0,'01-A Reg Prod Nuev'!H176,'01-A Reg Prod Nuev'!J176) -> 400 | I174: ='01-A Reg Prod Nuev'!AO176 -> 0 | J174: ='01-A Reg Prod Nuev'!P176 -> BC 1 | K174: ='01-A Reg Prod Nuev'!Q176 -> E | L174: ='01-A Reg Prod Nuev'!AM176 -> Obsoleto
A175: ='01-A Reg Prod Nuev'!A177 -> 02180014 | B175: =CONCATENATE('01-A Reg Prod Nuev'!B177," ",'01-A Reg Prod Nuev'!D177," ",H175," ",'01-A Reg Prod Nuev'!K177) -> Cocoa institucional caramelo 400 g | C175: ='01-A Reg Prod Nuev'!T177 -> 0 | H175: =IF('01-A Reg Prod Nuev'!J177=0,'01-A Reg Prod Nuev'!H177,'01-A Reg Prod Nuev'!J177) -> 400 | I175: ='01-A Reg Prod Nuev'!AO177 -> 0 | J175: ='01-A Reg Prod Nuev'!P177 -> BC 1 | K175: ='01-A Reg Prod Nuev'!Q177 -> E | L175: ='01-A Reg Prod Nuev'!AM177 -> Obsoleto
A176: ='01-A Reg Prod Nuev'!A178 -> 02180015 | B176: =CONCATENATE('01-A Reg Prod Nuev'!B178," ",'01-A Reg Prod Nuev'!D178," ",H176," ",'01-A Reg Prod Nuev'!K178) -> Cocoa institucional menta 400 g | C176: ='01-A Reg Prod Nuev'!T178 -> 0 | H176: =IF('01-A Reg Prod Nuev'!J178=0,'01-A Reg Prod Nuev'!H178,'01-A Reg Prod Nuev'!J178) -> 400 | I176: ='01-A Reg Prod Nuev'!AO178 -> 0 | J176: ='01-A Reg Prod Nuev'!P178 -> BC 1 | K176: ='01-A Reg Prod Nuev'!Q178 -> E | L176: ='01-A Reg Prod Nuev'!AM178 -> Obsoleto
A177: ='01-A Reg Prod Nuev'!A179 -> 02180016 | B177: =CONCATENATE('01-A Reg Prod Nuev'!B179," ",'01-A Reg Prod Nuev'!D179," ",H177," ",'01-A Reg Prod Nuev'!K179) -> Cocoa institucional tradicional 400 g | C177: ='01-A Reg Prod Nuev'!T179 -> 0 | H177: =IF('01-A Reg Prod Nuev'!J179=0,'01-A Reg Prod Nuev'!H179,'01-A Reg Prod Nuev'!J179) -> 400 | I177: ='01-A Reg Prod Nuev'!AO179 -> 0 | J177: ='01-A Reg Prod Nuev'!P179 -> BC 1 | K177: ='01-A Reg Prod Nuev'!Q179 -> E | L177: ='01-A Reg Prod Nuev'!AM179 -> Obsoleto
A178: ='01-A Reg Prod Nuev'!A180 -> 02090001 | B178: =CONCATENATE('01-A Reg Prod Nuev'!B180," ",'01-A Reg Prod Nuev'!D180," ",H178," ",'01-A Reg Prod Nuev'!K180) -> Cognac bisquit 750 ml | C178: ='01-A Reg Prod Nuev'!T180 -> 1 | H178: =IF('01-A Reg Prod Nuev'!J180=0,'01-A Reg Prod Nuev'!H180,'01-A Reg Prod Nuev'!J180) -> 750 | I178: ='01-A Reg Prod Nuev'!AO180 -> L San Ramon | J178: ='01-A Reg Prod Nuev'!P180 -> BC 1 | K178: ='01-A Reg Prod Nuev'!Q180 -> C | L178: ='01-A Reg Prod Nuev'!AM180 -> Bod Tras
A179: ='01-A Reg Prod Nuev'!A181 -> 02090002 | B179: =CONCATENATE('01-A Reg Prod Nuev'!B181," ",'01-A Reg Prod Nuev'!D181," ",H179," ",'01-A Reg Prod Nuev'!K181) -> Cognac courvoisier vs 700 ml | C179: ='01-A Reg Prod Nuev'!T181 -> 1 | H179: =IF('01-A Reg Prod Nuev'!J181=0,'01-A Reg Prod Nuev'!H181,'01-A Reg Prod Nuev'!J181) -> 700 | I179: ='01-A Reg Prod Nuev'!AO181 -> L San Ramon | J179: ='01-A Reg Prod Nuev'!P181 -> BC 1 | K179: ='01-A Reg Prod Nuev'!Q181 -> C | L179: ='01-A Reg Prod Nuev'!AM181 -> Bod Tras
A180: ='01-A Reg Prod Nuev'!A182 -> 02090003 | B180: =CONCATENATE('01-A Reg Prod Nuev'!B182," ",'01-A Reg Prod Nuev'!D182," ",H180," ",'01-A Reg Prod Nuev'!K182) -> Cognac hennessy v.s.o.p. bot Destilados 750 ml | C180: ='01-A Reg Prod Nuev'!T182 -> 1 | H180: =IF('01-A Reg Prod Nuev'!J182=0,'01-A Reg Prod Nuev'!H182,'01-A Reg Prod Nuev'!J182) -> 750 | I180: ='01-A Reg Prod Nuev'!AO182 -> V/E Florida | J180: ='01-A Reg Prod Nuev'!P182 -> BC 1 | K180: ='01-A Reg Prod Nuev'!Q182 -> C | L180: ='01-A Reg Prod Nuev'!AM182 -> Bod Tras
A181: ='01-A Reg Prod Nuev'!A183 -> 7013008 | B181: =CONCATENATE('01-A Reg Prod Nuev'!B183," ",'01-A Reg Prod Nuev'!D183," ",H181," ",'01-A Reg Prod Nuev'!K183) -> Salsa pesto 1000 ml | C181: ='01-A Reg Prod Nuev'!T183 -> 0 | H181: =IF('01-A Reg Prod Nuev'!J183=0,'01-A Reg Prod Nuev'!H183,'01-A Reg Prod Nuev'!J183) -> 1000 | I181: ='01-A Reg Prod Nuev'!AO183 -> HAS | J181: ='01-A Reg Prod Nuev'!P183 -> 0 | K181: ='01-A Reg Prod Nuev'!Q183 -> 0 | L181: ='01-A Reg Prod Nuev'!AM183 -> Preparac
A182: ='01-A Reg Prod Nuev'!A184 -> 0104055 | B182: =CONCATENATE('01-A Reg Prod Nuev'!B184," ",'01-A Reg Prod Nuev'!D184," ",H182," ",'01-A Reg Prod Nuev'!K184) -> Colorante amarillo 50 ml | C182: ='01-A Reg Prod Nuev'!T184 -> 2 | H182: =IF('01-A Reg Prod Nuev'!J184=0,'01-A Reg Prod Nuev'!H184,'01-A Reg Prod Nuev'!J184) -> 50 | I182: ='01-A Reg Prod Nuev'!AO184 -> Belca | J182: ='01-A Reg Prod Nuev'!P184 -> BC 1 | K182: ='01-A Reg Prod Nuev'!Q184 -> D | L182: ='01-A Reg Prod Nuev'!AM184 -> Bod Tras
A183: ='01-A Reg Prod Nuev'!A185 -> 0104028 | B183: =CONCATENATE('01-A Reg Prod Nuev'!B185," ",'01-A Reg Prod Nuev'!D185," ",H183," ",'01-A Reg Prod Nuev'!K185) -> Colorante azul 50 ml | C183: ='01-A Reg Prod Nuev'!T185 -> 2 | H183: =IF('01-A Reg Prod Nuev'!J185=0,'01-A Reg Prod Nuev'!H185,'01-A Reg Prod Nuev'!J185) -> 50 | I183: ='01-A Reg Prod Nuev'!AO185 -> Belca | J183: ='01-A Reg Prod Nuev'!P185 -> BC 1 | K183: ='01-A Reg Prod Nuev'!Q185 -> D | L183: ='01-A Reg Prod Nuev'!AM185 -> Bod Tras
A184: ='01-A Reg Prod Nuev'!A186 -> 0104029 | B184: =CONCATENATE('01-A Reg Prod Nuev'!B186," ",'01-A Reg Prod Nuev'!D186," ",H184," ",'01-A Reg Prod Nuev'!K186) -> Colorante negro 66 ml | C184: ='01-A Reg Prod Nuev'!T186 -> 0 | H184: =IF('01-A Reg Prod Nuev'!J186=0,'01-A Reg Prod Nuev'!H186,'01-A Reg Prod Nuev'!J186) -> 66 | I184: ='01-A Reg Prod Nuev'!AO186 -> 0 | J184: ='01-A Reg Prod Nuev'!P186 -> 0 | K184: ='01-A Reg Prod Nuev'!Q186 -> 0 | L184: ='01-A Reg Prod Nuev'!AM186 -> Obsoleto
A185: ='01-A Reg Prod Nuev'!A187 -> 0104027 | B185: =CONCATENATE('01-A Reg Prod Nuev'!B187," ",'01-A Reg Prod Nuev'!D187," ",H185," ",'01-A Reg Prod Nuev'!K187) -> Colorante rojo 50 ml | C185: ='01-A Reg Prod Nuev'!T187 -> 2 | H185: =IF('01-A Reg Prod Nuev'!J187=0,'01-A Reg Prod Nuev'!H187,'01-A Reg Prod Nuev'!J187) -> 50 | I185: ='01-A Reg Prod Nuev'!AO187 -> Belca | J185: ='01-A Reg Prod Nuev'!P187 -> BC 1 | K185: ='01-A Reg Prod Nuev'!Q187 -> D | L185: ='01-A Reg Prod Nuev'!AM187 -> Bod Tras
A186: ='01-A Reg Prod Nuev'!A188 -> 0104057 | B186: =CONCATENATE('01-A Reg Prod Nuev'!B188," ",'01-A Reg Prod Nuev'!D188," ",H186," ",'01-A Reg Prod Nuev'!K188) -> Colorante verde 50 ml | C186: ='01-A Reg Prod Nuev'!T188 -> 2 | H186: =IF('01-A Reg Prod Nuev'!J188=0,'01-A Reg Prod Nuev'!H188,'01-A Reg Prod Nuev'!J188) -> 50 | I186: ='01-A Reg Prod Nuev'!AO188 -> Belca | J186: ='01-A Reg Prod Nuev'!P188 -> BC 1 | K186: ='01-A Reg Prod Nuev'!Q188 -> D | L186: ='01-A Reg Prod Nuev'!AM188 -> Bod Tras
A187: ='01-A Reg Prod Nuev'!A189 -> 0105021 | B187: =CONCATENATE('01-A Reg Prod Nuev'!B189," ",'01-A Reg Prod Nuev'!D189," ",H187," ",'01-A Reg Prod Nuev'!K189) -> Condi hondashi ajinomoto 1 kg | C187: ='01-A Reg Prod Nuev'!T189 -> 2 | H187: =IF('01-A Reg Prod Nuev'!J189=0,'01-A Reg Prod Nuev'!H189,'01-A Reg Prod Nuev'!J189) -> 1 | I187: ='01-A Reg Prod Nuev'!AO189 -> Isleña | J187: ='01-A Reg Prod Nuev'!P189 -> BC 1 | K187: ='01-A Reg Prod Nuev'!Q189 -> D | L187: ='01-A Reg Prod Nuev'!AM189 -> Bod Tras
A188: ='01-A Reg Prod Nuev'!A190 -> 02140013 | B188: =CONCATENATE('01-A Reg Prod Nuev'!B190," ",'01-A Reg Prod Nuev'!D190," ",H188," ",'01-A Reg Prod Nuev'!K190) -> Cono Sur Bicicleta, Chile Carmenere 750 ml | C188: ='01-A Reg Prod Nuev'!T190 -> 8 | H188: =IF('01-A Reg Prod Nuev'!J190=0,'01-A Reg Prod Nuev'!H190,'01-A Reg Prod Nuev'!J190) -> 750 | I188: ='01-A Reg Prod Nuev'!AO190 -> V/Alpiste | J188: ='01-A Reg Prod Nuev'!P190 -> BC 1 | K188: ='01-A Reg Prod Nuev'!Q190 -> C | L188: ='01-A Reg Prod Nuev'!AM190 -> Bod Tras
A189: ='01-A Reg Prod Nuev'!A191 -> 02150014 | B189: =CONCATENATE('01-A Reg Prod Nuev'!B191," ",'01-A Reg Prod Nuev'!D191," ",H189," ",'01-A Reg Prod Nuev'!K191) -> Cono Sur Bicicleta, Chile Chardonnay 750 ml | C189: ='01-A Reg Prod Nuev'!T191 -> 8 | H189: =IF('01-A Reg Prod Nuev'!J191=0,'01-A Reg Prod Nuev'!H191,'01-A Reg Prod Nuev'!J191) -> 750 | I189: ='01-A Reg Prod Nuev'!AO191 -> V/Alpiste | J189: ='01-A Reg Prod Nuev'!P191 -> BC 1 | K189: ='01-A Reg Prod Nuev'!Q191 -> C | L189: ='01-A Reg Prod Nuev'!AM191 -> Bod Tras
A190: ='01-A Reg Prod Nuev'!A192 -> 0105017 | B190: =CONCATENATE('01-A Reg Prod Nuev'!B192," ",'01-A Reg Prod Nuev'!D192," ",H190," ",'01-A Reg Prod Nuev'!K192) -> Consome mariscos 1 kg | C190: ='01-A Reg Prod Nuev'!T192 -> 2 | H190: =IF('01-A Reg Prod Nuev'!J192=0,'01-A Reg Prod Nuev'!H192,'01-A Reg Prod Nuev'!J192) -> 1 | I190: ='01-A Reg Prod Nuev'!AO192 -> Oceanic | J190: ='01-A Reg Prod Nuev'!P192 -> BC 1 | K190: ='01-A Reg Prod Nuev'!Q192 -> A | L190: ='01-A Reg Prod Nuev'!AM192 -> Bod Tras
A191: ='01-A Reg Prod Nuev'!A193 -> 0113004 | B191: =CONCATENATE('01-A Reg Prod Nuev'!B193," ",'01-A Reg Prod Nuev'!D193," ",H191," ",'01-A Reg Prod Nuev'!K193) -> Consome pollo 12 g | C191: ='01-A Reg Prod Nuev'!T193 -> 18 | H191: =IF('01-A Reg Prod Nuev'!J193=0,'01-A Reg Prod Nuev'!H193,'01-A Reg Prod Nuev'!J193) -> 12 | I191: ='01-A Reg Prod Nuev'!AO193 -> Ciamesa | J191: ='01-A Reg Prod Nuev'!P193 -> BC 1 | K191: ='01-A Reg Prod Nuev'!Q193 -> D | L191: ='01-A Reg Prod Nuev'!AM193 -> Bod Tras
A192: ='01-A Reg Prod Nuev'!A194 -> 0105007 | B192: =CONCATENATE('01-A Reg Prod Nuev'!B194," ",'01-A Reg Prod Nuev'!D194," ",H192," ",'01-A Reg Prod Nuev'!K194) -> Consome res kl 1 kg | C192: ='01-A Reg Prod Nuev'!T194 -> 0 | H192: =IF('01-A Reg Prod Nuev'!J194=0,'01-A Reg Prod Nuev'!H194,'01-A Reg Prod Nuev'!J194) -> 1 | I192: ='01-A Reg Prod Nuev'!AO194 -> 0 | J192: ='01-A Reg Prod Nuev'!P194 -> BC 1 | K192: ='01-A Reg Prod Nuev'!Q194 -> A | L192: ='01-A Reg Prod Nuev'!AM194 -> Obsoleto
A193: ='01-A Reg Prod Nuev'!A195 -> 04030022 | B193: =CONCATENATE('01-A Reg Prod Nuev'!B195," ",'01-A Reg Prod Nuev'!D195," ",H193," ",'01-A Reg Prod Nuev'!K195) -> Contenedor 6*6 linea verd 500 u | C193: ='01-A Reg Prod Nuev'!T195 -> 2 | H193: =IF('01-A Reg Prod Nuev'!J195=0,'01-A Reg Prod Nuev'!H195,'01-A Reg Prod Nuev'!J195) -> 500 | I193: ='01-A Reg Prod Nuev'!AO195 -> Mayca | J193: ='01-A Reg Prod Nuev'!P195 -> BC 2 | K193: ='01-A Reg Prod Nuev'!Q195 -> B | L193: ='01-A Reg Prod Nuev'!AM195 -> Bod Req
A194: ='01-A Reg Prod Nuev'!A196 -> 04030001 | B194: =CONCATENATE('01-A Reg Prod Nuev'!B196," ",'01-A Reg Prod Nuev'!D196," ",H194," ",'01-A Reg Prod Nuev'!K196) -> Contenedor 9*9 linea verd 200 u | C194: ='01-A Reg Prod Nuev'!T196 -> 2 | H194: =IF('01-A Reg Prod Nuev'!J196=0,'01-A Reg Prod Nuev'!H196,'01-A Reg Prod Nuev'!J196) -> 200 | I194: ='01-A Reg Prod Nuev'!AO196 -> Mayca | J194: ='01-A Reg Prod Nuev'!P196 -> BC 2 | K194: ='01-A Reg Prod Nuev'!Q196 -> B | L194: ='01-A Reg Prod Nuev'!AM196 -> Bod Req
A195: ='01-A Reg Prod Nuev'!A197 -> 0101083 | B195: =CONCATENATE('01-A Reg Prod Nuev'!B197," ",'01-A Reg Prod Nuev'!D197," ",H195," ",'01-A Reg Prod Nuev'!K197) -> Corazon de Alcachofas 390 g | C195: ='01-A Reg Prod Nuev'!T197 -> 12 | H195: =IF('01-A Reg Prod Nuev'!J197=0,'01-A Reg Prod Nuev'!H197,'01-A Reg Prod Nuev'!J197) -> 390 | I195: ='01-A Reg Prod Nuev'!AO197 -> Mayca | J195: ='01-A Reg Prod Nuev'!P197 -> BC 1 | K195: ='01-A Reg Prod Nuev'!Q197 -> A | L195: ='01-A Reg Prod Nuev'!AM197 -> Bod Tras
A196: ='01-A Reg Prod Nuev'!A198 -> 40 | B196: =CONCATENATE('01-A Reg Prod Nuev'!B198," ",'01-A Reg Prod Nuev'!D198," ",H196," ",'01-A Reg Prod Nuev'!K198) -> Salsa Tempura 1 u | C196: ='01-A Reg Prod Nuev'!T198 -> 0 | H196: =IF('01-A Reg Prod Nuev'!J198=0,'01-A Reg Prod Nuev'!H198,'01-A Reg Prod Nuev'!J198) -> 1 | I196: ='01-A Reg Prod Nuev'!AO198 -> HAS | J196: ='01-A Reg Prod Nuev'!P198 -> 0 | K196: ='01-A Reg Prod Nuev'!Q198 -> 0 | L196: ='01-A Reg Prod Nuev'!AM198 -> 0
A197: ='01-A Reg Prod Nuev'!A199 -> 0104069 | B197: =CONCATENATE('01-A Reg Prod Nuev'!B199," ",'01-A Reg Prod Nuev'!D199," ",H197," ",'01-A Reg Prod Nuev'!K199) -> Cobertura briilante confiteria 5 kg | C197: ='01-A Reg Prod Nuev'!T199 -> 1 | H197: =IF('01-A Reg Prod Nuev'!J199=0,'01-A Reg Prod Nuev'!H199,'01-A Reg Prod Nuev'!J199) -> 5 | I197: ='01-A Reg Prod Nuev'!AO199 -> Belca | J197: ='01-A Reg Prod Nuev'!P199 -> BC 1 | K197: ='01-A Reg Prod Nuev'!Q199 -> E | L197: ='01-A Reg Prod Nuev'!AM199 -> Bod Tras
A198: ='01-A Reg Prod Nuev'!A200 -> 0101044 | B198: =CONCATENATE('01-A Reg Prod Nuev'!B200," ",'01-A Reg Prod Nuev'!D200," ",H198," ",'01-A Reg Prod Nuev'!K200) -> Crema hongos 65 g | C198: ='01-A Reg Prod Nuev'!T200 -> 4 | H198: =IF('01-A Reg Prod Nuev'!J200=0,'01-A Reg Prod Nuev'!H200,'01-A Reg Prod Nuev'!J200) -> 65 | I198: ='01-A Reg Prod Nuev'!AO200 -> Ciamesa | J198: ='01-A Reg Prod Nuev'!P200 -> BC 1 | K198: ='01-A Reg Prod Nuev'!Q200 -> D | L198: ='01-A Reg Prod Nuev'!AM200 -> Bod Tras
A199: ='01-A Reg Prod Nuev'!A201 -> 0106024 | B199: =CONCATENATE('01-A Reg Prod Nuev'!B201," ",'01-A Reg Prod Nuev'!D201," ",H199," ",'01-A Reg Prod Nuev'!K201) -> Crema / cafe individual 5grs 5 g | C199: ='01-A Reg Prod Nuev'!T201 -> 2 | H199: =IF('01-A Reg Prod Nuev'!J201=0,'01-A Reg Prod Nuev'!H201,'01-A Reg Prod Nuev'!J201) -> 5 | I199: ='01-A Reg Prod Nuev'!AO201 -> Belca | J199: ='01-A Reg Prod Nuev'!P201 -> BC 1 | K199: ='01-A Reg Prod Nuev'!Q201 -> D | L199: ='01-A Reg Prod Nuev'!AM201 -> Bod Req
A200: ='01-A Reg Prod Nuev'!A202 -> 02100020 | B200: =CONCATENATE('01-A Reg Prod Nuev'!B202," ",'01-A Reg Prod Nuev'!D202," ",H200," ",'01-A Reg Prod Nuev'!K202) -> Crema baileys 20 ctls. 200 ml | C200: ='01-A Reg Prod Nuev'!T202 -> 18 | H200: =IF('01-A Reg Prod Nuev'!J202=0,'01-A Reg Prod Nuev'!H202,'01-A Reg Prod Nuev'!J202) -> 200 | I200: ='01-A Reg Prod Nuev'!AO202 -> L San Ramon | J200: ='01-A Reg Prod Nuev'!P202 -> BC 1 | K200: ='01-A Reg Prod Nuev'!Q202 -> C | L200: ='01-A Reg Prod Nuev'!AM202 -> Bod Req
... 362 more rows

Sheet 01-A Reg Prod Nuev
A1: 1 | B1: 2 | C1: 3 | D1: 4 | E1: 5 | F1: 6 | G1: 7 | H1: 8 | I1: 9 | J1: 10 | K1: 11 | L1: 12 | M1: 13 | N1: 14 | O1: 15 | P1: 16 | Q1: 17 | R1: 18 | S1: 19 | T1: 20 | U1: 21 | V1: 22 | W1: 23 | X1: 24 | Y1: 25 | Z1: 26 | AA1: 27 | AB1: 28 | AC1: 29 | AD1: 30 | AE1: 31 | AF1: 32 | AG1: 33 | AH1: 34 | AI1: 35 | AJ1: 36 | AK1: 37 | AL1: 38 | AM1: 39 | AN1: 40 | AO1: 41 | AP1: 42
F2: Cantidad / Empaque | O2: Ubicación fisica | T2: Stock | V2: 22 | W2: 14 | X2: 17 | Y2: 15 | Z2: 16 | AA2: 21 | AB2: 25 | AC2: 20 | AD2: 19 | AE2: 23 | AF2: 24
A3: Codigo | B3: Producto | C3: Frut / Verd | D3: Caracteristica de Diferenciación | E3: Marca | F3: Cat | H3: Prect | J3: Cat de emb | K3: Un | L3: Total | N3: Unidad Descarga | O3: Origen | P3: Sub Ubic | Q3: Sub Ubic | R3: Estante | S3: Fila | T3: Stock | U3: Cat Fila | V3: Bodeg | W3: Cocina | X3: Ti-Cain | Y3: Barril | Z3: Húmedo | AA3: Tienda | AB3: Habitaci | AC3: Sushi | AD3: Italia | AE3: Lavand | AF3: Minibar | AG3: F Castro | AH3: F Miranda | AI3: Doaciones | AM3: Origen | AN3: Turno Pedido | AO3: Proveedor | AP3: Precio | AR3: Cat Mat Prima Compra | AS3: Cat Mat Prima Utilisable | AT3: Fac Mat Prima Utilisable | AU3: Minimo | AV3: Maximo | AW3: Multiplo
A4: 02110005 | B4: Absolut 1/4 botella | C4: Bebidas | F4: 1 | G4: =IF(H4>0.1,"*","") -> * | H4: 200 | I4: =IF(J4>0.1,"*","") ->  | K4: ml | L4: =IF(J4>0,F4*H4*J4,IF(H4>0,F4*H4,F4)) -> 200 | M4: =K4 -> ml | N4: 200 | O4: =IF(K4="u","porc",IF(K4="g","g",IF(K4="gal","g/ml",IF(K4="kg","g",IF(K4="l","ml",IF(K4="lb","g",IF(K4="ml","ml",IF(K4="oz","g/ml",IF(K4="paq","paq",Error))))))))) -> ml | P4: BC 1 | Q4: C | T4: 18 | U4: 9 | V4: * | AF4: * | AM4: Bod Req | AN4: =IF(AM4="preparac",0,IF(A4=0,"-",IF(AM4="obsoleto","-",VLOOKUP(AO4,'B Datos 01'!D$2:F$300,3,FALSE)))) -> Sem par-imp | AO4: ='01-C Cotizar'!G4 -> L San Ramon | AP4: ='02-A Facturar'!BG6 -> 2960.172228 | AQ4: =IF(J4=0,F4,L4/J4) -> 1 | AR4: 200 | AS4: 200 | AT4: =IF(A4=0,"-",IF(AR4>0,(AS4/AR4),"Can mat Utilizar")) -> 1 | AU4: 9 | AV4: 9 | AW4: 9 | CX4: ='01-A Reg Prod Nuev'!AN25 -> -
A5: 02110003 | B5: Absolut botella | C5: Bebidas | F5: 1 | G5: * | H5: 750 | K5: ml | L5: 750 | M5: ml | N5: 750 | O5: =IF(K5="u","porc",IF(K5="g","g",IF(K5="gal","g/ml",IF(K5="kg","g",IF(K5="l","ml",IF(K5="lb","g",IF(K5="ml","ml",IF(K5="oz","g/ml",IF(K5="paq","paq",Error))))))))) -> ml | P5: BC 1 | Q5: C | T5: 4 | U5: 1 | V5: * | X5: * | Y5: * | Z5: * | AM5: Bod Tras | AN5: =IF(AM5="preparac",0,IF(A5=0,"-",IF(AM5="obsoleto","-",VLOOKUP(AO5,'B Datos 01'!D$2:F$300,3,FALSE)))) -> Sem par-imp | AO5: ='01-C Cotizar'!G5 -> L San Ramon | AP5: ='02-A Facturar'!BG7 -> 10130.82719 | AQ5: 1 | AR5: 750 | AS5: 750 | AT5: 1 | AU5: 1 | AV5: 2 | AW5: 1
A6: 1 | B6: Aceite / antorchas | C6: Abarrotes | F6: 1 | G6: * | H6: 3.78 | K6: l | L6: 3.78 | M6: l | N6: 3785 | O6: =IF(K6="u","porc",IF(K6="g","g",IF(K6="gal","g/ml",IF(K6="kg","g",IF(K6="l","ml",IF(K6="lb","g",IF(K6="ml","ml",IF(K6="oz","g/ml",IF(K6="paq","paq",Error))))))))) -> ml | P6: BC 4 | Q6: A | U6: 1 | V6: * | AM6: Bod Req | AN6: =IF(AM6="preparac",0,IF(A6=0,"-",IF(AM6="obsoleto","-",VLOOKUP(AO6,'B Datos 01'!D$2:F$300,3,FALSE)))) -> Sem par-imp | AO6: ='01-C Cotizar'!G6 -> Belca | AP6: ='02-A Facturar'!BG8 -> 13075 | AQ6: 1 | AR6: 3785 | AS6: 3785 | AT6: 1 | AU6: 1 | AV6: 2 | AW6: 1
A7: 0105005 | B7: Aceite ajonjoli | C7: Abarrotes | F7: 1 | G7: * | H7: 12.5 | K7: oz | L7: 12.5 | M7: oz | N7: 354.25 | O7: =IF(K7="u","porc",IF(K7="g","g",IF(K7="gal","g/ml",IF(K7="kg","g",IF(K7="l","ml",IF(K7="lb","g",IF(K7="ml","ml",IF(K7="oz","g/ml",IF(K7="paq","paq",Error))))))))) -> g/ml | P7: BC 1 | Q7: A | T7: 4 | U7: 1 | V7: * | W7: * | AC7: * | AM7: Bod Tras | AN7: =IF(AM7="preparac",0,IF(A7=0,"-",IF(AM7="obsoleto","-",VLOOKUP(AO7,'B Datos 01'!D$2:F$300,3,FALSE)))) -> Sem par-imp | AO7: ='01-C Cotizar'!G7 -> Isleña | AP7: ='02-A Facturar'!BG9 -> 4366 | AQ7: 1 | AR7: 12.5 | AS7: 12.5 | AT7: 1 | AU7: 1 | AV7: 1 | AW7: 1
A8: 0101055 | B8: Aceite atun splash trocitos | C8: Abarrotes | F8: 1 | G8: * | H8: 1 | K8: kg | L8: 1 | M8: kg | N8: 1000 | O8: =IF(K8="u","porc",IF(K8="g","g",IF(K8="gal","g/ml",IF(K8="kg","g",IF(K8="l","ml",IF(K8="lb","g",IF(K8="ml","ml",IF(K8="oz","g/ml",IF(K8="paq","paq",Error))))))))) -> g | P8: BC 1 | Q8: A | T8: 9 | U8: 3 | V8: * | W8: * | AM8: Bod Tras | AN8: =IF(AM8="preparac",0,IF(A8=0,"-",IF(AM8="obsoleto","-",VLOOKUP(AO8,'B Datos 01'!D$2:F$300,3,FALSE)))) -> Sem par-imp | AO8: ='01-C Cotizar'!G8 -> Isleña | AP8: ='02-A Facturar'!BG10 -> 4571.44 | AQ8: 1 | AR8: 1000 | AS8: 1000 | AT8: 1 | AU8: 1 | AV8: 3 | AW8: 1
A9: 0105031 | B9: Aceite spray | C9: Abarrotes | F9: 1 | G9: * | H9: 17 | K9: oz | L9: 17 | M9: oz | N9: 623.48 | O9: =IF(K9="u","porc",IF(K9="g","g",IF(K9="gal","g/ml",IF(K9="kg","g",IF(K9="l","ml",IF(K9="lb","g",IF(K9="ml","ml",IF(K9="oz","g/ml",IF(K9="paq","paq",Error))))))))) -> g/ml | P9: BC 1 | Q9: B | T9: 4 | U9: 1 | V9: * | W9: * | AM9: Bod Tras | AN9: =IF(AM9="preparac",0,IF(A9=0,"-",IF(AM9="obsoleto","-",VLOOKUP(AO9,'B Datos 01'!D$2:F$300,3,FALSE)))) -> Sem par-imp | AO9: ='01-C Cotizar'!G9 -> Mayca | AP9: ='02-A Facturar'!BG11 -> 2136.91 | AQ9: 1 | AR9: 22 | AS9: 22 | AT9: 1 | AU9: 1 | AV9: 2 | AW9: 1
A10: 0105001 | B10: Aceite frituras | C10: Abarrotes | E10: D´orifit 5 | F10: 1 | G10: * | H10: 17 | K10: l | L10: 17 | M10: l | N10: 17000 | O10: =IF(K10="u","porc",IF(K10="g","g",IF(K10="gal","g/ml",IF(K10="kg","g",IF(K10="l","ml",IF(K10="lb","g",IF(K10="ml","ml",IF(K10="oz","g/ml",IF(K10="paq","paq",Error))))))))) -> ml | P10: BC 2 | Q10: B | T10: 8 | U10: 4 | V10: * | W10: * | AC10: * | AD10: * | AM10: Bod Tras | AN10: =IF(AM10="preparac",0,IF(A10=0,"-",IF(AM10="obsoleto","-",VLOOKUP(AO10,'B Datos 01'!D$2:F$300,3,FALSE)))) -> Sem par-imp | AO10: ='01-C Cotizar'!G10 -> Belca | AP10: ='02-A Facturar'!BG12 -> 12820.5 | AQ10: 1 | AR10: 17 | AS10: 17 | AT10: 1 | AU10: 1 | AV10: 2 | AW10: 1
A11: 0113011 | B11: Aceite girasol lt | C11: Abarrotes | F11: 1 | G11: * | H11: 1 | K11: l | L11: 1 | M11: l | N11: 1000 | O11: =IF(K11="u","porc",IF(K11="g","g",IF(K11="gal","g/ml",IF(K11="kg","g",IF(K11="l","ml",IF(K11="lb","g",IF(K11="ml","ml",IF(K11="oz","g/ml",IF(K11="paq","paq",Error))))))))) -> ml | P11: BC 1 | Q11: D | T11: 8 | U11: 4 | V11: * | AH11: * | AI11: * | AM11: Bod Tras | AN11: =IF(AM11="preparac",0,IF(A11=0,"-",IF(AM11="obsoleto","-",VLOOKUP(AO11,'B Datos 01'!D$2:F$300,3,FALSE)))) -> Sem Imp | AO11: ='01-C Cotizar'!G11 -> Ciamesa | AP11: ='02-A Facturar'!BG13 -> 1128 | AQ11: 1 | AR11: 1 | AS11: 1 | AT11: 1 | AU11: 1 | AV11: 4 | AW11: 1
A12: 0113012 | B12: Aceite girasol 2lt | C12: Abarrotes | F12: 1 | G12: * | H12: 2 | K12: l | L12: 2 | M12: l | N12: 2000 | O12: =IF(K12="u","porc",IF(K12="g","g",IF(K12="gal","g/ml",IF(K12="kg","g",IF(K12="l","ml",IF(K12="lb","g",IF(K12="ml","ml",IF(K12="oz","g/ml",IF(K12="paq","paq",Error))))))))) -> ml | P12: BC 1 | Q12: D | T12: 2 | U12: 1 | V12: * | AG12: * | AH12: * | AM12: Bod Tras | AN12: =IF(AM12="preparac",0,IF(A12=0,"-",IF(AM12="obsoleto","-",VLOOKUP(AO12,'B Datos 01'!D$2:F$300,3,FALSE)))) -> Sem Imp | AO12: ='01-C Cotizar'!G12 -> Ciamesa | AP12: ='02-A Facturar'!BG14 -> 2522 | AQ12: 1 | AR12: 2 | AS12: 2 | AT12: 1 | AU12: 1 | AV12: 2 | AW12: 1
A13: 0105002 | B13: Aceite oliva sansa | C13: Abarrotes | F13: 1 | G13: * | H13: 5 | K13: l | L13: 5 | M13: l | N13: 5000 | O13: =IF(K13="u","porc",IF(K13="g","g",IF(K13="gal","g/ml",IF(K13="kg","g",IF(K13="l","ml",IF(K13="lb","g",IF(K13="ml","ml",IF(K13="oz","g/ml",IF(K13="paq","paq",Error))))))))) -> ml | P13: BC 1 | Q13: B | T13: 6 | U13: 3 | V13: * | W13: * | AD13: * | AM13: Bod Tras | AN13: =IF(AM13="preparac",0,IF(A13=0,"-",IF(AM13="obsoleto","-",VLOOKUP(AO13,'B Datos 01'!D$2:F$300,3,FALSE)))) -> Sem par-imp | AO13: ='01-C Cotizar'!G13 -> Isleña | AP13: ='02-A Facturar'!BG15 -> 8500 | AQ13: 1 | AR13: 5 | AS13: 5 | AT13: 1 | AU13: 1 | AV13: 2 | AW13: 1
A14: 0405025 | B14: Aceite olivo extravirgen | C14: Abarrotes | F14: 1 | G14: * | H14: 5 | K14: l | L14: 5 | M14: l | N14: 5000 | O14: =IF(K14="u","porc",IF(K14="g","g",IF(K14="gal","g/ml",IF(K14="kg","g",IF(K14="l","ml",IF(K14="lb","g",IF(K14="ml","ml",IF(K14="oz","g/ml",IF(K14="paq","paq",Error))))))))) -> ml | P14: BC 1 | Q14: B | T14: 6 | U14: 3 | V14: * | X14: * | Y14: * | AM14: Bod Tras | AN14: =IF(AM14="preparac",0,IF(A14=0,"-",IF(AM14="obsoleto","-",VLOOKUP(AO14,'B Datos 01'!D$2:F$300,3,FALSE)))) -> Sem par-imp | AO14: ='01-C Cotizar'!G14 -> Isleña | AP14: ='02-A Facturar'!BG16 -> 15000 | AQ14: 1 | AR14: 5 | AS14: 5 | AT14: 1 | AU14: 1 | AV14: 1 | AW14: 1
A15: 0105004 | B15: Aciete RBD | C15: Abarrotes | E15: CAPULLO | F15: 1 | G15: * | H15: 17 | K15: l | L15: 17 | M15: l | N15: 17000 | O15: =IF(K15="u","porc",IF(K15="g","g",IF(K15="gal","g/ml",IF(K15="kg","g",IF(K15="l","ml",IF(K15="lb","g",IF(K15="ml","ml",IF(K15="oz","g/ml",IF(K15="paq","paq",Error))))))))) -> ml | P15: BC 2 | Q15: B | T15: 8 | U15: 4 | V15: * | W15: * | AC15: * | AD15: * | AM15: Bod Tras | AN15: =IF(AM15="preparac",0,IF(A15=0,"-",IF(AM15="obsoleto","-",VLOOKUP(AO15,'B Datos 01'!D$2:F$300,3,FALSE)))) -> Sem par-imp | AO15: ='01-C Cotizar'!G15 -> Belca | AP15: ='02-A Facturar'!BG17 -> 12820.5 | AQ15: 1 | AR15: 17 | AS15: 17 | AT15: 1 | AU15: 1 | AV15: 1 | AW15: 1
A16: 0101002 | B16: Aceitunas negras rebanadas | C16: Abarrotes | F16: 1 | G16: * | H16: 2.85 | K16: kg | L16: 2.85 | M16: kg | N16: 3780 | O16: =IF(K16="u","porc",IF(K16="g","g",IF(K16="gal","g/ml",IF(K16="kg","g",IF(K16="l","ml",IF(K16="lb","g",IF(K16="ml","ml",IF(K16="oz","g/ml",IF(K16="paq","paq",Error))))))))) -> g | P16: BC 1 | Q16: A | T16: 2 | U16: 1 | V16: * | W16: * | AD16: * | AM16: Bod Tras | AN16: =IF(AM16="preparac",0,IF(A16=0,"-",IF(AM16="obsoleto","-",VLOOKUP(AO16,'B Datos 01'!D$2:F$300,3,FALSE)))) -> Sem par-imp | AO16: ='01-C Cotizar'!G16 -> Oceanic | AP16: ='02-A Facturar'!BG18 -> 4300 | AQ16: 1 | AR16: 3.78 | AS16: 3.78 | AT16: 1 | AU16: 1 | AV16: 1 | AW16: 1
A17: 0101001 | B17: Aceitunas verdes rebanadas | C17: Abarrotes | F17: 1 | G17: * | H17: 3.78 | K17: kg | L17: 3.78 | M17: kg | N17: 3780 | O17: =IF(K17="u","porc",IF(K17="g","g",IF(K17="gal","g/ml",IF(K17="kg","g",IF(K17="l","ml",IF(K17="lb","g",IF(K17="ml","ml",IF(K17="oz","g/ml",IF(K17="paq","paq",Error))))))))) -> g | P17: BC 1 | Q17: A | T17: 2 | U17: 1 | V17: * | W17: * | AD17: * | AM17: Bod Tras | AN17: =IF(AM17="preparac",0,IF(A17=0,"-",IF(AM17="obsoleto","-",VLOOKUP(AO17,'B Datos 01'!D$2:F$300,3,FALSE)))) -> Sem par-imp | AO17: ='01-C Cotizar'!G17 -> Alpiste | AP17: ='02-A Facturar'!BG19 -> 6948 | AQ17: 1 | AR17: 3.78 | AS17: 3.78 | AT17: 1 | AU17: 1 | AV17: 1 | AW17: 1
A18: 0101003 | B18: Aceitunas verdes rellenas | C18: Abarrotes | F18: 1 | G18: * | H18: 290 | K18: g | L18: 290 | M18: g | N18: 290 | O18: =IF(K18="u","porc",IF(K18="g","g",IF(K18="gal","g/ml",IF(K18="kg","g",IF(K18="l","ml",IF(K18="lb","g",IF(K18="ml","ml",IF(K18="oz","g/ml",IF(K18="paq","paq",Error))))))))) -> g | P18: BC 1 | Q18: A | T18: 8 | U18: 4 | V18: * | W18: * | X18: * | Y18: * | Z18: * | AD18: * | AM18: Bod Tras | AN18: =IF(AM18="preparac",0,IF(A18=0,"-",IF(AM18="obsoleto","-",VLOOKUP(AO18,'B Datos 01'!D$2:F$300,3,FALSE)))) -> Sem par-imp | AO18: ='01-C Cotizar'!G18 -> Isleña | AP18: ='02-A Facturar'!BG20 -> 1208.18 | AQ18: 1 | AR18: 370 | AS18: 370 | AT18: 1 | AU18: 1 | AV18: 2 | AW18: 1
A19: 0101004 | B19: Achiote | C19: Abarrotes | E19: Patitos | F19: 1 | G19: * | H19: 850 | K19: g | L19: 850 | M19: g | N19: 850 | O19: =IF(K19="u","porc",IF(K19="g","g",IF(K19="gal","g/ml",IF(K19="kg","g",IF(K19="l","ml",IF(K19="lb","g",IF(K19="ml","ml",IF(K19="oz","g/ml",IF(K19="paq","paq",Error))))))))) -> g | P19: BC 1 | Q19: A | T19: 2 | U19: 1 | V19: * | W19: * | AC19: * | AM19: Bod Tras | AN19: =IF(AM19="preparac",0,IF(A19=0,"-",IF(AM19="obsoleto","-",VLOOKUP(AO19,'B Datos 01'!D$2:F$300,3,FALSE)))) -> Sem par-imp | AO19: ='01-C Cotizar'!G19 -> Belca | AP19: ='02-A Facturar'!BG21 -> 2835 | AQ19: 1 | AR19: 850 | AS19: 850 | AT19: 1 | AU19: 1 | AV19: 1 | AW19: 1
A20: 0113013 | B20: Achiote | C20: Abarrotes | F20: 1 | G20: * | H20: 12 | I20: * | J20: 90 | K20: g | L20: 1080 | M20: g | N20: 90 | O20: =IF(K20="u","porc",IF(K20="g","g",IF(K20="gal","g/ml",IF(K20="kg","g",IF(K20="l","ml",IF(K20="lb","g",IF(K20="ml","ml",IF(K20="oz","g/ml",IF(K20="paq","paq",Error))))))))) -> g | P20: BC 1 | Q20: D | T20: 2 | U20: 1 | V20: * | AG20: * | AH20: * | AI20: * | AM20: Bod Req | AN20: =IF(AM20="preparac",0,IF(A20=0,"-",IF(AM20="obsoleto","-",VLOOKUP(AO20,'B Datos 01'!D$2:F$300,3,FALSE)))) -> Sem Imp | AO20: ='01-C Cotizar'!G20 -> Ciamesa | AP20: ='02-A Facturar'!BG22 -> 5195 | AQ20: 12 | AR20: 90 | AS20: 90 | AT20: 1 | AU20: 1 | AV20: 4 | AW20: 1
A21: 0101005 | B21: Aderezo italiano | C21: Abarrotes | E21: Garden Harvest | F21: 1 | G21: * | H21: 3.78 | K21: kg | L21: 3.78 | M21: kg | N21: 3780 | O21: =IF(K21="u","porc",IF(K21="g","g",IF(K21="gal","g/ml",IF(K21="kg","g",IF(K21="l","ml",IF(K21="lb","g",IF(K21="ml","ml",IF(K21="oz","g/ml",IF(K21="paq","paq",Error))))))))) -> g | P21: BC 1 | Q21: B | T21: 3 | U21: 1 | V21: * | W21: * | AD21: * | AM21: Bod Tras | AN21: =IF(AM21="preparac",0,IF(A21=0,"-",IF(AM21="obsoleto","-",VLOOKUP(AO21,'B Datos 01'!D$2:F$300,3,FALSE)))) -> Sem par-imp | AO21: ='01-C Cotizar'!G21 -> Belca | AP21: ='02-A Facturar'!BG23 -> 4689.95 | AQ21: 1 | AR21: 3.78 | AS21: 3.78 | AT21: 1 | AU21: 1 | AV21: 1 | AW21: 1
A22: 0101008 | B22: Aderezo mil islas | C22: Abarrotes | E22: Garden Harvest | F22: 1 | G22: * | H22: 3.78 | K22: kg | L22: 3.78 | M22: kg | N22: 3780 | O22: =IF(K22="u","porc",IF(K22="g","g",IF(K22="gal","g/ml",IF(K22="kg","g",IF(K22="l","ml",IF(K22="lb","g",IF(K22="ml","ml",IF(K22="oz","g/ml",IF(K22="paq","paq",Error))))))))) -> g | P22: BC 1 | Q22: B | T22: 3 | U22: 1 | V22: * | W22: * | AM22: Bod Tras | AN22: =IF(AM22="preparac",0,IF(A22=0,"-",IF(AM22="obsoleto","-",VLOOKUP(AO22,'B Datos 01'!D$2:F$300,3,FALSE)))) -> Sem par-imp | AO22: ='01-C Cotizar'!G22 -> Mayca | AP22: ='02-A Facturar'!BG24 -> 7178 | AQ22: 1 | AR22: 3.78 | AS22: 3.78 | AT22: 1 | AU22: 1 | AV22: 1 | AW22: 1
A23: 0101009 | B23: Aderezo ranchero | C23: Abarrotes | E23: Garden Harvest | F23: 1 | G23: * | H23: 3.78 | K23: kg | L23: 3.78 | M23: kg | N23: 3780 | O23: =IF(K23="u","porc",IF(K23="g","g",IF(K23="gal","g/ml",IF(K23="kg","g",IF(K23="l","ml",IF(K23="lb","g",IF(K23="ml","ml",IF(K23="oz","g/ml",IF(K23="paq","paq",Error))))))))) -> g | P23: BC 1 | Q23: B | T23: 3 | U23: 1 | V23: * | W23: * | AM23: Bod Tras | AN23: =IF(AM23="preparac",0,IF(A23=0,"-",IF(AM23="obsoleto","-",VLOOKUP(AO23,'B Datos 01'!D$2:F$300,3,FALSE)))) -> Sem par-imp | AO23: ='01-C Cotizar'!G23 -> Mayca | AP23: ='02-A Facturar'!BG25 -> 7399 | AQ23: 1 | AR23: 3.78 | AS23: 3.78 | AT23: 1 | AU23: 1 | AV23: 1 | AW23: 1
A24: 02010004 | B24: Agua San Pellegrino | C24: Bebidas | D24: Vidrio | F24: 1 | G24: * | H24: 15 | I24: * | J24: 750 | K24: ml | L24: 11250 | M24: ml | N24: 11250 | O24: =IF(K24="u","porc",IF(K24="g","g",IF(K24="gal","g/ml",IF(K24="kg","g",IF(K24="l","ml",IF(K24="lb","g",IF(K24="ml","ml",IF(K24="oz","g/ml",IF(K24="paq","paq",Error))))))))) -> ml | P24: BC 2 | Q24: A | T24: 4 | U24: 1 | V24: * | X24: * | Y24: * | Z24: * | AM24: Bod Tras | AN24: =IF(AM24="preparac",0,IF(A24=0,"-",IF(AM24="obsoleto","-",VLOOKUP(AO24,'B Datos 01'!D$2:F$300,3,FALSE)))) -> Sem par-imp | AO24: ='01-C Cotizar'!G24 -> Alpiste | AP24: ='02-A Facturar'!BG26 -> 22728.75 | AQ24: 15 | AR24: 11250 | AS24: 11250 | AT24: 1 | AU24: 15 | AV24: 30 | AW24: 15
A25: 02010005 | B25: Agua 1lt | C25: Bebidas | D25: Plástico | E25: Coca | F25: 1 | G25: * | H25: 12 | I25: * | J25: 1 | K25: l | L25: 12 | M25: l | N25: 12000 | O25: =IF(K25="u","porc",IF(K25="g","g",IF(K25="gal","g/ml",IF(K25="kg","g",IF(K25="l","ml",IF(K25="lb","g",IF(K25="ml","ml",IF(K25="oz","g/ml",IF(K25="paq","paq",Error))))))))) -> ml | P25: BC 2 | Q25: A | AM25: Obsoleto | AN25: =IF(AM25="preparac",0,IF(A25=0,"-",IF(AM25="obsoleto","-",VLOOKUP(AO25,'B Datos 01'!D$2:F$300,3,FALSE)))) -> - | AO25: ='01-C Cotizar'!G25 -> 0 | AP25: ='02-A Facturar'!BG27 -> 4646.0191 | AQ25: 12 | AR25: 12 | AS25: 12 | AT25: 1
A26: 02010001 | B26: Agua 2lt | C26: Bebidas | D26: Plástico | E26: Coca | F26: 1 | G26: * | H26: 6 | I26: * | J26: 6 | K26: l | L26: 36 | M26: l | O26: =IF(K26="u","porc",IF(K26="g","g",IF(K26="gal","g/ml",IF(K26="kg","g",IF(K26="l","ml",IF(K26="lb","g",IF(K26="ml","ml",IF(K26="oz","g/ml",IF(K26="paq","paq",Error))))))))) -> ml | P26: BC 2 | Q26: A | T26: 30 | U26: 15 | V26: * | X26: * | Y26: * | Z26: * | AA26: * | AM26: Bod Tras | AN26: =IF(AM26="preparac",0,IF(A26=0,"-",IF(AM26="obsoleto","-",VLOOKUP(AO26,'B Datos 01'!D$2:F$300,3,FALSE)))) -> Sem par-imp | AO26: ='01-C Cotizar'!G26 -> Coca | AP26: ='02-A Facturar'!BG28 -> 4247.79 | AQ26: 6 | AR26: 36 | AS26: 36 | AT26: 1 | AU26: 6 | AV26: 30 | AW26: 6
A27: 02010002 | B27: Agua 600ml | C27: Bebidas | D27: Plástico | E27: Coca | F27: 1 | G27: * | H27: 24 | I27: * | J27: 600 | K27: ml | L27: 14400 | M27: ml | O27: =IF(K27="u","porc",IF(K27="g","g",IF(K27="gal","g/ml",IF(K27="kg","g",IF(K27="l","ml",IF(K27="lb","g",IF(K27="ml","ml",IF(K27="oz","g/ml",IF(K27="paq","paq",Error))))))))) -> ml | P27: BC 2 | Q27: A | T27: 8 | U27: 2 | V27: * | X27: * | Y27: * | Z27: * | AA27: * | AM27: Bod Tras | AN27: =IF(AM27="preparac",0,IF(A27=0,"-",IF(AM27="obsoleto","-",VLOOKUP(AO27,'B Datos 01'!D$2:F$300,3,FALSE)))) -> Sem par-imp | AO27: ='01-C Cotizar'!G27 -> Coca | AP27: ='02-A Facturar'!BG29 -> 8495.58 | AQ27: 24 | AR27: 14400 | AS27: 14400 | AT27: 1 | AU27: 12 | AV27: 36 | AW27: 12
A28: 02010008 | B28: Agua aranciata | C28: Bebidas | D28: Lata | F28: 1 | G28: * | H28: 24 | I28: * | J28: 354 | K28: ml | L28: 8496 | M28: ml | O28: =IF(K28="u","porc",IF(K28="g","g",IF(K28="gal","g/ml",IF(K28="kg","g",IF(K28="l","ml",IF(K28="lb","g",IF(K28="ml","ml",IF(K28="oz","g/ml",IF(K28="paq","paq",Error))))))))) -> ml | P28: BC 2 | Q28: B | T28: 2 | U28: 1 | V28: * | X28: * | Y28: * | Z28: * | AM28: Bod Tras | AN28: =IF(AM28="preparac",0,IF(A28=0,"-",IF(AM28="obsoleto","-",VLOOKUP(AO28,'B Datos 01'!D$2:F$300,3,FALSE)))) -> Sem par-imp | AO28: ='01-C Cotizar'!G28 -> Alpiste | AP28: ='02-A Facturar'!BG30 -> 22230 | AQ28: 24 | AR28: 8496 | AS28: 8496 | AT28: 1 | AU28: 6 | AV28: 24 | AW28: 12
A29: 04030066 | B29: Fibra purble morad 2020 | C29: Abarrotes | F29: 1 | G29: * | H29: 24 | I29: * | J29: 1 | K29: u | L29: 24 | M29: u | O29: =IF(K29="u","porc",IF(K29="g","g",IF(K29="gal","g/ml",IF(K29="kg","g",IF(K29="l","ml",IF(K29="lb","g",IF(K29="ml","ml",IF(K29="oz","g/ml",IF(K29="paq","paq",Error))))))))) -> porc | P29: BC 2 | Q29: C | T29: 2 | U29: 1 | V29: * | W29: * | AC29: * | AD29: * | AM29: Bod Req | AN29: =IF(AM29="preparac",0,IF(A29=0,"-",IF(AM29="obsoleto","-",VLOOKUP(AO29,'B Datos 01'!D$2:F$300,3,FALSE)))) -> Sem par-imp | AO29: ='01-C Cotizar'!G29 -> Belca | AP29: ='02-A Facturar'!BG31 -> 13310 | AQ29: 24 | AR29: 20 | AS29: 20 | AT29: 1 | AU29: 1 | AV29: 3 | AW29: 1
A30: 0101010 | B30: Alcaparras | C30: Abarrotes | F30: 1 | G30: * | H30: 32 | K30: oz | L30: 32 | M30: oz | N30: 906.88 | O30: =IF(K30="u","porc",IF(K30="g","g",IF(K30="gal","g/ml",IF(K30="kg","g",IF(K30="l","ml",IF(K30="lb","g",IF(K30="ml","ml",IF(K30="oz","g/ml",IF(K30="paq","paq",Error))))))))) -> g/ml | P30: BC 1 | Q30: A | T30: 2 | U30: 1 | V30: * | W30: * | AD30: * | AM30: Bod Tras | AN30: =IF(AM30="preparac",0,IF(A30=0,"-",IF(AM30="obsoleto","-",VLOOKUP(AO30,'B Datos 01'!D$2:F$300,3,FALSE)))) -> Sem par-imp | AO30: ='01-C Cotizar'!G30 -> Belca | AP30: ='02-A Facturar'!BG32 -> 3307.5 | AQ30: 1 | AR30: 32 | AS30: 32 | AT30: 1 | AU30: 1 | AV30: 2 | AW30: 1
A31: 04020002 | B31: Alcohol | C31: Abarrotes | F31: 1 | G31: * | H31: 3.78 | K31: l | L31: 3.78 | M31: l | O31: =IF(K31="u","porc",IF(K31="g","g",IF(K31="gal","g/ml",IF(K31="kg","g",IF(K31="l","ml",IF(K31="lb","g",IF(K31="ml","ml",IF(K31="oz","g/ml",IF(K31="paq","paq",Error))))))))) -> ml | P31: BC 3 | Q31: B | T31: 15 | U31: 3 | V31: * | W31: * | X31: * | Y31: * | Z31: * | AB31: * | AC31: * | AD31: * | AE31: * | AM31: Bod Req | AN31: =IF(AM31="preparac",0,IF(A31=0,"-",IF(AM31="obsoleto","-",VLOOKUP(AO31,'B Datos 01'!D$2:F$300,3,FALSE)))) -> Sem Imp | AO31: ='01-C Cotizar'!G31 -> Ciamesa | AP31: ='02-A Facturar'!BG33 -> 5601 | AQ31: 1 | AR31: 3.78 | AS31: 3.78 | AT31: 1 | AU31: 1 | AV31: 4 | AW31: 1
A32: 01090021 | B32: Alga fueru wakame shirakiku | C32: Abarrotes | F32: 1 | G32: * | H32: 454 | K32: g | L32: 454 | M32: g | N32: 454 | O32: =IF(K32="u","porc",IF(K32="g","g",IF(K32="gal","g/ml",IF(K32="kg","g",IF(K32="l","ml",IF(K32="lb","g",IF(K32="ml","ml",IF(K32="oz","g/ml",IF(K32="paq","paq",Error))))))))) -> g | P32: BC 1 | Q32: B | T32: 1 | U32: 1 | V32: * | AC32: * | AM32: Bod Tras | AN32: =IF(AM32="preparac",0,IF(A32=0,"-",IF(AM32="obsoleto","-",VLOOKUP(AO32,'B Datos 01'!D$2:F$300,3,FALSE)))) -> Sem par-imp | AO32: ='01-C Cotizar'!G32 -> Oceanic | AP32: ='02-A Facturar'!BG34 -> 6001 | AQ32: 1 | AR32: 454 | AS32: 454 | AT32: 1 | AU32: 1 | AV32: 1 | AW32: 1
A33: 0109024 | B33: Alga kombu dashi shirakiku | C33: Abarrotes | F33: 1 | G33: * | H33: 2 | K33: oz | L33: 2 | M33: oz | O33: =IF(K33="u","porc",IF(K33="g","g",IF(K33="gal","g/ml",IF(K33="kg","g",IF(K33="l","ml",IF(K33="lb","g",IF(K33="ml","ml",IF(K33="oz","g/ml",IF(K33="paq","paq",Error))))))))) -> g/ml | P33: BC 1 | Q33: D | V33: * | AC33: * | AM33: Obsoleto | AN33: =IF(AM33="preparac",0,IF(A33=0,"-",IF(AM33="obsoleto","-",VLOOKUP(AO33,'B Datos 01'!D$2:F$300,3,FALSE)))) -> - | AO33: ='01-C Cotizar'!G33 -> 0 | AP33: ='02-A Facturar'!BG35 -> 0 | AQ33: 1 | AR33: 2 | AS33: 2 | AT33: 1 | AU33: 1 | AV33: 1 | AW33: 1
A34: 0102007 | B34: Almendras peladas tajadeadas | C34: Abarrotes | F34: 1 | G34: * | H34: 1 | K34: kg | L34: 1 | M34: kg | N34: 1000 | O34: =IF(K34="u","porc",IF(K34="g","g",IF(K34="gal","g/ml",IF(K34="kg","g",IF(K34="l","ml",IF(K34="lb","g",IF(K34="ml","ml",IF(K34="oz","g/ml",IF(K34="paq","paq",Error))))))))) -> g | P34: BC 1 | Q34: E | T34: 2 | U34: 1 | V34: * | W34: * | AC34: * | AM34: Bod Tras | AN34: =IF(AM34="preparac",0,IF(A34=0,"-",IF(AM34="obsoleto","-",VLOOKUP(AO34,'B Datos 01'!D$2:F$300,3,FALSE)))) -> Sem par-imp | AO34: ='01-C Cotizar'!G34 -> Isleña | AP34: ='02-A Facturar'!BG36 -> 8500 | AQ34: 1 | AR34: 1000 | AS34: 1000 | AT34: 1 | AU34: 1 | AV34: 1 | AW34: 1
A35: 02140039 | B35: Altos Las Hormigas clásico, Argentina | C35: Tinto | D35: Malbec | E35: =AO35 -> V/Alpiste | F35: 1 | G35: * | H35: 750 | K35: ml | L35: 750 | M35: ml | O35: =IF(K35="u","porc",IF(K35="g","g",IF(K35="gal","g/ml",IF(K35="kg","g",IF(K35="l","ml",IF(K35="lb","g",IF(K35="ml","ml",IF(K35="oz","g/ml",IF(K35="paq","paq",Error))))))))) -> ml | P35: BC 1 | Q35: C | T35: 9 | U35: 1 | V35: * | X35: * | Y35: * | AM35: Bod Tras | AN35: =IF(AM35="preparac",0,IF(A35=0,"-",IF(AM35="obsoleto","-",VLOOKUP(AO35,'B Datos 01'!D$2:F$300,3,FALSE)))) -> Sem par | AO35: ='01-C Cotizar'!G35 -> V/Alpiste | AP35: ='02-A Facturar'!BG37 -> 8218.100522 | AQ35: 1 | AR35: 750 | AS35: 750 | AT35: 1 | AU35: 1 | AV35: 6 | AW35: 1
A36: 02100014 | B36: Amareto bols bot | F36: 1 | G36: * | H36: 720 | K36: ml | L36: 720 | M36: ml | O36: =IF(K36="u","porc",IF(K36="g","g",IF(K36="gal","g/ml",IF(K36="kg","g",IF(K36="l","ml",IF(K36="lb","g",IF(K36="ml","ml",IF(K36="oz","g/ml",IF(K36="paq","paq",Error))))))))) -> ml | P36: BC 1 | Q36: C | T36: 2 | U36: 1 | V36: * | AD36: * | AM36: Req-Tras | AN36: =IF(AM36="preparac",0,IF(A36=0,"-",IF(AM36="obsoleto","-",VLOOKUP(AO36,'B Datos 01'!D$2:F$300,3,FALSE)))) -> Sem par-imp | AO36: ='01-C Cotizar'!G36 -> L San Ramon | AP36: ='02-A Facturar'!BG38 -> 7257.597085 | AQ36: 1 | AR36: 720 | AS36: 720 | AT36: 1 | AU36: 1 | AV36: 1 | AW36: 1
A37: 02100002 | B37: Amaretto disaronno litro | C37: Bebidas | F37: 1 | G37: * | H37: 750 | K37: ml | L37: 750 | M37: ml | O37: =IF(K37="u","porc",IF(K37="g","g",IF(K37="gal","g/ml",IF(K37="kg","g",IF(K37="l","ml",IF(K37="lb","g",IF(K37="ml","ml",IF(K37="oz","g/ml",IF(K37="paq","paq",Error))))))))) -> ml | P37: BC 1 | Q37: C | T37: 4 | U37: 1 | V37: * | X37: * | Y37: * | Z37: * | AM37: Bod Tras | AN37: =IF(AM37="preparac",0,IF(A37=0,"-",IF(AM37="obsoleto","-",VLOOKUP(AO37,'B Datos 01'!D$2:F$300,3,FALSE)))) -> Sem par-imp | AO37: ='01-C Cotizar'!G37 -> L San Ramon | AP37: ='02-A Facturar'!BG39 -> 17293.20195 | AQ37: 1 | AR37: 750 | AS37: 750 | AT37: 1 | AU37: 1 | AV37: 1 | AW37: 1
A38: 72038 | B38: Jabon de baño protex avena | C38: Abarrotes | E38: Protex | F38: 1 | G38: * | H38: 110 | K38: g | L38: 110 | M38: g | O38: =IF(K38="u","porc",IF(K38="g","g",IF(K38="gal","g/ml",IF(K38="kg","g",IF(K38="l","ml",IF(K38="lb","g",IF(K38="ml","ml",IF(K38="oz","g/ml",IF(K38="paq","paq",Error))))))))) -> g | P38: BC 3 | Q38: A | T38: 30 | U38: 15 | V38: * | AG38: * | AH38: * | AM38: Bod Req | AN38: =IF(AM38="preparac",0,IF(A38=0,"-",IF(AM38="obsoleto","-",VLOOKUP(AO38,'B Datos 01'!D$2:F$300,3,FALSE)))) -> Sem Imp | AO38: ='01-C Cotizar'!G38 -> Ciamesa | AP38: ='02-A Facturar'!BG40 -> 501 | AQ38: 1 | AR38: 110 | AS38: 110 | AT38: 1 | AU38: 1 | AV38: 6 | AW38: 1
A39: 02140049 | B39: Antinori Pèppoli, D.O.C.G. Chianti Classico, Italia | C39: Tinto | D39: Sangiovese | E39: =AO39 -> V/E Florida | F39: 1 | G39: =IF(H39>0.1,"*","") -> * | H39: 750 | K39: ml | L39: 750 | M39: ml | O39: =IF(K39="u","porc",IF(K39="g","g",IF(K39="gal","g/ml",IF(K39="kg","g",IF(K39="l","ml",IF(K39="lb","g",IF(K39="ml","ml",IF(K39="oz","g/ml",IF(K39="paq","paq",Error))))))))) -> ml | T39: 6 | U39: 1 | V39: * | Y39: * | AM39: C Directo | AN39: =IF(AM39="preparac",0,IF(A39=0,"-",IF(AM39="obsoleto","-",VLOOKUP(AO39,'B Datos 01'!D$2:F$300,3,FALSE)))) -> Sem Par | AO39: ='01-C Cotizar'!G39 -> V/E Florida | AP39: ='02-A Facturar'!BG41 -> 12874.98266 | AQ39: 1 | AR39: 750 | AS39: 750 | AT39: 1 | AU39: 1 | AV39: 4 | AW39: 1
A40: 0102010 | B40: Arroz japones nishiki premium sushi | C40: Abarrotes | F40: 1 | G40: * | H40: 6.8 | I40: * | J40: 1 | K40: kg | L40: 6.8 | M40: kg | N40: 6080 | O40: =IF(K40="u","porc",IF(K40="g","g",IF(K40="gal","g/ml",IF(K40="kg","g",IF(K40="l","ml",IF(K40="lb","g",IF(K40="ml","ml",IF(K40="oz","g/ml",IF(K40="paq","paq",Error))))))))) -> g | P40: BC 1 | Q40: D | T40: 8 | U40: 4 | V40: * | AC40: * | AM40: Bod Tras | AN40: =IF(AM40="preparac",0,IF(A40=0,"-",IF(AM40="obsoleto","-",VLOOKUP(AO40,'B Datos 01'!D$2:F$300,3,FALSE)))) -> Sem Imp | AO40: ='01-C Cotizar'!G40 -> ancyfer | AP40: ='02-A Facturar'!BG42 -> 10165 | AQ40: 6.8 | AR40: 6.8 | AS40: 6.8 | AT40: 1 | AU40: 6.8 | AV40: 20.4 | AW40: 6.8
A41: 0102012 | B41: Arroz rissoto | C41: Abarrotes | F41: 1 | G41: * | H41: 1 | K41: kg | L41: 1 | M41: kg | N41: 1000 | O41: =IF(K41="u","porc",IF(K41="g","g",IF(K41="gal","g/ml",IF(K41="kg","g",IF(K41="l","ml",IF(K41="lb","g",IF(K41="ml","ml",IF(K41="oz","g/ml",IF(K41="paq","paq",Error))))))))) -> g | P41: BC 1 | Q41: D | T41: 4 | U41: 2 | V41: * | W41: * | AD41: * | AM41: Bod Tras | AN41: =IF(AM41="preparac",0,IF(A41=0,"-",IF(AM41="obsoleto","-",VLOOKUP(AO41,'B Datos 01'!D$2:F$300,3,FALSE)))) -> Sem par-imp | AO41: ='01-C Cotizar'!G41 -> Alpiste | AP41: ='02-A Facturar'!BG43 -> 3586.5 | AQ41: 1 | AR41: 1 | AS41: 1 | AT41: 1 | AU41: 1 | AV41: 2 | AW41: 1
A42: 0102001 | B42: Arroz sabanero 98% | C42: Abarrotes | E42: Sabanero | F42: 1 | G42: * | H42: 12 | I42: * | J42: 1.8 | K42: kg | L42: 21.6 | M42: kg | N42: 1800 | O42: =IF(K42="u","porc",IF(K42="g","g",IF(K42="gal","g/ml",IF(K42="kg","g",IF(K42="l","ml",IF(K42="lb","g",IF(K42="ml","ml",IF(K42="oz","g/ml",IF(K42="paq","paq",Error))))))))) -> g | P42: BC 2 | Q42: A | T42: 20 | U42: 10 | V42: * | W42: * | AG42: * | AH42: * | AI42: * | AM42: Bod Tras | AN42: =IF(AM42="preparac",0,IF(A42=0,"-",IF(AM42="obsoleto","-",VLOOKUP(AO42,'B Datos 01'!D$2:F$300,3,FALSE)))) -> Sem par-imp | AO42: ='01-C Cotizar'!G42 -> Belca | AP42: ='02-A Facturar'!BG44 -> 15495.45455 | AQ42: 12 | AR42: 21.6 | AS42: 21.6 | AT42: 1 | AU42: 12 | AV42: 24 | AW42: 12
A43: 04020087 | B43: Asep 60 desinf frutas y veget | C43: Art limpieza | E43: Proquimia | F43: 1 | G43: * | H43: 1 | K43: gal | L43: 1 | M43: gal | O43: =IF(K43="u","porc",IF(K43="g","g",IF(K43="gal","g/ml",IF(K43="kg","g",IF(K43="l","ml",IF(K43="lb","g",IF(K43="ml","ml",IF(K43="oz","g/ml",IF(K43="paq","paq",Error))))))))) -> g/ml | P43: BC 3 | Q43: B | T43: 2 | U43: 1 | V43: * | W43: * | AM43: Bod Req | AN43: =IF(AM43="preparac",0,IF(A43=0,"-",IF(AM43="obsoleto","-",VLOOKUP(AO43,'B Datos 01'!D$2:F$300,3,FALSE)))) -> Sem par-imp | AO43: ='01-C Cotizar'!G43 -> Proquimia | AP43: ='02-A Facturar'!BG45 -> 6013.75 | AQ43: 1 | AR43: 1 | AS43: 1 | AT43: 1 | AU43: 1 | AV43: 2 | AW43: 1
A44: 04020086 | B44: Asep 870 desinf superficies | C44: Art limpieza | E44: Proquimia | F44: 1 | G44: * | H44: 1 | K44: gal | L44: 1 | M44: gal | O44: =IF(K44="u","porc",IF(K44="g","g",IF(K44="gal","g/ml",IF(K44="kg","g",IF(K44="l","ml",IF(K44="lb","g",IF(K44="ml","ml",IF(K44="oz","g/ml",IF(K44="paq","paq",Error))))))))) -> g/ml | P44: BC 3 | Q44: B | T44: 2 | U44: 1 | V44: * | W44: * | AM44: Bod Req | AN44: =IF(AM44="preparac",0,IF(A44=0,"-",IF(AM44="obsoleto","-",VLOOKUP(AO44,'B Datos 01'!D$2:F$300,3,FALSE)))) -> Sem par-imp | AO44: ='01-C Cotizar'!G44 -> Proquimia | AP44: ='02-A Facturar'!BG46 -> 15572.74 | AQ44: 1 | AR44: 1 | AS44: 1 | AT44: 1 | AU44: 1 | AV44: 2 | AW44: 1
A45: 04030071 | B45: Atomizador | C45: Art limpieza | E45: Proquimia | F45: 1 | G45: * | H45: 1 | K45: u | L45: 1 | M45: u | O45: =IF(K45="u","porc",IF(K45="g","g",IF(K45="gal","g/ml",IF(K45="kg","g",IF(K45="l","ml",IF(K45="lb","g",IF(K45="ml","ml",IF(K45="oz","g/ml",IF(K45="paq","paq",Error))))))))) -> porc | P45: BC 3 | Q45: B | T45: 20 | U45: 1 | V45: * | W45: * | X45: * | Y45: * | AB45: * | AC45: * | AD45: * | AE45: * | AM45: Bod Req | AN45: =IF(AM45="preparac",0,IF(A45=0,"-",IF(AM45="obsoleto","-",VLOOKUP(AO45,'B Datos 01'!D$2:F$300,3,FALSE)))) -> Sem par-imp | AO45: ='01-C Cotizar'!G45 -> Proquimia | AP45: ='02-A Facturar'!BG47 -> 0 | AQ45: 1 | AR45: 1 | AS45: 1 | AT45: 1 | AU45: 1 | AV45: 4 | AW45: 1
A46: 0101011 | B46: Atun trositos en aceite 105 | C46: Abarrotes | F46: 1 | G46: * | H46: 105 | K46: g | L46: 105 | M46: g | O46: =IF(K46="u","porc",IF(K46="g","g",IF(K46="gal","g/ml",IF(K46="kg","g",IF(K46="l","ml",IF(K46="lb","g",IF(K46="ml","ml",IF(K46="oz","g/ml",IF(K46="paq","paq",Error))))))))) -> g | P46: BC 1 | Q46: A | T46: 12 | U46: 6 | V46: * | W46: * | AM46: Bod Tras | AN46: =IF(AM46="preparac",0,IF(A46=0,"-",IF(AM46="obsoleto","-",VLOOKUP(AO46,'B Datos 01'!D$2:F$300,3,FALSE)))) -> Sem Imp | AO46: ='01-C Cotizar'!G46 -> Ciamesa | AP46: ='02-A Facturar'!BG48 -> 919 | AQ46: 1 | AR46: 105 | AS46: 105 | AT46: 1 | AU46: 1 | AV46: 6 | AW46: 1
A47: 0113014 | B47: Atun trositos en aceite 160 | C47: Abarrotes | E47: Tesoro del mar | F47: 1 | G47: * | H47: 160 | K47: g | L47: 160 | M47: g | O47: =IF(K47="u","porc",IF(K47="g","g",IF(K47="gal","g/ml",IF(K47="kg","g",IF(K47="l","ml",IF(K47="lb","g",IF(K47="ml","ml",IF(K47="oz","g/ml",IF(K47="paq","paq",Error))))))))) -> g | P47: BC 1 | Q47: A | T47: 36 | U47: 12 | V47: * | AG47: * | AH47: * | AI47: * | AM47: Bod Req | AN47: =IF(AM47="preparac",0,IF(A47=0,"-",IF(AM47="obsoleto","-",VLOOKUP(AO47,'B Datos 01'!D$2:F$300,3,FALSE)))) -> Sem Imp | AO47: ='01-C Cotizar'!G47 -> Ciamesa | AP47: ='02-A Facturar'!BG49 -> 1412 | AQ47: 1 | AR47: 160 | AS47: 160 | AT47: 1 | AU47: 1 | AV47: 6 | AW47: 1
A48: 0109027 | B48: Atun Maguro | C48: Abarrotes | E48: Tesoro del mar | F48: 1 | G48: * | H48: 1 | K48: kg | L48: 1 | M48: kg | N48: 1000 | O48: =IF(K48="u","porc",IF(K48="g","g",IF(K48="gal","g/ml",IF(K48="kg","g",IF(K48="l","ml",IF(K48="lb","g",IF(K48="ml","ml",IF(K48="oz","g/ml",IF(K48="paq","paq",Error))))))))) -> g | U48: 1 | V48: * | AM48: C Directo | AN48: =IF(AM48="preparac",0,IF(A48=0,"-",IF(AM48="obsoleto","-",VLOOKUP(AO48,'B Datos 01'!D$2:F$300,3,FALSE)))) -> Sem par-imp | AO48: ='01-C Cotizar'!G48 -> Oceanic | AP48: ='02-A Facturar'!BG50 -> 0 | AQ48: 1 | AR48: 1 | AS48: 1 | AT48: 1 | AU48: 1 | AV48: 2 | AW48: 1
A49: 04020003 | B49: AURA persist | C49: Art limpieza | E49: Proquimia | F49: 1 | G49: * | H49: 1 | K49: l | L49: 1 | M49: l | O49: =IF(K49="u","porc",IF(K49="g","g",IF(K49="gal","g/ml",IF(K49="kg","g",IF(K49="l","ml",IF(K49="lb","g",IF(K49="ml","ml",IF(K49="oz","g/ml",IF(K49="paq","paq",Error))))))))) -> ml | P49: BC 3 | Q49: B | AM49: Obsoleto | AN49: =IF(AM49="preparac",0,IF(A49=0,"-",IF(AM49="obsoleto","-",VLOOKUP(AO49,'B Datos 01'!D$2:F$300,3,FALSE)))) -> - | AO49: ='01-C Cotizar'!G49 -> 0 | AP49: ='02-A Facturar'!BG51 -> 3324.32 | AQ49: 1 | AR49: 1 | AS49: 1 | AT49: 1 | AU49: 1 | AV49: 1 | AW49: 1
A50: 0102008 | B50: Avena | C50: Abarrotes | E50: Quaker | F50: 1 | G50: * | H50: 380 | K50: g | L50: 380 | M50: g | N50: 400 | O50: =IF(K50="u","porc",IF(K50="g","g",IF(K50="gal","g/ml",IF(K50="kg","g",IF(K50="l","ml",IF(K50="lb","g",IF(K50="ml","ml",IF(K50="oz","g/ml",IF(K50="paq","paq",Error))))))))) -> g | P50: BC 1 | Q50: B | T50: 12 | U50: 6 | V50: * | W50: * | AG50: * | AH50: * | AI50: * | AM50: Bod Tras | AN50: =IF(AM50="preparac",0,IF(A50=0,"-",IF(AM50="obsoleto","-",VLOOKUP(AO50,'B Datos 01'!D$2:F$300,3,FALSE)))) -> Sem par-imp | AO50: ='01-C Cotizar'!G50 -> Mayca | AP50: ='02-A Facturar'!BG52 -> 804.6 | AQ50: 1 | AR50: 400 | AS50: 400 | AT50: 1 | AU50: 1 | AV50: 6 | AW50: 1
A51: 0102003 | B51: Azucar blanca | C51: Abarrotes | F51: 1 | G51: * | H51: 12 | I51: * | J51: 2 | K51: kg | L51: 24 | M51: kg | N51: 2000 | O51: =IF(K51="u","porc",IF(K51="g","g",IF(K51="gal","g/ml",IF(K51="kg","g",IF(K51="l","ml",IF(K51="lb","g",IF(K51="ml","ml",IF(K51="oz","g/ml",IF(K51="paq","paq",Error))))))))) -> g | P51: BC 2 | Q51: A | T51: 14 | U51: 7 | V51: * | W51: * | X51: * | Y51: * | Z51: * | AB51: * | AC51: * | AD51: * | AE51: * | AG51: * | AH51: * | AI51: * | AM51: Req-Tras | AN51: =IF(AM51="preparac",0,IF(A51=0,"-",IF(AM51="obsoleto","-",VLOOKUP(AO51,'B Datos 01'!D$2:F$300,3,FALSE)))) -> Sem Imp | AO51: ='01-C Cotizar'!G51 -> Ciamesa | AP51: ='02-A Facturar'!BG53 -> 14976.738 | AQ51: 12 | AR51: 24 | AS51: 24 | AT51: 1 | AU51: 12 | AV51: 18 | AW51: 6
A52: 0102011 | B52: Azucar cruda zukra | C52: Abarrotes | F52: 1 | G52: * | H52: 12 | I52: * | J52: 2 | K52: kg | L52: 24 | M52: kg | N52: 2000 | O52: =IF(K52="u","porc",IF(K52="g","g",IF(K52="gal","g/ml",IF(K52="kg","g",IF(K52="l","ml",IF(K52="lb","g",IF(K52="ml","ml",IF(K52="oz","g/ml",IF(K52="paq","paq",Error))))))))) -> g | P52: BC 1 | Q52: E | T52: 1 | U52: 0.5 | V52: * | AG52: * | AH52: * | AI52: * | AM52: Bod Req | AN52: =IF(AM52="preparac",0,IF(A52=0,"-",IF(AM52="obsoleto","-",VLOOKUP(AO52,'B Datos 01'!D$2:F$300,3,FALSE)))) -> Sem par-imp | AO52: ='01-C Cotizar'!G52 -> Belca | AP52: ='02-A Facturar'!BG54 -> 18379.2 | AQ52: 12 | AR52: 24 | AS52: 24 | AT52: 1 | AU52: 1 | AV52: 1 | AW52: 1
A53: 0102009 | B53: Azucar individual 5 grs | C53: Abarrotes | F53: 1 | G53: * | H53: 1000 | I53: * | J53: 5 | K53: u | L53: 5000 | M53: u | N53: 1000 | O53: =IF(K53="u","porc",IF(K53="g","g",IF(K53="gal","g/ml",IF(K53="kg","g",IF(K53="l","ml",IF(K53="lb","g",IF(K53="ml","ml",IF(K53="oz","g/ml",IF(K53="paq","paq",Error))))))))) -> porc | P53: BC 1 | Q53: B | T53: 2 | U53: 1 | V53: * | AB53: * | AE53: * | AM53: Bod Req | AN53: =IF(AM53="preparac",0,IF(A53=0,"-",IF(AM53="obsoleto","-",VLOOKUP(AO53,'B Datos 01'!D$2:F$300,3,FALSE)))) -> Sem par-imp | AO53: ='01-C Cotizar'!G53 -> Belca | AP53: ='02-A Facturar'!BG55 -> 4953.8 | AQ53: 1000 | AR53: 5000 | AS53: 5000 | AT53: 1 | AU53: 1 | AV53: 2 | AW53: 1
A54: 0104014 | B54: Azucar molida doña maria | C54: Abarrotes | F54: 1 | G54: * | H54: 500 | K54: g | L54: 500 | M54: g | N54: 500 | O54: =IF(K54="u","porc",IF(K54="g","g",IF(K54="gal","g/ml",IF(K54="kg","g",IF(K54="l","ml",IF(K54="lb","g",IF(K54="ml","ml",IF(K54="oz","g/ml",IF(K54="paq","paq",Error))))))))) -> g | P54: BC 1 | Q54: E | T54: 6 | U54: 3 | V54: * | W54: * | AM54: Bod Tras | AN54: =IF(AM54="preparac",0,IF(A54=0,"-",IF(AM54="obsoleto","-",VLOOKUP(AO54,'B Datos 01'!D$2:F$300,3,FALSE)))) -> Sem Imp | AO54: ='01-C Cotizar'!G54 -> Ciamesa | AP54: ='02-A Facturar'!BG56 -> 468 | AQ54: 1 | AR54: 500 | AS54: 500 | AT54: 1 | AU54: 1 | AV54: 4 | AW54: 1
A55: 0104005 | B55: Azucar moreno | C55: Abarrotes | F55: 1 | G55: * | H55: 1 | K55: kg | L55: 1 | M55: kg | N55: 1000 | O55: =IF(K55="u","porc",IF(K55="g","g",IF(K55="gal","g/ml",IF(K55="kg","g",IF(K55="l","ml",IF(K55="lb","g",IF(K55="ml","ml",IF(K55="oz","g/ml",IF(K55="paq","paq",Error))))))))) -> g | P55: BC 1 | Q55: E | T55: 6 | U55: 1 | V55: * | W55: * | AM55: Bod Tras | AN55: =IF(AM55="preparac",0,IF(A55=0,"-",IF(AM55="obsoleto","-",VLOOKUP(AO55,'B Datos 01'!D$2:F$300,3,FALSE)))) -> Sem Imp | AO55: ='01-C Cotizar'!G55 -> Ciamesa | AP55: ='02-A Facturar'!BG57 -> 1295 | AQ55: 1 | AR55: 1 | AS55: 1 | AT55: 1 | AU55: 1 | AV55: 4 | AW55: 1
A56: 0104020 | B56: Azucar refinada blanca | C56: Abarrotes | F56: 1 | G56: * | H56: 30 | I56: * | J56: 1 | K56: kg | L56: 30 | M56: kg | N56: 1000 | O56: =IF(K56="u","porc",IF(K56="g","g",IF(K56="gal","g/ml",IF(K56="kg","g",IF(K56="l","ml",IF(K56="lb","g",IF(K56="ml","ml",IF(K56="oz","g/ml",IF(K56="paq","paq",Error))))))))) -> g | P56: BC 1 | Q56: E | T56: 2 | U56: 1 | V56: * | W56: * | X56: * | Y56: * | AM56: Bod Tras | AN56: =IF(AM56="preparac",0,IF(A56=0,"-",IF(AM56="obsoleto","-",VLOOKUP(AO56,'B Datos 01'!D$2:F$300,3,FALSE)))) -> Sem Imp | AO56: ='01-C Cotizar'!G56 -> Ciamesa | AP56: ='02-A Facturar'!BG58 -> 21876 | AQ56: 30 | AR56: 30 | AS56: 30 | AT56: 1 | AU56: 1 | AV56: 10 | AW56: 1
A57: 0113091 | B57: Azul ropa | C57: Abarrotes | F57: 1 | G57: * | H57: 10 | I57: * | J57: 10 | K57: g | L57: 100 | M57: g | O57: =IF(K57="u","porc",IF(K57="g","g",IF(K57="gal","g/ml",IF(K57="kg","g",IF(K57="l","ml",IF(K57="lb","g",IF(K57="ml","ml",IF(K57="oz","g/ml",IF(K57="paq","paq",Error))))))))) -> g | P57: BC 3 | Q57: A | T57: 4 | U57: 2 | V57: * | AG57: * | AH57: * | AM57: Bod Req | AN57: =IF(AM57="preparac",0,IF(A57=0,"-",IF(AM57="obsoleto","-",VLOOKUP(AO57,'B Datos 01'!D$2:F$300,3,FALSE)))) -> Sem Imp | AO57: ='01-C Cotizar'!G57 -> Ciamesa | AP57: ='02-A Facturar'!BG59 -> 862 | AQ57: 10 | AR57: 100 | AS57: 100 | AT57: 1 | AU57: 1 | AV57: 2 | AW57: 1
A58: 02050002 | B58: Bacardi pla bot | C58: Bebidas | F58: 1 | G58: * | H58: 750 | K58: ml | L58: 750 | M58: ml | O58: =IF(K58="u","porc",IF(K58="g","g",IF(K58="gal","g/ml",IF(K58="kg","g",IF(K58="l","ml",IF(K58="lb","g",IF(K58="ml","ml",IF(K58="oz","g/ml",IF(K58="paq","paq",Error))))))))) -> ml | P58: BC 1 | Q58: C | T58: 3 | U58: 1 | V58: * | X58: * | Y58: * | Z58: * | AM58: Bod Tras | AN58: =IF(AM58="preparac",0,IF(A58=0,"-",IF(AM58="obsoleto","-",VLOOKUP(AO58,'B Datos 01'!D$2:F$300,3,FALSE)))) -> Sem par-imp | AO58: ='01-C Cotizar'!G58 -> L San Ramon | AP58: ='02-A Facturar'!BG60 -> 5195.826778 | AQ58: 1 | AR58: 750 | AS58: 750 | AT58: 1 | AU58: 1 | AV58: 2 | AW58: 1
A59: 04030092 | B59: Bandeja y tapa / Sushi | C59: Abarrotes | F59: 1 | G59: * | H59: 50 | K59: u | L59: 50 | M59: u | O59: =IF(K59="u","porc",IF(K59="g","g",IF(K59="gal","g/ml",IF(K59="kg","g",IF(K59="l","ml",IF(K59="lb","g",IF(K59="ml","ml",IF(K59="oz","g/ml",IF(K59="paq","paq",Error))))))))) -> porc | P59: BC 2 | Q59: B | T59: 2 | U59: 1 | V59: * | AC59: * | AM59: Bod Req | AN59: =IF(AM59="preparac",0,IF(A59=0,"-",IF(AM59="obsoleto","-",VLOOKUP(AO59,'B Datos 01'!D$2:F$300,3,FALSE)))) -> Sem par-imp | AO59: ='01-C Cotizar'!G59 -> Isleña | AP59: ='02-A Facturar'!BG61 -> 7200 | AQ59: 1 | AR59: 50 | AS59: 50 | AT59: 1 | AU59: 1 | AV59: 2 | AW59: 1
A60: 0104073 | B60: Barquillos Vetiado | C60: Abarrotes | F60: 1 | G60: * | H60: 33 | I60: * | J60: 85 | K60: g | L60: 2805 | M60: g | N60: 85 | O60: =IF(K60="u","porc",IF(K60="g","g",IF(K60="gal","g/ml",IF(K60="kg","g",IF(K60="l","ml",IF(K60="lb","g",IF(K60="ml","ml",IF(K60="oz","g/ml",IF(K60="paq","paq",Error))))))))) -> g | P60: BC 1 | Q60: D | T60: 2 | U60: 1 | V60: * | W60: * | AD60: * | AM60: Bod Tras | AN60: =IF(AM60="preparac",0,IF(A60=0,"-",IF(AM60="obsoleto","-",VLOOKUP(AO60,'B Datos 01'!D$2:F$300,3,FALSE)))) -> Sem par-imp | AO60: ='01-C Cotizar'!G60 -> Belca | AP60: ='02-A Facturar'!BG62 -> 16803 | AQ60: 33 | AR60: 2244 | AS60: 2244 | AT60: 1 | AU60: 1 | AV60: 6 | AW60: 1
A61: 02140061 | B61: B & G, St Emilion, Francia | C61: Tinto | D61: Merlot | E61: =AO61 -> V/E Florida | F61: 1 | G61: * | H61: 750 | K61: ml | L61: 750 | M61: ml | O61: =IF(K61="u","porc",IF(K61="g","g",IF(K61="gal","g/ml",IF(K61="kg","g",IF(K61="l","ml",IF(K61="lb","g",IF(K61="ml","ml",IF(K61="oz","g/ml",IF(K61="paq","paq",Error))))))))) -> ml | P61: BC 1 | Q61: C | T61: 6 | U61: 1 | V61: * | X61: * | Y61: * | AM61: Bod Tras | AN61: =IF(AM61="preparac",0,IF(A61=0,"-",IF(AM61="obsoleto","-",VLOOKUP(AO61,'B Datos 01'!D$2:F$300,3,FALSE)))) -> Sem Par | AO61: ='01-C Cotizar'!G61 -> V/E Florida | AP61: ='02-A Facturar'!BG63 -> 9412.802447 | AQ61: 1 | AR61: 750 | AS61: 750 | AT61: 1 | AU61: 1 | AV61: 4 | AW61: 1
A62: 02140052 | B62: Batasiolo D´Alba, Italia | C62: Tinto | D62: Dolcetto | E62: =AO62 -> V/E Florida | F62: 1 | G62: * | H62: 750 | K62: ml | L62: 750 | M62: ml | O62: =IF(K62="u","porc",IF(K62="g","g",IF(K62="gal","g/ml",IF(K62="kg","g",IF(K62="l","ml",IF(K62="lb","g",IF(K62="ml","ml",IF(K62="oz","g/ml",IF(K62="paq","paq",Error))))))))) -> ml | P62: BC 1 | Q62: C | T62: 6 | U62: 1 | V62: * | Y62: * | AM62: C Directo | AN62: =IF(AM62="preparac",0,IF(A62=0,"-",IF(AM62="obsoleto","-",VLOOKUP(AO62,'B Datos 01'!D$2:F$300,3,FALSE)))) -> Sem Par | AO62: ='01-C Cotizar'!G62 -> V/E Florida | AP62: ='02-A Facturar'!BG64 -> 7898.098605 | AQ62: 1 | AR62: 750 | AS62: 750 | AT62: 1 | AU62: 1 | AV62: 4 | AW62: 1
A63: 04030002 | B63: Bateria aa | C63: Abarrotes | F63: 1 | G63: * | H63: 24 | K63: u | L63: 24 | M63: u | O63: =IF(K63="u","porc",IF(K63="g","g",IF(K63="gal","g/ml",IF(K63="kg","g",IF(K63="l","ml",IF(K63="lb","g",IF(K63="ml","ml",IF(K63="oz","g/ml",IF(K63="paq","paq",Error))))))))) -> porc | P63: BC 2 | Q63: B | T63: 4 | U63: 2 | V63: * | AM63: Bod Req | AN63: =IF(AM63="preparac",0,IF(A63=0,"-",IF(AM63="obsoleto","-",VLOOKUP(AO63,'B Datos 01'!D$2:F$300,3,FALSE)))) -> Sem Imp | AO63: ='01-C Cotizar'!G63 -> Golveca | AP63: ='02-A Facturar'!BG65 -> 9429.985699 | AQ63: 1 | AR63: 24 | AS63: 24 | AT63: 1 | AU63: 24 | AV63: 48 | AW63: 12
A64: 04030003 | B64: Bateria aaa | C64: Abarrotes | F64: 1 | G64: * | H64: 24 | K64: u | L64: 24 | M64: u | O64: =IF(K64="u","porc",IF(K64="g","g",IF(K64="gal","g/ml",IF(K64="kg","g",IF(K64="l","ml",IF(K64="lb","g",IF(K64="ml","ml",IF(K64="oz","g/ml",IF(K64="paq","paq",Error))))))))) -> porc | P64: BC 2 | Q64: B | T64: 4 | U64: 2 | V64: * | AM64: Bod Req | AN64: =IF(AM64="preparac",0,IF(A64=0,"-",IF(AM64="obsoleto","-",VLOOKUP(AO64,'B Datos 01'!D$2:F$300,3,FALSE)))) -> Sem Imp | AO64: ='01-C Cotizar'!G64 -> Golveca | AP64: ='02-A Facturar'!BG66 -> 9429.985699 | AQ64: 1 | AR64: 24 | AS64: 24 | AT64: 1 | AU64: 24 | AV64: 48 | AW64: 12
A65: 04030004 | B65: Baterias d2 | C65: Abarrotes | F65: 1 | G65: * | H65: 12 | K65: u | L65: 12 | M65: u | O65: =IF(K65="u","porc",IF(K65="g","g",IF(K65="gal","g/ml",IF(K65="kg","g",IF(K65="l","ml",IF(K65="lb","g",IF(K65="ml","ml",IF(K65="oz","g/ml",IF(K65="paq","paq",Error))))))))) -> porc | P65: BC 2 | Q65: B | T65: 4 | U65: 2 | V65: * | AM65: Bod Req | AN65: =IF(AM65="preparac",0,IF(A65=0,"-",IF(AM65="obsoleto","-",VLOOKUP(AO65,'B Datos 01'!D$2:F$300,3,FALSE)))) -> Sem Imp | AO65: ='01-C Cotizar'!G65 -> Golveca | AP65: ='02-A Facturar'!BG67 -> 10534.48947 | AQ65: 1 | AR65: 12 | AS65: 12 | AT65: 1 | AU65: 12 | AV65: 24 | AW65: 12
A66: 02160001 | B66: Beringer, Estados Unidos | C66: Rosado | D66: White Zinfandel | E66: =AO66 -> V/E Florida | F66: 1 | G66: * | H66: 750 | K66: ml | L66: 750 | M66: ml | O66: =IF(K66="u","porc",IF(K66="g","g",IF(K66="gal","g/ml",IF(K66="kg","g",IF(K66="l","ml",IF(K66="lb","g",IF(K66="ml","ml",IF(K66="oz","g/ml",IF(K66="paq","paq",Error))))))))) -> ml | P66: BC 1 | Q66: C | T66: 18 | U66: 1 | V66: * | X66: * | Y66: * | Z66: * | AM66: Bod Tras | AN66: =IF(AM66="preparac",0,IF(A66=0,"-",IF(AM66="obsoleto","-",VLOOKUP(AO66,'B Datos 01'!D$2:F$300,3,FALSE)))) -> Sem Par | AO66: ='01-C Cotizar'!G66 -> V/E Florida | AP66: ='02-A Facturar'!BG68 -> 4815.641385 | AQ66: 1 | AR66: 750 | AS66: 750 | AT66: 1 | AU66: 1 | AV66: 6 | AW66: 1
A67: 04020004 | B67: Beta 101 | C67: Art limpieza | E67: Proquimia | F67: 1 | G67: * | H67: 20 | K67: l | L67: 20 | M67: l | O67: =IF(K67="u","porc",IF(K67="g","g",IF(K67="gal","g/ml",IF(K67="kg","g",IF(K67="l","ml",IF(K67="lb","g",IF(K67="ml","ml",IF(K67="oz","g/ml",IF(K67="paq","paq",Error))))))))) -> ml | P67: BC 3 | Q67: B | T67: 4 | U67: 1 | V67: * | AE67: * | AM67: Bod Req | AN67: =IF(AM67="preparac",0,IF(A67=0,"-",IF(AM67="obsoleto","-",VLOOKUP(AO67,'B Datos 01'!D$2:F$300,3,FALSE)))) -> Sem par-imp | AO67: ='01-C Cotizar'!G67 -> Proquimia | AP67: ='02-A Facturar'!BG69 -> 33951.89 | AQ67: 1 | AR67: 20 | AS67: 20 | AT67: 1 | AU67: 1 | AV67: 3 | AW67: 1
A68: 04020005 | B68: Beta 102 | C68: Art limpieza | E68: Proquimia | F68: 1 | G68: * | H68: 20 | I68: =IF(J68>0.1,"*","") ->  | K68: l | L68: =IF(J68>0,F68*H68*J68,IF(H68>0,F68*H68,F68)) -> 20 | M68: =K68 -> l | O68: =IF(K68="u","porc",IF(K68="g","g",IF(K68="gal","g/ml",IF(K68="kg","g",IF(K68="l","ml",IF(K68="lb","g",IF(K68="ml","ml",IF(K68="oz","g/ml",IF(K68="paq","paq",Error))))))))) -> ml | P68: BC 3 | Q68: B | T68: 4 | U68: 1 | V68: * | AE68: * | AM68: Bod Req | AN68: =IF(AM68="preparac",0,IF(A68=0,"-",IF(AM68="obsoleto","-",VLOOKUP(AO68,'B Datos 01'!D$2:F$300,3,FALSE)))) -> Sem par-imp | AO68: ='01-C Cotizar'!G68 -> Proquimia | AP68: ='02-A Facturar'!BG70 -> 33951.89 | AQ68: =IF(J68=0,F68,L68/J68) -> 1 | AR68: 20 | AS68: 20 | AT68: =IF(A68=0,"-",IF(AR68>0,(AS68/AR68),"Can mat Utilizar")) -> 1 | AU68: 1 | AV68: 3 | AW68: 1
A69: 04020006 | B69: Beta 199 | C69: Art limpieza | E69: Proquimia | F69: 1 | G69: * | H69: 20 | K69: l | L69: 20 | M69: l | O69: =IF(K69="u","porc",IF(K69="g","g",IF(K69="gal","g/ml",IF(K69="kg","g",IF(K69="l","ml",IF(K69="lb","g",IF(K69="ml","ml",IF(K69="oz","g/ml",IF(K69="paq","paq",Error))))))))) -> ml | P69: BC 3 | Q69: B | U69: 1 | AM69: Obsoleto | AN69: =IF(AM69="preparac",0,IF(A69=0,"-",IF(AM69="obsoleto","-",VLOOKUP(AO69,'B Datos 01'!D$2:F$300,3,FALSE)))) ->  | AO69: ='01-C Cotizar'!G69 -> 0 | AP69: ='02-A Facturar'!BG71 -> 21219.93 | AQ69: 1 | AR69: 20 | AS69: 20 | AT69: 1 | AU69: 1 | AV69: 3 | AW69: 1
A70: 0101039 | B70: Semilla mixta | C70: Frut / Verd | F70: 1 | G70: * | H70: 1 | K70: kg | L70: 1 | M70: kg | N70: 1000 | O70: g | P70: BC 1 | Q70: E | T70: 4 | U70: 1 | V70: * | X70: * | Y70: * | Z70: * | AM70: Bod Req | AN70: =IF(AM70="preparac",0,IF(A70=0,"-",IF(AM70="obsoleto","-",VLOOKUP(AO70,'B Datos 01'!D$2:F$300,3,FALSE)))) -> Sem par-imp | AO70: ='01-C Cotizar'!G70 -> Belca | AP70: ='02-A Facturar'!BG72 -> 4635 | AQ70: 1 | AR70: 1 | AS70: 1 | AT70: 1 | AU70: 1 | AV70: 2 | AW70: 1
A71: 04020011 | B71: Beta herta | C71: Art limpieza | E71: Proquimia | F71: 1 | G71: =IF(H71>0.1,"*","") -> * | H71: 15 | I71: * | J71: 1 | K71: kg | L71: 15 | M71: kg | O71: =IF(K71="u","porc",IF(K71="g","g",IF(K71="gal","g/ml",IF(K71="kg","g",IF(K71="l","ml",IF(K71="lb","g",IF(K71="ml","ml",IF(K71="oz","g/ml",IF(K71="paq","paq",Error))))))))) -> g | P71: BC 3 | Q71: B | T71: 2 | U71: 1 | V71: * | AE71: * | AM71: Bod Req | AN71: =IF(AM71="preparac",0,IF(A71=0,"-",IF(AM71="obsoleto","-",VLOOKUP(AO71,'B Datos 01'!D$2:F$300,3,FALSE)))) -> Sem par-imp | AO71: ='01-C Cotizar'!G71 -> Proquimia | AP71: ='02-A Facturar'!BG73 -> 18332.16 | AQ71: 15 | AR71: 15 | AS71: 15 | AT71: 1 | AU71: 15 | AV71: 30 | AW71: 15
A72: 0113088 | B72: Betun negro | C72: Abarrotes | F72: 1 | G72: * | H72: 60 | K72: g | L72: 60 | M72: g | O72: =IF(K72="u","porc",IF(K72="g","g",IF(K72="gal","g/ml",IF(K72="kg","g",IF(K72="l","ml",IF(K72="lb","g",IF(K72="ml","ml",IF(K72="oz","g/ml",IF(K72="paq","paq",Error))))))))) -> g | P72: BC 3 | Q72: A | T72: 2 | U72: 1 | V72: * | AG72: * | AH72: * | AM72: Bod Req | AN72: =IF(AM72="preparac",0,IF(A72=0,"-",IF(AM72="obsoleto","-",VLOOKUP(AO72,'B Datos 01'!D$2:F$300,3,FALSE)))) -> Sem Imp | AO72: ='01-C Cotizar'!G72 -> Ciamesa | AP72: ='02-A Facturar'!BG74 -> 1104 | AQ72: 1 | AR72: 70 | AS72: 70 | AT72: 1 | AU72: 1 | AV72: 2 | AW72: 1
A73: 0104031 | B73: Bicarbonato | C73: Abarrotes | F73: 1 | G73: * | H73: 2.5 | K73: kg | L73: 2.5 | M73: kg | O73: =IF(K73="u","porc",IF(K73="g","g",IF(K73="gal","g/ml",IF(K73="kg","g",IF(K73="l","ml",IF(K73="lb","g",IF(K73="ml","ml",IF(K73="oz","g/ml",IF(K73="paq","paq",Error))))))))) -> g | P73: BC 4 | Q73: B | T73: 1 | U73: 1 | V73: * | W73: * | AG73: * | AM73: Bod Tras | AN73: =IF(AM73="preparac",0,IF(A73=0,"-",IF(AM73="obsoleto","-",VLOOKUP(AO73,'B Datos 01'!D$2:F$300,3,FALSE)))) -> Sem par-imp | AO73: ='01-C Cotizar'!G73 -> Mayca | AP73: ='02-A Facturar'!BG75 -> 1412 | AQ73: 1 | AR73: 2.5 | AS73: 2.5 | AT73: 1 | AU73: 1 | AV73: 6 | AW73: 1
A74: 04020012 | B74: Blondas 6" | C74: Abarrotes | F74: 1 | G74: * | H74: 1000 | K74: U | L74: 1000 | M74: U | O74: =IF(K74="u","porc",IF(K74="g","g",IF(K74="gal","g/ml",IF(K74="kg","g",IF(K74="l","ml",IF(K74="lb","g",IF(K74="ml","ml",IF(K74="oz","g/ml",IF(K74="paq","paq",Error))))))))) -> porc | P74: BC 2 | Q74: B | T74: 3 | U74: 1 | V74: * | W74: * | X74: * | Y74: * | Z74: * | AB74: * | AC74: * | AE74: * | AM74: Bod Req | AN74: =IF(AM74="preparac",0,IF(A74=0,"-",IF(AM74="obsoleto","-",VLOOKUP(AO74,'B Datos 01'!D$2:F$300,3,FALSE)))) -> Sem par-imp | AO74: ='01-C Cotizar'!G74 -> Mayca | AP74: ='02-A Facturar'!BG76 -> 7370 | AQ74: 1 | AR74: 1000 | AS74: 1000 | AT74: 1 | AU74: 1 | AV74: 2 | AW74: 1
A75: 04030005 | B75: Bolsa de carton #2 | C75: Abarrotes | F75: 1 | G75: * | H75: 1000 | K75: U | L75: 1000 | M75: U | O75: =IF(K75="u","porc",IF(K75="g","g",IF(K75="gal","g/ml",IF(K75="kg","g",IF(K75="l","ml",IF(K75="lb","g",IF(K75="ml","ml",IF(K75="oz","g/ml",IF(K75="paq","paq",Error))))))))) -> porc | P75: BC 2 | Q75: C | T75: 1 | U75: 1 | V75: * | AA75: * | AM75: Bod Req | AN75: =IF(AM75="preparac",0,IF(A75=0,"-",IF(AM75="obsoleto","-",VLOOKUP(AO75,'B Datos 01'!D$2:F$300,3,FALSE)))) -> Sem par-imp | AO75: ='01-C Cotizar'!G75 -> Belca | AP75: ='02-A Facturar'!BG77 -> 9363 | AQ75: 1 | AR75: 500 | AS75: 500 | AT75: 1 | AU75: 1 | AV75: 1 | AW75: 1
A76: 04030008 | B76: Bolsa de carton #4 | C76: Abarrotes | F76: 1 | G76: * | H76: 1000 | K76: U | L76: 1000 | M76: U | O76: =IF(K76="u","porc",IF(K76="g","g",IF(K76="gal","g/ml",IF(K76="kg","g",IF(K76="l","ml",IF(K76="lb","g",IF(K76="ml","ml",IF(K76="oz","g/ml",IF(K76="paq","paq",Error))))))))) -> porc | P76: BC 2 | Q76: C | T76: 1 | U76: 1 | V76: * | AA76: * | AM76: Bod Req | AN76: =IF(AM76="preparac",0,IF(A76=0,"-",IF(AM76="obsoleto","-",VLOOKUP(AO76,'B Datos 01'!D$2:F$300,3,FALSE)))) -> Sem par-imp | AO76: ='01-C Cotizar'!G76 -> Belca | AP76: ='02-A Facturar'!BG78 -> 12800 | AQ76: 1 | AR76: 500 | AS76: 500 | AT76: 1 | AU76: 1 | AV76: 1 | AW76: 1
A77: 04030007 | B77: Bolsa de carton #12 | C77: Abarrotes | F77: 1 | G77: * | H77: 1000 | K77: U | L77: 1000 | M77: U | O77: =IF(K77="u","porc",IF(K77="g","g",IF(K77="gal","g/ml",IF(K77="kg","g",IF(K77="l","ml",IF(K77="lb","g",IF(K77="ml","ml",IF(K77="oz","g/ml",IF(K77="paq","paq",Error))))))))) -> porc | P77: BC 2 | Q77: C | T77: 1 | U77: 1 | V77: * | AA77: * | AM77: Bod Req | AN77: =IF(AM77="preparac",0,IF(A77=0,"-",IF(AM77="obsoleto","-",VLOOKUP(AO77,'B Datos 01'!D$2:F$300,3,FALSE)))) -> Sem par-imp | AO77: ='01-C Cotizar'!G77 -> Belca | AP77: ='02-A Facturar'!BG79 -> 26115 | AQ77: 1 | AR77: 500 | AS77: 500 | AT77: 1 | AU77: 1 | AV77: 1 | AW77: 1
A78: 04030059 | B78: Bolsa de carton #25 | C78: Abarrotes | F78: 1 | G78: * | H78: 500 | K78: U | L78: 500 | M78: U | O78: =IF(K78="u","porc",IF(K78="g","g",IF(K78="gal","g/ml",IF(K78="kg","g",IF(K78="l","ml",IF(K78="lb","g",IF(K78="ml","ml",IF(K78="oz","g/ml",IF(K78="paq","paq",Error))))))))) -> porc | P78: BC 2 | Q78: C | T78: 1 | U78: 1 | V78: * | AA78: * | AM78: Bod Req | AN78: =IF(AM78="preparac",0,IF(A78=0,"-",IF(AM78="obsoleto","-",VLOOKUP(AO78,'B Datos 01'!D$2:F$300,3,FALSE)))) -> Sem par-imp | AO78: ='01-C Cotizar'!G78 -> Belca | AP78: ='02-A Facturar'!BG80 -> 19503 | AQ78: 1 | AR78: 500 | AS78: 500 | AT78: 1 | AU78: 1 | AV78: 1 | AW78: 1
A79: 04030006 | B79: Bolsa de carton #8 | C79: Abarrotes | F79: 1 | G79: * | H79: 1000 | K79: U | L79: 1000 | M79: U | O79: =IF(K79="u","porc",IF(K79="g","g",IF(K79="gal","g/ml",IF(K79="kg","g",IF(K79="l","ml",IF(K79="lb","g",IF(K79="ml","ml",IF(K79="oz","g/ml",IF(K79="paq","paq",Error))))))))) -> porc | P79: BC 2 | Q79: C | T79: 1 | U79: 1 | V79: * | AA79: * | AM79: Bod Req | AN79: =IF(AM79="preparac",0,IF(A79=0,"-",IF(AM79="obsoleto","-",VLOOKUP(AO79,'B Datos 01'!D$2:F$300,3,FALSE)))) -> Sem par-imp | AO79: ='01-C Cotizar'!G79 -> Belca | AP79: ='02-A Facturar'!BG81 -> 20328 | AQ79: 1 | AR79: 500 | AS79: 500 | AT79: 1 | AU79: 1 | AV79: 1 | AW79: 1
A80: 04030015 | B80: Bolsa plastica biod 10*16" | C80: Abarrotes | F80: 1 | G80: * | H80: 1 | K80: kg | L80: 1 | M80: kg | O80: =IF(K80="u","porc",IF(K80="g","g",IF(K80="gal","g/ml",IF(K80="kg","g",IF(K80="l","ml",IF(K80="lb","g",IF(K80="ml","ml",IF(K80="oz","g/ml",IF(K80="paq","paq",Error))))))))) -> g | P80: BC 2 | Q80: B | T80: 12 | U80: 4 | V80: * | W80: * | X80: * | AC80: * | AD80: * | AH80: * | AM80: Bod Req | AN80: =IF(AM80="preparac",0,IF(A80=0,"-",IF(AM80="obsoleto","-",VLOOKUP(AO80,'B Datos 01'!D$2:F$300,3,FALSE)))) -> sem par | AO80: ='01-C Cotizar'!G80 -> C Plástico | AP80: ='02-A Facturar'!BG82 -> 1800 | AQ80: 1 | AR80: 1 | AS80: 1 | AT80: 1 | AU80: 1 | AV80: 2 | AW80: 1
A81: 04030012 | B81: Bolsa plastica biod peq 17*19" | C81: Abarrotes | F81: 1 | G81: * | H81: 9 | K81: u | L81: 9 | M81: u | O81: =IF(K81="u","porc",IF(K81="g","g",IF(K81="gal","g/ml",IF(K81="kg","g",IF(K81="l","ml",IF(K81="lb","g",IF(K81="ml","ml",IF(K81="oz","g/ml",IF(K81="paq","paq",Error))))))))) -> porc | P81: BC 2 | Q81: C | T81: 24 | U81: 12 | V81: * | AC81: * | AG81: * | AH81: * | AM81: Bod Req | AN81: =IF(AM81="preparac",0,IF(A81=0,"-",IF(AM81="obsoleto","-",VLOOKUP(AO81,'B Datos 01'!D$2:F$300,3,FALSE)))) -> Sem Imp | AO81: ='01-C Cotizar'!G81 -> Ciamesa | AP81: ='02-A Facturar'!BG83 -> 275 | AQ81: 1 | AR81: 9 | AS81: 9 | AT81: 1 | AU81: 6 | AV81: 12 | AW81: 6
A82: 04030010 | B82: Bolsa plastica biod 17*25" (200UDS) | C82: Abarrotes | F82: 1 | G82: * | H82: 200 | K82: u | L82: 200 | M82: u | O82: =IF(K82="u","porc",IF(K82="g","g",IF(K82="gal","g/ml",IF(K82="kg","g",IF(K82="l","ml",IF(K82="lb","g",IF(K82="ml","ml",IF(K82="oz","g/ml",IF(K82="paq","paq",Error))))))))) -> porc | P82: BC 2 | Q82: B | T82: 20 | U82: 5 | V82: * | W82: * | X82: * | Y82: * | Z82: * | AB82: * | AC82: * | AD82: * | AE82: * | AM82: Bod Req | AN82: =IF(AM82="preparac",0,IF(A82=0,"-",IF(AM82="obsoleto","-",VLOOKUP(AO82,'B Datos 01'!D$2:F$300,3,FALSE)))) -> Sem par-imp | AO82: ='01-C Cotizar'!G82 -> Belca | AP82: ='02-A Facturar'!BG84 -> 6385.5 | AQ82: 1 | AR82: 5 | AS82: 5 | AT82: 1 | AU82: 1 | AV82: 4 | AW82: 1
A83: 04030070 | B83: Bolsa plastica biod 4*9" | C83: Abarrotes | F83: 1 | G83: * | H83: 1 | K83: kg | L83: 1 | M83: kg | O83: =IF(K83="u","porc",IF(K83="g","g",IF(K83="gal","g/ml",IF(K83="kg","g",IF(K83="l","ml",IF(K83="lb","g",IF(K83="ml","ml",IF(K83="oz","g/ml",IF(K83="paq","paq",Error))))))))) -> g | P83: BC 2 | Q83: B | T83: 2 | U83: 1 | V83: * | W83: * | AC83: * | AG83: * | AH83: * | AM83: Bod Req | AN83: =IF(AM83="preparac",0,IF(A83=0,"-",IF(AM83="obsoleto","-",VLOOKUP(AO83,'B Datos 01'!D$2:F$300,3,FALSE)))) -> sem par | AO83: ='01-C Cotizar'!G83 -> C Plástico | AP83: ='02-A Facturar'!BG85 -> 1800 | AQ83: 1 | AR83: 1 | AS83: 1 | AT83: 1 | AU83: 1 | AV83: 1 | AW83: 1
A84: 04030013 | B84: Bolsa plastica biod 7*11" | C84: Abarrotes | F84: 1 | G84: * | H84: 1 | K84: kg | L84: 1 | M84: kg | O84: =IF(K84="u","porc",IF(K84="g","g",IF(K84="gal","g/ml",IF(K84="kg","g",IF(K84="l","ml",IF(K84="lb","g",IF(K84="ml","ml",IF(K84="oz","g/ml",IF(K84="paq","paq",Error))))))))) -> g | P84: BC 2 | Q84: B | T84: 12 | U84: 4 | V84: * | W84: * | AB84: * | AC84: * | AD84: * | AE84: * | AM84: Bod Req | AN84: =IF(AM84="preparac",0,IF(A84=0,"-",IF(AM84="obsoleto","-",VLOOKUP(AO84,'B Datos 01'!D$2:F$300,3,FALSE)))) -> sem par | AO84: ='01-C Cotizar'!G84 -> C Plástico | AP84: ='02-A Facturar'!BG86 -> 1800 | AQ84: 1 | AR84: 1 | AS84: 1 | AT84: 1 | AU84: 1 | AV84: 2 | AW84: 1
A85: 0113050 | B85: Bolsa plastica biod 9*14" | C85: Abarrotes | F85: 1 | G85: * | H85: 1 | K85: kg | L85: 1 | M85: kg | O85: =IF(K85="u","porc",IF(K85="g","g",IF(K85="gal","g/ml",IF(K85="kg","g",IF(K85="l","ml",IF(K85="lb","g",IF(K85="ml","ml",IF(K85="oz","g/ml",IF(K85="paq","paq",Error))))))))) -> g | P85: BC 2 | Q85: B | T85: 12 | U85: 4 | V85: * | W85: * | AB85: * | AC85: * | AE85: * | AG85: * | AH85: * | AM85: Bod Req | AN85: =IF(AM85="preparac",0,IF(A85=0,"-",IF(AM85="obsoleto","-",VLOOKUP(AO85,'B Datos 01'!D$2:F$300,3,FALSE)))) -> sem par | AO85: ='01-C Cotizar'!G85 -> C Plástico | AP85: ='02-A Facturar'!BG87 -> 1988.82 | AQ85: 1 | AR85: 1 | AS85: 1 | AT85: 1 | AU85: 1 | AV85: 2 | AW85: 1
A86: 04030016 | B86: Bolsa plastica biod grand 24*27" | C86: Abarrotes | F86: 1 | G86: * | H86: 9 | K86: u | L86: 9 | M86: u | O86: =IF(K86="u","porc",IF(K86="g","g",IF(K86="gal","g/ml",IF(K86="kg","g",IF(K86="l","ml",IF(K86="lb","g",IF(K86="ml","ml",IF(K86="oz","g/ml",IF(K86="paq","paq",Error))))))))) -> porc | P86: BC 2 | Q86: C | T86: 48 | U86: 6 | V86: * | AB86: * | AC86: * | AD86: * | AE86: * | AG86: * | AH86: * | AM86: Bod Req | AN86: =IF(AM86="preparac",0,IF(A86=0,"-",IF(AM86="obsoleto","-",VLOOKUP(AO86,'B Datos 01'!D$2:F$300,3,FALSE)))) -> Sem Imp | AO86: ='01-C Cotizar'!G86 -> Ciamesa | AP86: ='02-A Facturar'!BG88 -> 622 | AQ86: 1 | AR86: 9 | AS86: 9 | AT86: 1 | AU86: 6 | AV86: 12 | AW86: 6
A87: 04030011 | B87: Bolsa plas biod Jardin 33*33" (40UDS) | C87: Abarrotes | F87: 1 | G87: * | H87: 4 | I87: * | J87: 10 | K87: u | L87: 40 | M87: u | O87: =IF(K87="u","porc",IF(K87="g","g",IF(K87="gal","g/ml",IF(K87="kg","g",IF(K87="l","ml",IF(K87="lb","g",IF(K87="ml","ml",IF(K87="oz","g/ml",IF(K87="paq","paq",Error))))))))) -> porc | P87: BC 2 | Q87: B | T87: 40 | U87: 20 | V87: * | W87: * | X87: * | Y87: * | Z87: * | AB87: * | AC87: * | AD87: * | AE87: * | AG87: * | AH87: * | AM87: Bod Req | AN87: =IF(AM87="preparac",0,IF(A87=0,"-",IF(AM87="obsoleto","-",VLOOKUP(AO87,'B Datos 01'!D$2:F$300,3,FALSE)))) -> Sem par-imp | AO87: ='01-C Cotizar'!G87 -> Belca | AP87: ='02-A Facturar'!BG89 -> 6489 | AQ87: 4 | AR87: 12 | AS87: 12 | AT87: 1 | AU87: 1 | AV87: 4 | AW87: 1
A88: 04030009 | B88: Bolsa plastica biod med 20*22" | C88: Abarrotes | F88: 1 | G88: * | H88: 9 | K88: u | L88: 9 | M88: u | O88: =IF(K88="u","porc",IF(K88="g","g",IF(K88="gal","g/ml",IF(K88="kg","g",IF(K88="l","ml",IF(K88="lb","g",IF(K88="ml","ml",IF(K88="oz","g/ml",IF(K88="paq","paq",Error))))))))) -> porc | P88: BC 2 | Q88: C | T88: 24 | U88: 12 | V88: * | AB88: * | AC88: * | AE88: * | AM88: Bod Req | AN88: =IF(AM88="preparac",0,IF(A88=0,"-",IF(AM88="obsoleto","-",VLOOKUP(AO88,'B Datos 01'!D$2:F$300,3,FALSE)))) -> Sem Imp | AO88: ='01-C Cotizar'!G88 -> Ciamesa | AP88: ='02-A Facturar'!BG90 -> 347 | AQ88: 1 | AR88: 9 | AS88: 9 | AT88: 1 | AU88: 6 | AV88: 12 | AW88: 6
A89: 0109023 | B89: Bonito hojue tokuyo hanakatsuo kaneso | C89: Abarrotes | F89: 1 | G89: * | H89: 500 | K89: g | L89: 500 | M89: g | N89: 500 | O89: =IF(K89="u","porc",IF(K89="g","g",IF(K89="gal","g/ml",IF(K89="kg","g",IF(K89="l","ml",IF(K89="lb","g",IF(K89="ml","ml",IF(K89="oz","g/ml",IF(K89="paq","paq",Error))))))))) -> g | P89: BC 1 | Q89: B | T89: 1 | U89: 1 | V89: * | AC89: * | AM89: Bod Tras | AN89: =IF(AM89="preparac",0,IF(A89=0,"-",IF(AM89="obsoleto","-",VLOOKUP(AO89,'B Datos 01'!D$2:F$300,3,FALSE)))) -> Sem par-imp | AO89: ='01-C Cotizar'!G89 -> Isleña | AP89: ='02-A Facturar'!BG91 -> 19800 | AQ89: 1 | AR89: 500 | AS89: 500 | AT89: 1 | AU89: 1 | AV89: 1 | AW89: 1
A90: 02160002 | B90: Bottega Fragolino, Rosso, Italia | C90: Tinto | D90: Rosado | E90: =AO90 -> V/Alpiste | F90: 1 | G90: * | H90: 750 | K90: ml | L90: 750 | M90: ml | O90: =IF(K90="u","porc",IF(K90="g","g",IF(K90="gal","g/ml",IF(K90="kg","g",IF(K90="l","ml",IF(K90="lb","g",IF(K90="ml","ml",IF(K90="oz","g/ml",IF(K90="paq","paq",Error))))))))) -> ml | P90: BC 1 | Q90: C | T90: 6 | U90: 1 | V90: * | X90: * | Y90: * | AM90: Bod Tras | AN90: =IF(AM90="preparac",0,IF(A90=0,"-",IF(AM90="obsoleto","-",VLOOKUP(AO90,'B Datos 01'!D$2:F$300,3,FALSE)))) -> Sem par | AO90: ='01-C Cotizar'!G90 -> V/Alpiste | AP90: ='02-A Facturar'!BG92 -> 6355.055063 | AQ90: 1 | AR90: 750 | AS90: 750 | AT90: 1 | AU90: 1 | AV90: 3 | AW90: 1
A91: 02080002 | B91: Brandy napoleon texier bot | C91: Bebidas | F91: 1 | G91: * | H91: 750 | K91: ml | L91: 750 | M91: ml | N91: 750 | O91: =IF(K91="u","porc",IF(K91="g","g",IF(K91="gal","g/ml",IF(K91="kg","g",IF(K91="l","ml",IF(K91="lb","g",IF(K91="ml","ml",IF(K91="oz","g/ml",IF(K91="paq","paq",Error))))))))) -> ml | P91: BC 1 | Q91: C | T91: 6 | U91: 1 | V91: * | W91: * | AC91: * | AD91: * | AM91: Bod Tras | AN91: =IF(AM91="preparac",0,IF(A91=0,"-",IF(AM91="obsoleto","-",VLOOKUP(AO91,'B Datos 01'!D$2:F$300,3,FALSE)))) -> Sem par-imp | AO91: ='01-C Cotizar'!G91 -> L San Ramon | AP91: ='02-A Facturar'!BG93 -> 4951.560818 | AQ91: 1 | AR91: 750 | AS91: 750 | AT91: 1 | AU91: 1 | AV91: 4 | AW91: 1
A92: 0104017 | B92: Cacao amargo | C92: Abarrotes | F92: 1 | G92: * | H92: 1 | K92: kg | L92: 1 | M92: kg | O92: =IF(K92="u","porc",IF(K92="g","g",IF(K92="gal","g/ml",IF(K92="kg","g",IF(K92="l","ml",IF(K92="lb","g",IF(K92="ml","ml",IF(K92="oz","g/ml",IF(K92="paq","paq",Error))))))))) -> g | P92: BC 1 | Q92: E | T92: 1 | U92: 1 | V92: * | W92: * | AM92: Bod Tras | AN92: =IF(AM92="preparac",0,IF(A92=0,"-",IF(AM92="obsoleto","-",VLOOKUP(AO92,'B Datos 01'!D$2:F$300,3,FALSE)))) -> Sem par-imp | AO92: ='01-C Cotizar'!G92 -> Mayca | AP92: ='02-A Facturar'!BG94 -> 0 | AQ92: 1 | AR92: 1 | AS92: 1 | AT92: 1 | AU92: 1 | AV92: 2 | AW92: 1
A93: 02180002 | B93: Café 500 grs | C93: Abarrotes | F93: 1 | G93: * | H93: 500 | K93: g | L93: 500 | M93: g | O93: =IF(K93="u","porc",IF(K93="g","g",IF(K93="gal","g/ml",IF(K93="kg","g",IF(K93="l","ml",IF(K93="lb","g",IF(K93="ml","ml",IF(K93="oz","g/ml",IF(K93="paq","paq",Error))))))))) -> g | P93: BC 1 | Q93: E | T93: 48 | U93: 24 | V93: * | W93: * | Y93: * | Z93: * | AB93: * | AD93: * | AE93: * | AG93: * | AH93: * | AI93: * | AM93: Bod Req | AN93: =IF(AM93="preparac",0,IF(A93=0,"-",IF(AM93="obsoleto","-",VLOOKUP(AO93,'B Datos 01'!D$2:F$300,3,FALSE)))) -> Sem Imp | AO93: ='01-C Cotizar'!G93 -> Panal | AP93: ='02-A Facturar'!BG95 -> 2429.36 | AQ93: 1 | AR93: 500 | AS93: 500 | AT93: 1 | AU93: 1 | AV93: 4 | AW93: 1
A94: 02180008 | B94: Café britt descafeinado | C94: Bebidas | E94: Britt | F94: 1 | G94: * | H94: 500 | K94: g | L94: 500 | M94: g | N94: 500 | O94: =IF(K94="u","porc",IF(K94="g","g",IF(K94="gal","g/ml",IF(K94="kg","g",IF(K94="l","ml",IF(K94="lb","g",IF(K94="ml","ml",IF(K94="oz","g/ml",IF(K94="paq","paq",Error))))))))) -> g | P94: BC 1 | Q94: E | T94: 6 | U94: 1 | V94: * | X94: * | Y94: * | AM94: Bod Tras | AN94: =IF(AM94="preparac",0,IF(A94=0,"-",IF(AM94="obsoleto","-",VLOOKUP(AO94,'B Datos 01'!D$2:F$300,3,FALSE)))) -> Sem Imp | AO94: ='01-C Cotizar'!G94 -> Britt | AP94: ='02-A Facturar'!BG96 -> 5165 | AQ94: 1 | AR94: 500 | AS94: 500 | AT94: 1 | AU94: 1 | AV94: 3 | AW94: 1
A95: 0113018 | B95: Cafe britt descafeinado pods 10g | C95: Bebidas | E95: Britt | F95: 1 | G95: * | H95: 100 | I95: * | J95: 10 | K95: g | L95: 1000 | M95: g | N95: 1000 | O95: =IF(K95="u","porc",IF(K95="g","g",IF(K95="gal","g/ml",IF(K95="kg","g",IF(K95="l","ml",IF(K95="lb","g",IF(K95="ml","ml",IF(K95="oz","g/ml",IF(K95="paq","paq",Error))))))))) -> g | P95: BC 1 | Q95: E | T95: 2 | U95: 1 | V95: * | AM95: Bod Tras | AN95: =IF(AM95="preparac",0,IF(A95=0,"-",IF(AM95="obsoleto","-",VLOOKUP(AO95,'B Datos 01'!D$2:F$300,3,FALSE)))) -> Sem Imp | AO95: ='01-C Cotizar'!G95 -> Britt | AP95: ='02-A Facturar'!BG97 -> 41500 | AQ95: 100 | AR95: 1000 | AS95: 100 | AT95: 0.1 | AU95: 1 | AV95: 1 | AW95: 1
B96: Café britt tueste oscuro pods | C96: Bebidas | E96: Britt | F96: 1 | G96: * | H96: 100 | I96: * | J96: 10 | K96: g | L96: 1000 | M96: g | N96: 1000 | O96: =IF(K96="u","porc",IF(K96="g","g",IF(K96="gal","g/ml",IF(K96="kg","g",IF(K96="l","ml",IF(K96="lb","g",IF(K96="ml","ml",IF(K96="oz","g/ml",IF(K96="paq","paq",Error))))))))) -> g | P96: BC 1 | Q96: A | AM96: Obsoleto | AN96: =IF(AM96="preparac",0,IF(A96=0,"-",IF(AM96="obsoleto","-",VLOOKUP(AO96,'B Datos 01'!D$2:F$300,3,FALSE)))) -> - | AO96: ='01-C Cotizar'!G96 -> 0 | AP96: ='02-A Facturar'!BG98 -> 0 | AQ96: 100 | AR96: 100 | AS96: 100 | AT96: -
A97: 02180022 | B97: Café espresso grano | C97: Bebidas | E97: Britt | F97: 1 | G97: * | H97: 908 | K97: g | L97: 908 | M97: g | O97: =IF(K97="u","porc",IF(K97="g","g",IF(K97="gal","g/ml",IF(K97="kg","g",IF(K97="l","ml",IF(K97="lb","g",IF(K97="ml","ml",IF(K97="oz","g/ml",IF(K97="paq","paq",Error))))))))) -> g | P97: BC 1 | Q97: E | T97: 6 | U97: 1 | V97: * | X97: * | Y97: * | AD97: * | AM97: Bod Tras | AN97: =IF(AM97="preparac",0,IF(A97=0,"-",IF(AM97="obsoleto","-",VLOOKUP(AO97,'B Datos 01'!D$2:F$300,3,FALSE)))) -> Sem Imp | AO97: ='01-C Cotizar'!G97 -> Britt | AP97: ='02-A Facturar'!BG99 -> 9345 | AQ97: 1 | AR97: 908 | AS97: 908 | AT97: 1 | AU97: 1 | AV97: 2 | AW97: 1
A98: 02180005 | B98: Café Grano consumo | C98: Bebidas | E98: Uniliver | F98: 1 | G98: * | H98: 340 | K98: g | L98: 340 | M98: g | O98: =IF(K98="u","porc",IF(K98="g","g",IF(K98="gal","g/ml",IF(K98="kg","g",IF(K98="l","ml",IF(K98="lb","g",IF(K98="ml","ml",IF(K98="oz","g/ml",IF(K98="paq","paq",Error))))))))) -> g | P98: BC 1 | Q98: E | V98: * | AM98: Obsoleto | AN98: =IF(AM98="preparac",0,IF(A98=0,"-",IF(AM98="obsoleto","-",VLOOKUP(AO98,'B Datos 01'!D$2:F$300,3,FALSE)))) -> - | AO98: ='01-C Cotizar'!G98 -> 0 | AP98: ='02-A Facturar'!BG100 -> 2400 | AQ98: 1 | AR98: 340 | AS98: 340 | AT98: 1
A99: 0113017 | B99: Café molido 1820 | C99: Bebidas | E99: Uniliver | F99: 1 | G99: * | H99: 1000 | K99: g | L99: 1000 | M99: g | N99: 1000 | O99: =IF(K99="u","porc",IF(K99="g","g",IF(K99="gal","g/ml",IF(K99="kg","g",IF(K99="l","ml",IF(K99="lb","g",IF(K99="ml","ml",IF(K99="oz","g/ml",IF(K99="paq","paq",Error))))))))) -> g | P99: BC 1 | Q99: E | T99: 48 | U99: 24 | V99: * | X99: * | AM99: Bod Tras | AN99: =IF(AM99="preparac",0,IF(A99=0,"-",IF(AM99="obsoleto","-",VLOOKUP(AO99,'B Datos 01'!D$2:F$300,3,FALSE)))) -> Sem Imp | AO99: ='01-C Cotizar'!G99 -> Panal | AP99: ='02-A Facturar'!BG101 -> 4796.11 | AQ99: 1 | AR99: 1000 | AS99: 1000 | AT99: 1 | AU99: 6 | AV99: 12 | AW99: 6
A100: 02180009 | B100: Café room service | C100: Abarrotes | F100: 1 | G100: * | H100: 100 | I100: * | J100: 10 | K100: g | L100: 1000 | M100: g | O100: =IF(K100="u","porc",IF(K100="g","g",IF(K100="gal","g/ml",IF(K100="kg","g",IF(K100="l","ml",IF(K100="lb","g",IF(K100="ml","ml",IF(K100="oz","g/ml",IF(K100="paq","paq",Error))))))))) -> g | P100: BC 1 | Q100: A | T100: 20 | U100: 2 | V100: * | AB100: * | AM100: Bod Req | AN100: =IF(AM100="preparac",0,IF(A100=0,"-",IF(AM100="obsoleto","-",VLOOKUP(AO100,'B Datos 01'!D$2:F$300,3,FALSE)))) -> Sem Imp | AO100: ='01-C Cotizar'!G100 -> Britt | AP100: ='02-A Facturar'!BG102 -> 32500 | AQ100: 100 | AR100: 1000 | AS100: 1000 | AT100: 1 | AU100: 1 | AV100: 3 | AW100: 1
B101: Café tueste claro molido institucional | C101: Bebidas | E101: Britt | F101: 1 | G101: * | H101: 500 | K101: g | L101: 500 | M101: g | O101: =IF(K101="u","porc",IF(K101="g","g",IF(K101="gal","g/ml",IF(K101="kg","g",IF(K101="l","ml",IF(K101="lb","g",IF(K101="ml","ml",IF(K101="oz","g/ml",IF(K101="paq","paq",Error))))))))) -> g | P101: BC 1 | Q101: E | AM101: Obsoleto | AN101: =IF(AM101="preparac",0,IF(A101=0,"-",IF(AM101="obsoleto","-",VLOOKUP(AO101,'B Datos 01'!D$2:F$300,3,FALSE)))) -> - | AO101: ='01-C Cotizar'!G101 -> 0 | AP101: ='02-A Facturar'!BG103 -> 0 | AQ101: 1 | AR101: 500 | AS101: 500 | AT101: -
B102: Café tueste oscuro molido institucional | C102: Bebidas | E102: Britt | F102: 1 | G102: * | H102: 500 | K102: g | L102: 500 | M102: g | O102: =IF(K102="u","porc",IF(K102="g","g",IF(K102="gal","g/ml",IF(K102="kg","g",IF(K102="l","ml",IF(K102="lb","g",IF(K102="ml","ml",IF(K102="oz","g/ml",IF(K102="paq","paq",Error))))))))) -> g | P102: BC 1 | Q102: E | AM102: Obsoleto | AN102: =IF(AM102="preparac",0,IF(A102=0,"-",IF(AM102="obsoleto","-",VLOOKUP(AO102,'B Datos 01'!D$2:F$300,3,FALSE)))) -> - | AO102: ='01-C Cotizar'!G102 -> 0 | AP102: ='02-A Facturar'!BG104 -> 0 | AQ102: 1 | AR102: 500 | AS102: 500 | AT102: -
A103: 04030095 | B103: Caja p/ Pizza 14" | C103: Abarrotes | F103: 1 | G103: =IF(H103>0.1,"*","") -> * | H103: 50 | K103: u | L103: 50 | M103: u | O103: =IF(K103="u","porc",IF(K103="g","g",IF(K103="gal","g/ml",IF(K103="kg","g",IF(K103="l","ml",IF(K103="lb","g",IF(K103="ml","ml",IF(K103="oz","g/ml",IF(K103="paq","paq",Error))))))))) -> porc | P103: BC 2 | Q103: B | T103: 1 | U103: 1 | V103: * | AD103: * | AM103: Bod Req | AN103: =IF(AM103="preparac",0,IF(A103=0,"-",IF(AM103="obsoleto","-",VLOOKUP(AO103,'B Datos 01'!D$2:F$300,3,FALSE)))) -> Sem par-imp | AO103: ='01-C Cotizar'!G103 -> Belca | AP103: ='02-A Facturar'!BG105 -> 12915 | AQ103: 1 | AR103: 50 | AS103: 50 | AT103: 1 | AU103: 1 | AV103: 1 | AW103: 1
A104: 0405006 | B104: Caja queque 14" | C104: Abarrotes | F104: 1 | G104: * | H104: 25 | K104: u | L104: 25 | M104: u | O104: =IF(K104="u","porc",IF(K104="g","g",IF(K104="gal","g/ml",IF(K104="kg","g",IF(K104="l","ml",IF(K104="lb","g",IF(K104="ml","ml",IF(K104="oz","g/ml",IF(K104="paq","paq",Error))))))))) -> porc | P104: BC 2 | Q104: B | AM104: Obsoleto | AN104: =IF(AM104="preparac",0,IF(A104=0,"-",IF(AM104="obsoleto","-",VLOOKUP(AO104,'B Datos 01'!D$2:F$300,3,FALSE)))) ->  | AO104: ='01-C Cotizar'!G104 -> 0 | AP104: ='02-A Facturar'!BG106 -> 16100 | AQ104: 1 | AR104: 25 | AS104: 25 | AT104: 1 | AU104: 1 | AV104: 1 | AW104: 1
A105: 04030017 | B105: Calentadores | C105: Abarrotes | F105: 1 | G105: * | H105: 72 | K105: u | L105: 72 | M105: u | O105: =IF(K105="u","porc",IF(K105="g","g",IF(K105="gal","g/ml",IF(K105="kg","g",IF(K105="l","ml",IF(K105="lb","g",IF(K105="ml","ml",IF(K105="oz","g/ml",IF(K105="paq","paq",Error))))))))) -> porc | P105: BC 2 | Q105: B | T105: 2 | U105: 1 | V105: * | W105: * | AM105: Bod Req | AN105: =IF(AM105="preparac",0,IF(A105=0,"-",IF(AM105="obsoleto","-",VLOOKUP(AO105,'B Datos 01'!D$2:F$300,3,FALSE)))) -> Sem Imp | AO105: ='01-C Cotizar'!G105 -> Ciamesa | AP105: ='02-A Facturar'!BG107 -> 22092 | AQ105: 1 | AR105: 72 | AS105: 72 | AT105: 1 | AU105: 1 | AV105: 1 | AW105: 1
A106: 02030017 | B106: Canada dry cub soda | C106: Bebidas | D106: Plástico | E106: Coca | F106: 1 | G106: * | H106: 12 | I106: * | J106: 600 | K106: ml | L106: 7200 | M106: ml | O106: =IF(K106="u","porc",IF(K106="g","g",IF(K106="gal","g/ml",IF(K106="kg","g",IF(K106="l","ml",IF(K106="lb","g",IF(K106="ml","ml",IF(K106="oz","g/ml",IF(K106="paq","paq",Error))))))))) -> ml | P106: BC 2 | Q106: B | T106: 2 | U106: 1 | V106: * | X106: * | Y106: * | Z106: * | AM106: Bod Tras | AN106: =IF(AM106="preparac",0,IF(A106=0,"-",IF(AM106="obsoleto","-",VLOOKUP(AO106,'B Datos 01'!D$2:F$300,3,FALSE)))) -> Sem par-imp | AO106: ='01-C Cotizar'!G106 -> Coca | AP106: ='02-A Facturar'!BG108 -> 6994.478844 | AQ106: 12 | AR106: 7200 | AS106: 7200 | AT106: 1 | AU106: 12 | AV106: 12 | AW106: 12
A107: 02030016 | B107: Canada dry cub soda | C107: Bebidas | D107: Vidrio | E107: Coca | F107: 1 | G107: * | H107: 24 | I107: * | J107: 355 | K107: ml | L107: 8520 | M107: ml | O107: =IF(K107="u","porc",IF(K107="g","g",IF(K107="gal","g/ml",IF(K107="kg","g",IF(K107="l","ml",IF(K107="lb","g",IF(K107="ml","ml",IF(K107="oz","g/ml",IF(K107="paq","paq",Error))))))))) -> ml | P107: BC 2 | Q107: A | T107: 2 | U107: 1 | V107: * | X107: * | Y107: * | AM107: Bod Tras | AN107: =IF(AM107="preparac",0,IF(A107=0,"-",IF(AM107="obsoleto","-",VLOOKUP(AO107,'B Datos 01'!D$2:F$300,3,FALSE)))) -> Sem par-imp | AO107: ='01-C Cotizar'!G107 -> Coca | AP107: ='02-A Facturar'!BG109 -> 6994.478844 | AQ107: 24 | AR107: 8520 | AS107: 8520 | AT107: 1 | AU107: 12 | AV107: 24 | AW107: 12
A108: 02030014 | B108: Canada dry gin | C108: Bebidas | D108: Vidrio | E108: Coca | F108: 1 | G108: * | H108: 24 | I108: * | J108: 355 | K108: ml | L108: 8520 | M108: ml | O108: =IF(K108="u","porc",IF(K108="g","g",IF(K108="gal","g/ml",IF(K108="kg","g",IF(K108="l","ml",IF(K108="lb","g",IF(K108="ml","ml",IF(K108="oz","g/ml",IF(K108="paq","paq",Error))))))))) -> ml | P108: BC 2 | Q108: A | T108: 2 | U108: 1 | V108: * | W108: * | X108: * | Y108: * | AC108: * | AD108: * | AM108: Bod Tras | AN108: =IF(AM108="preparac",0,IF(A108=0,"-",IF(AM108="obsoleto","-",VLOOKUP(AO108,'B Datos 01'!D$2:F$300,3,FALSE)))) -> Sem par-imp | AO108: ='01-C Cotizar'!G108 -> Coca | AP108: ='02-A Facturar'!BG110 -> 6994.478844 | AQ108: 24 | AR108: 8520 | AS108: 8520 | AT108: 1 | AU108: 12 | AV108: 24 | AW108: 12
A109: 02120007 | B109: Canadian club botella | C109: Bebidas | F109: 1 | G109: * | H109: 750 | K109: ml | L109: 750 | M109: ml | O109: =IF(K109="u","porc",IF(K109="g","g",IF(K109="gal","g/ml",IF(K109="kg","g",IF(K109="l","ml",IF(K109="lb","g",IF(K109="ml","ml",IF(K109="oz","g/ml",IF(K109="paq","paq",Error))))))))) -> ml | P109: BC 1 | Q109: C | T109: 1 | U109: 1 | V109: * | X109: * | Y109: * | Z109: * | AM109: Bod Tras | AN109: =IF(AM109="preparac",0,IF(A109=0,"-",IF(AM109="obsoleto","-",VLOOKUP(AO109,'B Datos 01'!D$2:F$300,3,FALSE)))) -> Sem par-imp | AO109: ='01-C Cotizar'!G109 -> L San Ramon | AP109: ='02-A Facturar'!BG111 -> 10991.9682 | AQ109: 1 | AR109: 750 | AS109: 750 | AT109: 1 | AU109: 1 | AV109: 1 | AW109: 1
A110: 02020024 | B110: Canda dry gin lat | C110: Bebidas | D110: Lata | E110: Coca | F110: 1 | G110: * | H110: 12 | I110: * | J110: 354 | K110: ml | L110: 4248 | M110: ml | O110: =IF(K110="u","porc",IF(K110="g","g",IF(K110="gal","g/ml",IF(K110="kg","g",IF(K110="l","ml",IF(K110="lb","g",IF(K110="ml","ml",IF(K110="oz","g/ml",IF(K110="paq","paq",Error))))))))) -> ml | P110: BC 2 | Q110: B | T110: 2 | U110: 1 | V110: * | Z110: * | AM110: Bod Tras | AN110: =IF(AM110="preparac",0,IF(A110=0,"-",IF(AM110="obsoleto","-",VLOOKUP(AO110,'B Datos 01'!D$2:F$300,3,FALSE)))) -> Sem par-imp | AO110: ='01-C Cotizar'!G110 -> Coca | AP110: ='02-A Facturar'!BG112 -> 5763.730964 | AQ110: 12 | AR110: 4248 | AS110: 4248 | AT110: 1 | AU110: 12 | AV110: 24 | AW110: 12
A111: 02020029 | B111: Canda dry gin | C111: Bebidas | D111: Plástico | E111: Coca | F111: 1 | G111: * | H111: 12 | I111: * | J111: 600 | K111: ml | L111: 7200 | M111: ml | O111: =IF(K111="u","porc",IF(K111="g","g",IF(K111="gal","g/ml",IF(K111="kg","g",IF(K111="l","ml",IF(K111="lb","g",IF(K111="ml","ml",IF(K111="oz","g/ml",IF(K111="paq","paq",Error))))))))) -> ml | P111: BC 2 | Q111: B | U111: 1 | V111: * | AA111: * | AM111: Bod Tras | AN111: =IF(AM111="preparac",0,IF(A111=0,"-",IF(AM111="obsoleto","-",VLOOKUP(AO111,'B Datos 01'!D$2:F$300,3,FALSE)))) -> Sem par-imp | AO111: ='01-C Cotizar'!G111 -> Coca | AP111: ='02-A Facturar'!BG113 -> 6994.478844 | AQ111: 12 | AR111: 7200 | AS111: 7200 | AT111: 1 | AU111: 12 | AV111: 12 | AW111: 12
A112: 04030018 | B112: Candelas Cumpleaños | C112: Abarrotes | F112: 1 | G112: * | H112: 10 | K112: u | L112: 10 | M112: u | O112: =IF(K112="u","porc",IF(K112="g","g",IF(K112="gal","g/ml",IF(K112="kg","g",IF(K112="l","ml",IF(K112="lb","g",IF(K112="ml","ml",IF(K112="oz","g/ml",IF(K112="paq","paq",Error))))))))) -> porc | P112: BC 2 | Q112: B | T112: 4 | U112: 1 | V112: * | W112: * | X112: * | Y112: * | Z112: * | AD112: * | AM112: Bod Req | AN112: =IF(AM112="preparac",0,IF(A112=0,"-",IF(AM112="obsoleto","-",VLOOKUP(AO112,'B Datos 01'!D$2:F$300,3,FALSE)))) -> sem par | AO112: ='01-C Cotizar'!G112 -> C Plástico | AP112: ='02-A Facturar'!BG114 -> 822.524 | AQ112: 1 | AR112: 10 | AS112: 10 | AT112: 1 | AU112: 1 | AV112: 4 | AW112: 1
A113: 04030019 | B113: Candelas quemadores | C113: Abarrotes | F113: 1 | G113: * | H113: 500 | K113: u | L113: 500 | M113: u | O113: =IF(K113="u","porc",IF(K113="g","g",IF(K113="gal","g/ml",IF(K113="kg","g",IF(K113="l","ml",IF(K113="lb","g",IF(K113="ml","ml",IF(K113="oz","g/ml",IF(K113="paq","paq",Error))))))))) -> porc | P113: BC 2 | Q113: B | T113: 3 | U113: 1 | V113: * | X113: * | Y113: * | Z113: * | AA113: * | AB113: * | AE113: * | AM113: Bod Req | AN113: =IF(AM113="preparac",0,IF(A113=0,"-",IF(AM113="obsoleto","-",VLOOKUP(AO113,'B Datos 01'!D$2:F$300,3,FALSE)))) -> Sem par-imp | AO113: ='01-C Cotizar'!G113 -> Mayca | AP113: ='02-A Facturar'!BG115 -> 28656.9 | AQ113: 1 | AR113: 500 | AS113: 500 | AT113: 1 | AU113: 1 | AV113: 4 | AW113: 1
A114: 0104013 | B114: Canela polvo | C114: Abarrotes | F114: 1 | G114: * | H114: 1000 | K114: g | L114: 1000 | M114: g | N114: 500 | O114: =IF(K114="u","porc",IF(K114="g","g",IF(K114="gal","g/ml",IF(K114="kg","g",IF(K114="l","ml",IF(K114="lb","g",IF(K114="ml","ml",IF(K114="oz","g/ml",IF(K114="paq","paq",Error))))))))) -> g | P114: BC 1 | Q114: A | T114: 1 | U114: 1 | V114: * | W114: * | X114: * | Y114: * | AM114: Bod Tras | AN114: =IF(AM114="preparac",0,IF(A114=0,"-",IF(AM114="obsoleto","-",VLOOKUP(AO114,'B Datos 01'!D$2:F$300,3,FALSE)))) -> Sem par-imp | AO114: ='01-C Cotizar'!G114 -> Belca | AP114: ='02-A Facturar'!BG116 -> 3595.5 | AQ114: 1 | AR114: 1000 | AS114: 1000 | AT114: 1 | AU114: 1 | AV114: 1 | AW114: 1
B115: Salsa anguila | E115: HAS | F115: 1 | G115: * | H115: 1 | K115: l | L115: 1 | M115: l | O115: =IF(K115="u","porc",IF(K115="g","g",IF(K115="gal","g/ml",IF(K115="kg","g",IF(K115="l","ml",IF(K115="lb","g",IF(K115="ml","ml",IF(K115="oz","g/ml",IF(K115="paq","paq",Error))))))))) -> ml | U115: 1 | V115: * | AM115: Preparac | AN115: =IF(AM115="preparac",0,IF(A115=0,"-",IF(AM115="obsoleto","-",VLOOKUP(AO115,'B Datos 01'!D$2:F$300,3,FALSE)))) -> 0 | AO115: ='01-C Cotizar'!G115 -> 0 | AP115: ='02-A Facturar'!BG117 -> 0 | AQ115: 1 | AR115: 1 | AS115: 1 | AT115: -
A116: 0103018 | B116: Canelon grd | C116: Abarrotes | F116: 1 | G116: * | H116: 1 | K116: kg | L116: 1 | M116: kg | N116: 1000 | O116: =IF(K116="u","porc",IF(K116="g","g",IF(K116="gal","g/ml",IF(K116="kg","g",IF(K116="l","ml",IF(K116="lb","g",IF(K116="ml","ml",IF(K116="oz","g/ml",IF(K116="paq","paq",Error))))))))) -> g | P116: BC 1 | Q116: B | T116: 3 | U116: 1 | V116: * | W116: * | AM116: Bod Tras | AN116: =IF(AM116="preparac",0,IF(A116=0,"-",IF(AM116="obsoleto","-",VLOOKUP(AO116,'B Datos 01'!D$2:F$300,3,FALSE)))) -> Sem par-imp | AO116: ='01-C Cotizar'!G116 -> Belca | AP116: ='02-A Facturar'!BG118 -> 2204.3 | AQ116: 1 | AR116: 1000 | AS116: 1000 | AT116: 1 | AU116: 1 | AV116: 3 | AW116: 1
A117: 0113020 | B117: Canelon peq | C117: Abarrotes | F117: 1 | G117: * | H117: 250 | K117: g | L117: 250 | M117: g | O117: =IF(K117="u","porc",IF(K117="g","g",IF(K117="gal","g/ml",IF(K117="kg","g",IF(K117="l","ml",IF(K117="lb","g",IF(K117="ml","ml",IF(K117="oz","g/ml",IF(K117="paq","paq",Error))))))))) -> g | P117: BC 1 | Q117: D | T117: 12 | U117: 6 | V117: * | AG117: * | AH117: * | AM117: Bod Req | AN117: =IF(AM117="preparac",0,IF(A117=0,"-",IF(AM117="obsoleto","-",VLOOKUP(AO117,'B Datos 01'!D$2:F$300,3,FALSE)))) -> Sem Imp | AO117: ='01-C Cotizar'!G117 -> Ciamesa | AP117: ='02-A Facturar'!BG119 -> 615 | AQ117: 1 | AR117: 250 | AS117: 250 | AT117: 1 | AU117: 1 | AV117: 6 | AW117: 1
A118: 0104043 | B118: Capsulas(canastica) PAN 4.5" | C118: Abarrotes | F118: 1 | G118: * | H118: 500 | K118: u | L118: 500 | M118: u | O118: =IF(K118="u","porc",IF(K118="g","g",IF(K118="gal","g/ml",IF(K118="kg","g",IF(K118="l","ml",IF(K118="lb","g",IF(K118="ml","ml",IF(K118="oz","g/ml",IF(K118="paq","paq",Error))))))))) -> porc | P118: BC 2 | Q118: B | T118: 3 | U118: 1 | V118: * | W118: * | AM118: Bod Req | AN118: =IF(AM118="preparac",0,IF(A118=0,"-",IF(AM118="obsoleto","-",VLOOKUP(AO118,'B Datos 01'!D$2:F$300,3,FALSE)))) -> Sem par-imp | AO118: ='01-C Cotizar'!G118 -> Belca | AP118: ='02-A Facturar'!BG120 -> 1646.19 | AQ118: 1 | AR118: 500 | AS118: 500 | AT118: 1 | AU118: 1 | AV118: 1 | AW118: 1
A119: 0103003 | B119: Caracolitos grd | C119: Abarrotes | F119: 1 | G119: * | H119: 500 | K119: g | L119: 500 | M119: g | N119: 500 | O119: =IF(K119="u","porc",IF(K119="g","g",IF(K119="gal","g/ml",IF(K119="kg","g",IF(K119="l","ml",IF(K119="lb","g",IF(K119="ml","ml",IF(K119="oz","g/ml",IF(K119="paq","paq",Error))))))))) -> g | P119: BC 1 | Q119: B | T119: 6 | U119: 1 | V119: * | W119: * | AM119: Bod Tras | AN119: =IF(AM119="preparac",0,IF(A119=0,"-",IF(AM119="obsoleto","-",VLOOKUP(AO119,'B Datos 01'!D$2:F$300,3,FALSE)))) -> Sem par-imp | AO119: ='01-C Cotizar'!G119 -> Isleña | AP119: ='02-A Facturar'!BG121 -> 550 | AQ119: 1 | AR119: 500 | AS119: 500 | AT119: 1 | AU119: 1 | AV119: 6 | AW119: 1
A120: 0113021 | B120: Caracolitos peq | C120: Abarrotes | E120: ROMA | F120: 1 | G120: * | H120: 250 | K120: g | L120: 250 | M120: g | N120: 250 | O120: =IF(K120="u","porc",IF(K120="g","g",IF(K120="gal","g/ml",IF(K120="kg","g",IF(K120="l","ml",IF(K120="lb","g",IF(K120="ml","ml",IF(K120="oz","g/ml",IF(K120="paq","paq",Error))))))))) -> g | P120: BC 1 | Q120: D | T120: 12 | U120: 6 | V120: * | AG120: * | AH120: * | AI120: * | AM120: Bod Tras | AN120: =IF(AM120="preparac",0,IF(A120=0,"-",IF(AM120="obsoleto","-",VLOOKUP(AO120,'B Datos 01'!D$2:F$300,3,FALSE)))) -> Sem Imp | AO120: ='01-C Cotizar'!G120 -> Ciamesa | AP120: ='02-A Facturar'!BG122 -> 450 | AQ120: 1 | AR120: 250 | AS120: 250 | AT120: 1 | AU120: 1 | AV120: 6 | AW120: 1
A121: 02140002 | B121: Casillero del Diablo, Reserva, Chile | C121: Tinto | D121: Cabernet Sauvignon | E121: =AO121 -> V/E Florida | F121: 1 | G121: * | H121: 750 | K121: ml | L121: 750 | M121: ml | O121: =IF(K121="u","porc",IF(K121="g","g",IF(K121="gal","g/ml",IF(K121="kg","g",IF(K121="l","ml",IF(K121="lb","g",IF(K121="ml","ml",IF(K121="oz","g/ml",IF(K121="paq","paq",Error))))))))) -> ml | P121: BC 1 | Q121: C | T121: 18 | U121: 1 | V121: * | X121: * | Y121: * | AM121: Bod Tras | AN121: =IF(AM121="preparac",0,IF(A121=0,"-",IF(AM121="obsoleto","-",VLOOKUP(AO121,'B Datos 01'!D$2:F$300,3,FALSE)))) -> Sem Par | AO121: ='01-C Cotizar'!G121 -> V/E Florida | AP121: ='02-A Facturar'!BG123 -> 5613.184175 | AQ121: 1 | AR121: 750 | AS121: 750 | AT121: 1 | AU121: 1 | AV121: 6 | AW121: 1
A122: 02140016 | B122: Casillero del Diablo, Reserva, Chile | C122: Tinto | D122: Carmenere | E122: V/E Florida | F122: 1 | G122: * | H122: 750 | K122: ml | L122: 750 | M122: ml | O122: =IF(K122="u","porc",IF(K122="g","g",IF(K122="gal","g/ml",IF(K122="kg","g",IF(K122="l","ml",IF(K122="lb","g",IF(K122="ml","ml",IF(K122="oz","g/ml",IF(K122="paq","paq",Error))))))))) -> ml | P122: BC 1 | Q122: C | T122: 8 | U122: 1 | V122: * | X122: * | Y122: * | AM122: Bod Tras | AN122: =IF(AM122="preparac",0,IF(A122=0,"-",IF(AM122="obsoleto","-",VLOOKUP(AO122,'B Datos 01'!D$2:F$300,3,FALSE)))) -> Sem Par | AO122: ='01-C Cotizar'!G122 -> V/E Florida | AP122: ='02-A Facturar'!BG124 -> 5613.184175 | AQ122: 1 | AR122: 750 | AS122: 750 | AT122: 1 | AU122: 1 | AV122: 4 | AW122: 1
A123: 02150007 | B123: Casillero del Diablo, Reserva, Chile | C123: Blanco | D123: Chardonnay | E123: V/E Florida | F123: 1 | G123: * | H123: 750 | K123: ml | L123: 750 | M123: ml | O123: =IF(K123="u","porc",IF(K123="g","g",IF(K123="gal","g/ml",IF(K123="kg","g",IF(K123="l","ml",IF(K123="lb","g",IF(K123="ml","ml",IF(K123="oz","g/ml",IF(K123="paq","paq",Error))))))))) -> ml | P123: BC 1 | Q123: C | T123: 12 | U123: 1 | V123: * | X123: * | Y123: * | AM123: Bod Tras | AN123: =IF(AM123="preparac",0,IF(A123=0,"-",IF(AM123="obsoleto","-",VLOOKUP(AO123,'B Datos 01'!D$2:F$300,3,FALSE)))) -> Sem Par | AO123: ='01-C Cotizar'!G123 -> V/E Florida | AP123: ='02-A Facturar'!BG125 -> 5613.184175 | AQ123: 1 | AR123: 750 | AS123: 750 | AT123: 1 | AU123: 1 | AV123: 6 | AW123: 1
A124: 02140003 | B124: Casillero del Diablo, Reserva, Chile | C124: Tinto | D124: Merlot | E124: V/E Florida | F124: 1 | G124: * | H124: 750 | K124: ml | L124: 750 | M124: ml | O124: =IF(K124="u","porc",IF(K124="g","g",IF(K124="gal","g/ml",IF(K124="kg","g",IF(K124="l","ml",IF(K124="lb","g",IF(K124="ml","ml",IF(K124="oz","g/ml",IF(K124="paq","paq",Error))))))))) -> ml | P124: BC 1 | Q124: C | T124: 12 | U124: 1 | V124: * | X124: * | Y124: * | AM124: Bod Tras | AN124: =IF(AM124="preparac",0,IF(A124=0,"-",IF(AM124="obsoleto","-",VLOOKUP(AO124,'B Datos 01'!D$2:F$300,3,FALSE)))) -> Sem Par | AO124: ='01-C Cotizar'!G124 -> V/E Florida | AP124: ='02-A Facturar'!BG126 -> 5613.184175 | AQ124: 1 | AR124: 750 | AS124: 750 | AT124: 1 | AU124: 1 | AV124: 6 | AW124: 1
A125: 02140014 | B125: Casillero del Diablo, Reserva, Chile | C125: Tinto | D125: Pinot Noir | E125: V/E Florida | F125: 1 | G125: * | H125: 750 | K125: ml | L125: 750 | M125: ml | O125: =IF(K125="u","porc",IF(K125="g","g",IF(K125="gal","g/ml",IF(K125="kg","g",IF(K125="l","ml",IF(K125="lb","g",IF(K125="ml","ml",IF(K125="oz","g/ml",IF(K125="paq","paq",Error))))))))) -> ml | P125: BC 1 | Q125: C | T125: 12 | U125: 1 | V125: * | X125: * | Y125: * | AM125: Bod Tras | AN125: =IF(AM125="preparac",0,IF(A125=0,"-",IF(AM125="obsoleto","-",VLOOKUP(AO125,'B Datos 01'!D$2:F$300,3,FALSE)))) -> Sem Par | AO125: ='01-C Cotizar'!G125 -> V/E Florida | AP125: ='02-A Facturar'!BG127 -> 6123.666742 | AQ125: 1 | AR125: 750 | AS125: 750 | AT125: 1 | AU125: 1 | AV125: 4 | AW125: 1
A126: 02150002 | B126: Casillero del Diablo, Reserva, Chile | C126: Blanco | D126: Sauvignon blanc | E126: V/E Florida | F126: 1 | G126: * | H126: 750 | K126: ml | L126: 750 | M126: ml | O126: =IF(K126="u","porc",IF(K126="g","g",IF(K126="gal","g/ml",IF(K126="kg","g",IF(K126="l","ml",IF(K126="lb","g",IF(K126="ml","ml",IF(K126="oz","g/ml",IF(K126="paq","paq",Error))))))))) -> ml | P126: BC 1 | Q126: C | T126: 18 | U126: 1 | V126: * | X126: * | Y126: * | AM126: Bod Tras | AN126: =IF(AM126="preparac",0,IF(A126=0,"-",IF(AM126="obsoleto","-",VLOOKUP(AO126,'B Datos 01'!D$2:F$300,3,FALSE)))) -> Sem Par | AO126: ='01-C Cotizar'!G126 -> V/E Florida | AP126: ='02-A Facturar'!BG128 -> 5613.184175 | AQ126: 1 | AR126: 750 | AS126: 750 | AT126: 1 | AU126: 1 | AV126: 6 | AW126: 1
A127: 02140011 | B127: Casillero del Diablo, Reserva, Chile | C127: Tinto | D127: Syrah | E127: V/E Florida | F127: 1 | G127: * | H127: 750 | K127: ml | L127: 750 | M127: ml | O127: =IF(K127="u","porc",IF(K127="g","g",IF(K127="gal","g/ml",IF(K127="kg","g",IF(K127="l","ml",IF(K127="lb","g",IF(K127="ml","ml",IF(K127="oz","g/ml",IF(K127="paq","paq",Error))))))))) -> ml | P127: BC 1 | Q127: C | T127: 8 | U127: 1 | V127: * | X127: * | Y127: * | AM127: Bod Tras | AN127: =IF(AM127="preparac",0,IF(A127=0,"-",IF(AM127="obsoleto","-",VLOOKUP(AO127,'B Datos 01'!D$2:F$300,3,FALSE)))) -> Sem Par | AO127: ='01-C Cotizar'!G127 -> V/E Florida | AP127: ='02-A Facturar'!BG129 -> 5613.184175 | AQ127: 1 | AR127: 750 | AS127: 750 | AT127: 1 | AU127: 1 | AV127: 4 | AW127: 1
A128: 02150028 | B128: Casillero del Diablo, Reserva,Chile | C128: Blanco | D128: Pinot Grigio | E128: V/E Florida | F128: 1 | G128: * | H128: 750 | K128: ml | L128: 750 | M128: ml | O128: =IF(K128="u","porc",IF(K128="g","g",IF(K128="gal","g/ml",IF(K128="kg","g",IF(K128="l","ml",IF(K128="lb","g",IF(K128="ml","ml",IF(K128="oz","g/ml",IF(K128="paq","paq",Error))))))))) -> ml | P128: BC 1 | Q128: C | T128: 24 | U128: 1 | V128: * | X128: * | Y128: * | AM128: Bod Tras | AN128: =IF(AM128="preparac",0,IF(A128=0,"-",IF(AM128="obsoleto","-",VLOOKUP(AO128,'B Datos 01'!D$2:F$300,3,FALSE)))) -> Sem Par | AO128: ='01-C Cotizar'!G128 -> V/E Florida | AP128: ='02-A Facturar'!BG130 -> 5613.184175 | AQ128: 1 | AR128: 750 | AS128: 750 | AT128: 1 | AU128: 1 | AV128: 12 | AW128: 1
A129: 02140057 | B129: Cavit, Italia | C129: Tinto | D129: Pinot Noir | E129: V/Isleña | F129: 1 | G129: * | H129: 750 | K129: ml | L129: 750 | M129: ml | O129: =IF(K129="u","porc",IF(K129="g","g",IF(K129="gal","g/ml",IF(K129="kg","g",IF(K129="l","ml",IF(K129="lb","g",IF(K129="ml","ml",IF(K129="oz","g/ml",IF(K129="paq","paq",Error))))))))) -> ml | P129: BC 1 | Q129: C | T129: 6 | U129: 1 | V129: * | Y129: * | AM129: C Directo | AN129: =IF(AM129="preparac",0,IF(A129=0,"-",IF(AM129="obsoleto","-",VLOOKUP(AO129,'B Datos 01'!D$2:F$300,3,FALSE)))) -> sem par | AO129: ='01-C Cotizar'!G129 -> V/Isleña | AP129: ='02-A Facturar'!BG131 -> 5382.131324 | AQ129: 1 | AR129: 750 | AS129: 750 | AT129: 1 | AU129: 1 | AV129: 3 | AW129: 1
A130: 02150034 | B130: Cavit, Italia | C130: Tinto | D130: Riesling | F130: 1 | G130: * | H130: 750 | K130: ml | L130: 750 | M130: ml | O130: =IF(K130="u","porc",IF(K130="g","g",IF(K130="gal","g/ml",IF(K130="kg","g",IF(K130="l","ml",IF(K130="lb","g",IF(K130="ml","ml",IF(K130="oz","g/ml",IF(K130="paq","paq",Error))))))))) -> ml | P130: BC 1 | Q130: C | V130: * | X130: * | Y130: * | AM130: Obsoleto | AN130: =IF(AM130="preparac",0,IF(A130=0,"-",IF(AM130="obsoleto","-",VLOOKUP(AO130,'B Datos 01'!D$2:F$300,3,FALSE)))) -> - | AO130: ='01-C Cotizar'!G130 -> 0 | AP130: ='02-A Facturar'!BG132 -> 5651.23789 | AQ130: 1 | AR130: 750 | AS130: 750 | AT130: 1 | AU130: 1 | AV130: 3 | AW130: 1
A131: 02140048 | B131: Cecchi, D.O.C.G. Chanti Classico, Italia | C131: Tinto | D131: Sangiovese | E131: =AO131 -> V/E Florida | F131: 1 | G131: * | H131: 750 | K131: ml | L131: 750 | M131: ml | O131: =IF(K131="u","porc",IF(K131="g","g",IF(K131="gal","g/ml",IF(K131="kg","g",IF(K131="l","ml",IF(K131="lb","g",IF(K131="ml","ml",IF(K131="oz","g/ml",IF(K131="paq","paq",Error))))))))) -> ml | T131: 6 | U131: 1 | V131: * | Y131: * | AM131: C Directo | AN131: =IF(AM131="preparac",0,IF(A131=0,"-",IF(AM131="obsoleto","-",VLOOKUP(AO131,'B Datos 01'!D$2:F$300,3,FALSE)))) -> Sem Par | AO131: ='01-C Cotizar'!G131 -> V/E Florida | AP131: ='02-A Facturar'!BG133 -> 10885.62508 | AQ131: 1 | AR131: 750 | AS131: 750 | AT131: 1 | AU131: 1 | AV131: 3 | AW131: 1
A132: 02050007 | B132: Centenario 20 años reser. Bot | C132: Bebidas | F132: 1 | G132: * | H132: 750 | I132: =IF(J132>0.1,"*","") ->  | K132: ml | L132: =IF(J132>0,F132*H132*J132,IF(H132>0,F132*H132,F132)) -> 750 | M132: =K132 -> ml | O132: =IF(K132="u","porc",IF(K132="g","g",IF(K132="gal","g/ml",IF(K132="kg","g",IF(K132="l","ml",IF(K132="lb","g",IF(K132="ml","ml",IF(K132="oz","g/ml",IF(K132="paq","paq",Error))))))))) -> ml | P132: BC 1 | Q132: C | T132: 2 | U132: 1 | V132: * | X132: * | Y132: * | Z132: * | AM132: Bod Tras | AN132: =IF(AM132="preparac",0,IF(A132=0,"-",IF(AM132="obsoleto","-",VLOOKUP(AO132,'B Datos 01'!D$2:F$300,3,FALSE)))) -> Sem par-imp | AO132: ='01-C Cotizar'!G132 -> L San Ramon | AP132: ='02-A Facturar'!BG134 -> 20116.75085 | AQ132: =IF(J132=0,F132,L132/J132) -> 1 | AR132: 750 | AS132: 750 | AT132: =IF(A132=0,"-",IF(AR132>0,(AS132/AR132),"Can mat Utilizar")) -> 1 | AU132: 1 | AV132: 1 | AW132: 1
A133: 02050003 | B133: Centenario añejo litron | C133: Bebidas | F133: 1 | G133: * | H133: 1135 | K133: ml | L133: 1135 | M133: ml | O133: =IF(K133="u","porc",IF(K133="g","g",IF(K133="gal","g/ml",IF(K133="kg","g",IF(K133="l","ml",IF(K133="lb","g",IF(K133="ml","ml",IF(K133="oz","g/ml",IF(K133="paq","paq",Error))))))))) -> ml | P133: BC 1 | Q133: C | T133: 4 | U133: 1 | V133: * | X133: * | Y133: * | Z133: * | AM133: Bod Tras | AN133: =IF(AM133="preparac",0,IF(A133=0,"-",IF(AM133="obsoleto","-",VLOOKUP(AO133,'B Datos 01'!D$2:F$300,3,FALSE)))) -> Sem par-imp | AO133: ='01-C Cotizar'!G133 -> L San Ramon | AP133: ='02-A Facturar'!BG135 -> 8748.033452 | AQ133: 1 | AR133: 1135 | AS133: 1135 | AT133: 1 | AU133: 1 | AV133: 2 | AW133: 1
A134: 72020 | B134: Cepillo dental | C134: Abarrotes | F134: 1 | G134: * | H134: 1 | K134: u | L134: 1 | M134: u | O134: =IF(K134="u","porc",IF(K134="g","g",IF(K134="gal","g/ml",IF(K134="kg","g",IF(K134="l","ml",IF(K134="lb","g",IF(K134="ml","ml",IF(K134="oz","g/ml",IF(K134="paq","paq",Error))))))))) -> porc | P134: BC 3 | Q134: B | T134: 12 | U134: 6 | V134: * | AB134: * | AE134: * | AM134: Bod Req | AN134: =IF(AM134="preparac",0,IF(A134=0,"-",IF(AM134="obsoleto","-",VLOOKUP(AO134,'B Datos 01'!D$2:F$300,3,FALSE)))) -> Sem Imp | AO134: ='01-C Cotizar'!G134 -> Ciamesa | AP134: ='02-A Facturar'!BG136 -> 393 | AQ134: 1 | AR134: 1 | AS134: 1 | AT134: 1 | AU134: 1 | AV134: 6 | AW134: 1
A135: 04030081 | B135: Cepillo Lechero | C135: Abarrotes | F135: 1 | G135: =IF(H135>0.1,"*","") -> * | H135: 1 | K135: u | L135: 1 | M135: u | O135: =IF(K135="u","porc",IF(K135="g","g",IF(K135="gal","g/ml",IF(K135="kg","g",IF(K135="l","ml",IF(K135="lb","g",IF(K135="ml","ml",IF(K135="oz","g/ml",IF(K135="paq","paq",Error))))))))) -> porc | P135: BC 3 | Q135: A | T135: 4 | U135: 1 | V135: * | AB135: * | AE135: * | AM135: Bod Req | AN135: =IF(AM135="preparac",0,IF(A135=0,"-",IF(AM135="obsoleto","-",VLOOKUP(AO135,'B Datos 01'!D$2:F$300,3,FALSE)))) -> Sem Imp | AO135: ='01-C Cotizar'!G135 -> Ciamesa | AP135: ='02-A Facturar'!BG137 -> 880 | AQ135: 1 | AR135: 1 | AS135: 1 | AT135: 1 | AU135: 1 | AV135: 3 | AW135: 1
A136: 04030021 | B136: Cepillo Raiz | C136: Abarrotes | F136: 1 | G136: * | H136: 1 | K136: u | L136: 1 | M136: u | O136: =IF(K136="u","porc",IF(K136="g","g",IF(K136="gal","g/ml",IF(K136="kg","g",IF(K136="l","ml",IF(K136="lb","g",IF(K136="ml","ml",IF(K136="oz","g/ml",IF(K136="paq","paq",Error))))))))) -> porc | P136: BC 3 | Q136: A | T136: 2 | U136: 1 | V136: * | AB136: * | AE136: * | AG136: * | AH136: * | AM136: Bod Req | AN136: =IF(AM136="preparac",0,IF(A136=0,"-",IF(AM136="obsoleto","-",VLOOKUP(AO136,'B Datos 01'!D$2:F$300,3,FALSE)))) -> Sem Imp | AO136: ='01-C Cotizar'!G136 -> Ciamesa | AP136: ='02-A Facturar'!BG138 -> 520 | AQ136: 1 | AR136: 1 | AS136: 1 | AT136: 1 | AU136: 1 | AV136: 2 | AW136: 1
A137: 04030020 | B137: Cepillo tipo Planchita | C137: Abarrotes | F137: 1 | G137: * | H137: 1 | K137: u | L137: 1 | M137: u | O137: =IF(K137="u","porc",IF(K137="g","g",IF(K137="gal","g/ml",IF(K137="kg","g",IF(K137="l","ml",IF(K137="lb","g",IF(K137="ml","ml",IF(K137="oz","g/ml",IF(K137="paq","paq",Error))))))))) -> porc | P137: BC 3 | Q137: A | T137: 6 | U137: 1 | V137: * | AB137: * | AE137: * | AM137: Bod Req | AN137: =IF(AM137="preparac",0,IF(A137=0,"-",IF(AM137="obsoleto","-",VLOOKUP(AO137,'B Datos 01'!D$2:F$300,3,FALSE)))) -> Sem Imp | AO137: ='01-C Cotizar'!G137 -> Ciamesa | AP137: ='02-A Facturar'!BG139 -> 466 | AQ137: 1 | AR137: 1 | AS137: 1 | AT137: 1 | AU137: 1 | AV137: 4 | AW137: 1
A138: 04020013 | B138: Cera Gala | C138: Art limpieza | E138: Proquimia | F138: 1 | G138: * | H138: 3.78 | K138: l | L138: 3.78 | M138: l | O138: =IF(K138="u","porc",IF(K138="g","g",IF(K138="gal","g/ml",IF(K138="kg","g",IF(K138="l","ml",IF(K138="lb","g",IF(K138="ml","ml",IF(K138="oz","g/ml",IF(K138="paq","paq",Error))))))))) -> ml | P138: BC 3 | Q138: B | T138: 1 | U138: 1 | AE138: * | AG138: * | AM138: Bod Req | AN138: =IF(AM138="preparac",0,IF(A138=0,"-",IF(AM138="obsoleto","-",VLOOKUP(AO138,'B Datos 01'!D$2:F$300,3,FALSE)))) -> Sem par-imp | AO138: ='01-C Cotizar'!G138 -> Proquimia | AP138: ='02-A Facturar'!BG140 -> 17239.4 | AQ138: 1 | AR138: 3.78 | AS138: 3.78 | AT138: 1 | AU138: 1 | AV138: 1 | AW138: 1
A139: 0102004 | B139: Ceral frutas | C139: Abarrotes | F139: 1 | G139: * | H139: 1 | K139: kg | L139: 1 | M139: kg | N139: 1000 | O139: =IF(K139="u","porc",IF(K139="g","g",IF(K139="gal","g/ml",IF(K139="kg","g",IF(K139="l","ml",IF(K139="lb","g",IF(K139="ml","ml",IF(K139="oz","g/ml",IF(K139="paq","paq",Error))))))))) -> g | P139: BC 1 | Q139: B | T139: 9 | U139: 3 | V139: * | X139: * | AG139: * | AH139: * | AI139: * | AM139: Bod Tras | AN139: =IF(AM139="preparac",0,IF(A139=0,"-",IF(AM139="obsoleto","-",VLOOKUP(AO139,'B Datos 01'!D$2:F$300,3,FALSE)))) -> Sem par-imp | AO139: ='01-C Cotizar'!G139 -> Mayca | AP139: ='02-A Facturar'!BG141 -> 2505 | AQ139: 1 | AR139: 1 | AS139: 1 | AT139: 1 | AU139: 1 | AV139: 5 | AW139: 1
A140: 0102005 | B140: Cereal hojuelas | C140: Abarrotes | F140: 1 | G140: * | H140: 1 | K140: kg | L140: 1 | M140: kg | N140: 1000 | O140: =IF(K140="u","porc",IF(K140="g","g",IF(K140="gal","g/ml",IF(K140="kg","g",IF(K140="l","ml",IF(K140="lb","g",IF(K140="ml","ml",IF(K140="oz","g/ml",IF(K140="paq","paq",Error))))))))) -> g | P140: BC 1 | Q140: B | T140: 9 | U140: 3 | V140: * | X140: * | AG140: * | AH140: * | AI140: * | AM140: Bod Tras | AN140: =IF(AM140="preparac",0,IF(A140=0,"-",IF(AM140="obsoleto","-",VLOOKUP(AO140,'B Datos 01'!D$2:F$300,3,FALSE)))) -> Sem par-imp | AO140: ='01-C Cotizar'!G140 -> Mayca | AP140: ='02-A Facturar'!BG142 -> 2363 | AQ140: 1 | AR140: 1 | AS140: 1 | AT140: 1 | AU140: 1 | AV140: 5 | AW140: 1
A141: 0101013 | B141: Cereza con tallo | C141: Abarrotes | F141: 1 | G141: * | H141: 3.78 | K141: kg | L141: 3.78 | M141: kg | N141: 3785 | O141: =IF(K141="u","porc",IF(K141="g","g",IF(K141="gal","g/ml",IF(K141="kg","g",IF(K141="l","ml",IF(K141="lb","g",IF(K141="ml","ml",IF(K141="oz","g/ml",IF(K141="paq","paq",Error))))))))) -> g | P141: BC 1 | Q141: A | V141: * | W141: * | X141: * | Y141: * | Z141: * | AM141: Obsoleto | AN141: =IF(AM141="preparac",0,IF(A141=0,"-",IF(AM141="obsoleto","-",VLOOKUP(AO141,'B Datos 01'!D$2:F$300,3,FALSE)))) -> - | AO141: ='01-C Cotizar'!G141 -> 0 | AP141: ='02-A Facturar'!BG143 -> 9210.6 | AQ141: 1 | AR141: 3.78 | AS141: 3.78 | AT141: 1 | AU141: 1 | AV141: 2 | AW141: 1
A142: 04020089 | B142: Cerofilm sanitizante maq lav | C142: Art limpieza | E142: Proquimia | F142: 1 | G142: * | H142: 20 | K142: l | L142: 20 | M142: l | O142: =IF(K142="u","porc",IF(K142="g","g",IF(K142="gal","g/ml",IF(K142="kg","g",IF(K142="l","ml",IF(K142="lb","g",IF(K142="ml","ml",IF(K142="oz","g/ml",IF(K142="paq","paq",Error))))))))) -> ml | P142: BC 3 | Q142: B | T142: 2 | U142: 1 | V142: * | W142: * | AM142: Bod Req | AN142: =IF(AM142="preparac",0,IF(A142=0,"-",IF(AM142="obsoleto","-",VLOOKUP(AO142,'B Datos 01'!D$2:F$300,3,FALSE)))) -> Sem par-imp | AO142: ='01-C Cotizar'!G142 -> Proquimia | AP142: ='02-A Facturar'!BG144 -> 59198.17 | AQ142: 1 | AR142: 20 | AS142: 20 | AT142: 1 | AU142: 1 | AV142: 1 | AW142: 1
A143: 02030009 | B143: Cerveza bavaria gold | C143: Cerveza | D143: Vidrio | E143: Florida | F143: 1 | G143: * | H143: 24 | I143: * | J143: 355 | K143: ml | L143: 8520 | M143: ml | O143: =IF(K143="u","porc",IF(K143="g","g",IF(K143="gal","g/ml",IF(K143="kg","g",IF(K143="l","ml",IF(K143="lb","g",IF(K143="ml","ml",IF(K143="oz","g/ml",IF(K143="paq","paq",Error))))))))) -> ml | P143: BC 2 | Q143: A | T143: 2 | U143: 1 | V143: * | X143: * | Y143: * | Z143: * | AM143: Bod Tras | AN143: =IF(AM143="preparac",0,IF(A143=0,"-",IF(AM143="obsoleto","-",VLOOKUP(AO143,'B Datos 01'!D$2:F$300,3,FALSE)))) -> Sem par-imp | AO143: ='01-C Cotizar'!G143 -> C/E Florida | AP143: ='02-A Facturar'!BG145 -> 19094.87552 | AQ143: 24 | AR143: 8520 | AS143: 8520 | AT143: 1 | AU143: 12 | AV143: 24 | AW143: 12
A144: 02030008 | B144: Cerveza bavaria light | C144: Cerveza | D144: Vidrio | E144: Florida | F144: 1 | G144: * | H144: 24 | I144: * | J144: 355 | K144: ml | L144: 8520 | M144: ml | O144: =IF(K144="u","porc",IF(K144="g","g",IF(K144="gal","g/ml",IF(K144="kg","g",IF(K144="l","ml",IF(K144="lb","g",IF(K144="ml","ml",IF(K144="oz","g/ml",IF(K144="paq","paq",Error))))))))) -> ml | P144: BC 2 | Q144: A | T144: 2 | U144: 1 | V144: * | X144: * | Y144: * | Z144: * | AM144: Bod Tras | AN144: =IF(AM144="preparac",0,IF(A144=0,"-",IF(AM144="obsoleto","-",VLOOKUP(AO144,'B Datos 01'!D$2:F$300,3,FALSE)))) -> Sem par-imp | AO144: ='01-C Cotizar'!G144 -> C/E Florida | AP144: ='02-A Facturar'!BG146 -> 19094.87552 | AQ144: 24 | AR144: 8520 | AS144: 8520 | AT144: 1 | AU144: 12 | AV144: 24 | AW144: 12
A145: 02030007 | B145: Cerveza bavaria neg | C145: Cerveza | D145: Vidrio | E145: Florida | F145: 1 | G145: * | H145: 24 | I145: * | J145: 355 | K145: ml | L145: 8520 | M145: ml | O145: =IF(K145="u","porc",IF(K145="g","g",IF(K145="gal","g/ml",IF(K145="kg","g",IF(K145="l","ml",IF(K145="lb","g",IF(K145="ml","ml",IF(K145="oz","g/ml",IF(K145="paq","paq",Error))))))))) -> ml | P145: BC 2 | Q145: A | T145: 3 | U145: 1 | V145: * | X145: * | Y145: * | Z145: * | AM145: Bod Tras | AN145: =IF(AM145="preparac",0,IF(A145=0,"-",IF(AM145="obsoleto","-",VLOOKUP(AO145,'B Datos 01'!D$2:F$300,3,FALSE)))) -> Sem par-imp | AO145: ='01-C Cotizar'!G145 -> C/E Florida | AP145: ='02-A Facturar'!BG147 -> 19094.87552 | AQ145: 24 | AR145: 8520 | AS145: 8520 | AT145: 1 | AU145: 12 | AV145: 24 | AW145: 12
A146: 02030018 | B146: Cerveza heineken | C146: Cerveza | D146: Lata | E146: Florida | F146: 1 | G146: * | H146: 24 | I146: * | J146: 355 | K146: ml | L146: 8520 | M146: ml | O146: =IF(K146="u","porc",IF(K146="g","g",IF(K146="gal","g/ml",IF(K146="kg","g",IF(K146="l","ml",IF(K146="lb","g",IF(K146="ml","ml",IF(K146="oz","g/ml",IF(K146="paq","paq",Error))))))))) -> ml | P146: BC 2 | Q146: B | T146: 2 | U146: 0.5 | V146: * | X146: * | Y146: * | Z146: * | AM146: Bod Tras | AN146: =IF(AM146="preparac",0,IF(A146=0,"-",IF(AM146="obsoleto","-",VLOOKUP(AO146,'B Datos 01'!D$2:F$300,3,FALSE)))) -> Sem par-imp | AO146: ='01-C Cotizar'!G146 -> C/E Florida | AP146: ='02-A Facturar'!BG148 -> 17315.42476 | AQ146: 24 | AR146: 8520 | AS146: 8520 | AT146: 1 | AU146: 12 | AV146: 24 | AW146: 12
A147: 02030006 | B147: Cerveza imperial lat | C147: Cerveza | D147: Lata | E147: Florida | F147: 1 | G147: * | H147: 24 | I147: * | J147: 350 | K147: ml | L147: 8400 | M147: ml | O147: =IF(K147="u","porc",IF(K147="g","g",IF(K147="gal","g/ml",IF(K147="kg","g",IF(K147="l","ml",IF(K147="lb","g",IF(K147="ml","ml",IF(K147="oz","g/ml",IF(K147="paq","paq",Error))))))))) -> ml | P147: BC 2 | Q147: A | T147: 30 | U147: 10 | V147: * | Z147: * | AF147: * | AM147: Bod Tras | AN147: =IF(AM147="preparac",0,IF(A147=0,"-",IF(AM147="obsoleto","-",VLOOKUP(AO147,'B Datos 01'!D$2:F$300,3,FALSE)))) -> Sem par-imp | AO147: ='01-C Cotizar'!G147 -> L San Ramon | AP147: ='02-A Facturar'!BG149 -> 13140.5595 | AQ147: 24 | AR147: 8400 | AS147: 8400 | AT147: 1 | AU147: 24 | AV147: 96 | AW147: 24
A148: 02030005 | B148: Cerveza imperial light lat | C148: Cerveza | D148: Lata | E148: Florida | F148: 1 | G148: * | H148: 24 | I148: * | J148: 350 | K148: ml | L148: 8400 | M148: ml | O148: =IF(K148="u","porc",IF(K148="g","g",IF(K148="gal","g/ml",IF(K148="kg","g",IF(K148="l","ml",IF(K148="lb","g",IF(K148="ml","ml",IF(K148="oz","g/ml",IF(K148="paq","paq",Error))))))))) -> ml | P148: BC 2 | Q148: B | T148: 2 | U148: 1 | V148: * | Z148: * | AM148: Bod Tras | AN148: =IF(AM148="preparac",0,IF(A148=0,"-",IF(AM148="obsoleto","-",VLOOKUP(AO148,'B Datos 01'!D$2:F$300,3,FALSE)))) -> Sem par-imp | AO148: ='01-C Cotizar'!G148 -> C/E Florida | AP148: ='02-A Facturar'!BG150 -> 13140.5595 | AQ148: 24 | AR148: 8400 | AS148: 8400 | AT148: 1 | AU148: 12 | AV148: 36 | AW148: 12
A149: 02030020 | B149: Cerveza pilsen lat | C149: Cerveza | D149: Lata | E149: Florida | F149: 1 | G149: * | H149: 24 | I149: * | J149: 350 | K149: ml | L149: 8400 | M149: ml | O149: =IF(K149="u","porc",IF(K149="g","g",IF(K149="gal","g/ml",IF(K149="kg","g",IF(K149="l","ml",IF(K149="lb","g",IF(K149="ml","ml",IF(K149="oz","g/ml",IF(K149="paq","paq",Error))))))))) -> ml | P149: BC 2 | Q149: B | T149: 4 | U149: 2 | V149: * | Z149: * | AM149: Bod Tras | AN149: =IF(AM149="preparac",0,IF(A149=0,"-",IF(AM149="obsoleto","-",VLOOKUP(AO149,'B Datos 01'!D$2:F$300,3,FALSE)))) -> Sem par-imp | AO149: ='01-C Cotizar'!G149 -> C/E Florida | AP149: ='02-A Facturar'!BG151 -> 13859.18385 | AQ149: 24 | AR149: 8400 | AS149: 8400 | AT149: 1 | AU149: 24 | AV149: 24 | AW149: 24
A150: 02030003 | B150: Cerveza corona | C150: Cerveza | D150: Vidrio | E150: Florida | F150: 1 | G150: * | H150: 24 | I150: * | J150: 355 | K150: ml | L150: 8520 | M150: ml | O150: =IF(K150="u","porc",IF(K150="g","g",IF(K150="gal","g/ml",IF(K150="kg","g",IF(K150="l","ml",IF(K150="lb","g",IF(K150="ml","ml",IF(K150="oz","g/ml",IF(K150="paq","paq",Error))))))))) -> ml | P150: BC 2 | Q150: A | T150: 3 | U150: 1 | V150: * | X150: * | Y150: * | Z150: * | AM150: Bod Tras | AN150: =IF(AM150="preparac",0,IF(A150=0,"-",IF(AM150="obsoleto","-",VLOOKUP(AO150,'B Datos 01'!D$2:F$300,3,FALSE)))) -> Sem par-imp | AO150: ='01-C Cotizar'!G150 -> L San Ramon | AP150: ='02-A Facturar'!BG152 -> 20840.10608 | AQ150: 24 | AR150: 8520 | AS150: 8520 | AT150: 1 | AU150: 12 | AV150: 24 | AW150: 12
A151: 02030001 | B151: Cerveza imperial vid | C151: Cerveza | D151: Vidrio | E151: Florida | F151: 1 | G151: * | H151: 24 | I151: * | J151: 350 | K151: ml | L151: 8400 | M151: ml | O151: =IF(K151="u","porc",IF(K151="g","g",IF(K151="gal","g/ml",IF(K151="kg","g",IF(K151="l","ml",IF(K151="lb","g",IF(K151="ml","ml",IF(K151="oz","g/ml",IF(K151="paq","paq",Error))))))))) -> ml | P151: BC 2 | Q151: A | T151: 8 | U151: 4 | V151: * | X151: * | Y151: * | AM151: Bod Tras | AN151: =IF(AM151="preparac",0,IF(A151=0,"-",IF(AM151="obsoleto","-",VLOOKUP(AO151,'B Datos 01'!D$2:F$300,3,FALSE)))) -> Sem par-imp | AO151: ='01-C Cotizar'!G151 -> C/E Florida | AP151: ='02-A Facturar'!BG153 -> 13448.54136 | AQ151: 24 | AR151: 8400 | AS151: 8400 | AT151: 1 | AU151: 24 | AV151: 72 | AW151: 24
A152: 02030004 | B152: Cerveza imperial light vid | C152: Cerveza | D152: Vidrio | E152: Florida | F152: 1 | G152: * | H152: 24 | I152: * | J152: 350 | K152: ml | L152: 8400 | M152: ml | O152: =IF(K152="u","porc",IF(K152="g","g",IF(K152="gal","g/ml",IF(K152="kg","g",IF(K152="l","ml",IF(K152="lb","g",IF(K152="ml","ml",IF(K152="oz","g/ml",IF(K152="paq","paq",Error))))))))) -> ml | P152: BC 2 | Q152: A | T152: 2 | U152: 1 | V152: * | X152: * | Y152: * | AM152: Bod Tras | AN152: =IF(AM152="preparac",0,IF(A152=0,"-",IF(AM152="obsoleto","-",VLOOKUP(AO152,'B Datos 01'!D$2:F$300,3,FALSE)))) -> Sem par-imp | AO152: ='01-C Cotizar'!G152 -> C/E Florida | AP152: ='02-A Facturar'!BG154 -> 13448.54136 | AQ152: 24 | AR152: 8400 | AS152: 8400 | AT152: 1 | AU152: 24 | AV152: 48 | AW152: 24
A153: 0203022 | B153: Cerveza vid Japonesa | C153: Bebidas | D153: Vidrio | E153: Saporro | F153: 1 | G153: * | H153: 24 | I153: * | J153: 354 | K153: ml | L153: 8496 | M153: ml | O153: =IF(K153="u","porc",IF(K153="g","g",IF(K153="gal","g/ml",IF(K153="kg","g",IF(K153="l","ml",IF(K153="lb","g",IF(K153="ml","ml",IF(K153="oz","g/ml",IF(K153="paq","paq",Error))))))))) -> ml | P153: BC 2 | Q153: B | T153: 1 | U153: 0.5 | V153: * | Z153: * | AM153: Bod Tras | AN153: =IF(AM153="preparac",0,IF(A153=0,"-",IF(AM153="obsoleto","-",VLOOKUP(AO153,'B Datos 01'!D$2:F$300,3,FALSE)))) -> Sem par-imp | AO153: ='01-C Cotizar'!G153 -> Oceanic | AP153: ='02-A Facturar'!BG155 -> 27498.18144 | AQ153: 24 | AR153: 8496 | AS153: 8496 | AT153: 1 | AU153: 6 | AV153: 12 | AW153: 6
A154: 02030002 | B154: Cerveza pilsen | C154: Cerveza | D154: Vidrio | E154: Florida | F154: 1 | G154: * | H154: 24 | I154: * | J154: 350 | K154: ml | L154: 8400 | M154: ml | O154: =IF(K154="u","porc",IF(K154="g","g",IF(K154="gal","g/ml",IF(K154="kg","g",IF(K154="l","ml",IF(K154="lb","g",IF(K154="ml","ml",IF(K154="oz","g/ml",IF(K154="paq","paq",Error))))))))) -> ml | P154: BC 2 | Q154: A | T154: 2 | U154: 1 | V154: * | X154: * | Y154: * | AM154: Bod Tras | AN154: =IF(AM154="preparac",0,IF(A154=0,"-",IF(AM154="obsoleto","-",VLOOKUP(AO154,'B Datos 01'!D$2:F$300,3,FALSE)))) -> Sem par-imp | AO154: ='01-C Cotizar'!G154 -> C/E Florida | AP154: ='02-A Facturar'!BG156 -> 13448.54136 | AQ154: 24 | AR154: 8400 | AS154: 8400 | AT154: 1 | AU154: 24 | AV154: 24 | AW154: 24
A155: 0105016 | B155: Chile escama | C155: Abarrotes | F155: 1 | G155: * | H155: 500 | K155: g | L155: 500 | M155: g | O155: =IF(K155="u","porc",IF(K155="g","g",IF(K155="gal","g/ml",IF(K155="kg","g",IF(K155="l","ml",IF(K155="lb","g",IF(K155="ml","ml",IF(K155="oz","g/ml",IF(K155="paq","paq",Error))))))))) -> g | P155: BC 1 | Q155: A | T155: 2 | U155: 1 | V155: * | W155: * | X155: * | Y155: * | AD155: * | AM155: Bod Tras | AN155: =IF(AM155="preparac",0,IF(A155=0,"-",IF(AM155="obsoleto","-",VLOOKUP(AO155,'B Datos 01'!D$2:F$300,3,FALSE)))) -> Sem par-imp | AO155: ='01-C Cotizar'!G155 -> Belca | AP155: ='02-A Facturar'!BG157 -> 2983.5 | AQ155: 1 | AR155: 500 | AS155: 500 | AT155: 1 | AU155: 1 | AV155: 1 | AW155: 1
A156: 02120004 | B156: Chivas regal 12 años litro | C156: Bebidas | F156: 1 | G156: * | H156: 1000 | K156: ml | L156: 1000 | M156: ml | O156: =IF(K156="u","porc",IF(K156="g","g",IF(K156="gal","g/ml",IF(K156="kg","g",IF(K156="l","ml",IF(K156="lb","g",IF(K156="ml","ml",IF(K156="oz","g/ml",IF(K156="paq","paq",Error))))))))) -> ml | P156: BC 1 | Q156: C | T156: 1 | U156: 1 | V156: * | X156: * | Y156: * | Z156: * | AM156: Bod Tras | AN156: =IF(AM156="preparac",0,IF(A156=0,"-",IF(AM156="obsoleto","-",VLOOKUP(AO156,'B Datos 01'!D$2:F$300,3,FALSE)))) -> Sem par-imp | AO156: ='01-C Cotizar'!G156 -> L San Ramon | AP156: ='02-A Facturar'!BG158 -> 23996.0255 | AQ156: 1 | AR156: 1000 | AS156: 1000 | AT156: 1 | AU156: 1 | AV156: 1 | AW156: 1
A157: 04020014 | B157: Clean plac | C157: Art limpieza | E157: Proquimia | F157: 1 | G157: * | H157: 10 | K157: l | L157: 10 | M157: l | O157: =IF(K157="u","porc",IF(K157="g","g",IF(K157="gal","g/ml",IF(K157="kg","g",IF(K157="l","ml",IF(K157="lb","g",IF(K157="ml","ml",IF(K157="oz","g/ml",IF(K157="paq","paq",Error))))))))) -> ml | P157: BC 3 | Q157: B | T157: 3 | U157: 1 | V157: * | W157: * | AM157: Bod Req | AN157: =IF(AM157="preparac",0,IF(A157=0,"-",IF(AM157="obsoleto","-",VLOOKUP(AO157,'B Datos 01'!D$2:F$300,3,FALSE)))) -> Sem par-imp | AO157: ='01-C Cotizar'!G157 -> Proquimia | AP157: ='02-A Facturar'!BG159 -> 26282.93 | AQ157: 1 | AR157: 10 | AS157: 10 | AT157: 1 | AU157: 1 | AV157: 2 | AW157: 1
A158: 0113074 | B158: Cloro | C158: Abarrotes | D158: Los Conejos | F158: 1 | G158: * | H158: 400 | K158: ml | L158: 400 | M158: ml | O158: =IF(K158="u","porc",IF(K158="g","g",IF(K158="gal","g/ml",IF(K158="kg","g",IF(K158="l","ml",IF(K158="lb","g",IF(K158="ml","ml",IF(K158="oz","g/ml",IF(K158="paq","paq",Error))))))))) -> ml | P158: BC 3 | Q158: B | V158: * | AM158: Obsoleto | AN158: =IF(AM158="preparac",0,IF(A158=0,"-",IF(AM158="obsoleto","-",VLOOKUP(AO158,'B Datos 01'!D$2:F$300,3,FALSE)))) -> - | AO158: ='01-C Cotizar'!G158 -> 0 | AP158: ='02-A Facturar'!BG160 -> 304 | AQ158: 1 | AR158: 400 | AS158: 400 | AT158: 1
A159: 04020015 | B159: Cloro 3,5% | C159: Abarrotes | D159: Los Conejos | F159: 1 | G159: * | H159: 3.78 | K159: l | L159: 3.78 | M159: l | O159: =IF(K159="u","porc",IF(K159="g","g",IF(K159="gal","g/ml",IF(K159="kg","g",IF(K159="l","ml",IF(K159="lb","g",IF(K159="ml","ml",IF(K159="oz","g/ml",IF(K159="paq","paq",Error))))))))) -> ml | P159: BC 3 | Q159: B | T159: 8 | U159: 1 | V159: * | AG159: * | AH159: * | AI159: * | AM159: Bod Req | AN159: =IF(AM159="preparac",0,IF(A159=0,"-",IF(AM159="obsoleto","-",VLOOKUP(AO159,'B Datos 01'!D$2:F$300,3,FALSE)))) -> Sem Imp | AO159: ='01-C Cotizar'!G159 -> Ciamesa | AP159: ='02-A Facturar'!BG161 -> 2660.6675 | AQ159: 1 | AR159: 3.78 | AS159: 3.78 | AT159: 1 | AU159: 1 | AV159: 3 | AW159: 1
A160: 0113052 | B160: Cloro ropa color | C160: Abarrotes | F160: 1 | G160: * | H160: 400 | K160: ml | L160: 400 | M160: ml | O160: =IF(K160="u","porc",IF(K160="g","g",IF(K160="gal","g/ml",IF(K160="kg","g",IF(K160="l","ml",IF(K160="lb","g",IF(K160="ml","ml",IF(K160="oz","g/ml",IF(K160="paq","paq",Error))))))))) -> ml | P160: BC 3 | Q160: B | V160: * | AM160: Obsoleto | AN160: =IF(AM160="preparac",0,IF(A160=0,"-",IF(AM160="obsoleto","-",VLOOKUP(AO160,'B Datos 01'!D$2:F$300,3,FALSE)))) -> - | AO160: ='01-C Cotizar'!G160 -> 0 | AP160: ='02-A Facturar'!BG162 -> 0 | AQ160: 1 | AR160: 400 | AS160: 400 | AT160: 1
A161: 0104059 | B161: Cobertura cholate #110 | C161: Abarrotes | F161: 1 | G161: * | H161: 500 | K161: g | L161: 500 | M161: g | N161: 500 | O161: =IF(K161="u","porc",IF(K161="g","g",IF(K161="gal","g/ml",IF(K161="kg","g",IF(K161="l","ml",IF(K161="lb","g",IF(K161="ml","ml",IF(K161="oz","g/ml",IF(K161="paq","paq",Error))))))))) -> g | P161: BC 1 | Q161: E | T161: 2 | U161: 1 | V161: * | W161: * | AM161: Bod Tras | AN161: =IF(AM161="preparac",0,IF(A161=0,"-",IF(AM161="obsoleto","-",VLOOKUP(AO161,'B Datos 01'!D$2:F$300,3,FALSE)))) -> Sem par-imp | AO161: ='01-C Cotizar'!G161 -> Belca | AP161: ='02-A Facturar'!BG163 -> 1782 | AQ161: 1 | AR161: 500 | AS161: 500 | AT161: 1 | AU161: 1 | AV161: 2 | AW161: 1
A162: 0104050 | B162: Cobertura cholate #117 | C162: Abarrotes | F162: 1 | G162: * | H162: 5 | K162: kg | L162: 5 | M162: kg | O162: =IF(K162="u","porc",IF(K162="g","g",IF(K162="gal","g/ml",IF(K162="kg","g",IF(K162="l","ml",IF(K162="lb","g",IF(K162="ml","ml",IF(K162="oz","g/ml",IF(K162="paq","paq",Error))))))))) -> g | P162: BC 1 | Q162: E | T162: 2 | U162: 1 | V162: * | W162: * | AM162: Bod Tras | AN162: =IF(AM162="preparac",0,IF(A162=0,"-",IF(AM162="obsoleto","-",VLOOKUP(AO162,'B Datos 01'!D$2:F$300,3,FALSE)))) -> Sem par-imp | AO162: ='01-C Cotizar'!G162 -> Mayca | AP162: ='02-A Facturar'!BG164 -> 17554.27 | AQ162: 1 | AR162: 5 | AS162: 5 | AT162: 1 | AU162: 1 | AV162: 2 | AW162: 1
A163: 0104040 | B163: Cobertura cholate #121 | C163: Abarrotes | F163: 1 | G163: * | H163: 5 | K163: kg | L163: 5 | M163: kg | N163: 1000 | O163: =IF(K163="u","porc",IF(K163="g","g",IF(K163="gal","g/ml",IF(K163="kg","g",IF(K163="l","ml",IF(K163="lb","g",IF(K163="ml","ml",IF(K163="oz","g/ml",IF(K163="paq","paq",Error))))))))) -> g | P163: BC 1 | Q163: E | T163: 2 | U163: 1 | V163: * | W163: * | AM163: Bod Tras | AN163: =IF(AM163="preparac",0,IF(A163=0,"-",IF(AM163="obsoleto","-",VLOOKUP(AO163,'B Datos 01'!D$2:F$300,3,FALSE)))) -> Sem par-imp | AO163: ='01-C Cotizar'!G163 -> Mayca | AP163: ='02-A Facturar'!BG165 -> 26154 | AQ163: 1 | AR163: 1 | AS163: 1 | AT163: 1 | AU163: 1 | AV163: 2 | AW163: 1
A164: 02020025 | B164: Coca cola Lat | C164: Bebidas | D164: Lata | E164: Coca | F164: 1 | G164: * | H164: 12 | I164: * | J164: 354 | K164: ml | L164: 4248 | M164: ml | O164: =IF(K164="u","porc",IF(K164="g","g",IF(K164="gal","g/ml",IF(K164="kg","g",IF(K164="l","ml",IF(K164="lb","g",IF(K164="ml","ml",IF(K164="oz","g/ml",IF(K164="paq","paq",Error))))))))) -> ml | P164: BC 2 | Q164: B | T164: 4 | U164: 1 | V164: * | Z164: * | AM164: Bod Tras | AN164: =IF(AM164="preparac",0,IF(A164=0,"-",IF(AM164="obsoleto","-",VLOOKUP(AO164,'B Datos 01'!D$2:F$300,3,FALSE)))) -> Sem par-imp | AO164: ='01-C Cotizar'!G164 -> Coca | AP164: ='02-A Facturar'!BG166 -> 5763.730964 | AQ164: 12 | AR164: 4248 | AS164: 4248 | AT164: 1 | AU164: 12 | AV164: 36 | AW164: 12
A165: 02020030 | B165: Coca cola Pls | C165: Bebidas | D165: Plástico | E165: Coca | F165: 1 | G165: * | H165: 12 | I165: * | J165: 600 | K165: ml | L165: 7200 | M165: ml | O165: =IF(K165="u","porc",IF(K165="g","g",IF(K165="gal","g/ml",IF(K165="kg","g",IF(K165="l","ml",IF(K165="lb","g",IF(K165="ml","ml",IF(K165="oz","g/ml",IF(K165="paq","paq",Error))))))))) -> ml | P165: BC 2 | Q165: B | T165: 4 | U165: 1 | V165: * | AA165: * | AM165: Bod Tras | AN165: =IF(AM165="preparac",0,IF(A165=0,"-",IF(AM165="obsoleto","-",VLOOKUP(AO165,'B Datos 01'!D$2:F$300,3,FALSE)))) -> Sem par-imp | AO165: ='01-C Cotizar'!G165 -> Coca | AP165: ='02-A Facturar'!BG167 -> 6994.478844 | AQ165: 12 | AR165: 7200 | AS165: 7200 | AT165: 1 | AU165: 12 | AV165: 24 | AW165: 12
A166: 02030010 | B166: Coca cola Vid | C166: Bebidas | D166: Vidrio | E166: Coca | F166: 1 | G166: * | H166: 24 | I166: * | J166: 354 | K166: ml | L166: 8496 | M166: ml | O166: =IF(K166="u","porc",IF(K166="g","g",IF(K166="gal","g/ml",IF(K166="kg","g",IF(K166="l","ml",IF(K166="lb","g",IF(K166="ml","ml",IF(K166="oz","g/ml",IF(K166="paq","paq",Error))))))))) -> ml | P166: BC 2 | Q166: A | T166: 3 | U166: 1 | V166: * | X166: * | Y166: * | AM166: Bod Tras | AN166: =IF(AM166="preparac",0,IF(A166=0,"-",IF(AM166="obsoleto","-",VLOOKUP(AO166,'B Datos 01'!D$2:F$300,3,FALSE)))) -> Sem par-imp | AO166: ='01-C Cotizar'!G166 -> Coca | AP166: ='02-A Facturar'!BG168 -> 6994.478844 | AQ166: 24 | AR166: 8496 | AS166: 8496 | AT166: 1 | AU166: 24 | AV166: 48 | AW166: 24
A167: 02020040 | B167: Coca cola 3 litros des | C167: Bebidas | F167: 1 | G167: =IF(H167>0.1,"*","") -> * | H167: 3000 | K167: ml | L167: 3000 | M167: ml | O167: =IF(K167="u","porc",IF(K167="g","g",IF(K167="gal","g/ml",IF(K167="kg","g",IF(K167="l","ml",IF(K167="lb","g",IF(K167="ml","ml",IF(K167="oz","g/ml",IF(K167="paq","paq",Error))))))))) -> ml | P167: BC 2 | Q167: B | U167: 1 | V167: * | AM167: Bod Req | AN167: =IF(AM167="preparac",0,IF(A167=0,"-",IF(AM167="obsoleto","-",VLOOKUP(AO167,'B Datos 01'!D$2:F$300,3,FALSE)))) -> Sem par-imp | AO167: ='01-C Cotizar'!G167 -> L San Ramon | AP167: ='02-A Facturar'!BG169 -> 1345.889233 | AQ167: 1 | AR167: 3000 | AS167: 3000 | AT167: 1
A168: 02020026 | B168: Coca cola Lat Light | C168: Bebidas | D168: Lata | E168: Coca | F168: 1 | G168: * | H168: 12 | I168: * | J168: 354 | K168: ml | L168: 4248 | M168: ml | O168: =IF(K168="u","porc",IF(K168="g","g",IF(K168="gal","g/ml",IF(K168="kg","g",IF(K168="l","ml",IF(K168="lb","g",IF(K168="ml","ml",IF(K168="oz","g/ml",IF(K168="paq","paq",Error))))))))) -> ml | P168: BC 2 | Q168: B | T168: 4 | U168: 1 | V168: * | Z168: * | AM168: Bod Tras | AN168: =IF(AM168="preparac",0,IF(A168=0,"-",IF(AM168="obsoleto","-",VLOOKUP(AO168,'B Datos 01'!D$2:F$300,3,FALSE)))) -> Sem par-imp | AO168: ='01-C Cotizar'!G168 -> Coca | AP168: ='02-A Facturar'!BG170 -> 5763.730964 | AQ168: 12 | AR168: 4248 | AS168: 4248 | AT168: 1 | AU168: 12 | AV168: 36 | AW168: 12
A169: 02020031 | B169: Coca cola Pls Lght | C169: Bebidas | D169: Plástico light | E169: Coca | F169: 1 | G169: * | H169: 12 | I169: * | J169: 600 | K169: ml | L169: 7200 | M169: ml | O169: =IF(K169="u","porc",IF(K169="g","g",IF(K169="gal","g/ml",IF(K169="kg","g",IF(K169="l","ml",IF(K169="lb","g",IF(K169="ml","ml",IF(K169="oz","g/ml",IF(K169="paq","paq",Error))))))))) -> ml | P169: BC 2 | Q169: B | T169: 0 | U169: 1 | V169: * | AA169: * | AM169: Bod Tras | AN169: =IF(AM169="preparac",0,IF(A169=0,"-",IF(AM169="obsoleto","-",VLOOKUP(AO169,'B Datos 01'!D$2:F$300,3,FALSE)))) -> Sem par-imp | AO169: ='01-C Cotizar'!G169 -> Coca | AP169: ='02-A Facturar'!BG171 -> 6994.478844 | AQ169: 12 | AR169: 7200 | AS169: 7200 | AT169: 1 | AU169: 12 | AV169: 12 | AW169: 12
A170: 02020032 | B170: Coca cola mini lata | C170: Bebidas | F170: 1 | G170: * | H170: 12 | I170: * | J170: 237 | K170: ml | L170: 2844 | M170: ml | O170: =IF(K170="u","porc",IF(K170="g","g",IF(K170="gal","g/ml",IF(K170="kg","g",IF(K170="l","ml",IF(K170="lb","g",IF(K170="ml","ml",IF(K170="oz","g/ml",IF(K170="paq","paq",Error))))))))) -> ml | P170: BC 2 | Q170: A | T170: 45 | U170: 15 | V170: * | X170: * | Y170: * | Z170: * | AF170: * | AM170: Req-Tras | AN170: =IF(AM170="preparac",0,IF(A170=0,"-",IF(AM170="obsoleto","-",VLOOKUP(AO170,'B Datos 01'!D$2:F$300,3,FALSE)))) -> Sem par-imp | AO170: ='01-C Cotizar'!G170 -> L San Ramon | AP170: ='02-A Facturar'!BG172 -> 3095.975232 | AQ170: 12 | AR170: 2844 | AS170: 2844 | AT170: 1 | AU170: 12 | AV170: 180 | AW170: 12
A171: 9 | B171: Salsa napolitana | C171: Abarrotes | E171: HAS | F171: 1 | G171: * | H171: 1 | K171: kg | L171: 1 | M171: kg | N171: 1000 | O171: =IF(K171="u","porc",IF(K171="g","g",IF(K171="gal","g/ml",IF(K171="kg","g",IF(K171="l","ml",IF(K171="lb","g",IF(K171="ml","ml",IF(K171="oz","g/ml",IF(K171="paq","paq",Error))))))))) -> g | U171: 1 | AM171: Preparac | AN171: =IF(AM171="preparac",0,IF(A171=0,"-",IF(AM171="obsoleto","-",VLOOKUP(AO171,'B Datos 01'!D$2:F$300,3,FALSE)))) -> 0 | AO171: ='01-C Cotizar'!G171 -> HAS | AP171: ='02-A Facturar'!BG173 -> 0 | AQ171: 1 | AR171: 1000 | AS171: 1000 | AT171: 1
A172: 0104011 | B172: Coco rayado | C172: Abarrotes | F172: 1 | G172: * | H172: 2 | K172: kg | L172: 2 | M172: kg | N172: 2000 | O172: =IF(K172="u","porc",IF(K172="g","g",IF(K172="gal","g/ml",IF(K172="kg","g",IF(K172="l","ml",IF(K172="lb","g",IF(K172="ml","ml",IF(K172="oz","g/ml",IF(K172="paq","paq",Error))))))))) -> g | P172: BC 1 | Q172: E | T172: 2 | U172: 1 | V172: * | W172: * | AM172: Bod Tras | AN172: =IF(AM172="preparac",0,IF(A172=0,"-",IF(AM172="obsoleto","-",VLOOKUP(AO172,'B Datos 01'!D$2:F$300,3,FALSE)))) -> Sem par-imp | AO172: ='01-C Cotizar'!G172 -> Belca | AP172: ='02-A Facturar'!BG174 -> 5176.5 | AQ172: 1 | AR172: 2 | AS172: 2 | AT172: 1 | AU172: 1 | AV172: 2 | AW172: 1
A173: 0113068 | B173: Cocoa dulce | C173: Abarrotes | E173: Jhonny | F173: 1 | G173: * | H173: 200 | K173: u | L173: 200 | M173: u | O173: =IF(K173="u","porc",IF(K173="g","g",IF(K173="gal","g/ml",IF(K173="kg","g",IF(K173="l","ml",IF(K173="lb","g",IF(K173="ml","ml",IF(K173="oz","g/ml",IF(K173="paq","paq",Error))))))))) -> porc | P173: BC 1 | Q173: D | T173: 12 | U173: 1 | V173: * | AG173: * | AH173: * | AI173: * | AM173: Bod Req | AN173: =IF(AM173="preparac",0,IF(A173=0,"-",IF(AM173="obsoleto","-",VLOOKUP(AO173,'B Datos 01'!D$2:F$300,3,FALSE)))) -> Sem Imp | AO173: ='01-C Cotizar'!G173 -> Ciamesa | AP173: ='02-A Facturar'!BG175 -> 622 | AQ173: 1 | AR173: 200 | AS173: 200 | AT173: 1 | AU173: 1 | AV173: 6 | AW173: 1
A174: 02180001 | B174: Cocoa dulce | C174: Abarrotes | F174: 1 | G174: * | H174: 1 | K174: kg | L174: 1 | M174: kg | N174: 1000 | O174: =IF(K174="u","porc",IF(K174="g","g",IF(K174="gal","g/ml",IF(K174="kg","g",IF(K174="l","ml",IF(K174="lb","g",IF(K174="ml","ml",IF(K174="oz","g/ml",IF(K174="paq","paq",Error))))))))) -> g | P174: BC 1 | Q174: A | T174: 12 | U174: 6 | V174: * | X174: * | Y174: * | Z174: * | AM174: Bod Tras | AN174: =IF(AM174="preparac",0,IF(A174=0,"-",IF(AM174="obsoleto","-",VLOOKUP(AO174,'B Datos 01'!D$2:F$300,3,FALSE)))) -> Sem Imp | AO174: ='01-C Cotizar'!G174 -> Coop Naranj | AP174: ='02-A Facturar'!BG176 -> 2743.36 | AQ174: 1 | AR174: 100 | AS174: 100 | AT174: 1 | AU174: 1 | AV174: 6 | AW174: 1
A175: 02180012 | B175: Cocoa institucional amaretto | C175: Bebidas | E175: Britt | F175: 1 | G175: * | H175: 400 | K175: g | L175: 400 | M175: g | O175: =IF(K175="u","porc",IF(K175="g","g",IF(K175="gal","g/ml",IF(K175="kg","g",IF(K175="l","ml",IF(K175="lb","g",IF(K175="ml","ml",IF(K175="oz","g/ml",IF(K175="paq","paq",Error))))))))) -> g | P175: BC 1 | Q175: E | AM175: Obsoleto | AN175: =IF(AM175="preparac",0,IF(A175=0,"-",IF(AM175="obsoleto","-",VLOOKUP(AO175,'B Datos 01'!D$2:F$300,3,FALSE)))) -> - | AO175: ='01-C Cotizar'!G175 -> 0 | AP175: ='02-A Facturar'!BG177 -> 0 | AQ175: 1 | AR175: 400 | AS175: 400 | AT175: 1
A176: 02180013 | B176: Cocoa institucional canela | C176: Bebidas | E176: Britt | F176: 1 | G176: * | H176: 400 | K176: g | L176: 400 | M176: g | O176: =IF(K176="u","porc",IF(K176="g","g",IF(K176="gal","g/ml",IF(K176="kg","g",IF(K176="l","ml",IF(K176="lb","g",IF(K176="ml","ml",IF(K176="oz","g/ml",IF(K176="paq","paq",Error))))))))) -> g | P176: BC 1 | Q176: E | AM176: Obsoleto | AN176: =IF(AM176="preparac",0,IF(A176=0,"-",IF(AM176="obsoleto","-",VLOOKUP(AO176,'B Datos 01'!D$2:F$300,3,FALSE)))) -> - | AO176: ='01-C Cotizar'!G176 -> 0 | AP176: ='02-A Facturar'!BG178 -> 0 | AQ176: 1 | AR176: 400 | AS176: 400 | AT176: 1
A177: 02180014 | B177: Cocoa institucional caramelo | C177: Bebidas | E177: Britt | F177: 1 | G177: * | H177: 400 | K177: g | L177: 400 | M177: g | O177: =IF(K177="u","porc",IF(K177="g","g",IF(K177="gal","g/ml",IF(K177="kg","g",IF(K177="l","ml",IF(K177="lb","g",IF(K177="ml","ml",IF(K177="oz","g/ml",IF(K177="paq","paq",Error))))))))) -> g | P177: BC 1 | Q177: E | AM177: Obsoleto | AN177: =IF(AM177="preparac",0,IF(A177=0,"-",IF(AM177="obsoleto","-",VLOOKUP(AO177,'B Datos 01'!D$2:F$300,3,FALSE)))) -> - | AO177: ='01-C Cotizar'!G177 -> 0 | AP177: ='02-A Facturar'!BG179 -> 0 | AQ177: 1 | AR177: 400 | AS177: 400 | AT177: 1
A178: 02180015 | B178: Cocoa institucional menta | C178: Bebidas | E178: Britt | F178: 1 | G178: * | H178: 400 | K178: g | L178: 400 | M178: g | O178: =IF(K178="u","porc",IF(K178="g","g",IF(K178="gal","g/ml",IF(K178="kg","g",IF(K178="l","ml",IF(K178="lb","g",IF(K178="ml","ml",IF(K178="oz","g/ml",IF(K178="paq","paq",Error))))))))) -> g | P178: BC 1 | Q178: E | AM178: Obsoleto | AN178: =IF(AM178="preparac",0,IF(A178=0,"-",IF(AM178="obsoleto","-",VLOOKUP(AO178,'B Datos 01'!D$2:F$300,3,FALSE)))) -> - | AO178: ='01-C Cotizar'!G178 -> 0 | AP178: ='02-A Facturar'!BG180 -> 0 | AQ178: 1 | AR178: 400 | AS178: 400 | AT178: 1
A179: 02180016 | B179: Cocoa institucional tradicional | C179: Bebidas | E179: Britt | F179: 1 | G179: * | H179: 400 | K179: g | L179: 400 | M179: g | O179: =IF(K179="u","porc",IF(K179="g","g",IF(K179="gal","g/ml",IF(K179="kg","g",IF(K179="l","ml",IF(K179="lb","g",IF(K179="ml","ml",IF(K179="oz","g/ml",IF(K179="paq","paq",Error))))))))) -> g | P179: BC 1 | Q179: E | AM179: Obsoleto | AN179: =IF(AM179="preparac",0,IF(A179=0,"-",IF(AM179="obsoleto","-",VLOOKUP(AO179,'B Datos 01'!D$2:F$300,3,FALSE)))) -> - | AO179: ='01-C Cotizar'!G179 -> 0 | AP179: ='02-A Facturar'!BG181 -> 0 | AQ179: 1 | AR179: 400 | AS179: 400 | AT179: 1
A180: 02090001 | B180: Cognac bisquit | C180: Bebidas | F180: 1 | G180: * | H180: 750 | K180: ml | L180: 750 | M180: ml | O180: =IF(K180="u","porc",IF(K180="g","g",IF(K180="gal","g/ml",IF(K180="kg","g",IF(K180="l","ml",IF(K180="lb","g",IF(K180="ml","ml",IF(K180="oz","g/ml",IF(K180="paq","paq",Error))))))))) -> ml | P180: BC 1 | Q180: C | T180: 1 | U180: 1 | V180: * | X180: * | Y180: * | Z180: * | AM180: Bod Tras | AN180: =IF(AM180="preparac",0,IF(A180=0,"-",IF(AM180="obsoleto","-",VLOOKUP(AO180,'B Datos 01'!D$2:F$300,3,FALSE)))) -> Sem par-imp | AO180: ='01-C Cotizar'!G180 -> L San Ramon | AP180: ='02-A Facturar'!BG182 -> 40051.33725 | AQ180: 1 | AR180: 750 | AS180: 750 | AT180: 1 | AU180: 1 | AV180: 1 | AW180: 1
A181: 02090002 | B181: Cognac courvoisier vs | C181: Bebidas | F181: 1 | G181: * | H181: 700 | K181: ml | L181: 700 | M181: ml | O181: =IF(K181="u","porc",IF(K181="g","g",IF(K181="gal","g/ml",IF(K181="kg","g",IF(K181="l","ml",IF(K181="lb","g",IF(K181="ml","ml",IF(K181="oz","g/ml",IF(K181="paq","paq",Error))))))))) -> ml | P181: BC 1 | Q181: C | T181: 1 | U181: 1 | V181: * | X181: * | Y181: * | Z181: * | AM181: Bod Tras | AN181: =IF(AM181="preparac",0,IF(A181=0,"-",IF(AM181="obsoleto","-",VLOOKUP(AO181,'B Datos 01'!D$2:F$300,3,FALSE)))) -> Sem par-imp | AO181: ='01-C Cotizar'!G181 -> L San Ramon | AP181: ='02-A Facturar'!BG183 -> 26148.87803 | AQ181: 1 | AR181: 700 | AS181: 700 | AT181: 1 | AU181: 1 | AV181: 1 | AW181: 1
A182: 02090003 | B182: Cognac hennessy v.s.o.p. bot | C182: Destilados | D182: Destilados | F182: 1 | G182: * | H182: 750 | K182: ml | L182: 750 | M182: ml | O182: =IF(K182="u","porc",IF(K182="g","g",IF(K182="gal","g/ml",IF(K182="kg","g",IF(K182="l","ml",IF(K182="lb","g",IF(K182="ml","ml",IF(K182="oz","g/ml",IF(K182="paq","paq",Error))))))))) -> ml | P182: BC 1 | Q182: C | T182: 1 | U182: 1 | V182: * | X182: * | Y182: * | Z182: * | AM182: Bod Tras | AN182: =IF(AM182="preparac",0,IF(A182=0,"-",IF(AM182="obsoleto","-",VLOOKUP(AO182,'B Datos 01'!D$2:F$300,3,FALSE)))) -> Sem Par | AO182: ='01-C Cotizar'!G182 -> V/E Florida | AP182: ='02-A Facturar'!BG184 -> 35150.17478 | AQ182: 1 | AR182: 750 | AS182: 750 | AT182: 1 | AU182: 1 | AV182: 1 | AW182: 1
A183: 7013008 | B183: Salsa pesto | C183: Abarrotes | E183: HAS | F183: 1 | G183: * | H183: 1000 | K183: ml | L183: 1000 | M183: ml | N183: 1000 | O183: =IF(K183="u","porc",IF(K183="g","g",IF(K183="gal","g/ml",IF(K183="kg","g",IF(K183="l","ml",IF(K183="lb","g",IF(K183="ml","ml",IF(K183="oz","g/ml",IF(K183="paq","paq",Error))))))))) -> ml | U183: 1 | AM183: Preparac | AN183: =IF(AM183="preparac",0,IF(A183=0,"-",IF(AM183="obsoleto","-",VLOOKUP(AO183,'B Datos 01'!D$2:F$300,3,FALSE)))) -> 0 | AO183: ='01-C Cotizar'!G183 -> HAS | AP183: ='02-A Facturar'!BG185 -> 0 | AQ183: 1 | AR183: 100 | AS183: 100 | AT183: 1
A184: 0104055 | B184: Colorante amarillo | C184: Abarrotes | F184: 1 | G184: * | H184: 50 | K184: ml | L184: 50 | M184: ml | O184: =IF(K184="u","porc",IF(K184="g","g",IF(K184="gal","g/ml",IF(K184="kg","g",IF(K184="l","ml",IF(K184="lb","g",IF(K184="ml","ml",IF(K184="oz","g/ml",IF(K184="paq","paq",Error))))))))) -> ml | P184: BC 1 | Q184: D | T184: 2 | U184: 1 | V184: * | W184: * | AM184: Bod Tras | AN184: =IF(AM184="preparac",0,IF(A184=0,"-",IF(AM184="obsoleto","-",VLOOKUP(AO184,'B Datos 01'!D$2:F$300,3,FALSE)))) -> Sem par-imp | AO184: ='01-C Cotizar'!G184 -> Belca | AP184: ='02-A Facturar'!BG186 -> 748.24 | AQ184: 1 | AR184: 50 | AS184: 50 | AT184: 1 | AU184: 1 | AV184: 1 | AW184: 1
A185: 0104028 | B185: Colorante azul | C185: Abarrotes | F185: 1 | G185: * | H185: 50 | K185: ml | L185: 50 | M185: ml | O185: =IF(K185="u","porc",IF(K185="g","g",IF(K185="gal","g/ml",IF(K185="kg","g",IF(K185="l","ml",IF(K185="lb","g",IF(K185="ml","ml",IF(K185="oz","g/ml",IF(K185="paq","paq",Error))))))))) -> ml | P185: BC 1 | Q185: D | T185: 2 | U185: 1 | V185: * | W185: * | AM185: Bod Tras | AN185: =IF(AM185="preparac",0,IF(A185=0,"-",IF(AM185="obsoleto","-",VLOOKUP(AO185,'B Datos 01'!D$2:F$300,3,FALSE)))) -> Sem par-imp | AO185: ='01-C Cotizar'!G185 -> Belca | AP185: ='02-A Facturar'!BG187 -> 789.99921 | AQ185: 1 | AR185: 50 | AS185: 50 | AT185: 1 | AU185: 1 | AV185: 1 | AW185: 1
A186: 0104029 | B186: Colorante negro | C186: Abarrotes | F186: 1 | G186: * | H186: 66 | K186: ml | L186: 66 | M186: ml | O186: =IF(K186="u","porc",IF(K186="g","g",IF(K186="gal","g/ml",IF(K186="kg","g",IF(K186="l","ml",IF(K186="lb","g",IF(K186="ml","ml",IF(K186="oz","g/ml",IF(K186="paq","paq",Error))))))))) -> ml | AM186: Obsoleto | AN186: =IF(AM186="preparac",0,IF(A186=0,"-",IF(AM186="obsoleto","-",VLOOKUP(AO186,'B Datos 01'!D$2:F$300,3,FALSE)))) ->  | AO186: ='01-C Cotizar'!G186 -> 0 | AP186: ='02-A Facturar'!BG188 -> 0 | AQ186: 1 | AR186: 50 | AS186: 50 | AT186: 1 | AU186: 1 | AV186: 2 | AW186: 1
A187: 0104027 | B187: Colorante rojo | C187: Abarrotes | F187: 1 | G187: * | H187: 50 | K187: ml | L187: 50 | M187: ml | O187: =IF(K187="u","porc",IF(K187="g","g",IF(K187="gal","g/ml",IF(K187="kg","g",IF(K187="l","ml",IF(K187="lb","g",IF(K187="ml","ml",IF(K187="oz","g/ml",IF(K187="paq","paq",Error))))))))) -> ml | P187: BC 1 | Q187: D | T187: 2 | U187: 1 | V187: * | W187: * | AM187: Bod Tras | AN187: =IF(AM187="preparac",0,IF(A187=0,"-",IF(AM187="obsoleto","-",VLOOKUP(AO187,'B Datos 01'!D$2:F$300,3,FALSE)))) -> Sem par-imp | AO187: ='01-C Cotizar'!G187 -> Belca | AP187: ='02-A Facturar'!BG189 -> 733.2 | AQ187: 1 | AR187: 50 | AS187: 50 | AT187: 1 | AU187: 1 | AV187: 1 | AW187: 1
A188: 0104057 | B188: Colorante verde | C188: Abarrotes | F188: 1 | G188: * | H188: 50 | K188: ml | L188: 50 | M188: ml | O188: =IF(K188="u","porc",IF(K188="g","g",IF(K188="gal","g/ml",IF(K188="kg","g",IF(K188="l","ml",IF(K188="lb","g",IF(K188="ml","ml",IF(K188="oz","g/ml",IF(K188="paq","paq",Error))))))))) -> ml | P188: BC 1 | Q188: D | T188: 2 | U188: 1 | V188: * | W188: * | AM188: Bod Tras | AN188: =IF(AM188="preparac",0,IF(A188=0,"-",IF(AM188="obsoleto","-",VLOOKUP(AO188,'B Datos 01'!D$2:F$300,3,FALSE)))) -> Sem par-imp | AO188: ='01-C Cotizar'!G188 -> Belca | AP188: ='02-A Facturar'!BG190 -> 714.99285 | AQ188: 1 | AR188: 50 | AS188: 50 | AT188: 1 | AU188: 1 | AV188: 1 | AW188: 1
A189: 0105021 | B189: Condi hondashi ajinomoto | C189: Abarrotes | F189: 1 | G189: * | H189: 1 | K189: kg | L189: 1 | M189: kg | N189: 1000 | O189: =IF(K189="u","porc",IF(K189="g","g",IF(K189="gal","g/ml",IF(K189="kg","g",IF(K189="l","ml",IF(K189="lb","g",IF(K189="ml","ml",IF(K189="oz","g/ml",IF(K189="paq","paq",Error))))))))) -> g | P189: BC 1 | Q189: D | T189: 2 | U189: 1 | V189: * | AC189: * | AM189: Bod Tras | AN189: =IF(AM189="preparac",0,IF(A189=0,"-",IF(AM189="obsoleto","-",VLOOKUP(AO189,'B Datos 01'!D$2:F$300,3,FALSE)))) -> Sem par-imp | AO189: ='01-C Cotizar'!G189 -> Isleña | AP189: ='02-A Facturar'!BG191 -> 13800 | AQ189: 1 | AR189: 1 | AS189: 1 | AT189: 1 | AU189: 1 | AV189: 1 | AW189: 1
A190: 02140013 | B190: Cono Sur Bicicleta, Chile | C190: Tinto | D190: Carmenere | E190: =AO190 -> V/Alpiste | F190: 1 | G190: * | H190: 750 | K190: ml | L190: 750 | M190: ml | O190: =IF(K190="u","porc",IF(K190="g","g",IF(K190="gal","g/ml",IF(K190="kg","g",IF(K190="l","ml",IF(K190="lb","g",IF(K190="ml","ml",IF(K190="oz","g/ml",IF(K190="paq","paq",Error))))))))) -> ml | P190: BC 1 | Q190: C | T190: 8 | U190: 1 | V190: * | X190: * | Y190: * | AM190: Bod Tras | AN190: =IF(AM190="preparac",0,IF(A190=0,"-",IF(AM190="obsoleto","-",VLOOKUP(AO190,'B Datos 01'!D$2:F$300,3,FALSE)))) -> Sem par | AO190: ='01-C Cotizar'!G190 -> V/Alpiste | AP190: ='02-A Facturar'!BG192 -> 5295.189203 | AQ190: 1 | AR190: 750 | AS190: 750 | AT190: 1 | AU190: 1 | AV190: 4 | AW190: 1
A191: 02150014 | B191: Cono Sur Bicicleta, Chile | C191: Blanco | D191: Chardonnay | E191: =AO191 -> V/Alpiste | F191: 1 | G191: * | H191: 750 | K191: ml | L191: 750 | M191: ml | O191: =IF(K191="u","porc",IF(K191="g","g",IF(K191="gal","g/ml",IF(K191="kg","g",IF(K191="l","ml",IF(K191="lb","g",IF(K191="ml","ml",IF(K191="oz","g/ml",IF(K191="paq","paq",Error))))))))) -> ml | P191: BC 1 | Q191: C | T191: 8 | U191: 1 | V191: * | X191: * | Y191: * | AM191: Bod Tras | AN191: =IF(AM191="preparac",0,IF(A191=0,"-",IF(AM191="obsoleto","-",VLOOKUP(AO191,'B Datos 01'!D$2:F$300,3,FALSE)))) -> Sem par | AO191: ='01-C Cotizar'!G191 -> V/Alpiste | AP191: ='02-A Facturar'!BG193 -> 5295.189203 | AQ191: 1 | AR191: 750 | AS191: 750 | AT191: 1 | AU191: 1 | AV191: 4 | AW191: 1
A192: 0105017 | B192: Consome mariscos | C192: Abarrotes | F192: 1 | G192: * | H192: 1 | K192: kg | L192: 1 | M192: kg | N192: 1000 | O192: =IF(K192="u","porc",IF(K192="g","g",IF(K192="gal","g/ml",IF(K192="kg","g",IF(K192="l","ml",IF(K192="lb","g",IF(K192="ml","ml",IF(K192="oz","g/ml",IF(K192="paq","paq",Error))))))))) -> g | P192: BC 1 | Q192: A | T192: 2 | U192: 1 | V192: * | W192: * | AD192: * | AM192: Bod Tras | AN192: =IF(AM192="preparac",0,IF(A192=0,"-",IF(AM192="obsoleto","-",VLOOKUP(AO192,'B Datos 01'!D$2:F$300,3,FALSE)))) -> Sem par-imp | AO192: ='01-C Cotizar'!G192 -> Oceanic | AP192: ='02-A Facturar'!BG194 -> 2146.9 | AQ192: 1 | AR192: 1 | AS192: 1 | AT192: 1 | AU192: 1 | AV192: 2 | AW192: 1
A193: 0113004 | B193: Consome pollo | C193: Abarrotes | F193: 1 | G193: * | H193: 10 | I193: * | J193: 12 | K193: g | L193: 120 | M193: g | O193: =IF(K193="u","porc",IF(K193="g","g",IF(K193="gal","g/ml",IF(K193="kg","g",IF(K193="l","ml",IF(K193="lb","g",IF(K193="ml","ml",IF(K193="oz","g/ml",IF(K193="paq","paq",Error))))))))) -> g | P193: BC 1 | Q193: D | T193: 18 | U193: 6 | V193: * | AG193: * | AH193: * | AI193: * | AM193: Bod Tras | AN193: =IF(AM193="preparac",0,IF(A193=0,"-",IF(AM193="obsoleto","-",VLOOKUP(AO193,'B Datos 01'!D$2:F$300,3,FALSE)))) -> Sem Imp | AO193: ='01-C Cotizar'!G193 -> Ciamesa | AP193: ='02-A Facturar'!BG195 -> 766 | AQ193: 10 | AR193: 120 | AS193: 120 | AT193: 1 | AU193: 1 | AV193: 5 | AW193: 1
A194: 0105007 | B194: Consome res kl | C194: Abarrotes | F194: 1 | G194: * | H194: 1 | K194: kg | L194: 1 | M194: kg | O194: =IF(K194="u","porc",IF(K194="g","g",IF(K194="gal","g/ml",IF(K194="kg","g",IF(K194="l","ml",IF(K194="lb","g",IF(K194="ml","ml",IF(K194="oz","g/ml",IF(K194="paq","paq",Error))))))))) -> g | P194: BC 1 | Q194: A | V194: * | W194: * | AM194: Obsoleto | AN194: =IF(AM194="preparac",0,IF(A194=0,"-",IF(AM194="obsoleto","-",VLOOKUP(AO194,'B Datos 01'!D$2:F$300,3,FALSE)))) -> - | AO194: ='01-C Cotizar'!G194 -> 0 | AP194: ='02-A Facturar'!BG196 -> 0 | AQ194: 1 | AR194: 1 | AS194: 1 | AT194: 1 | AU194: 1 | AV194: 1 | AW194: 1
A195: 04030022 | B195: Contenedor 6*6 linea verd | C195: Abarrotes | F195: 1 | G195: * | H195: 500 | K195: u | L195: 500 | M195: u | O195: =IF(K195="u","porc",IF(K195="g","g",IF(K195="gal","g/ml",IF(K195="kg","g",IF(K195="l","ml",IF(K195="lb","g",IF(K195="ml","ml",IF(K195="oz","g/ml",IF(K195="paq","paq",Error))))))))) -> porc | P195: BC 2 | Q195: B | T195: 2 | U195: 1 | V195: * | W195: * | AD195: * | AM195: Bod Req | AN195: =IF(AM195="preparac",0,IF(A195=0,"-",IF(AM195="obsoleto","-",VLOOKUP(AO195,'B Datos 01'!D$2:F$300,3,FALSE)))) -> Sem par-imp | AO195: ='01-C Cotizar'!G195 -> Mayca | AP195: ='02-A Facturar'!BG197 -> 48920.64 | AQ195: 1 | AR195: 400 | AS195: 400 | AT195: 1 | AU195: 1 | AV195: 1 | AW195: 1
A196: 04030001 | B196: Contenedor 9*9 linea verd | C196: Abarrotes | F196: 1 | G196: * | H196: 200 | I196: =IF(J196>0.1,"*","") ->  | K196: u | L196: =IF(J196>0,F196*H196*J196,IF(H196>0,F196*H196,F196)) -> 200 | M196: =K196 -> u | O196: =IF(K196="u","porc",IF(K196="g","g",IF(K196="gal","g/ml",IF(K196="kg","g",IF(K196="l","ml",IF(K196="lb","g",IF(K196="ml","ml",IF(K196="oz","g/ml",IF(K196="paq","paq",Error))))))))) -> porc | P196: BC 2 | Q196: B | T196: 2 | U196: 1 | V196: * | W196: * | AD196: * | AM196: Bod Req | AN196: =IF(AM196="preparac",0,IF(A196=0,"-",IF(AM196="obsoleto","-",VLOOKUP(AO196,'B Datos 01'!D$2:F$300,3,FALSE)))) -> Sem par-imp | AO196: ='01-C Cotizar'!G196 -> Mayca | AP196: ='02-A Facturar'!BG198 -> 27217 | AQ196: =IF(J196=0,F196,L196/J196) -> 1 | AR196: 200 | AS196: 200 | AT196: =IF(A196=0,"-",IF(AR196>0,(AS196/AR196),"Can mat Utilizar")) -> 1 | AU196: 1 | AV196: 1 | AW196: 1
A197: 0101083 | B197: Corazon de Alcachofas | C197: Abarrotes | F197: 1 | G197: * | H197: 390 | K197: g | L197: 390 | M197: g | O197: =IF(K197="u","porc",IF(K197="g","g",IF(K197="gal","g/ml",IF(K197="kg","g",IF(K197="l","ml",IF(K197="lb","g",IF(K197="ml","ml",IF(K197="oz","g/ml",IF(K197="paq","paq",Error))))))))) -> g | P197: BC 1 | Q197: A | T197: 12 | U197: 6 | V197: * | AD197: * | AM197: Bod Tras | AN197: =IF(AM197="preparac",0,IF(A197=0,"-",IF(AM197="obsoleto","-",VLOOKUP(AO197,'B Datos 01'!D$2:F$300,3,FALSE)))) -> Sem par-imp | AO197: ='01-C Cotizar'!G197 -> Mayca | AP197: ='02-A Facturar'!BG199 -> 1779 | AQ197: 1 | AR197: 390 | AS197: 390 | AT197: 1 | AU197: 1 | AV197: 6 | AW197: 1
A198: 40 | B198: Salsa Tempura | F198: 1 | G198: * | H198: 1 | K198: u | L198: 1 | M198: u | N198: 1 | O198: =IF(K198="u","porc",IF(K198="g","g",IF(K198="gal","g/ml",IF(K198="kg","g",IF(K198="l","ml",IF(K198="lb","g",IF(K198="ml","ml",IF(K198="oz","g/ml",IF(K198="paq","paq",Error))))))))) -> porc | U198: 1 | V198: * | AN198: =IF(AM198="preparac",0,IF(A198=0,"-",IF(AM198="obsoleto","-",VLOOKUP(AO198,'B Datos 01'!D$2:F$300,3,FALSE)))) -> Preparaciones | AO198: ='01-C Cotizar'!G198 -> HAS | AP198: ='02-A Facturar'!BG200 -> 0 | AQ198: 1 | AR198: 1 | AS198: 1 | AT198: 1
A199: 0104069 | B199: Cobertura briilante confiteria | C199: Abarrotes | F199: 1 | G199: =IF(H199>0.1,"*","") -> * | H199: 5 | K199: kg | L199: 5 | M199: kg | O199: =IF(K199="u","porc",IF(K199="g","g",IF(K199="gal","g/ml",IF(K199="kg","g",IF(K199="l","ml",IF(K199="lb","g",IF(K199="ml","ml",IF(K199="oz","g/ml",IF(K199="paq","paq",Error))))))))) -> g | P199: BC 1 | Q199: E | T199: 1 | U199: 1 | V199: * | W199: * | AM199: Bod Tras | AN199: =IF(AM199="preparac",0,IF(A199=0,"-",IF(AM199="obsoleto","-",VLOOKUP(AO199,'B Datos 01'!D$2:F$300,3,FALSE)))) -> Sem par-imp | AO199: ='01-C Cotizar'!G199 -> Belca | AP199: ='02-A Facturar'!BG201 -> 21024.75 | AQ199: 1 | AR199: 5 | AS199: 5 | AT199: 1 | AU199: 1 | AV199: 1 | AW199: 1
A200: 0101044 | B200: Crema hongos | C200: Abarrotes | F200: 1 | G200: * | H200: 12 | I200: * | J200: 65 | K200: g | L200: 780 | M200: g | N200: 65 | O200: =IF(K200="u","porc",IF(K200="g","g",IF(K200="gal","g/ml",IF(K200="kg","g",IF(K200="l","ml",IF(K200="lb","g",IF(K200="ml","ml",IF(K200="oz","g/ml",IF(K200="paq","paq",Error))))))))) -> g | P200: BC 1 | Q200: D | T200: 4 | U200: 1 | V200: * | W200: * | AM200: Bod Tras | AN200: =IF(AM200="preparac",0,IF(A200=0,"-",IF(AM200="obsoleto","-",VLOOKUP(AO200,'B Datos 01'!D$2:F$300,3,FALSE)))) -> Sem Imp | AO200: ='01-C Cotizar'!G200 -> Ciamesa | AP200: ='02-A Facturar'!BG202 -> 5412 | AQ200: 12 | AR200: 780 | AS200: 780 | AT200: 1 | AU200: 1 | AV200: 2 | AW200: 1
... 362 more rows

Sheet 01-C Cotizar
O1: Belca | V1: Mayca | AC1: Isleña | AJ1: Ciamesa | AQ1: Alpiste | AX1: Wamase | BE1: Oceanic | BL1: Varios
F2: Clasificacion | O2: Para cotizar colocar "*" en Q2: | V2: Para cotizar colocar "*" en X2: | AC2: Para cotizar colocar "*" en AE2: | AJ2: Para cotizar colocar "*" en AL2: | AQ2: Para cotizar colocar "*" en AS2: | AX2: Para cotizar colocar "*" en AZ2: | BE2: Para cotizar colocar "*" en BG2: | BL2: Para cotizar colocar "*" en BN2: | BO2: * | CE2: Designado y Precio | CG2: Diferencia % | CO2: Reumen de Precentaciones.
B3: Prodcuto | C3: Empaque | D3: U | E3: Convenio | F3: Estudio | G3: Desiganado | H3: Sugerido | I3: Precio | J3: Desc % | K3: Cod Provee | L3: Precent | M3: oo | O3: Cod | P3: Precenta | Q3: ¢ Precio | R3: Pre/Unid | S3: Desc | U3: Neto | V3: Cod | W3: Precenta | X3: ¢ Precio | Y3: Pre/Unid | Z3: Desc | AB3: Neto | AC3: Cod | AD3: Precenta | AE3: ¢ Precio | AF3: Pre/Unid | AG3: Desc | AI3: Neto | AJ3: Cod | AK3: Precenta | AL3: ¢ Precio | AN3: Desc | AP3: Neto | AQ3: Cod | AR3: Precenta | AS3: ¢ Precio | AT3: Pre/Unid | AU3: Desc | AW3: Neto | AX3: Cod | AY3: Precenta | AZ3: ¢ Precio | BA3: Pre/Unid | BB3: Desc | BD3: Neto | BE3: Cod | BF3: Precenta | BG3: ¢ Precio | BH3: Pre/Unid | BI3: Desc | BK3: Neto | BL3: Cod | BM3: Precenta | BN3: ¢ Precio | BO3: Pre/Unid | BP3: Desc | BR3: Neto | CA3: Cuartos de Final | CE3: Final | CF3: Precio | CG3: =O1 -> Belca | CH3: =V1 -> Mayca | CI3: =AC1 -> Isleña | CJ3: =AJ1 -> Ciamesa | CK3: =AQ1 -> Alpiste | CL3: =AX1 -> Wamase | CM3: =BE1 -> Oceanic | CN3: =BL1 -> Varios | CO3: =O1 -> Belca | CP3: =V1 -> Mayca | CQ3: =AC1 -> Isleña | CR3: =AJ1 -> Ciamesa | CS3: =AQ1 -> Alpiste | CT3: =AX1 -> Wamase | CU3: =BE1 -> Oceanic | CV3: =BL1 -> Varios | CW3: Sugiere
A4: ='01-A Reg Prod Nuev'!AM4 -> Bod Req | B4: ='01-A Reg Prod Nuev'!B4 -> Absolut 1/4 botella | C4: =IF('01-A Reg Prod Nuev'!L4=0,0,'01-A Reg Prod Nuev'!L4) -> 200 | D4: ='01-A Reg Prod Nuev'!M4 -> ml | E4: L San Ramon | F4: Varios | G4: =IF(F4="Varios",E4,F4) -> L San Ramon | H4: ='01-C Cotizar'!CW4 -> L San Ramon | I4: =IF(F4='01-C Cotizar'!$O$1,'01-C Cotizar'!U4,IF(F4='01-C Cotizar'!$V$1,'01-C Cotizar'!AB4,IF(F4='01-C Cotizar'!$AC$1,'01-C Cotizar'!AI4,IF(F4='01-C Cotizar'!$AJ$1,'01-C Cotizar'!AP4,IF(F4='01-C Cotizar'!$AQ$1,'01-C Cotizar'!AW4,IF(F4='01-C Cotizar'!$AX$1,'01-C Cotizar'!BD4,IF(F4='01-C Cotizar'!$BE$1,'01-C Cotizar'!BK4,IF(F4='01-C Cotizar'!$BL$1,'01-C Cotizar'!BR4,"O P")))))))) -> 0 | J4: =IF(F4='01-C Cotizar'!$O$1,'01-C Cotizar'!S4,IF(F4='01-C Cotizar'!$V$1,'01-C Cotizar'!Z4,IF(F4='01-C Cotizar'!$AC$1,'01-C Cotizar'!AG4,IF(F4='01-C Cotizar'!$AJ$1,'01-C Cotizar'!AN4,IF(F4='01-C Cotizar'!$AQ$1,'01-C Cotizar'!AU4,IF(F4='01-C Cotizar'!$AX$1,'01-C Cotizar'!BB4,IF(F4='01-C Cotizar'!$BE$1,'01-C Cotizar'!BI4,IF(F4='01-C Cotizar'!$BL$1,'01-C Cotizar'!BP4,"0")))))))) -> 0 | K4: =IF(F4='01-C Cotizar'!$O$1,'01-C Cotizar'!O4,IF(F4='01-C Cotizar'!$V$1,'01-C Cotizar'!V4,IF(F4='01-C Cotizar'!$AC$1,'01-C Cotizar'!AC4,IF(F4='01-C Cotizar'!$AJ$1,'01-C Cotizar'!AJ4,IF(F4='01-C Cotizar'!$AQ$1,'01-C Cotizar'!AQ4,IF(F4='01-C Cotizar'!$AX$1,'01-C Cotizar'!AX4,IF(F4='01-C Cotizar'!$BE$1,'01-C Cotizar'!BE4,IF(F4='01-C Cotizar'!$BL$1,'01-C Cotizar'!BL4,"0")))))))) -> 3731 | L4: =IF(F4='01-C Cotizar'!$O$1,'01-C Cotizar'!P4,IF(F4='01-C Cotizar'!$V$1,'01-C Cotizar'!W4,IF(F4='01-C Cotizar'!$AC$1,'01-C Cotizar'!AD4,IF(F4='01-C Cotizar'!$AJ$1,'01-C Cotizar'!AK4,IF(F4='01-C Cotizar'!$AQ$1,'01-C Cotizar'!AR4,IF(F4='01-C Cotizar'!$AX$1,'01-C Cotizar'!AY4,IF(F4='01-C Cotizar'!$BE$1,'01-C Cotizar'!BF4,IF(F4='01-C Cotizar'!$BL$1,'01-C Cotizar'!BM4,"")))))))) -> 0 | M4: =IF(A4="obsoleto","-",IF(C4>0.1,C4-L4,"-")) -> 200 | N4: =IF(M4="-","1",(M4*100/C4)/100) -> 1 | R4: =IF(P4>0,Q4/P4,0) -> 0 | T4: =R4*S4 -> 0 | U4: =R4-T4 -> 0 | Y4: =IF(W4>0,X4/W4,0) -> 0 | AA4: =Y4*Z4 -> 0 | AB4: =Y4-AA4 -> 0 | AF4: =IF(AD4>0,AE4/AD4,0) -> 0 | AH4: =AF4*AG4 -> 0 | AI4: =AF4-AH4 -> 0 | AM4: =IF(AK4>0,AL4/AK4,0) -> 0 | AO4: =AM4*AN4 -> 0 | AP4: =AM4-AO4 -> 0 | AT4: =IF(AR4>0,AS4/AR4,0) -> 0 | AV4: =AT4*AU4 -> 0 | AW4: =AT4-AV4 -> 0 | BA4: =IF(AY4>0,AZ4/AY4,0) -> 0 | BC4: =BA4*BB4 -> 0 | BD4: =BA4-BC4 -> 0 | BH4: =IF(BF4>0,BG4/BF4,0) -> 0 | BJ4: =BH4*BI4 -> 0 | BK4: =BH4-BJ4 -> 0 | BL4: 3731 | BO4: =IF(BM4>0,BN4/BM4,0) -> 0 | BQ4: =BO4*BP4 -> 0 | BR4: =BO4-BQ4 -> 0 | BS4: =IF(Q4=0,$V$1,IF(X4=0,$O$1,IF(U4<AB4,$O$1,$V$1))) -> Mayca | BT4: =IF(BS4=O$1,U4,AB4) -> 0 | BU4: =IF(AE4=0,$AJ$1,IF(AL4=0,$AC$1,IF(AI4<AP4,$AC$1,$AJ$1))) -> Ciamesa | BV4: =IF(BU4=AC$1,AI4,AP4) -> 0 | BW4: =IF(AS4=0,$AX$1,IF(AZ4=0,$AQ$1,IF(AW4<BD4,$AQ$1,$AX$1))) -> Wamase | BX4: =IF(BW4=AQ$1,AW4,BD4) -> 0 | BY4: =IF(BG4=0,$BL$1,IF(BN4=0,$BE$1,IF(BK4<BR4,$BE$1,$BL$1))) -> Varios | BZ4: =IF(BY4=BE$1,BK4,BR4) -> 0 | CA4: =IF(BX4=0,BY4,IF(BZ4=0,BW4,IF(BX4<BZ4,BW4,BY4))) -> Varios | CB4: =IF(CA4=AQ$1,BX4,IF(CA4=AX$1,BD4,IF(CA4=BE$1,BK4,BR4))) -> 0 | CC4: =IF(BT4=0,BU4,IF(BV4=0,BS4,IF(BT4<BV4,BS4,BU4))) -> Ciamesa | CD4: =IF(CC4=O$1,U4,IF(CC4=V$1,AB4,IF(CC4=AC$1,AI4,IF(CC4=AJ$1,AP4,0)))) -> 0 | CE4: =IF(CD4+CB4=0,"No Oferentes",IF(CD4=0,CA4,IF(CB4=0,CC4,IF(CD4>CB4,CA4,IF(CB4>CD4,CC4,0))))) -> No Oferentes | CF4: =IF(CE4=O$1,U4,IF(CE4=V$1,AB4,IF(CE4=AC$1,AI4,IF(CE4=AJ$1,AP4,IF(CE4=AQ$1,AW4,IF(CE4=AX$1,BD4,IF(CE4=BE$1,BK4,IF(CE4=BL$1,BR4,AW5)))))))) -> 0 | CG4: =IF(U4=0,"No Cot",IF(CE4=BL$1,(U4-CF4)*100/CF4,IF(CE4=BE$1,(U4-CF4)*100/CF4,IF(CE4=AX$1,(U4-CF4)*100/CF4,IF(CE4=AQ$1,(U4-CF4)*100/CF4,IF(CE4=AJ2,(U4-CF4)*100/CF4,IF(CE4=AC$1,(U4-CF4)*100/CF4,IF(CE4=V$1,(U4-CF4)*100/CF4,0)))))))) -> No Cot | CH4: =IF(AB4=0,"N0 Cot",IF(CE4=BL$1,(AB4-CF4)*100/CF4,IF(CE4=BE$1,(AB4-CF4)*100/CF4,IF(CE4=AX$1,(AB4-CF4)*100/CF4,IF(CE4=AQ$1,(AB4-CF4)*100/CF4,IF(CE4=AJ$1,(AB4-CF4)*100/CF4,IF(CE4=AC$1,(AB4-CF4)*100/CF4,IF(CE4=O$1,(AB4-CF4)*100/CF4,0)))))))) -> N0 Cot | CI4: =IF(AI4=0,"No Cot",IF(CE4=BL$1,(AI4-CF4)*100/CF4,IF(CE4=BE$1,(AI4-CF4)*100/CF4,IF(CE4=AX$1,(AI4-CF4)*100/CF4,IF(CE4=AQ$1,(AI4-CF4)*100/CF4,IF(CE4=AJ$1,(AI4-CF4)*100/CF4,IF(CE4=AC$1,(AI4-CF4)*100/CF4,IF(CE4=V$1,(AI4-CF4)*100/CF4,IF(CE4=O$1,(AI4-CF4)*100/CF4,0))))))))) -> No Cot | CJ4: =IF(AP4=0,"No Cot",IF(CE4=BL$1,(AP4-CF4)*100/CF4,IF(CE4=BE$1,(AP4-CF4)*100/CF4,IF(CE4=AX$1,(AP4-CF4)*100/CF4,IF(CE4=AQ$1,(AP4-CF4)*100/CF4,IF(CE4=AJ$1,(AP4-CF4)*100/CF4,IF(CE4=AC$1,(AP4-CF4)*100/CF4,IF(CE4=V$1,(AP4-CF4)*100/CF4,IF(CE4=O$1,(AP4-CF4)*100/CF4,0))))))))) -> No Cot | CK4: =IF(AW4=0,"No Cot",IF(CE4=BL$1,(AW4-CF4)*100/CF4,IF(CE4=BE$1,(AW4-CF4)*100/CF4,IF(CE4=AX$1,(AW4-CF4)*100/CF4,IF(CE4=AQ$1,(AW4-CF4)*100/CF4,IF(CE4=AJ$1,(AW4-CF4)*100/CF4,IF(CE4=AC$1,(AW4-CF4)*100/CF4,IF(CE4=V$1,(AW4-CF4)*100/CF4,IF(CE4=O$1,(AW4-CF4)*100/CF4,0))))))))) -> No Cot | CL4: =IF(BD4=0,"No Cot",IF(CE4=BL$1,(BD4-CF4)*100/CF4,IF(CE4=BE$1,(BD4-CF4)*100/CF4,IF(CC4=AX$1,(BD4-CF4)*100/CF4,IF(CE4=AQ$1,(BD4-CF4)*100/CF4,IF(CE4=AJ$1,(BD4-CF4)*100/CF4,IF(CE4=AC$1,(BD4-CF4)*100/CF4,IF(CE4=V$1,(BD4-CF4)*100/CF4,IF(CE4=O$1,(BD4-CF4)*100/CF4,0))))))))) -> No Cot | CM4: =IF(BK4=0,"No Cot",IF(CE4=BL$1,(BK4-CF4)*100/CF4,IF(CE4=BE$1,(BK4-CF4)*100/CF4,IF(CE4=AX$1,(BK4-CF4)*100/CF4,IF(CE4=AQ$1,(BK4-CF4)*100/CF4,IF(CE4=AQ$1,(BK4-CF4)*100/CF4,IF(CE4=AJ$1,(BK4-CF4)*100/CF4,IF(CE4=AC$1,(BK4-CF4)*100/CF4,IF(CE4=V$1,(BK4-CF4)*100/CF4,IF(CE4=O$1,(BK4-CF4)*100/CF4,0)))))))))) -> No Cot | CN4: =IF(BR4=0,"No Cot",IF(CE4=BL$1,(BR4-CF4)*100/CF4,IF(CE4=BE$1,(BR4-CF4)*100/CF4,IF(CE4=AX$1,(BR4-CF4)*100/CF4,IF(CE4=AQ$1,(BR4-CF4)*100/CF4,IF(CE4=AJ$1,(BR4-CF4)*100/CF4,IF(CE4=AC$1,(BR4-CF4)*100/CF4,IF(CE4=V$1,(BR4-CF4)*100/CF4,IF(CE4=O$1,(BR4-CF4)*100/CF4,0))))))))) -> No Cot | CO4: =P4 -> 0 | CP4: =W4 -> 0 | CQ4: =AD4 -> 0 | CR4: =AK4 -> 0 | CS4: =AR4 -> 0 | CT4: =AY4 -> 0 | CU4: =BF4 -> 0 | CV4: =BM4 -> 0 | CW4: =G4 -> L San Ramon
A5: ='01-A Reg Prod Nuev'!AM5 -> Bod Tras | B5: ='01-A Reg Prod Nuev'!B5 -> Absolut botella | C5: =IF('01-A Reg Prod Nuev'!L5=0,0,'01-A Reg Prod Nuev'!L5) -> 750 | D5: ='01-A Reg Prod Nuev'!M5 -> ml | E5: L San Ramon | F5: Varios | G5: L San Ramon | H5: ='01-C Cotizar'!CW5 -> L San Ramon | I5: =IF(F5='01-C Cotizar'!$O$1,'01-C Cotizar'!U5,IF(F5='01-C Cotizar'!$V$1,'01-C Cotizar'!AB5,IF(F5='01-C Cotizar'!$AC$1,'01-C Cotizar'!AI5,IF(F5='01-C Cotizar'!$AJ$1,'01-C Cotizar'!AP5,IF(F5='01-C Cotizar'!$AQ$1,'01-C Cotizar'!AW5,IF(F5='01-C Cotizar'!$AX$1,'01-C Cotizar'!BD5,IF(F5='01-C Cotizar'!$BE$1,'01-C Cotizar'!BK5,IF(F5='01-C Cotizar'!$BL$1,'01-C Cotizar'!BR5,"O P")))))))) -> 0 | J5: =IF(F5='01-C Cotizar'!$O$1,'01-C Cotizar'!S5,IF(F5='01-C Cotizar'!$V$1,'01-C Cotizar'!Z5,IF(F5='01-C Cotizar'!$AC$1,'01-C Cotizar'!AG5,IF(F5='01-C Cotizar'!$AJ$1,'01-C Cotizar'!AN5,IF(F5='01-C Cotizar'!$AQ$1,'01-C Cotizar'!AU5,IF(F5='01-C Cotizar'!$AX$1,'01-C Cotizar'!BB5,IF(F5='01-C Cotizar'!$BE$1,'01-C Cotizar'!BI5,IF(F5='01-C Cotizar'!$BL$1,'01-C Cotizar'!BP5,"0")))))))) -> 0 | K5: =IF(F5='01-C Cotizar'!$O$1,'01-C Cotizar'!O5,IF(F5='01-C Cotizar'!$V$1,'01-C Cotizar'!V5,IF(F5='01-C Cotizar'!$AC$1,'01-C Cotizar'!AC5,IF(F5='01-C Cotizar'!$AJ$1,'01-C Cotizar'!AJ5,IF(F5='01-C Cotizar'!$AQ$1,'01-C Cotizar'!AQ5,IF(F5='01-C Cotizar'!$AX$1,'01-C Cotizar'!AX5,IF(F5='01-C Cotizar'!$BE$1,'01-C Cotizar'!BE5,IF(F5='01-C Cotizar'!$BL$1,'01-C Cotizar'!BL5,"0")))))))) -> 3726 | L5: =IF(F5='01-C Cotizar'!$O$1,'01-C Cotizar'!P5,IF(F5='01-C Cotizar'!$V$1,'01-C Cotizar'!W5,IF(F5='01-C Cotizar'!$AC$1,'01-C Cotizar'!AD5,IF(F5='01-C Cotizar'!$AJ$1,'01-C Cotizar'!AK5,IF(F5='01-C Cotizar'!$AQ$1,'01-C Cotizar'!AR5,IF(F5='01-C Cotizar'!$AX$1,'01-C Cotizar'!AY5,IF(F5='01-C Cotizar'!$BE$1,'01-C Cotizar'!BF5,IF(F5='01-C Cotizar'!$BL$1,'01-C Cotizar'!BM5,"")))))))) -> 0 | M5: 750 | N5: 1 | R5: 0 | T5: 0 | U5: 0 | Y5: 0 | AA5: 0 | AB5: 0 | AF5: 0 | AH5: 0 | AI5: 0 | AM5: 0 | AO5: 0 | AP5: 0 | AT5: 0 | AV5: 0 | AW5: 0 | BA5: 0 | BC5: 0 | BD5: 0 | BH5: 0 | BJ5: 0 | BK5: 0 | BL5: 3726 | BO5: 0 | BQ5: 0 | BR5: 0 | BS5: Mayca | BT5: 0 | BU5: Ciamesa | BV5: 0 | BW5: Wamase | BX5: 0 | BY5: Varios | BZ5: 0 | CA5: Varios | CB5: 0 | CC5: Ciamesa | CD5: 0 | CE5: No Oferentes | CF5: 0 | CG5: No Cot | CH5: N0 Cot | CI5: No Cot | CJ5: No Cot | CK5: No Cot | CL5: No Cot | CM5: No Cot | CN5: No Cot | CO5: 0 | CP5: 0 | CQ5: 0 | CR5: 0 | CS5: 0 | CT5: 0 | CU5: 0 | CV5: 0 | CW5: =G5 -> L San Ramon
A6: ='01-A Reg Prod Nuev'!AM6 -> Bod Req | B6: ='01-A Reg Prod Nuev'!B6 -> Aceite / antorchas | C6: =IF('01-A Reg Prod Nuev'!L6=0,0,'01-A Reg Prod Nuev'!L6) -> 3.78 | D6: ='01-A Reg Prod Nuev'!M6 -> l | F6: Belca | G6: Belca | H6: ='01-C Cotizar'!CW6 -> Belca | I6: =IF(F6='01-C Cotizar'!$O$1,'01-C Cotizar'!U6,IF(F6='01-C Cotizar'!$V$1,'01-C Cotizar'!AB6,IF(F6='01-C Cotizar'!$AC$1,'01-C Cotizar'!AI6,IF(F6='01-C Cotizar'!$AJ$1,'01-C Cotizar'!AP6,IF(F6='01-C Cotizar'!$AQ$1,'01-C Cotizar'!AW6,IF(F6='01-C Cotizar'!$AX$1,'01-C Cotizar'!BD6,IF(F6='01-C Cotizar'!$BE$1,'01-C Cotizar'!BK6,IF(F6='01-C Cotizar'!$BL$1,'01-C Cotizar'!BR6,"O P")))))))) -> 3443.214286 | J6: =IF(F6='01-C Cotizar'!$O$1,'01-C Cotizar'!S6,IF(F6='01-C Cotizar'!$V$1,'01-C Cotizar'!Z6,IF(F6='01-C Cotizar'!$AC$1,'01-C Cotizar'!AG6,IF(F6='01-C Cotizar'!$AJ$1,'01-C Cotizar'!AN6,IF(F6='01-C Cotizar'!$AQ$1,'01-C Cotizar'!AU6,IF(F6='01-C Cotizar'!$AX$1,'01-C Cotizar'!BB6,IF(F6='01-C Cotizar'!$BE$1,'01-C Cotizar'!BI6,IF(F6='01-C Cotizar'!$BL$1,'01-C Cotizar'!BP6,"0")))))))) -> 0.07 | K6: =IF(F6='01-C Cotizar'!$O$1,'01-C Cotizar'!O6,IF(F6='01-C Cotizar'!$V$1,'01-C Cotizar'!V6,IF(F6='01-C Cotizar'!$AC$1,'01-C Cotizar'!AC6,IF(F6='01-C Cotizar'!$AJ$1,'01-C Cotizar'!AJ6,IF(F6='01-C Cotizar'!$AQ$1,'01-C Cotizar'!AQ6,IF(F6='01-C Cotizar'!$AX$1,'01-C Cotizar'!AX6,IF(F6='01-C Cotizar'!$BE$1,'01-C Cotizar'!BE6,IF(F6='01-C Cotizar'!$BL$1,'01-C Cotizar'!BL6,"0")))))))) -> 128590 | L6: =IF(F6='01-C Cotizar'!$O$1,'01-C Cotizar'!P6,IF(F6='01-C Cotizar'!$V$1,'01-C Cotizar'!W6,IF(F6='01-C Cotizar'!$AC$1,'01-C Cotizar'!AD6,IF(F6='01-C Cotizar'!$AJ$1,'01-C Cotizar'!AK6,IF(F6='01-C Cotizar'!$AQ$1,'01-C Cotizar'!AR6,IF(F6='01-C Cotizar'!$AX$1,'01-C Cotizar'!AY6,IF(F6='01-C Cotizar'!$BE$1,'01-C Cotizar'!BF6,IF(F6='01-C Cotizar'!$BL$1,'01-C Cotizar'!BM6,"")))))))) -> 3.78 | M6: 0 | N6: 0 | O6: 128590 | P6: 3.78 | Q6: 13995 | R6: 3702.380952 | S6: 0.07 | T6: 259.1666667 | U6: 3443.214286 | Y6: 0 | AA6: 0 | AB6: 0 | AC6: 5071 | AD6: 3.78 | AF6: 0 | AH6: 0 | AI6: 0 | AM6: 0 | AO6: 0 | AP6: 0 | AT6: 0 | AV6: 0 | AW6: 0 | BA6: 0 | BC6: 0 | BD6: 0 | BH6: 0 | BJ6: 0 | BK6: 0 | BO6: 0 | BQ6: 0 | BR6: 0 | BS6: Belca | BT6: 3443.214286 | BU6: Ciamesa | BV6: 0 | BW6: Wamase | BX6: 0 | BY6: Varios | BZ6: 0 | CA6: Varios | CB6: 0 | CC6: Belca | CD6: 3443.214286 | CE6: Belca | CF6: 3443.214286 | CG6: 0 | CH6: N0 Cot | CI6: No Cot | CJ6: No Cot | CK6: No Cot | CL6: No Cot | CM6: No Cot | CN6: No Cot | CO6: 3.78 | CP6: 0 | CQ6: 3.78 | CR6: 0 | CS6: 0 | CT6: 0 | CU6: 0 | CV6: 0 | CW6: Belca
A7: ='01-A Reg Prod Nuev'!AM7 -> Bod Tras | B7: ='01-A Reg Prod Nuev'!B7 -> Aceite ajonjoli | C7: =IF('01-A Reg Prod Nuev'!L7=0,0,'01-A Reg Prod Nuev'!L7) -> 12.5 | D7: ='01-A Reg Prod Nuev'!M7 -> oz | F7: Isleña | G7: Isleña | H7: ='01-C Cotizar'!CW7 -> Isleña | I7: =IF(F7='01-C Cotizar'!$O$1,'01-C Cotizar'!U7,IF(F7='01-C Cotizar'!$V$1,'01-C Cotizar'!AB7,IF(F7='01-C Cotizar'!$AC$1,'01-C Cotizar'!AI7,IF(F7='01-C Cotizar'!$AJ$1,'01-C Cotizar'!AP7,IF(F7='01-C Cotizar'!$AQ$1,'01-C Cotizar'!AW7,IF(F7='01-C Cotizar'!$AX$1,'01-C Cotizar'!BD7,IF(F7='01-C Cotizar'!$BE$1,'01-C Cotizar'!BK7,IF(F7='01-C Cotizar'!$BL$1,'01-C Cotizar'!BR7,"O P")))))))) -> 343.7795276 | J7: =IF(F7='01-C Cotizar'!$O$1,'01-C Cotizar'!S7,IF(F7='01-C Cotizar'!$V$1,'01-C Cotizar'!Z7,IF(F7='01-C Cotizar'!$AC$1,'01-C Cotizar'!AG7,IF(F7='01-C Cotizar'!$AJ$1,'01-C Cotizar'!AN7,IF(F7='01-C Cotizar'!$AQ$1,'01-C Cotizar'!AU7,IF(F7='01-C Cotizar'!$AX$1,'01-C Cotizar'!BB7,IF(F7='01-C Cotizar'!$BE$1,'01-C Cotizar'!BI7,IF(F7='01-C Cotizar'!$BL$1,'01-C Cotizar'!BP7,"0")))))))) -> 0 | K7: =IF(F7='01-C Cotizar'!$O$1,'01-C Cotizar'!O7,IF(F7='01-C Cotizar'!$V$1,'01-C Cotizar'!V7,IF(F7='01-C Cotizar'!$AC$1,'01-C Cotizar'!AC7,IF(F7='01-C Cotizar'!$AJ$1,'01-C Cotizar'!AJ7,IF(F7='01-C Cotizar'!$AQ$1,'01-C Cotizar'!AQ7,IF(F7='01-C Cotizar'!$AX$1,'01-C Cotizar'!AX7,IF(F7='01-C Cotizar'!$BE$1,'01-C Cotizar'!BE7,IF(F7='01-C Cotizar'!$BL$1,'01-C Cotizar'!BL7,"0")))))))) -> 2406 | L7: =IF(F7='01-C Cotizar'!$O$1,'01-C Cotizar'!P7,IF(F7='01-C Cotizar'!$V$1,'01-C Cotizar'!W7,IF(F7='01-C Cotizar'!$AC$1,'01-C Cotizar'!AD7,IF(F7='01-C Cotizar'!$AJ$1,'01-C Cotizar'!AK7,IF(F7='01-C Cotizar'!$AQ$1,'01-C Cotizar'!AR7,IF(F7='01-C Cotizar'!$AX$1,'01-C Cotizar'!AY7,IF(F7='01-C Cotizar'!$BE$1,'01-C Cotizar'!BF7,IF(F7='01-C Cotizar'!$BL$1,'01-C Cotizar'!BM7,"")))))))) -> 12.7 | M7: -0.2 | N7: -0.016 | O7: 108262 | P7: 12.5 | R7: 0 | T7: 0 | U7: 0 | V7: 160661 | W7: 12.7 | X7: 5092 | Y7: 400.9448819 | AA7: 0 | AB7: 400.9448819 | AC7: 2406 | AD7: 12.7 | AE7: 4366 | AF7: 343.7795276 | AH7: 0 | AI7: 343.7795276 | AM7: 0 | AO7: 0 | AP7: 0 | AT7: 0 | AV7: 0 | AW7: 0 | BA7: 0 | BC7: 0 | BD7: 0 | BH7: 0 | BJ7: 0 | BK7: 0 | BO7: 0 | BQ7: 0 | BR7: 0 | BS7: Mayca | BT7: 400.9448819 | BU7: Isleña | BV7: 343.7795276 | BW7: Wamase | BX7: 0 | BY7: Varios | BZ7: 0 | CA7: Varios | CB7: 0 | CC7: Isleña | CD7: 343.7795276 | CE7: Isleña | CF7: 343.7795276 | CG7: No Cot | CH7: 16.6284929 | CI7: 0 | CJ7: No Cot | CK7: No Cot | CL7: No Cot | CM7: No Cot | CN7: No Cot | CO7: 12.5 | CP7: 12.7 | CQ7: 12.7 | CR7: 0 | CS7: 0 | CT7: 0 | CU7: 0 | CV7: 0 | CW7: Isleña
A8: ='01-A Reg Prod Nuev'!AM8 -> Bod Tras | B8: ='01-A Reg Prod Nuev'!B8 -> Aceite atun splash trocitos | C8: =IF('01-A Reg Prod Nuev'!L8=0,0,'01-A Reg Prod Nuev'!L8) -> 1 | D8: ='01-A Reg Prod Nuev'!M8 -> kg | F8: Isleña | G8: Isleña | H8: ='01-C Cotizar'!CW8 -> Isleña | I8: =IF(F8='01-C Cotizar'!$O$1,'01-C Cotizar'!U8,IF(F8='01-C Cotizar'!$V$1,'01-C Cotizar'!AB8,IF(F8='01-C Cotizar'!$AC$1,'01-C Cotizar'!AI8,IF(F8='01-C Cotizar'!$AJ$1,'01-C Cotizar'!AP8,IF(F8='01-C Cotizar'!$AQ$1,'01-C Cotizar'!AW8,IF(F8='01-C Cotizar'!$AX$1,'01-C Cotizar'!BD8,IF(F8='01-C Cotizar'!$BE$1,'01-C Cotizar'!BK8,IF(F8='01-C Cotizar'!$BL$1,'01-C Cotizar'!BR8,"O P")))))))) -> 4571.44 | J8: =IF(F8='01-C Cotizar'!$O$1,'01-C Cotizar'!S8,IF(F8='01-C Cotizar'!$V$1,'01-C Cotizar'!Z8,IF(F8='01-C Cotizar'!$AC$1,'01-C Cotizar'!AG8,IF(F8='01-C Cotizar'!$AJ$1,'01-C Cotizar'!AN8,IF(F8='01-C Cotizar'!$AQ$1,'01-C Cotizar'!AU8,IF(F8='01-C Cotizar'!$AX$1,'01-C Cotizar'!BB8,IF(F8='01-C Cotizar'!$BE$1,'01-C Cotizar'!BI8,IF(F8='01-C Cotizar'!$BL$1,'01-C Cotizar'!BP8,"0")))))))) -> 0 | K8: =IF(F8='01-C Cotizar'!$O$1,'01-C Cotizar'!O8,IF(F8='01-C Cotizar'!$V$1,'01-C Cotizar'!V8,IF(F8='01-C Cotizar'!$AC$1,'01-C Cotizar'!AC8,IF(F8='01-C Cotizar'!$AJ$1,'01-C Cotizar'!AJ8,IF(F8='01-C Cotizar'!$AQ$1,'01-C Cotizar'!AQ8,IF(F8='01-C Cotizar'!$AX$1,'01-C Cotizar'!AX8,IF(F8='01-C Cotizar'!$BE$1,'01-C Cotizar'!BE8,IF(F8='01-C Cotizar'!$BL$1,'01-C Cotizar'!BL8,"0")))))))) -> 1394 | L8: =IF(F8='01-C Cotizar'!$O$1,'01-C Cotizar'!P8,IF(F8='01-C Cotizar'!$V$1,'01-C Cotizar'!W8,IF(F8='01-C Cotizar'!$AC$1,'01-C Cotizar'!AD8,IF(F8='01-C Cotizar'!$AJ$1,'01-C Cotizar'!AK8,IF(F8='01-C Cotizar'!$AQ$1,'01-C Cotizar'!AR8,IF(F8='01-C Cotizar'!$AX$1,'01-C Cotizar'!AY8,IF(F8='01-C Cotizar'!$BE$1,'01-C Cotizar'!BF8,IF(F8='01-C Cotizar'!$BL$1,'01-C Cotizar'!BM8,"")))))))) -> 1 | M8: 0 | N8: 0 | O8: 112055 | P8: 1 | R8: 0 | T8: 0 | U8: 0 | V8: 185630 | W8: 1.2 | X8: 5186 | Y8: 4321.666667 | AA8: 0 | AB8: 4321.666667 | AC8: 1394 | AD8: 1 | AE8: 4571.44 | AF8: 4571.44 | AH8: 0 | AI8: 4571.44 | AM8: 0 | AO8: 0 | AP8: 0 | AT8: 0 | AV8: 0 | AW8: 0 | BA8: 0 | BC8: 0 | BD8: 0 | BH8: 0 | BJ8: 0 | BK8: 0 | BO8: 0 | BQ8: 0 | BR8: 0 | BS8: Mayca | BT8: 4321.666667 | BU8: Isleña | BV8: 4571.44 | BW8: Wamase | BX8: 0 | BY8: Varios | BZ8: 0 | CA8: Varios | CB8: 0 | CC8: Mayca | CD8: 4321.666667 | CE8: Mayca | CF8: 4321.666667 | CG8: No Cot | CH8: 0 | CI8: 5.779560355 | CJ8: No Cot | CK8: No Cot | CL8: No Cot | CM8: No Cot | CN8: No Cot | CO8: 1 | CP8: 1.2 | CQ8: 1 | CR8: 0 | CS8: 0 | CT8: 0 | CU8: 0 | CV8: 0 | CW8: Isleña
A9: ='01-A Reg Prod Nuev'!AM9 -> Bod Tras | B9: ='01-A Reg Prod Nuev'!B9 -> Aceite spray | C9: =IF('01-A Reg Prod Nuev'!L9=0,0,'01-A Reg Prod Nuev'!L9) -> 17 | D9: ='01-A Reg Prod Nuev'!M9 -> oz | F9: Mayca | G9: Mayca | H9: ='01-C Cotizar'!CW9 -> Mayca | I9: =IF(F9='01-C Cotizar'!$O$1,'01-C Cotizar'!U9,IF(F9='01-C Cotizar'!$V$1,'01-C Cotizar'!AB9,IF(F9='01-C Cotizar'!$AC$1,'01-C Cotizar'!AI9,IF(F9='01-C Cotizar'!$AJ$1,'01-C Cotizar'!AP9,IF(F9='01-C Cotizar'!$AQ$1,'01-C Cotizar'!AW9,IF(F9='01-C Cotizar'!$AX$1,'01-C Cotizar'!BD9,IF(F9='01-C Cotizar'!$BE$1,'01-C Cotizar'!BK9,IF(F9='01-C Cotizar'!$BL$1,'01-C Cotizar'!BR9,"O P")))))))) -> 120.8235294 | J9: =IF(F9='01-C Cotizar'!$O$1,'01-C Cotizar'!S9,IF(F9='01-C Cotizar'!$V$1,'01-C Cotizar'!Z9,IF(F9='01-C Cotizar'!$AC$1,'01-C Cotizar'!AG9,IF(F9='01-C Cotizar'!$AJ$1,'01-C Cotizar'!AN9,IF(F9='01-C Cotizar'!$AQ$1,'01-C Cotizar'!AU9,IF(F9='01-C Cotizar'!$AX$1,'01-C Cotizar'!BB9,IF(F9='01-C Cotizar'!$BE$1,'01-C Cotizar'!BI9,IF(F9='01-C Cotizar'!$BL$1,'01-C Cotizar'!BP9,"0")))))))) -> 0 | K9: =IF(F9='01-C Cotizar'!$O$1,'01-C Cotizar'!O9,IF(F9='01-C Cotizar'!$V$1,'01-C Cotizar'!V9,IF(F9='01-C Cotizar'!$AC$1,'01-C Cotizar'!AC9,IF(F9='01-C Cotizar'!$AJ$1,'01-C Cotizar'!AJ9,IF(F9='01-C Cotizar'!$AQ$1,'01-C Cotizar'!AQ9,IF(F9='01-C Cotizar'!$AX$1,'01-C Cotizar'!AX9,IF(F9='01-C Cotizar'!$BE$1,'01-C Cotizar'!BE9,IF(F9='01-C Cotizar'!$BL$1,'01-C Cotizar'!BL9,"0")))))))) -> 160642 | L9: =IF(F9='01-C Cotizar'!$O$1,'01-C Cotizar'!P9,IF(F9='01-C Cotizar'!$V$1,'01-C Cotizar'!W9,IF(F9='01-C Cotizar'!$AC$1,'01-C Cotizar'!AD9,IF(F9='01-C Cotizar'!$AJ$1,'01-C Cotizar'!AK9,IF(F9='01-C Cotizar'!$AQ$1,'01-C Cotizar'!AR9,IF(F9='01-C Cotizar'!$AX$1,'01-C Cotizar'!AY9,IF(F9='01-C Cotizar'!$BE$1,'01-C Cotizar'!BF9,IF(F9='01-C Cotizar'!$BL$1,'01-C Cotizar'!BM9,"")))))))) -> 17 | M9: 0 | N9: 0 | O9: 108191 | P9: 22 | Q9: 4275 | R9: 194.3181818 | S9: 0.09 | T9: 17.48863636 | U9: 176.8295455 | V9: 160642 | W9: 17 | X9: 2054 | Y9: 120.8235294 | AA9: 0 | AB9: 120.8235294 | AF9: 0 | AH9: 0 | AI9: 0 | AM9: 0 | AO9: 0 | AP9: 0 | AT9: 0 | AV9: 0 | AW9: 0 | BA9: 0 | BC9: 0 | BD9: 0 | BE9: 02030116 | BF9: 22 | BG9: 3914 | BH9: 177.9090909 | BJ9: 0 | BK9: 177.9090909 | BO9: 0 | BQ9: 0 | BR9: 0 | BS9: Mayca | BT9: 120.8235294 | BU9: Ciamesa | BV9: 0 | BW9: Wamase | BX9: 0 | BY9: Oceanic | BZ9: 177.9090909 | CA9: Oceanic | CB9: 177.9090909 | CC9: Mayca | CD9: 120.8235294 | CE9: Mayca | CF9: 120.8235294 | CG9: 46.35356732 | CH9: 0 | CI9: No Cot | CJ9: No Cot | CK9: No Cot | CL9: No Cot | CM9: 47.24705674 | CN9: No Cot | CO9: 22 | CP9: 17 | CQ9: 0 | CR9: 0 | CS9: 0 | CT9: 0 | CU9: 22 | CV9: 0 | CW9: Mayca
A10: ='01-A Reg Prod Nuev'!AM10 -> Bod Tras | B10: ='01-A Reg Prod Nuev'!B10 -> Aceite frituras | C10: =IF('01-A Reg Prod Nuev'!L10=0,0,'01-A Reg Prod Nuev'!L10) -> 17 | D10: ='01-A Reg Prod Nuev'!M10 -> l | F10: Belca | G10: Belca | H10: ='01-C Cotizar'!CW10 -> Belca | I10: =IF(F10='01-C Cotizar'!$O$1,'01-C Cotizar'!U10,IF(F10='01-C Cotizar'!$V$1,'01-C Cotizar'!AB10,IF(F10='01-C Cotizar'!$AC$1,'01-C Cotizar'!AI10,IF(F10='01-C Cotizar'!$AJ$1,'01-C Cotizar'!AP10,IF(F10='01-C Cotizar'!$AQ$1,'01-C Cotizar'!AW10,IF(F10='01-C Cotizar'!$AX$1,'01-C Cotizar'!BD10,IF(F10='01-C Cotizar'!$BE$1,'01-C Cotizar'!BK10,IF(F10='01-C Cotizar'!$BL$1,'01-C Cotizar'!BR10,"O P")))))))) -> 837.9411765 | J10: =IF(F10='01-C Cotizar'!$O$1,'01-C Cotizar'!S10,IF(F10='01-C Cotizar'!$V$1,'01-C Cotizar'!Z10,IF(F10='01-C Cotizar'!$AC$1,'01-C Cotizar'!AG10,IF(F10='01-C Cotizar'!$AJ$1,'01-C Cotizar'!AN10,IF(F10='01-C Cotizar'!$AQ$1,'01-C Cotizar'!AU10,IF(F10='01-C Cotizar'!$AX$1,'01-C Cotizar'!BB10,IF(F10='01-C Cotizar'!$BE$1,'01-C Cotizar'!BI10,IF(F10='01-C Cotizar'!$BL$1,'01-C Cotizar'!BP10,"0")))))))) -> 0 | K10: =IF(F10='01-C Cotizar'!$O$1,'01-C Cotizar'!O10,IF(F10='01-C Cotizar'!$V$1,'01-C Cotizar'!V10,IF(F10='01-C Cotizar'!$AC$1,'01-C Cotizar'!AC10,IF(F10='01-C Cotizar'!$AJ$1,'01-C Cotizar'!AJ10,IF(F10='01-C Cotizar'!$AQ$1,'01-C Cotizar'!AQ10,IF(F10='01-C Cotizar'!$AX$1,'01-C Cotizar'!AX10,IF(F10='01-C Cotizar'!$BE$1,'01-C Cotizar'!BE10,IF(F10='01-C Cotizar'!$BL$1,'01-C Cotizar'!BL10,"0")))))))) -> 108112 | L10: =IF(F10='01-C Cotizar'!$O$1,'01-C Cotizar'!P10,IF(F10='01-C Cotizar'!$V$1,'01-C Cotizar'!W10,IF(F10='01-C Cotizar'!$AC$1,'01-C Cotizar'!AD10,IF(F10='01-C Cotizar'!$AJ$1,'01-C Cotizar'!AK10,IF(F10='01-C Cotizar'!$AQ$1,'01-C Cotizar'!AR10,IF(F10='01-C Cotizar'!$AX$1,'01-C Cotizar'!AY10,IF(F10='01-C Cotizar'!$BE$1,'01-C Cotizar'!BF10,IF(F10='01-C Cotizar'!$BL$1,'01-C Cotizar'!BM10,"")))))))) -> 17 | M10: 0 | N10: 0 | O10: 108112 | P10: 17 | Q10: 14245 | R10: 837.9411765 | T10: 0 | U10: 837.9411765 | V10: 160615 | W10: 17 | X10: 14192 | Y10: 834.8235294 | AA10: 0 | AB10: 834.8235294 | AC10: 1312 | AD10: 25 | AE10: 27000 | AF10: 1080 | AH10: 0 | AI10: 1080 | AJ10: 11829 | AK10: 17 | AL10: 12295 | AM10: 723.2352941 | AO10: 0 | AP10: 723.2352941 | AT10: 0 | AV10: 0 | AW10: 0 | BA10: 0 | BC10: 0 | BD10: 0 | BH10: 0 | BJ10: 0 | BK10: 0 | BO10: 0 | BQ10: 0 | BR10: 0 | BS10: Mayca | BT10: 834.8235294 | BU10: Ciamesa | BV10: 723.2352941 | BW10: Wamase | BX10: 0 | BY10: Varios | BZ10: 0 | CA10: Varios | CB10: 0 | CC10: Ciamesa | CD10: 723.2352941 | CE10: Ciamesa | CF10: 723.2352941 | CG10: 0 | CH10: 15.42903619 | CI10: 49.32899553 | CJ10: 0 | CK10: No Cot | CL10: No Cot | CM10: No Cot | CN10: No Cot | CO10: 17 | CP10: 17 | CQ10: 25 | CR10: 17 | CS10: 0 | CT10: 0 | CU10: 0 | CV10: 0 | CW10: Belca
A11: ='01-A Reg Prod Nuev'!AM11 -> Bod Tras | B11: ='01-A Reg Prod Nuev'!B11 -> Aceite girasol lt | C11: =IF('01-A Reg Prod Nuev'!L11=0,0,'01-A Reg Prod Nuev'!L11) -> 1 | D11: ='01-A Reg Prod Nuev'!M11 -> l | F11: Ciamesa | G11: Ciamesa | H11: ='01-C Cotizar'!CW11 -> Ciamesa | I11: =IF(F11='01-C Cotizar'!$O$1,'01-C Cotizar'!U11,IF(F11='01-C Cotizar'!$V$1,'01-C Cotizar'!AB11,IF(F11='01-C Cotizar'!$AC$1,'01-C Cotizar'!AI11,IF(F11='01-C Cotizar'!$AJ$1,'01-C Cotizar'!AP11,IF(F11='01-C Cotizar'!$AQ$1,'01-C Cotizar'!AW11,IF(F11='01-C Cotizar'!$AX$1,'01-C Cotizar'!BD11,IF(F11='01-C Cotizar'!$BE$1,'01-C Cotizar'!BK11,IF(F11='01-C Cotizar'!$BL$1,'01-C Cotizar'!BR11,"O P")))))))) -> 1237 | J11: =IF(F11='01-C Cotizar'!$O$1,'01-C Cotizar'!S11,IF(F11='01-C Cotizar'!$V$1,'01-C Cotizar'!Z11,IF(F11='01-C Cotizar'!$AC$1,'01-C Cotizar'!AG11,IF(F11='01-C Cotizar'!$AJ$1,'01-C Cotizar'!AN11,IF(F11='01-C Cotizar'!$AQ$1,'01-C Cotizar'!AU11,IF(F11='01-C Cotizar'!$AX$1,'01-C Cotizar'!BB11,IF(F11='01-C Cotizar'!$BE$1,'01-C Cotizar'!BI11,IF(F11='01-C Cotizar'!$BL$1,'01-C Cotizar'!BP11,"0")))))))) -> 0 | K11: =IF(F11='01-C Cotizar'!$O$1,'01-C Cotizar'!O11,IF(F11='01-C Cotizar'!$V$1,'01-C Cotizar'!V11,IF(F11='01-C Cotizar'!$AC$1,'01-C Cotizar'!AC11,IF(F11='01-C Cotizar'!$AJ$1,'01-C Cotizar'!AJ11,IF(F11='01-C Cotizar'!$AQ$1,'01-C Cotizar'!AQ11,IF(F11='01-C Cotizar'!$AX$1,'01-C Cotizar'!AX11,IF(F11='01-C Cotizar'!$BE$1,'01-C Cotizar'!BE11,IF(F11='01-C Cotizar'!$BL$1,'01-C Cotizar'!BL11,"0")))))))) -> 11979 | L11: =IF(F11='01-C Cotizar'!$O$1,'01-C Cotizar'!P11,IF(F11='01-C Cotizar'!$V$1,'01-C Cotizar'!W11,IF(F11='01-C Cotizar'!$AC$1,'01-C Cotizar'!AD11,IF(F11='01-C Cotizar'!$AJ$1,'01-C Cotizar'!AK11,IF(F11='01-C Cotizar'!$AQ$1,'01-C Cotizar'!AR11,IF(F11='01-C Cotizar'!$AX$1,'01-C Cotizar'!AY11,IF(F11='01-C Cotizar'!$BE$1,'01-C Cotizar'!BF11,IF(F11='01-C Cotizar'!$BL$1,'01-C Cotizar'!BM11,"")))))))) -> 1 | M11: 0 | N11: 0 | R11: 0 | T11: 0 | U11: 0 | Y11: 0 | AA11: 0 | AB11: 0 | AF11: 0 | AH11: 0 | AI11: 0 | AJ11: 11979 | AK11: 1 | AL11: 1237 | AM11: 1237 | AO11: 0 | AP11: 1237 | AT11: 0 | AV11: 0 | AW11: 0 | BA11: 0 | BC11: 0 | BD11: 0 | BH11: 0 | BJ11: 0 | BK11: 0 | BL11: 4010 | BO11: 0 | BQ11: 0 | BR11: 0 | BS11: Mayca | BT11: 0 | BU11: Ciamesa | BV11: 1237 | BW11: Wamase | BX11: 0 | BY11: Varios | BZ11: 0 | CA11: Varios | CB11: 0 | CC11: Ciamesa | CD11: 1237 | CE11: Ciamesa | CF11: 1237 | CG11: No Cot | CH11: N0 Cot | CI11: No Cot | CJ11: 0 | CK11: No Cot | CL11: No Cot | CM11: No Cot | CN11: No Cot | CO11: 0 | CP11: 0 | CQ11: 0 | CR11: 1 | CS11: 0 | CT11: 0 | CU11: 0 | CV11: 0 | CW11: Ciamesa
A12: ='01-A Reg Prod Nuev'!AM12 -> Bod Tras | B12: ='01-A Reg Prod Nuev'!B12 -> Aceite girasol 2lt | C12: =IF('01-A Reg Prod Nuev'!L12=0,0,'01-A Reg Prod Nuev'!L12) -> 2 | D12: ='01-A Reg Prod Nuev'!M12 -> l | F12: Ciamesa | G12: Ciamesa | H12: ='01-C Cotizar'!CW12 -> Ciamesa | I12: =IF(F12='01-C Cotizar'!$O$1,'01-C Cotizar'!U12,IF(F12='01-C Cotizar'!$V$1,'01-C Cotizar'!AB12,IF(F12='01-C Cotizar'!$AC$1,'01-C Cotizar'!AI12,IF(F12='01-C Cotizar'!$AJ$1,'01-C Cotizar'!AP12,IF(F12='01-C Cotizar'!$AQ$1,'01-C Cotizar'!AW12,IF(F12='01-C Cotizar'!$AX$1,'01-C Cotizar'!BD12,IF(F12='01-C Cotizar'!$BE$1,'01-C Cotizar'!BK12,IF(F12='01-C Cotizar'!$BL$1,'01-C Cotizar'!BR12,"O P")))))))) -> 1173 | J12: =IF(F12='01-C Cotizar'!$O$1,'01-C Cotizar'!S12,IF(F12='01-C Cotizar'!$V$1,'01-C Cotizar'!Z12,IF(F12='01-C Cotizar'!$AC$1,'01-C Cotizar'!AG12,IF(F12='01-C Cotizar'!$AJ$1,'01-C Cotizar'!AN12,IF(F12='01-C Cotizar'!$AQ$1,'01-C Cotizar'!AU12,IF(F12='01-C Cotizar'!$AX$1,'01-C Cotizar'!BB12,IF(F12='01-C Cotizar'!$BE$1,'01-C Cotizar'!BI12,IF(F12='01-C Cotizar'!$BL$1,'01-C Cotizar'!BP12,"0")))))))) -> 0 | K12: =IF(F12='01-C Cotizar'!$O$1,'01-C Cotizar'!O12,IF(F12='01-C Cotizar'!$V$1,'01-C Cotizar'!V12,IF(F12='01-C Cotizar'!$AC$1,'01-C Cotizar'!AC12,IF(F12='01-C Cotizar'!$AJ$1,'01-C Cotizar'!AJ12,IF(F12='01-C Cotizar'!$AQ$1,'01-C Cotizar'!AQ12,IF(F12='01-C Cotizar'!$AX$1,'01-C Cotizar'!AX12,IF(F12='01-C Cotizar'!$BE$1,'01-C Cotizar'!BE12,IF(F12='01-C Cotizar'!$BL$1,'01-C Cotizar'!BL12,"0")))))))) -> 11982 | L12: =IF(F12='01-C Cotizar'!$O$1,'01-C Cotizar'!P12,IF(F12='01-C Cotizar'!$V$1,'01-C Cotizar'!W12,IF(F12='01-C Cotizar'!$AC$1,'01-C Cotizar'!AD12,IF(F12='01-C Cotizar'!$AJ$1,'01-C Cotizar'!AK12,IF(F12='01-C Cotizar'!$AQ$1,'01-C Cotizar'!AR12,IF(F12='01-C Cotizar'!$AX$1,'01-C Cotizar'!AY12,IF(F12='01-C Cotizar'!$BE$1,'01-C Cotizar'!BF12,IF(F12='01-C Cotizar'!$BL$1,'01-C Cotizar'!BM12,"")))))))) -> 2 | M12: 0 | N12: 0 | O12: 108121 | P12: 3 | Q12: 3960 | R12: 1320 | T12: 0 | U12: 1320 | V12: 905761 | W12: 3000 | X12: 3129 | Y12: 1.043 | AA12: 0 | AB12: 1.043 | AF12: 0 | AH12: 0 | AI12: 0 | AJ12: 11982 | AK12: 2 | AL12: 2346 | AM12: 1173 | AO12: 0 | AP12: 1173 | AT12: 0 | AV12: 0 | AW12: 0 | BA12: 0 | BC12: 0 | BD12: 0 | BH12: 0 | BJ12: 0 | BK12: 0 | BL12: 4011 | BO12: 0 | BQ12: 0 | BR12: 0 | BS12: Mayca | BT12: 1.043 | BU12: Ciamesa | BV12: 1173 | BW12: Wamase | BX12: 0 | BY12: Varios | BZ12: 0 | CA12: Varios | CB12: 0 | CC12: Mayca | CD12: 1.043 | CE12: Mayca | CF12: 1.043 | CG12: 126458.0058 | CH12: 0 | CI12: No Cot | CJ12: 112364.046 | CK12: No Cot | CL12: No Cot | CM12: No Cot | CN12: No Cot | CO12: 3 | CP12: 3000 | CQ12: 0 | CR12: 2 | CS12: 0 | CT12: 0 | CU12: 0 | CV12: 0 | CW12: Ciamesa
A13: ='01-A Reg Prod Nuev'!AM13 -> Bod Tras | B13: ='01-A Reg Prod Nuev'!B13 -> Aceite oliva sansa | C13: =IF('01-A Reg Prod Nuev'!L13=0,0,'01-A Reg Prod Nuev'!L13) -> 5 | D13: ='01-A Reg Prod Nuev'!M13 -> l | F13: Isleña | G13: Isleña | H13: ='01-C Cotizar'!CW13 -> Isleña | I13: =IF(F13='01-C Cotizar'!$O$1,'01-C Cotizar'!U13,IF(F13='01-C Cotizar'!$V$1,'01-C Cotizar'!AB13,IF(F13='01-C Cotizar'!$AC$1,'01-C Cotizar'!AI13,IF(F13='01-C Cotizar'!$AJ$1,'01-C Cotizar'!AP13,IF(F13='01-C Cotizar'!$AQ$1,'01-C Cotizar'!AW13,IF(F13='01-C Cotizar'!$AX$1,'01-C Cotizar'!BD13,IF(F13='01-C Cotizar'!$BE$1,'01-C Cotizar'!BK13,IF(F13='01-C Cotizar'!$BL$1,'01-C Cotizar'!BR13,"O P")))))))) -> 1700 | J13: =IF(F13='01-C Cotizar'!$O$1,'01-C Cotizar'!S13,IF(F13='01-C Cotizar'!$V$1,'01-C Cotizar'!Z13,IF(F13='01-C Cotizar'!$AC$1,'01-C Cotizar'!AG13,IF(F13='01-C Cotizar'!$AJ$1,'01-C Cotizar'!AN13,IF(F13='01-C Cotizar'!$AQ$1,'01-C Cotizar'!AU13,IF(F13='01-C Cotizar'!$AX$1,'01-C Cotizar'!BB13,IF(F13='01-C Cotizar'!$BE$1,'01-C Cotizar'!BI13,IF(F13='01-C Cotizar'!$BL$1,'01-C Cotizar'!BP13,"0")))))))) -> 0 | K13: =IF(F13='01-C Cotizar'!$O$1,'01-C Cotizar'!O13,IF(F13='01-C Cotizar'!$V$1,'01-C Cotizar'!V13,IF(F13='01-C Cotizar'!$AC$1,'01-C Cotizar'!AC13,IF(F13='01-C Cotizar'!$AJ$1,'01-C Cotizar'!AJ13,IF(F13='01-C Cotizar'!$AQ$1,'01-C Cotizar'!AQ13,IF(F13='01-C Cotizar'!$AX$1,'01-C Cotizar'!AX13,IF(F13='01-C Cotizar'!$BE$1,'01-C Cotizar'!BE13,IF(F13='01-C Cotizar'!$BL$1,'01-C Cotizar'!BL13,"0")))))))) -> 1874 | L13: =IF(F13='01-C Cotizar'!$O$1,'01-C Cotizar'!P13,IF(F13='01-C Cotizar'!$V$1,'01-C Cotizar'!W13,IF(F13='01-C Cotizar'!$AC$1,'01-C Cotizar'!AD13,IF(F13='01-C Cotizar'!$AJ$1,'01-C Cotizar'!AK13,IF(F13='01-C Cotizar'!$AQ$1,'01-C Cotizar'!AR13,IF(F13='01-C Cotizar'!$AX$1,'01-C Cotizar'!AY13,IF(F13='01-C Cotizar'!$BE$1,'01-C Cotizar'!BF13,IF(F13='01-C Cotizar'!$BL$1,'01-C Cotizar'!BM13,"")))))))) -> 5 | M13: 0 | N13: 0 | O13: 108210 | P13: 5 | Q13: 19165 | R13: 3833 | T13: 0 | U13: 3833 | Y13: 0 | AA13: 0 | AB13: 0 | AC13: 1874 | AD13: 5 | AE13: 8500 | AF13: 1700 | AH13: 0 | AI13: 1700 | AK13: 5 | AM13: 0 | AO13: 0 | AP13: 0 | AQ13: 0051470 | AR13: 5 | AS13: 11536 | AT13: 2307.2 | AU13: 0.15 | AV13: 346.08 | AW13: 1961.12 | BA13: 0 | BC13: 0 | BD13: 0 | BH13: 0 | BJ13: 0 | BK13: 0 | BO13: 0 | BQ13: 0 | BR13: 0 | BS13: Belca | BT13: 3833 | BU13: Isleña | BV13: 1700 | BW13: Alpiste | BX13: 1961.12 | BY13: Varios | BZ13: 0 | CA13: Alpiste | CB13: 1961.12 | CC13: Isleña | CD13: 1700 | CE13: Isleña | CF13: 1700 | CG13: 125.4705882 | CH13: N0 Cot | CI13: 0 | CJ13: No Cot | CK13: 15.36 | CL13: No Cot | CM13: No Cot | CN13: No Cot | CO13: 5 | CP13: 0 | CQ13: 5 | CR13: 5 | CS13: 5 | CT13: 0 | CU13: 0 | CV13: 0 | CW13: Isleña
A14: ='01-A Reg Prod Nuev'!AM14 -> Bod Tras | B14: ='01-A Reg Prod Nuev'!B14 -> Aceite olivo extravirgen | C14: =IF('01-A Reg Prod Nuev'!L14=0,0,'01-A Reg Prod Nuev'!L14) -> 5 | D14: ='01-A Reg Prod Nuev'!M14 -> l | F14: Isleña | G14: Isleña | H14: ='01-C Cotizar'!CW14 -> Isleña | I14: =IF(F14='01-C Cotizar'!$O$1,'01-C Cotizar'!U14,IF(F14='01-C Cotizar'!$V$1,'01-C Cotizar'!AB14,IF(F14='01-C Cotizar'!$AC$1,'01-C Cotizar'!AI14,IF(F14='01-C Cotizar'!$AJ$1,'01-C Cotizar'!AP14,IF(F14='01-C Cotizar'!$AQ$1,'01-C Cotizar'!AW14,IF(F14='01-C Cotizar'!$AX$1,'01-C Cotizar'!BD14,IF(F14='01-C Cotizar'!$BE$1,'01-C Cotizar'!BK14,IF(F14='01-C Cotizar'!$BL$1,'01-C Cotizar'!BR14,"O P")))))))) -> 2800 | J14: =IF(F14='01-C Cotizar'!$O$1,'01-C Cotizar'!S14,IF(F14='01-C Cotizar'!$V$1,'01-C Cotizar'!Z14,IF(F14='01-C Cotizar'!$AC$1,'01-C Cotizar'!AG14,IF(F14='01-C Cotizar'!$AJ$1,'01-C Cotizar'!AN14,IF(F14='01-C Cotizar'!$AQ$1,'01-C Cotizar'!AU14,IF(F14='01-C Cotizar'!$AX$1,'01-C Cotizar'!BB14,IF(F14='01-C Cotizar'!$BE$1,'01-C Cotizar'!BI14,IF(F14='01-C Cotizar'!$BL$1,'01-C Cotizar'!BP14,"0")))))))) -> 0 | K14: =IF(F14='01-C Cotizar'!$O$1,'01-C Cotizar'!O14,IF(F14='01-C Cotizar'!$V$1,'01-C Cotizar'!V14,IF(F14='01-C Cotizar'!$AC$1,'01-C Cotizar'!AC14,IF(F14='01-C Cotizar'!$AJ$1,'01-C Cotizar'!AJ14,IF(F14='01-C Cotizar'!$AQ$1,'01-C Cotizar'!AQ14,IF(F14='01-C Cotizar'!$AX$1,'01-C Cotizar'!AX14,IF(F14='01-C Cotizar'!$BE$1,'01-C Cotizar'!BE14,IF(F14='01-C Cotizar'!$BL$1,'01-C Cotizar'!BL14,"0")))))))) -> 1876 | L14: =IF(F14='01-C Cotizar'!$O$1,'01-C Cotizar'!P14,IF(F14='01-C Cotizar'!$V$1,'01-C Cotizar'!W14,IF(F14='01-C Cotizar'!$AC$1,'01-C Cotizar'!AD14,IF(F14='01-C Cotizar'!$AJ$1,'01-C Cotizar'!AK14,IF(F14='01-C Cotizar'!$AQ$1,'01-C Cotizar'!AR14,IF(F14='01-C Cotizar'!$AX$1,'01-C Cotizar'!AY14,IF(F14='01-C Cotizar'!$BE$1,'01-C Cotizar'!BF14,IF(F14='01-C Cotizar'!$BL$1,'01-C Cotizar'!BM14,"")))))))) -> 5 | M14: 0 | N14: 0 | O14: 108226 | P14: 5 | Q14: 27245 | R14: 5449 | T14: 0 | U14: 5449 | Y14: 0 | AA14: 0 | AB14: 0 | AC14: 1876 | AD14: 5 | AE14: 14000 | AF14: 2800 | AH14: 0 | AI14: 2800 | AM14: 0 | AO14: 0 | AP14: 0 | AQ14: 0051420 | AR14: 5 | AS14: 17640 | AT14: 3528 | AU14: 0.15 | AV14: 529.2 | AW14: 2998.8 | BA14: 0 | BC14: 0 | BD14: 0 | BE14: 02030292 | BF14: 5 | BH14: 0 | BJ14: 0 | BK14: 0 | BO14: 0 | BQ14: 0 | BR14: 0 | BS14: Belca | BT14: 5449 | BU14: Isleña | BV14: 2800 | BW14: Alpiste | BX14: 2998.8 | BY14: Varios | BZ14: 0 | CA14: Alpiste | CB14: 2998.8 | CC14: Isleña | CD14: 2800 | CE14: Isleña | CF14: 2800 | CG14: 94.60714286 | CH14: N0 Cot | CI14: 0 | CJ14: No Cot | CK14: 7.1 | CL14: No Cot | CM14: No Cot | CN14: No Cot | CO14: 5 | CP14: 0 | CQ14: 5 | CR14: 0 | CS14: 5 | CT14: 0 | CU14: 5 | CV14: 0 | CW14: Isleña
A15: ='01-A Reg Prod Nuev'!AM15 -> Bod Tras | B15: ='01-A Reg Prod Nuev'!B15 -> Aciete RBD | C15: =IF('01-A Reg Prod Nuev'!L15=0,0,'01-A Reg Prod Nuev'!L15) -> 17 | D15: ='01-A Reg Prod Nuev'!M15 -> l | F15: Belca | G15: Belca | H15: ='01-C Cotizar'!CW15 -> Belca | I15: =IF(F15='01-C Cotizar'!$O$1,'01-C Cotizar'!U15,IF(F15='01-C Cotizar'!$V$1,'01-C Cotizar'!AB15,IF(F15='01-C Cotizar'!$AC$1,'01-C Cotizar'!AI15,IF(F15='01-C Cotizar'!$AJ$1,'01-C Cotizar'!AP15,IF(F15='01-C Cotizar'!$AQ$1,'01-C Cotizar'!AW15,IF(F15='01-C Cotizar'!$AX$1,'01-C Cotizar'!BD15,IF(F15='01-C Cotizar'!$BE$1,'01-C Cotizar'!BK15,IF(F15='01-C Cotizar'!$BL$1,'01-C Cotizar'!BR15,"O P")))))))) -> 837.9411765 | J15: =IF(F15='01-C Cotizar'!$O$1,'01-C Cotizar'!S15,IF(F15='01-C Cotizar'!$V$1,'01-C Cotizar'!Z15,IF(F15='01-C Cotizar'!$AC$1,'01-C Cotizar'!AG15,IF(F15='01-C Cotizar'!$AJ$1,'01-C Cotizar'!AN15,IF(F15='01-C Cotizar'!$AQ$1,'01-C Cotizar'!AU15,IF(F15='01-C Cotizar'!$AX$1,'01-C Cotizar'!BB15,IF(F15='01-C Cotizar'!$BE$1,'01-C Cotizar'!BI15,IF(F15='01-C Cotizar'!$BL$1,'01-C Cotizar'!BP15,"0")))))))) -> 0 | K15: =IF(F15='01-C Cotizar'!$O$1,'01-C Cotizar'!O15,IF(F15='01-C Cotizar'!$V$1,'01-C Cotizar'!V15,IF(F15='01-C Cotizar'!$AC$1,'01-C Cotizar'!AC15,IF(F15='01-C Cotizar'!$AJ$1,'01-C Cotizar'!AJ15,IF(F15='01-C Cotizar'!$AQ$1,'01-C Cotizar'!AQ15,IF(F15='01-C Cotizar'!$AX$1,'01-C Cotizar'!AX15,IF(F15='01-C Cotizar'!$BE$1,'01-C Cotizar'!BE15,IF(F15='01-C Cotizar'!$BL$1,'01-C Cotizar'!BL15,"0")))))))) -> 108122 | L15: =IF(F15='01-C Cotizar'!$O$1,'01-C Cotizar'!P15,IF(F15='01-C Cotizar'!$V$1,'01-C Cotizar'!W15,IF(F15='01-C Cotizar'!$AC$1,'01-C Cotizar'!AD15,IF(F15='01-C Cotizar'!$AJ$1,'01-C Cotizar'!AK15,IF(F15='01-C Cotizar'!$AQ$1,'01-C Cotizar'!AR15,IF(F15='01-C Cotizar'!$AX$1,'01-C Cotizar'!AY15,IF(F15='01-C Cotizar'!$BE$1,'01-C Cotizar'!BF15,IF(F15='01-C Cotizar'!$BL$1,'01-C Cotizar'!BM15,"")))))))) -> 17 | M15: 0 | N15: 0 | O15: 108122 | P15: 17 | Q15: 14245 | R15: 837.9411765 | T15: 0 | U15: 837.9411765 | V15: 160607 | W15: 17 | X15: 12551 | Y15: 738.2941176 | AA15: 0 | AB15: 738.2941176 | AC15: 1227 | AD15: 25 | AE15: 22800 | AF15: 912 | AH15: 0 | AI15: 912 | AJ15: 11835 | AK15: 17 | AL15: 14280 | AM15: 840 | AO15: 0 | AP15: 840 | AT15: 0 | AV15: 0 | AW15: 0 | BA15: 0 | BC15: 0 | BD15: 0 | BE15: 06010116 | BF15: 17 | BH15: 0 | BJ15: 0 | BK15: 0 | BO15: 0 | BQ15: 0 | BR15: 0 | BS15: Mayca | BT15: 738.2941176 | BU15: Ciamesa | BV15: 840 | BW15: Wamase | BX15: 0 | BY15: Varios | BZ15: 0 | CA15: Varios | CB15: 0 | CC15: Mayca | CD15: 738.2941176 | CE15: Mayca | CF15: 738.2941176 | CG15: 13.49693252 | CH15: 0 | CI15: 23.52800574 | CJ15: 13.77579476 | CK15: No Cot | CL15: No Cot | CM15: No Cot | CN15: No Cot | CO15: 17 | CP15: 17 | CQ15: 25 | CR15: 17 | CS15: 0 | CT15: 0 | CU15: 17 | CV15: 0 | CW15: Belca
A16: ='01-A Reg Prod Nuev'!AM16 -> Bod Tras | B16: ='01-A Reg Prod Nuev'!B16 -> Aceitunas negras rebanadas | C16: =IF('01-A Reg Prod Nuev'!L16=0,0,'01-A Reg Prod Nuev'!L16) -> 2.85 | D16: ='01-A Reg Prod Nuev'!M16 -> kg | F16: Oceanic | G16: Oceanic | H16: ='01-C Cotizar'!CW16 -> Oceanic | I16: =IF(F16='01-C Cotizar'!$O$1,'01-C Cotizar'!U16,IF(F16='01-C Cotizar'!$V$1,'01-C Cotizar'!AB16,IF(F16='01-C Cotizar'!$AC$1,'01-C Cotizar'!AI16,IF(F16='01-C Cotizar'!$AJ$1,'01-C Cotizar'!AP16,IF(F16='01-C Cotizar'!$AQ$1,'01-C Cotizar'!AW16,IF(F16='01-C Cotizar'!$AX$1,'01-C Cotizar'!BD16,IF(F16='01-C Cotizar'!$BE$1,'01-C Cotizar'!BK16,IF(F16='01-C Cotizar'!$BL$1,'01-C Cotizar'!BR16,"O P")))))))) -> 1420 | J16: =IF(F16='01-C Cotizar'!$O$1,'01-C Cotizar'!S16,IF(F16='01-C Cotizar'!$V$1,'01-C Cotizar'!Z16,IF(F16='01-C Cotizar'!$AC$1,'01-C Cotizar'!AG16,IF(F16='01-C Cotizar'!$AJ$1,'01-C Cotizar'!AN16,IF(F16='01-C Cotizar'!$AQ$1,'01-C Cotizar'!AU16,IF(F16='01-C Cotizar'!$AX$1,'01-C Cotizar'!BB16,IF(F16='01-C Cotizar'!$BE$1,'01-C Cotizar'!BI16,IF(F16='01-C Cotizar'!$BL$1,'01-C Cotizar'!BP16,"0")))))))) -> 0 | K16: =IF(F16='01-C Cotizar'!$O$1,'01-C Cotizar'!O16,IF(F16='01-C Cotizar'!$V$1,'01-C Cotizar'!V16,IF(F16='01-C Cotizar'!$AC$1,'01-C Cotizar'!AC16,IF(F16='01-C Cotizar'!$AJ$1,'01-C Cotizar'!AJ16,IF(F16='01-C Cotizar'!$AQ$1,'01-C Cotizar'!AQ16,IF(F16='01-C Cotizar'!$AX$1,'01-C Cotizar'!AX16,IF(F16='01-C Cotizar'!$BE$1,'01-C Cotizar'!BE16,IF(F16='01-C Cotizar'!$BL$1,'01-C Cotizar'!BL16,"0")))))))) -> 02030327 | L16: =IF(F16='01-C Cotizar'!$O$1,'01-C Cotizar'!P16,IF(F16='01-C Cotizar'!$V$1,'01-C Cotizar'!W16,IF(F16='01-C Cotizar'!$AC$1,'01-C Cotizar'!AD16,IF(F16='01-C Cotizar'!$AJ$1,'01-C Cotizar'!AK16,IF(F16='01-C Cotizar'!$AQ$1,'01-C Cotizar'!AR16,IF(F16='01-C Cotizar'!$AX$1,'01-C Cotizar'!AY16,IF(F16='01-C Cotizar'!$BE$1,'01-C Cotizar'!BF16,IF(F16='01-C Cotizar'!$BL$1,'01-C Cotizar'!BM16,"")))))))) -> 2.85 | M16: 0 | N16: 0 | O16: 107451 | P16: 1.56 | R16: 0 | T16: 0 | U16: 0 | V16: 155614 | W16: 3.78 | Y16: 0 | AA16: 0 | AB16: 0 | AF16: 0 | AH16: 0 | AI16: 0 | AJ16: 23829 | AK16: 3.78 | AL16: 6368 | AM16: 1684.656085 | AO16: 0 | AP16: 1684.656085 | AQ16: 0040901 | AR16: 4.1 | AS16: 9766 | AT16: 2381.95122 | AU16: 0.1 | AV16: 238.195122 | AW16: 2143.756098 | BA16: 0 | BC16: 0 | BD16: 0 | BE16: 02030327 | BF16: 2.85 | BG16: 4047 | BH16: 1420 | BJ16: 0 | BK16: 1420 | BO16: 0 | BQ16: 0 | BR16: 0 | BS16: Mayca | BT16: 0 | BU16: Ciamesa | BV16: 1684.656085 | BW16: Alpiste | BX16: 2143.756098 | BY16: Oceanic | BZ16: 1420 | CA16: Oceanic | CB16: 1420 | CC16: Ciamesa | CD16: 1684.656085 | CE16: Oceanic | CF16: 1420 | CG16: No Cot | CH16: N0 Cot | CI16: No Cot | CJ16: 18.63775244 | CK16: 50.96873926 | CL16: No Cot | CM16: 0 | CN16: No Cot | CO16: 1.56 | CP16: 3.78 | CQ16: 0 | CR16: 3.78 | CS16: 4.1 | CT16: 0 | CU16: 2.85 | CV16: 0 | CW16: Oceanic
A17: ='01-A Reg Prod Nuev'!AM17 -> Bod Tras | B17: ='01-A Reg Prod Nuev'!B17 -> Aceitunas verdes rebanadas | C17: =IF('01-A Reg Prod Nuev'!L17=0,0,'01-A Reg Prod Nuev'!L17) -> 3.78 | D17: ='01-A Reg Prod Nuev'!M17 -> kg | F17: Alpiste | G17: Alpiste | H17: ='01-C Cotizar'!CW17 -> Alpiste | I17: =IF(F17='01-C Cotizar'!$O$1,'01-C Cotizar'!U17,IF(F17='01-C Cotizar'!$V$1,'01-C Cotizar'!AB17,IF(F17='01-C Cotizar'!$AC$1,'01-C Cotizar'!AI17,IF(F17='01-C Cotizar'!$AJ$1,'01-C Cotizar'!AP17,IF(F17='01-C Cotizar'!$AQ$1,'01-C Cotizar'!AW17,IF(F17='01-C Cotizar'!$AX$1,'01-C Cotizar'!BD17,IF(F17='01-C Cotizar'!$BE$1,'01-C Cotizar'!BK17,IF(F17='01-C Cotizar'!$BL$1,'01-C Cotizar'!BR17,"O P")))))))) -> 1613.414634 | J17: =IF(F17='01-C Cotizar'!$O$1,'01-C Cotizar'!S17,IF(F17='01-C Cotizar'!$V$1,'01-C Cotizar'!Z17,IF(F17='01-C Cotizar'!$AC$1,'01-C Cotizar'!AG17,IF(F17='01-C Cotizar'!$AJ$1,'01-C Cotizar'!AN17,IF(F17='01-C Cotizar'!$AQ$1,'01-C Cotizar'!AU17,IF(F17='01-C Cotizar'!$AX$1,'01-C Cotizar'!BB17,IF(F17='01-C Cotizar'!$BE$1,'01-C Cotizar'!BI17,IF(F17='01-C Cotizar'!$BL$1,'01-C Cotizar'!BP17,"0")))))))) -> 0.1 | K17: =IF(F17='01-C Cotizar'!$O$1,'01-C Cotizar'!O17,IF(F17='01-C Cotizar'!$V$1,'01-C Cotizar'!V17,IF(F17='01-C Cotizar'!$AC$1,'01-C Cotizar'!AC17,IF(F17='01-C Cotizar'!$AJ$1,'01-C Cotizar'!AJ17,IF(F17='01-C Cotizar'!$AQ$1,'01-C Cotizar'!AQ17,IF(F17='01-C Cotizar'!$AX$1,'01-C Cotizar'!AX17,IF(F17='01-C Cotizar'!$BE$1,'01-C Cotizar'!BE17,IF(F17='01-C Cotizar'!$BL$1,'01-C Cotizar'!BL17,"0")))))))) -> 0042304 | L17: =IF(F17='01-C Cotizar'!$O$1,'01-C Cotizar'!P17,IF(F17='01-C Cotizar'!$V$1,'01-C Cotizar'!W17,IF(F17='01-C Cotizar'!$AC$1,'01-C Cotizar'!AD17,IF(F17='01-C Cotizar'!$AJ$1,'01-C Cotizar'!AK17,IF(F17='01-C Cotizar'!$AQ$1,'01-C Cotizar'!AR17,IF(F17='01-C Cotizar'!$AX$1,'01-C Cotizar'!AY17,IF(F17='01-C Cotizar'!$BE$1,'01-C Cotizar'!BF17,IF(F17='01-C Cotizar'!$BL$1,'01-C Cotizar'!BM17,"")))))))) -> 4.1 | M17: -0.32 | N17: -0.08465608466 | O17: 107461 | P17: 1.362 | Q17: 7630 | R17: 5602.0558 | T17: 0 | U17: 5602.0558 | Y17: 0 | AA17: 0 | AB17: 0 | AC17: 01258 | AF17: 0 | AH17: 0 | AI17: 0 | AM17: 0 | AO17: 0 | AP17: 0 | AQ17: 0042304 | AR17: 4.1 | AS17: 7350 | AT17: 1792.682927 | AU17: 0.1 | AV17: 179.2682927 | AW17: 1613.414634 | BA17: 0 | BC17: 0 | BD17: 0 | BE17: 02030107 | BF17: 3.785 | BH17: 0 | BJ17: 0 | BK17: 0 | BO17: 0 | BQ17: 0 | BR17: 0 | BS17: Belca | BT17: 5602.0558 | BU17: Ciamesa | BV17: 0 | BW17: Alpiste | BX17: 1613.414634 | BY17: Varios | BZ17: 0 | CA17: Alpiste | CB17: 1613.414634 | CC17: Belca | CD17: 5602.0558 | CE17: Alpiste | CF17: 1613.414634 | CG17: 247.2173663 | CH17: N0 Cot | CI17: No Cot | CJ17: No Cot | CK17: 0 | CL17: No Cot | CM17: No Cot | CN17: No Cot | CO17: 1.362 | CP17: 0 | CQ17: 0 | CR17: 0 | CS17: 4.1 | CT17: 0 | CU17: 3.785 | CV17: 0 | CW17: Alpiste
A18: ='01-A Reg Prod Nuev'!AM18 -> Bod Tras | B18: ='01-A Reg Prod Nuev'!B18 -> Aceitunas verdes rellenas | C18: =IF('01-A Reg Prod Nuev'!L18=0,0,'01-A Reg Prod Nuev'!L18) -> 290 | D18: ='01-A Reg Prod Nuev'!M18 -> g | F18: Isleña | G18: Isleña | H18: ='01-C Cotizar'!CW18 -> Isleña | I18: =IF(F18='01-C Cotizar'!$O$1,'01-C Cotizar'!U18,IF(F18='01-C Cotizar'!$V$1,'01-C Cotizar'!AB18,IF(F18='01-C Cotizar'!$AC$1,'01-C Cotizar'!AI18,IF(F18='01-C Cotizar'!$AJ$1,'01-C Cotizar'!AP18,IF(F18='01-C Cotizar'!$AQ$1,'01-C Cotizar'!AW18,IF(F18='01-C Cotizar'!$AX$1,'01-C Cotizar'!BD18,IF(F18='01-C Cotizar'!$BE$1,'01-C Cotizar'!BK18,IF(F18='01-C Cotizar'!$BL$1,'01-C Cotizar'!BR18,"O P")))))))) -> 6.068965517 | J18: =IF(F18='01-C Cotizar'!$O$1,'01-C Cotizar'!S18,IF(F18='01-C Cotizar'!$V$1,'01-C Cotizar'!Z18,IF(F18='01-C Cotizar'!$AC$1,'01-C Cotizar'!AG18,IF(F18='01-C Cotizar'!$AJ$1,'01-C Cotizar'!AN18,IF(F18='01-C Cotizar'!$AQ$1,'01-C Cotizar'!AU18,IF(F18='01-C Cotizar'!$AX$1,'01-C Cotizar'!BB18,IF(F18='01-C Cotizar'!$BE$1,'01-C Cotizar'!BI18,IF(F18='01-C Cotizar'!$BL$1,'01-C Cotizar'!BP18,"0")))))))) -> 0 | K18: =IF(F18='01-C Cotizar'!$O$1,'01-C Cotizar'!O18,IF(F18='01-C Cotizar'!$V$1,'01-C Cotizar'!V18,IF(F18='01-C Cotizar'!$AC$1,'01-C Cotizar'!AC18,IF(F18='01-C Cotizar'!$AJ$1,'01-C Cotizar'!AJ18,IF(F18='01-C Cotizar'!$AQ$1,'01-C Cotizar'!AQ18,IF(F18='01-C Cotizar'!$AX$1,'01-C Cotizar'!AX18,IF(F18='01-C Cotizar'!$BE$1,'01-C Cotizar'!BE18,IF(F18='01-C Cotizar'!$BL$1,'01-C Cotizar'!BL18,"0")))))))) -> 1221 | L18: =IF(F18='01-C Cotizar'!$O$1,'01-C Cotizar'!P18,IF(F18='01-C Cotizar'!$V$1,'01-C Cotizar'!W18,IF(F18='01-C Cotizar'!$AC$1,'01-C Cotizar'!AD18,IF(F18='01-C Cotizar'!$AJ$1,'01-C Cotizar'!AK18,IF(F18='01-C Cotizar'!$AQ$1,'01-C Cotizar'!AR18,IF(F18='01-C Cotizar'!$AX$1,'01-C Cotizar'!AY18,IF(F18='01-C Cotizar'!$BE$1,'01-C Cotizar'!BF18,IF(F18='01-C Cotizar'!$BL$1,'01-C Cotizar'!BM18,"")))))))) -> 290 | M18: 0 | N18: 0 | R18: 0 | T18: 0 | U18: 0 | Y18: 0 | AA18: 0 | AB18: 0 | AC18: 1221 | AD18: 290 | AE18: 1760 | AF18: 6.068965517 | AH18: 0 | AI18: 6.068965517 | AM18: 0 | AO18: 0 | AP18: 0 | AT18: 0 | AV18: 0 | AW18: 0 | BA18: 0 | BC18: 0 | BD18: 0 | BH18: 0 | BJ18: 0 | BK18: 0 | BO18: 0 | BQ18: 0 | BR18: 0 | BS18: Mayca | BT18: 0 | BU18: Isleña | BV18: 6.068965517 | BW18: Wamase | BX18: 0 | BY18: Varios | BZ18: 0 | CA18: Varios | CB18: 0 | CC18: Isleña | CD18: 6.068965517 | CE18: Isleña | CF18: 6.068965517 | CG18: No Cot | CH18: N0 Cot | CI18: 0 | CJ18: No Cot | CK18: No Cot | CL18: No Cot | CM18: No Cot | CN18: No Cot | CO18: 0 | CP18: 0 | CQ18: 290 | CR18: 0 | CS18: 0 | CT18: 0 | CU18: 0 | CV18: 0 | CW18: Isleña
A19: ='01-A Reg Prod Nuev'!AM19 -> Bod Tras | B19: ='01-A Reg Prod Nuev'!B19 -> Achiote | C19: =IF('01-A Reg Prod Nuev'!L19=0,0,'01-A Reg Prod Nuev'!L19) -> 850 | D19: ='01-A Reg Prod Nuev'!M19 -> g | F19: Belca | G19: Belca | H19: ='01-C Cotizar'!CW19 -> Belca | I19: =IF(F19='01-C Cotizar'!$O$1,'01-C Cotizar'!U19,IF(F19='01-C Cotizar'!$V$1,'01-C Cotizar'!AB19,IF(F19='01-C Cotizar'!$AC$1,'01-C Cotizar'!AI19,IF(F19='01-C Cotizar'!$AJ$1,'01-C Cotizar'!AP19,IF(F19='01-C Cotizar'!$AQ$1,'01-C Cotizar'!AW19,IF(F19='01-C Cotizar'!$AX$1,'01-C Cotizar'!BD19,IF(F19='01-C Cotizar'!$BE$1,'01-C Cotizar'!BK19,IF(F19='01-C Cotizar'!$BL$1,'01-C Cotizar'!BR19,"O P")))))))) -> 3.483529412 | J19: =IF(F19='01-C Cotizar'!$O$1,'01-C Cotizar'!S19,IF(F19='01-C Cotizar'!$V$1,'01-C Cotizar'!Z19,IF(F19='01-C Cotizar'!$AC$1,'01-C Cotizar'!AG19,IF(F19='01-C Cotizar'!$AJ$1,'01-C Cotizar'!AN19,IF(F19='01-C Cotizar'!$AQ$1,'01-C Cotizar'!AU19,IF(F19='01-C Cotizar'!$AX$1,'01-C Cotizar'!BB19,IF(F19='01-C Cotizar'!$BE$1,'01-C Cotizar'!BI19,IF(F19='01-C Cotizar'!$BL$1,'01-C Cotizar'!BP19,"0")))))))) -> 0.06 | K19: =IF(F19='01-C Cotizar'!$O$1,'01-C Cotizar'!O19,IF(F19='01-C Cotizar'!$V$1,'01-C Cotizar'!V19,IF(F19='01-C Cotizar'!$AC$1,'01-C Cotizar'!AC19,IF(F19='01-C Cotizar'!$AJ$1,'01-C Cotizar'!AJ19,IF(F19='01-C Cotizar'!$AQ$1,'01-C Cotizar'!AQ19,IF(F19='01-C Cotizar'!$AX$1,'01-C Cotizar'!AX19,IF(F19='01-C Cotizar'!$BE$1,'01-C Cotizar'!BE19,IF(F19='01-C Cotizar'!$BL$1,'01-C Cotizar'!BL19,"0")))))))) -> 111046 | L19: =IF(F19='01-C Cotizar'!$O$1,'01-C Cotizar'!P19,IF(F19='01-C Cotizar'!$V$1,'01-C Cotizar'!W19,IF(F19='01-C Cotizar'!$AC$1,'01-C Cotizar'!AD19,IF(F19='01-C Cotizar'!$AJ$1,'01-C Cotizar'!AK19,IF(F19='01-C Cotizar'!$AQ$1,'01-C Cotizar'!AR19,IF(F19='01-C Cotizar'!$AX$1,'01-C Cotizar'!AY19,IF(F19='01-C Cotizar'!$BE$1,'01-C Cotizar'!BF19,IF(F19='01-C Cotizar'!$BL$1,'01-C Cotizar'!BM19,"")))))))) -> 850 | M19: 0 | N19: 0 | O19: 111046 | P19: 850 | Q19: 3150 | R19: 3.705882353 | S19: 0.06 | T19: 0.2223529412 | U19: 3.483529412 | V19: 176622 | W19: 850 | X19: 3600 | Y19: 4.235294118 | AA19: 0 | AB19: 4.235294118 | AF19: 0 | AH19: 0 | AI19: 0 | AJ19: 22460 | AK19: 850 | AL19: 3014 | AM19: 3.545882353 | AO19: 0 | AP19: 3.545882353 | AT19: 0 | AV19: 0 | AW19: 0 | BA19: 0 | BC19: 0 | BD19: 0 | BH19: 0 | BJ19: 0 | BK19: 0 | BO19: 0 | BQ19: 0 | BR19: 0 | BS19: Belca | BT19: 3.483529412 | BU19: Ciamesa | BV19: 3.545882353 | BW19: Wamase | BX19: 0 | BY19: Varios | BZ19: 0 | CA19: Varios | CB19: 0 | CC19: Belca | CD19: 3.483529412 | CE19: Belca | CF19: 3.483529412 | CG19: 0 | CH19: 21.58054711 | CI19: No Cot | CJ19: 1.789935832 | CK19: No Cot | CL19: No Cot | CM19: No Cot | CN19: No Cot | CO19: 850 | CP19: 850 | CQ19: 0 | CR19: 850 | CS19: 0 | CT19: 0 | CU19: 0 | CV19: 0 | CW19: Belca
A20: ='01-A Reg Prod Nuev'!AM20 -> Bod Req | B20: ='01-A Reg Prod Nuev'!B20 -> Achiote | C20: =IF('01-A Reg Prod Nuev'!L20=0,0,'01-A Reg Prod Nuev'!L20) -> 1080 | D20: ='01-A Reg Prod Nuev'!M20 -> g | F20: Ciamesa | G20: Ciamesa | H20: ='01-C Cotizar'!CW20 -> Ciamesa | I20: =IF(F20='01-C Cotizar'!$O$1,'01-C Cotizar'!U20,IF(F20='01-C Cotizar'!$V$1,'01-C Cotizar'!AB20,IF(F20='01-C Cotizar'!$AC$1,'01-C Cotizar'!AI20,IF(F20='01-C Cotizar'!$AJ$1,'01-C Cotizar'!AP20,IF(F20='01-C Cotizar'!$AQ$1,'01-C Cotizar'!AW20,IF(F20='01-C Cotizar'!$AX$1,'01-C Cotizar'!BD20,IF(F20='01-C Cotizar'!$BE$1,'01-C Cotizar'!BK20,IF(F20='01-C Cotizar'!$BL$1,'01-C Cotizar'!BR20,"O P")))))))) -> 4.469444444 | J20: =IF(F20='01-C Cotizar'!$O$1,'01-C Cotizar'!S20,IF(F20='01-C Cotizar'!$V$1,'01-C Cotizar'!Z20,IF(F20='01-C Cotizar'!$AC$1,'01-C Cotizar'!AG20,IF(F20='01-C Cotizar'!$AJ$1,'01-C Cotizar'!AN20,IF(F20='01-C Cotizar'!$AQ$1,'01-C Cotizar'!AU20,IF(F20='01-C Cotizar'!$AX$1,'01-C Cotizar'!BB20,IF(F20='01-C Cotizar'!$BE$1,'01-C Cotizar'!BI20,IF(F20='01-C Cotizar'!$BL$1,'01-C Cotizar'!BP20,"0")))))))) -> 0 | K20: =IF(F20='01-C Cotizar'!$O$1,'01-C Cotizar'!O20,IF(F20='01-C Cotizar'!$V$1,'01-C Cotizar'!V20,IF(F20='01-C Cotizar'!$AC$1,'01-C Cotizar'!AC20,IF(F20='01-C Cotizar'!$AJ$1,'01-C Cotizar'!AJ20,IF(F20='01-C Cotizar'!$AQ$1,'01-C Cotizar'!AQ20,IF(F20='01-C Cotizar'!$AX$1,'01-C Cotizar'!AX20,IF(F20='01-C Cotizar'!$BE$1,'01-C Cotizar'!BE20,IF(F20='01-C Cotizar'!$BL$1,'01-C Cotizar'!BL20,"0")))))))) -> 22465 | L20: =IF(F20='01-C Cotizar'!$O$1,'01-C Cotizar'!P20,IF(F20='01-C Cotizar'!$V$1,'01-C Cotizar'!W20,IF(F20='01-C Cotizar'!$AC$1,'01-C Cotizar'!AD20,IF(F20='01-C Cotizar'!$AJ$1,'01-C Cotizar'!AK20,IF(F20='01-C Cotizar'!$AQ$1,'01-C Cotizar'!AR20,IF(F20='01-C Cotizar'!$AX$1,'01-C Cotizar'!AY20,IF(F20='01-C Cotizar'!$BE$1,'01-C Cotizar'!BF20,IF(F20='01-C Cotizar'!$BL$1,'01-C Cotizar'!BM20,"")))))))) -> 1080 | M20: 0 | N20: 0 | R20: 0 | T20: 0 | U20: 0 | Y20: 0 | AA20: 0 | AB20: 0 | AF20: 0 | AH20: 0 | AI20: 0 | AJ20: 22465 | AK20: 1080 | AL20: 4827 | AM20: 4.469444444 | AO20: 0 | AP20: 4.469444444 | AT20: 0 | AV20: 0 | AW20: 0 | BA20: 0 | BC20: 0 | BD20: 0 | BH20: 0 | BJ20: 0 | BK20: 0 | BO20: 0 | BQ20: 0 | BR20: 0 | BS20: Mayca | BT20: 0 | BU20: Ciamesa | BV20: 4.469444444 | BW20: Wamase | BX20: 0 | BY20: Varios | BZ20: 0 | CA20: Varios | CB20: 0 | CC20: Ciamesa | CD20: 4.469444444 | CE20: Ciamesa | CF20: 4.469444444 | CG20: No Cot | CH20: N0 Cot | CI20: No Cot | CJ20: 0 | CK20: No Cot | CL20: No Cot | CM20: No Cot | CN20: No Cot | CO20: 0 | CP20: 0 | CQ20: 0 | CR20: 1080 | CS20: 0 | CT20: 0 | CU20: 0 | CV20: 0 | CW20: Ciamesa
A21: ='01-A Reg Prod Nuev'!AM21 -> Bod Tras | B21: ='01-A Reg Prod Nuev'!B21 -> Aderezo italiano | C21: =IF('01-A Reg Prod Nuev'!L21=0,0,'01-A Reg Prod Nuev'!L21) -> 3.78 | D21: ='01-A Reg Prod Nuev'!M21 -> kg | F21: Belca | G21: Belca | H21: ='01-C Cotizar'!CW21 -> Belca | I21: =IF(F21='01-C Cotizar'!$O$1,'01-C Cotizar'!U21,IF(F21='01-C Cotizar'!$V$1,'01-C Cotizar'!AB21,IF(F21='01-C Cotizar'!$AC$1,'01-C Cotizar'!AI21,IF(F21='01-C Cotizar'!$AJ$1,'01-C Cotizar'!AP21,IF(F21='01-C Cotizar'!$AQ$1,'01-C Cotizar'!AW21,IF(F21='01-C Cotizar'!$AX$1,'01-C Cotizar'!BD21,IF(F21='01-C Cotizar'!$BE$1,'01-C Cotizar'!BK21,IF(F21='01-C Cotizar'!$BL$1,'01-C Cotizar'!BR21,"O P")))))))) -> 1373.844122 | J21: =IF(F21='01-C Cotizar'!$O$1,'01-C Cotizar'!S21,IF(F21='01-C Cotizar'!$V$1,'01-C Cotizar'!Z21,IF(F21='01-C Cotizar'!$AC$1,'01-C Cotizar'!AG21,IF(F21='01-C Cotizar'!$AJ$1,'01-C Cotizar'!AN21,IF(F21='01-C Cotizar'!$AQ$1,'01-C Cotizar'!AU21,IF(F21='01-C Cotizar'!$AX$1,'01-C Cotizar'!BB21,IF(F21='01-C Cotizar'!$BE$1,'01-C Cotizar'!BI21,IF(F21='01-C Cotizar'!$BL$1,'01-C Cotizar'!BP21,"0")))))))) -> 0 | K21: =IF(F21='01-C Cotizar'!$O$1,'01-C Cotizar'!O21,IF(F21='01-C Cotizar'!$V$1,'01-C Cotizar'!V21,IF(F21='01-C Cotizar'!$AC$1,'01-C Cotizar'!AC21,IF(F21='01-C Cotizar'!$AJ$1,'01-C Cotizar'!AJ21,IF(F21='01-C Cotizar'!$AQ$1,'01-C Cotizar'!AQ21,IF(F21='01-C Cotizar'!$AX$1,'01-C Cotizar'!AX21,IF(F21='01-C Cotizar'!$BE$1,'01-C Cotizar'!BE21,IF(F21='01-C Cotizar'!$BL$1,'01-C Cotizar'!BL21,"0")))))))) -> 109705 | L21: =IF(F21='01-C Cotizar'!$O$1,'01-C Cotizar'!P21,IF(F21='01-C Cotizar'!$V$1,'01-C Cotizar'!W21,IF(F21='01-C Cotizar'!$AC$1,'01-C Cotizar'!AD21,IF(F21='01-C Cotizar'!$AJ$1,'01-C Cotizar'!AK21,IF(F21='01-C Cotizar'!$AQ$1,'01-C Cotizar'!AR21,IF(F21='01-C Cotizar'!$AX$1,'01-C Cotizar'!AY21,IF(F21='01-C Cotizar'!$BE$1,'01-C Cotizar'!BF21,IF(F21='01-C Cotizar'!$BL$1,'01-C Cotizar'!BM21,"")))))))) -> 3.785 | M21: -0.005 | N21: -0.001322751323 | O21: 109705 | P21: 3.785 | Q21: 5200 | R21: 1373.844122 | T21: 0 | U21: 1373.844122 | V21: 132691 | W21: 3.78 | X21: 5838 | Y21: 1544.444444 | AA21: 0 | AB21: 1544.444444 | AF21: 0 | AH21: 0 | AI21: 0 | AM21: 0 | AO21: 0 | AP21: 0 | AT21: 0 | AV21: 0 | AW21: 0 | BA21: 0 | BC21: 0 | BD21: 0 | BE21: 06010025 | BF21: 3.785 | BG21: 5689 | BH21: 1503.038309 | BJ21: 0 | BK21: 1503.038309 | BO21: 0 | BQ21: 0 | BR21: 0 | BS21: Belca | BT21: 1373.844122 | BU21: Ciamesa | BV21: 0 | BW21: Wamase | BX21: 0 | BY21: Oceanic | BZ21: 1503.038309 | CA21: Oceanic | CB21: 1503.038309 | CC21: Belca | CD21: 1373.844122 | CE21: Belca | CF21: 1373.844122 | CG21: 0 | CH21: 12.41773504 | CI21: No Cot | CJ21: No Cot | CK21: No Cot | CL21: No Cot | CM21: 9.403846154 | CN21: No Cot | CO21: 3.785 | CP21: 3.78 | CQ21: 0 | CR21: 0 | CS21: 0 | CT21: 0 | CU21: 3.785 | CV21: 0 | CW21: Belca
A22: ='01-A Reg Prod Nuev'!AM22 -> Bod Tras | B22: ='01-A Reg Prod Nuev'!B22 -> Aderezo mil islas | C22: =IF('01-A Reg Prod Nuev'!L22=0,0,'01-A Reg Prod Nuev'!L22) -> 3.78 | D22: ='01-A Reg Prod Nuev'!M22 -> kg | F22: Mayca | G22: Mayca | H22: ='01-C Cotizar'!CW22 -> Mayca | I22: =IF(F22='01-C Cotizar'!$O$1,'01-C Cotizar'!U22,IF(F22='01-C Cotizar'!$V$1,'01-C Cotizar'!AB22,IF(F22='01-C Cotizar'!$AC$1,'01-C Cotizar'!AI22,IF(F22='01-C Cotizar'!$AJ$1,'01-C Cotizar'!AP22,IF(F22='01-C Cotizar'!$AQ$1,'01-C Cotizar'!AW22,IF(F22='01-C Cotizar'!$AX$1,'01-C Cotizar'!BD22,IF(F22='01-C Cotizar'!$BE$1,'01-C Cotizar'!BK22,IF(F22='01-C Cotizar'!$BL$1,'01-C Cotizar'!BR22,"O P")))))))) -> 1551.362434 | J22: =IF(F22='01-C Cotizar'!$O$1,'01-C Cotizar'!S22,IF(F22='01-C Cotizar'!$V$1,'01-C Cotizar'!Z22,IF(F22='01-C Cotizar'!$AC$1,'01-C Cotizar'!AG22,IF(F22='01-C Cotizar'!$AJ$1,'01-C Cotizar'!AN22,IF(F22='01-C Cotizar'!$AQ$1,'01-C Cotizar'!AU22,IF(F22='01-C Cotizar'!$AX$1,'01-C Cotizar'!BB22,IF(F22='01-C Cotizar'!$BE$1,'01-C Cotizar'!BI22,IF(F22='01-C Cotizar'!$BL$1,'01-C Cotizar'!BP22,"0")))))))) -> 0 | K22: =IF(F22='01-C Cotizar'!$O$1,'01-C Cotizar'!O22,IF(F22='01-C Cotizar'!$V$1,'01-C Cotizar'!V22,IF(F22='01-C Cotizar'!$AC$1,'01-C Cotizar'!AC22,IF(F22='01-C Cotizar'!$AJ$1,'01-C Cotizar'!AJ22,IF(F22='01-C Cotizar'!$AQ$1,'01-C Cotizar'!AQ22,IF(F22='01-C Cotizar'!$AX$1,'01-C Cotizar'!AX22,IF(F22='01-C Cotizar'!$BE$1,'01-C Cotizar'!BE22,IF(F22='01-C Cotizar'!$BL$1,'01-C Cotizar'!BL22,"0")))))))) -> 132688 | L22: =IF(F22='01-C Cotizar'!$O$1,'01-C Cotizar'!P22,IF(F22='01-C Cotizar'!$V$1,'01-C Cotizar'!W22,IF(F22='01-C Cotizar'!$AC$1,'01-C Cotizar'!AD22,IF(F22='01-C Cotizar'!$AJ$1,'01-C Cotizar'!AK22,IF(F22='01-C Cotizar'!$AQ$1,'01-C Cotizar'!AR22,IF(F22='01-C Cotizar'!$AX$1,'01-C Cotizar'!AY22,IF(F22='01-C Cotizar'!$BE$1,'01-C Cotizar'!BF22,IF(F22='01-C Cotizar'!$BL$1,'01-C Cotizar'!BM22,"")))))))) -> 3.78 | M22: 0 | N22: 0 | R22: 0 | T22: 0 | U22: 0 | V22: 132688 | W22: 3.78 | X22: 5864.15 | Y22: 1551.362434 | AA22: 0 | AB22: 1551.362434 | AF22: 0 | AH22: 0 | AI22: 0 | AM22: 0 | AO22: 0 | AP22: 0 | AT22: 0 | AV22: 0 | AW22: 0 | BA22: 0 | BC22: 0 | BD22: 0 | BH22: 0 | BJ22: 0 | BK22: 0 | BO22: 0 | BQ22: 0 | BR22: 0 | BS22: Mayca | BT22: 1551.362434 | BU22: Ciamesa | BV22: 0 | BW22: Wamase | BX22: 0 | BY22: Varios | BZ22: 0 | CA22: Varios | CB22: 0 | CC22: Mayca | CD22: 1551.362434 | CE22: Mayca | CF22: 1551.362434 | CG22: No Cot | CH22: 0 | CI22: No Cot | CJ22: No Cot | CK22: No Cot | CL22: No Cot | CM22: No Cot | CN22: No Cot | CO22: 0 | CP22: 3.78 | CQ22: 0 | CR22: 0 | CS22: 0 | CT22: 0 | CU22: 0 | CV22: 0 | CW22: Mayca
